Workbook

Sheet Menu
C3: EESG – Economic, Environmental, Social and Governance
C4: Indicadores Aneel
D8: Comunidades | F8: Meio Ambiente | H8: Programa de Eficiência Energética (PEE)
D10: Consumidores | F10: Operacionais e de Produtividade | H10: Sociais Internos
D12: Econômico-Financeiros | F12: Pesquisa e Desenvolvimento (P&D) | H12: Universalização (Setor Elétrico)
D14: Governança Corporativa
D24: Empresa
D25: EMG
D26: EAC
D27: EBO
D28: EMS
D29: EMT
D30: ENF
D31: EPB
D32: ERO
D33: ESE
D34: ESS
D35: ETO

Sheet ConsolOper (hidden)
A1: Indicadores operacionais e de produtividade
A2: Escolha a empresa do Grupo Energisa => | B2: EBO
A4: Dados técnicos (insumos, capacidade de produção, vendas, perdas) | B4: 2019 | C4: 2018 | D4: 2017 | F4: PROTOCOLO ANEEL - Considerar dados de 31 de dezembro
F5: Quantidade de consumidores cativos atendidos no ano
F6: Quantidade de consumidores livres atendidos no ano
F7: Quantidade de municípios na área de concessão
F8: Quantidade de colaboradores próprios
F9: Quantidade de contratados de terceiros (desconsiderar os empregados das prestadoras de serviços de construção de redes e usinas e desconsiderar os empregados da ESOL)
F10: Número total de lojas/agências comerciais, considerando toda a área de concessão
F11: Produção líquida de energia, em GWh
F12: Energia comprada, discriminada por origem
F16: Perdas de transmissão e distribuição como porcentagem do total de energia
F20: Energia vendida, em GWh, discriminada por tipo de cliente atendido
F28: Quantidade de subestações
F29: Capacidade instalada das subestações, em MVA
F30: Comprimento das linhas de transmissão, em Km
F31: Comprimento das linhas de distribuição, em Km
F32: Número absoluto de transformadores na área de concessão
F33: Ver abaixo - Dividir a energia vendida total no ano (em GWh) pela capacidade instalada total (em MVA) vezes o número de horas no ano (8.760 horas); anos bissextos = 8.784 horas
F34: Energia vendida total, em MWh, dividida pelo número total de empregados próprios
F35: Dividir o número total de consumidores atendidos pelo número total de empregados próprios
F36: Divisão do valor adicionado a distribuir (obtido da DVA) pelo total de energia vendida, em GWh
F37: Duração média da falta de energia - apurado pela empresa e limite Aneel
F39: Frequência da falta de energia - apurado pela empresa e limite Aneel
A46: VENDA DE ENERGIA POR CAPACIDADE INSTALADA
B47: 2019 | C47: 2018 | D47: 2017
A48: Energia vendida (GWh) | B48: =+B20 -> 0 | C48: =+C20 -> 0 | D48: 0
A49: Capacidade instalada (MVA) | B49: =+B29 -> 0 | C49: =+C29 -> 0 | D49: 0
A50: Venda de energia por capacidade instalada – GWh/(MVA X nº horas/ano) | B50: =+B48/(B49*8760) -> 

Sheet Operacionais
C1: Indicadores operacionais e de produtividade | Selecione a empresa
B3: EMG | C3: Dados técnicos (insumos, capacidade de produção, vendas, perdas) | D3: 2020 | E3: 2019 | F3: 2018 | G3: 2017 | H3: 2016 | I3: 2015 | J3: 2014 | L3: PROTOCOLO ANEEL - Considerar dados de 31 de dezembro
B4: =$B$3 -> EMG | C4: Número de consumidores atendidos – Cativos | D4: 469456 | E4: 460051 | F4: 455359 | G4: 445557 | H4: 438869 | I4: 433470 | J4: 425807 | L4: Quantidade de consumidores cativos atendidos no ano
B5: =$B$3 -> EMG | C5: Número de consumidores atendidos – Livres | D5: 72 | E5: 62 | F5: 54 | G5: 51 | H5: 47 | I5: 32 | J5: 33 | L5: Quantidade de consumidores livres atendidos no ano
B6: EMG | C6: Número de localidades atendidas (municípios) | D6: 62 | E6: 62 | F6: 62 | G6: 66 | H6: 66 | I6: 66 | J6: 66 | L6: Quantidade de municípios na área de concessão
B7: EMG | C7: Número de empregados próprios | D7: 843 | E7: 850 | F7: 811 | G7: 806 | H7: 613 | I7: 593 | J7: 603 | L7: Quantidade de colaboradores próprios
B8: EMG | C8: Número de empregados terceirizados | D8: 187 | E8: 110 | F8: 234 | G8: 134 | H8: 171 | I8: 155 | J8: 152 | L8: Quantidade de contratados de terceiros (desconsiderar os empregados das prestadoras de serviços de construção de redes e usinas e desconsiderar os empregados da ESOL)
B9: EMG | C9: Número de escritórios comerciais | D9: 66 | E9: 66 | F9: 66 | G9: 66 | H9: 66 | I9: 66 | J9: 66 | L9: Número total de lojas/agências comerciais, considerando toda a área de concessão
B10: EMG | C10: Energia gerada (GWh) | D10: NA | E10: NA | F10: NA | G10: NA | H10: NA | I10: NA | J10: NA | L10: Produção líquida de energia, em GWh
B11: EMG | C11: Energia comprada (GWh) | D11: 1574.43 | E11: 1516.54 | F11: 1511.2 | G11: 1498.32 | H11: 1538.65 | I11: 1454.75 | J11: 1338.43 | L11: Energia comprada, discriminada por origem
B12: EMG | C12: 1) Itaipu | D12: 259.5 | E12: 255.27 | F12: 255.44 | G12: 281.51 | H12: 286.07 | I12: 267.48 | J12: 288.68
B13: EMG | C13: 2) Leilão (inclusive leilão das geradoras federais – ano 2002) | D13: 1314.93 | E13: 1261.27 | F13: 1255.76 | G13: 1216.81 | H13: 1252.58 | I13: 1187.27 | J13: 1049.75
B14: EMG | C14: 3) Suprimento da Concessionária | D14: - | E14: - | F14: - | G14: - | H14: 0 | I14: 0 | J14: 0
B15: EMG | C15: Perdas elétricas globais (GWh) | D15: 178.43 | E15: 181.6 | F15: 179.2 | G15: 175.3 | H15: 170.6 | I15: 169.3 | J15: 161.58 | L15: Perdas de transmissão e distribuição como porcentagem do total de energia
B16: EMG | C16: Perdas elétricas – (%) total sobre o requisito de energia | D16: 0.0964 | E16: 0.1035 | F16: 0.1012 | G16: 0.1043 | H16: 0.101 | I16: 0.097 | J16: 0.0913
B17: EMG | C17: Perdas técnicas – (%) sobre o requisito de energia | D17: 0.0943 | E17: 0.1051 | F17: 0.1022 | G17: 0.1019 | H17: 0.0941 | I17: 0.0987 | J17: 0.0962
B18: EMG | C18: Perdas não técnicas – (%) sobre o requisito de energia | D18: 0.0021 | E18: -0.0016 | F18: -0.0009 | G18: 0.0024 | H18: 0.0069 | I18: -0.0017 | J18: -0.0049
B19: EMG | C19: Energia vendida (GWh) 1 | D19: 1225.81 | E19: 1238.85 | F19: 1220.64 | G19: 1200.99 | H19: 1197.47 | I19: 1215.51 | J19: 1204.9 | L19: Energia vendida, em GWh, discriminada por tipo de cliente atendido
B20: EMG | C20: Residencial | D20: 555.68 | E20: 541.84 | F20: 516.83 | G20: 503.53 | H20: 492.98 | I20: 486.79 | J20: 480.75
B21: EMG | C21: Industrial | D21: 111.73 | E21: 119.26 | F21: 127.68 | G21: 130.91 | H21: 142.26 | I21: 166.03 | J21: 175.6
B22: EMG | C22: Comercial | D22: 200.71 | E22: 228.49 | F22: 224.51 | G22: 226.88 | H22: 236.88 | I22: 240.94 | J22: 237.17
B23: EMG | C23: Rural | D23: 204.36 | E23: 185.15 | F23: 190.13 | G23: 183.63 | H23: 174.56 | I23: 173.71 | J23: 163.06
B24: EMG | C24: Poder público | D24: 26.99 | E24: 34.91 | F24: 33.29 | G24: 33.07 | H24: 32.96 | I24: 32.94 | J24: 33.42
B25: EMG | C25: Iluminação pública | D25: 84.69 | E25: 88.07 | F25: 89.05 | G25: 83.47 | H25: 79.28 | I25: 77.52 | J25: 76.36
B26: EMG | C26: Serviço público | D26: 41.66 | E26: 41.13 | F26: 39.15 | G26: 39.5 | H26: 38.54 | I26: 37.58 | J26: 38.53
B27: EMG | C27: Subestações (em unidades) 2 | D27: 56 | E27: 48 | F27: 47 | G27: 47 | H27: 46 | I27: 46 | J27: 44 | L27: Quantidade de subestações
B28: EMG | C28: Capacidade instalada (MVA) | D28: 1231 | E28: 1012 | F28: 1012 | G28: 1012 | H28: 1012 | I28: 973 | J28: 901 | L28: Capacidade instalada das subestações, em MVA
B29: EMG | C29: Linhas de transmissão (em km) | D29: 1162 | E29: 1113 | F29: 1095 | G29: 1090 | H29: 1080 | I29: 1080 | J29: 1070 | L29: Comprimento das linhas de transmissão, em Km
B30: EMG | C30: Linhas de distribuição (em km) | D30: 28181 | E30: 27340 | F30: 27227 | G30: 26691 | H30: 26459 | I30: 26245 | J30: 26046 | L30: Comprimento das linhas de distribuição, em Km
B31: EMG | C31: Transformadores de distribuição (em unidades) | D31: 65102 | E31: 64557 | F31: 63922 | G31: 62769 | H31: 61184 | I31: 60222 | J31: 60353 | L31: Número absoluto de transformadores na área de concessão
B32: EMG | C32: Venda de energia por capacidade instalada (GWh/MVA*Nº Horas/Ano) | D32: 0.0001133633784 | E32: 0.0001397443013 | F32: 0.0001376901836 | G32: 0.000135 | H32: 0.00014 | I32: 0.00014 | J32: 0.00015 | L32: Ver abaixo - Dividir a energia vendida total no ano (em GWh) pela capacidade instalada total (em MVA) vezes o número de horas no ano (8.760 horas); anos bissextos = 8.784 horas
B33: EMG | C33: Energia vendida por empregado (MWh) | D33: 1454 | E33: 1457 | F33: 1505 | G33: 1490 | H33: 1953 | I33: 2050 | J33: 1998 | L33: Energia vendida total, em MWh, dividida pelo número total de empregados próprios
B34: EMG | C34: Número de consumidores por empregado | D34: 560 | E34: 541 | F34: 562 | G34: 553 | H34: 716 | I34: 731 | J34: 706 | L34: Dividir o número total de consumidores atendidos pelo número total de empregados próprios
B35: EMG | C35: Valor Adicionado/GWh vendido (R$ mil) | D35: 462.38 | E35: 463.43 | F35: 443.09 | G35: 414.2 | H35: 388.41 | I35: 411.9 | J35: 239.77 | L35: Divisão do valor adicionado a distribuir (obtido da DVA) pelo total de energia vendida, em GWh
B36: EMG | C36: Duração Equivalente de Interrupção por Unidade Consumidora “DEC”, geral da empresa – Valor apurado 3 | D36: 10.79 | E36: 8.85 | F36: 9.43 | G36: 8.44 | H36: 10.35 | I36: 10.18 | J36: 9.46 | L36: Duração média da falta de energia - apurado pela empresa e limite Aneel
B37: EMG | C37: Duração Equivalente de Interrupção por Unidade Consumidora “DEC”, geral da empresa – Limite | D37: 11.25 | E37: 11.31 | F37: 11.45 | G37: 11.52 | H37: 11.57 | I37: 11.76 | J37: 11.84
B38: EMG | C38: Frequência Equivalente de Interrupção por Unidade Consumidora “FEC”, geral da empresa – Valor apurado 3 | D38: 7.12 | E38: 4.47 | F38: 5.33 | G38: 5.05 | H38: 7.15 | I38: 7.28 | J38: 6.48 | L38: Frequência da falta de energia - apurado pela empresa e limite Aneel
B39: EMG | C39: Frequência Equivalente de Interrupção por Unidade Consumidora “FEC”, geral da empresa – Limite | D39: 8.28 | E39: 8.55 | F39: 8.91 | G39: 9.36 | H39: 9.44 | I39: 10.08 | J39: 10.88
B40: EMG | C40: 1 Refere-se apenas ao mercado cativo e exclui consumo próprio.
B41: EMG | C41: 2 Dado de 2020 inclui subestações compartilhadas.
B42: EMG | C42: ³ Em outubro de 2020, a área da EMG foi afetada por um blackout (falta de supridora Light), um evento com duração de 19 horas e que afetou a grande maioria dos clientes da distribuidora. Desconsiderando o impacto dessa falta de suprimento, os resultados seriam: DEC = 8,92 e FEC = 4,80.
B43: EMG
B44: EMG | C44: VENDA DE ENERGIA POR CAPACIDADE INSTALADA
B45: EMG | D45: 2020 | E45: 2019 | F45: 2018 | G45: 2017 | H45: 2016 | I45: 2015 | J45: 2014
B46: EMG | C46: Energia vendida (GWh) | D46: 1225.81 | E46: 1238.85 | F46: 1220.64 | G46: 1200.99 | H46: =H19 -> 1197.47 | I46: =I19 -> 1215.51 | J46: =J19 -> 1204.9
B47: EMG | C47: Capacidade instalada (MVA) | D47: 1231 | E47: 1012 | F47: 1012 | G47: 1012 | H47: =H28 -> 1012 | I47: =I28 -> 973 | J47: 901
B48: EMG | C48: Venda de energia por capacidade instalada – GWh/(MVA X nº horas/ano) | D48: =+D46/(D47*8784) -> 0.0001133633784 | E48: =+E46/(E47*8784) -> 0.0001393624862 | F48: 0.0001373139809 | G48: 0.000135103485 | H48: 0.0001347075081 | I48: 0.0001422176076 | J48: =+J46/(J47*8784) -> 0.0001522417917
B50: EAC | C50: Dados técnicos (insumos, capacidade de produção, vendas, perdas) | D50: 2020 | E50: 2019 | F50: 2018 | G50: 2017 | H50: 2016 | L50: PROTOCOLO ANEEL - Considerar dados de 31 de dezembro
B51: =$B$50 -> EAC | C51: Número de consumidores atendidos – Cativos | D51: 278575 | E51: 264436 | F51: 263729 | G51: 259451 | H51: 251826 | L51: Quantidade de consumidores cativos atendidos no ano
B52: =$B$50 -> EAC | C52: Número de consumidores atendidos – Livres | D52: 34 | E52: 21 | F52: 19 | G52: 18 | H52: 16 | L52: Quantidade de consumidores livres atendidos no ano
B53: EAC | C53: Número de localidades atendidas (municípios) | D53: 22 | E53: 22 | F53: 22 | G53: 22 | H53: 22 | L53: Quantidade de municípios na área de concessão
B54: EAC | C54: Número de empregados próprios | D54: 422 | E54: 311 | F54: 339 | G54: 301 | H54: 258 | L54: Quantidade de colaboradores próprios
B55: EAC | C55: Número de empregados terceirizados | D55: 512 | E55: 632 | F55: 1263 | G55: 1149 | H55: 402 | L55: Quantidade de contratados de terceiros (desconsiderar os empregados das prestadoras de serviços de construção de redes e usinas e desconsiderar os empregados da ESOL)
B56: EAC | C56: Número de escritórios comerciais | D56: 24 | E56: 26 | F56: 24 | G56: 24 | H56: 24 | L56: Número total de lojas/agências comerciais, considerando toda a área de concessão
B57: EAC | C57: Energia gerada (GWh) | D57: NA | E57: NA | F57: NA | G57: NA | H57: ND | L57: Produção líquida de energia, em GWh
B58: EAC | C58: Energia comprada (GWh) | D58: 1649.37 | E58: 1558.34 | F58: 1924.5 | G58: 1655.4 | H58: 1728.85 | L58: Energia comprada, discriminada por origem
B59: EAC | C59: 1) Itaipu | D59: - | E59: - | F59: - | G59: ND | H59: ND
B60: EAC | C60: 2) Leilão (inclusive leilão das geradoras federais – ano 2002) | D60: 1649.37 | E60: 1.558,34 | F60: 1916.38 | G60: 1645.51 | H60: 1717.01
B61: EAC | C61: 3) Suprimento da Concessionária | D61: - | E61: - | F61: 8.12 | G61: 9.89 | H61: 11.84
B62: EAC | C62: Perdas elétricas globais (GWh) | D62: 246.52 | E62: 250.2 | F62: 255.7 | G62: 289.6 | H62: 318.97 | L62: Perdas de transmissão e distribuição como porcentagem do total de energia
B63: EAC | C63: Perdas elétricas – (%) total sobre o requisito de energia | D63: 0.1823 | E63: 0.187 | F63: 0.196 | G63: 0.218 | H63: 0.2429
B64: EAC | C64: Perdas técnicas – (%) sobre o requisito de energia | D64: 0.1003 | E64: 0.0989 | F64: 0.0985 | G64: 0.099 | H64: 0.0985
B65: EAC | C65: Perdas não técnicas – (%) sobre o requisito de energia | D65: 0.082 | E65: 0.0881 | F65: 0.0975 | G65: 0.124 | H65: 0.12
B66: EAC | C66: Energia vendida (GWh) 1 | D66: 1055.38 | E66: 1039.06 | F66: 998.55 | G66: 992.38 | H66: 961.6 | L66: Energia vendida, em GWh, discriminada por tipo de cliente atendido
B67: EAC | C67: Residencial | D67: 549.97 | E67: 491.09 | F67: 465.42 | G67: 466.16 | H67: 447.64
B68: EAC | C68: Industrial | D68: 35.11 | E68: 37.32 | F68: 39.96 | G68: 38.42 | H68: 39.56
B69: EAC | C69: Comercial | D69: 210.21 | E69: 222.83 | F69: 203.76 | G69: 201.43 | H69: 206.99
B70: EAC | C70: Rural | D70: 57.15 | E70: 52.73 | F70: 50.64 | G70: 49.52 | H70: 46.72
B71: EAC | C71: Poder público | D71: 104.48 | E71: 126.73 | F71: 125.23 | G71: 129.77 | H71: 124.14
B72: EAC | C72: Iluminação pública | D72: 49.18 | E72: 60.93 | F72: 61.47 | G72: 53.19 | H72: 48.18
B73: EAC | C73: Serviço público | D73: 49.3 | E73: 47.43 | F73: 52.07 | G73: 53.9 | H73: 48.38
B74: EAC | C74: Subestações (em unidades) 2 | D74: 17 | E74: 15 | F74: 13 | G74: 13 | H74: 14 | L74: Quantidade de subestações
B75: EAC | C75: Capacidade instalada (MVA) | D75: 424 | E75: 374 | F75: 312 | G75: 312 | H75: 312 | L75: Capacidade instalada das subestações, em MVA
B76: EAC | C76: Linhas de transmissão (em km) | D76: 646 | E76: 444 | F76: 444 | G76: 442 | H76: - | L76: Comprimento das linhas de transmissão, em Km
B77: EAC | C77: Linhas de distribuição (em km) | D77: 22456 | E77: 21995 | F77: 20967 | G77: ND | H77: 442 | L77: Comprimento das linhas de distribuição, em Km
B78: EAC | C78: Transformadores de distribuição (em unidades) | D78: 38434 | E78: 37401 | F78: 35380 | G78: 34659 | H78: 33405 | L78: Número absoluto de transformadores na área de concessão
B79: EAC | C79: Venda de energia por capacidade instalada (GWh/MVA*Nº Horas/Ano) | D79: =+D92 -> 1055.38 | E79: 0.000317 | F79: 0.00037 | G79: 0.000363 | H79: 0.000352 | L79: Ver abaixo - Dividir a energia vendida total no ano (em GWh) pela capacidade instalada total (em MVA) vezes o número de horas no ano (8.760 horas); anos bissextos = 8.784 horas
B80: EAC | C80: Energia vendida por empregado (MWh) | D80: 2501 | E80: 3341 | F80: 2946 | G80: 3297 | H80: 3807.8 | L80: Energia vendida total, em MWh, dividida pelo número total de empregados próprios
B81: EAC | C81: Número de consumidores por empregado | D81: 660 | E81: 850 | F81: 778 | G81: 862 | H81: 976 | L81: Dividir o número total de consumidores atendidos pelo número total de empregados próprios
B82: EAC | C82: Valor Adicionado/GWh vendido (R$ mil) | D82: 429.93 | E82: 439.69 | F82: 459.2 | G82: 293.79 | H82: 354.72 | L82: Divisão do valor adicionado a distribuir (obtido da DVA) pelo total de energia vendida, em GWh
B83: EAC | C83: Duração Equivalente de Interrupção por Unidade Consumidora “DEC”, geral da empresa – Valor apurado | D83: 30.49 | E83: 37.76 | F83: 43.81 | G83: 47.89 | H83: 58.93 | L83: Duração média da falta de energia - apurado pela empresa e limite Aneel
B84: EAC | C84: Duração Equivalente de Interrupção por Unidade Consumidora “DEC”, geral da empresa – Limite | D84: 43, 98 | E84: 44.18 | F84: 44.06 | G84: 27.5 | H84: 30.5
B85: EAC | C85: Frequência Equivalente de Interrupção por Unidade Consumidora “FEC”, geral da empresa – Valor apurado | D85: 16.68 | E85: 23.8 | F85: 31.12 | G85: 35.55 | H85: 43.53 | L85: Frequência da falta de energia - apurado pela empresa e limite Aneel
B86: EAC | C86: Frequência Equivalente de Interrupção por Unidade Consumidora “FEC”, geral da empresa – Limite | D86: 35,0 6 | E86: 35.28 | F86: 35.23 | G86: 23.33 | H86: 25.47
B87: EAC | C87: 1 Revisado dado de 2018.
B88: EAC | C88: 2 Referente apenas ao mercado cativo.
B89: EAC
B90: EAC | C90: VENDA DE ENERGIA POR CAPACIDADE INSTALADA
B91: EAC | D91: 2020 | E91: 2019 | F91: 2018 | G91: 2017 | H91: =H50 -> 2016
B92: EAC | C92: Energia vendida (GWh) | D92: 1055.38 | E92: 1039.06 | F92: 998.55 | G92: =+G66 -> 992.38 | H92: =H66 -> 961.6
B93: EAC | C93: Capacidade instalada (MVA) | D93: 424 | E93: 374 | F93: 312 | G93: =+G75 -> 312 | H93: =H75 -> 312
B94: EAC | C94: Venda de energia por capacidade instalada – GWh/(MVA X nº horas/ano) | D94: 0.0002833679159 | E94: 0.0003171501477 | F94: 0.000365351686 | G94: =+G92/(G93*8760) -> 0.0003630941927 | H94: 0.0003518323381
B96: EBO | C96: Dados técnicos (insumos, capacidade de produção, vendas, perdas) | D96: 2020 | E96: 2019 | F96: 2018 | G96: 2017 | H96: 2016 | I96: 2015 | J96: 2014 | L96: PROTOCOLO ANEEL - Considerar dados de 31 de dezembro
B97: =$B$96 -> EBO | C97: Número de consumidores atendidos – Cativos | D97: 224663 | E97: 219527 | F97: 212744 | G97: 209981 | H97: 208599 | I97: 204656 | J97: 196243 | L97: Quantidade de consumidores cativos atendidos no ano
B98: =$B$96 -> EBO | C98: Número de consumidores atendidos – Livres | D98: 28 | E98: 15 | F98: 14 | G98: 12 | H98: 7 | I98: 2 | J98: 2 | L98: Quantidade de consumidores livres atendidos no ano
B99: EBO | C99: Número de localidades atendidas (municípios) | D99: 6 | E99: 6 | F99: 6 | G99: 6 | H99: 6 | I99: 6 | J99: 6 | L99: Quantidade de municípios na área de concessão
B100: EBO | C100: Número de empregados próprios | D100: 211 | E100: 211 | F100: 206 | G100: 233 | H100: 236 | I100: 242 | J100: 245 | L100: Quantidade de colaboradores próprios
B101: EBO | C101: Número de empregados terceirizados 1 | D101: 26 | E101: 52 | F101: 37 | G101: 26 | H101: 30 | I101: 103 | J101: 125 | L101: Quantidade de contratados de terceiros (desconsiderar os empregados das prestadoras de serviços de construção de redes e usinas e desconsiderar os empregados da ESOL)
B102: EBO | C102: Número de escritórios comerciais | D102: 6 | E102: 6 | F102: 6 | G102: 6 | H102: 6 | I102: 6 | J102: 6 | L102: Número total de lojas/agências comerciais, considerando toda a área de concessão
B103: EBO | C103: Energia gerada (GWh) | D103: NA | E103: NA | F103: NA | G103: NA | H103: 0 | I103: NA | J103: NA | L103: Produção líquida de energia, em GWh
B104: EBO | C104: Energia comprada (GWh) | D104: 631.72 | E104: 640.81 | F104: 657.85 | G104: 734.45 | H104: 812.65 | I104: 771.66 | J104: 728.66 | L104: Energia comprada, discriminada por origem
B105: EBO | C105: 1) Itaipu | D105: - | E105: - | F105: - | G105: - | H105: 0 | I105: 0 | J105: 0
B106: EBO | C106: 2) Leilão (inclusive leilão das geradoras federais – ano 2002) | D106: 631.72 | E106: 640.81 | F106: 657.85 | G106: 734.45 | H106: 812.65 | I106: 771.66 | J106: 728.66
B107: EBO | C107: 3) Suprimento da Concessionária | D107: - | E107: - | F107: - | G107: - | H107: 0 | I107: 0 | J107: 0
B108: EBO | C108: Perdas elétricas globais (GWh) | D108: 48.55 | E108: 48 | F108: 42.9 | G108: 41.6 | H108: 49 | I108: 52 | J108: 46 | L108: Perdas de transmissão e distribuição como porcentagem do total de energia
B109: EBO | C109: Perdas elétricas – (%) total sobre o requisito de energia | D109: 6,33 % | E109: 0.0637 | F109: 0.0585 | G109: 0.0586 | H109: 0.069 | I109: 0.0671 | J109: 0.059
B110: EBO | C110: Perdas técnicas – (%) sobre o requisito de energia | D110: 0.0557 | E110: 0.0572 | F110: 0.0665 | G110: 0.0764 | H110: 0.075 | I110: 0.0658 | J110: 0.063
B111: EBO | C111: Perdas não técnicas – (%) sobre o requisito de energia | D111: 0,78 % | E111: 0.0066 | F111: -0.0079 | G111: -0.0178 | H111: -0.006 | I111: 0.0013 | J111: -0.004
B112: EBO | C112: Energia vendida (GWh) 2 | D112: 546.79 | E112: 552.54 | F112: 559.34 | G112: 549.03 | H112: 601.7 | I112: 660.2 | J112: 694.3 | L112: Energia vendida, em GWh, discriminada por tipo de cliente atendido
B113: EBO | C113: Residencial | D113: 276.63 | E113: 254.4 | F113: 244.68 | G113: 240.37 | H113: 235.7 | I113: 230.7 | J113: 231
B114: EBO | C114: Industrial | D114: 50.94 | E114: 59.02 | F114: 69.29 | G114: 64.82 | H114: 122.5 | I114: 179.7 | J114: 216.6
B115: EBO | C115: Comercial | D115: 119.91 | E115: 134.71 | F115: 139.49 | G115: 140.29 | H115: 146.8 | I115: 155.3 | J115: 149.9
B116: EBO | C116: Rural | D116: 24.99 | E116: 23.92 | F116: 23.8 | G116: 23.79 | H116: 23.8 | I116: 24.3 | J116: 24.6
B117: EBO | C117: Poder público | D117: 27.48 | E117: 33.56 | F117: 33.21 | G117: 32.42 | H117: 32.7 | I117: 32.7 | J117: 33.4
B118: EBO | C118: Iluminação pública | D118: 34.39 | E118: 35.16 | F118: 37.61 | G118: 39.24 | H118: 33.4 | I118: 28.8 | J118: 28
B119: EBO | C119: Serviço público | D119: 12.45 | E119: 11.76 | F119: 11.25 | G119: 8.11 | H119: 6.9 | I119: 8.7 | J119: 10.8
B120: EBO | C120: Subestações (em unidades) | D120: 8 | E120: 8 | F120: 8 | G120: 8 | H120: 8 | I120: 7 | J120: 7 | L120: Quantidade de subestações
B121: EBO | C121: Capacidade instalada (MVA) | D121: 185 | E121: 185 | F121: 185 | G121: 185 | H121: 185 | I121: 172.5 | J121: 165 | L121: Capacidade instalada das subestações, em MVA
B122: EBO | C122: Linhas de transmissão (em km) | D122: 45 | E122: 45 | F122: 45 | G122: 45 | H122: 44.6 | I122: 38 | J122: 30.8 | L122: Comprimento das linhas de transmissão, em Km
B123: EBO | C123: Linhas de distribuição (em km) | D123: 5845 | E123: 5812 | F123: 5648 | G123: 5527 | H123: 5273 | I123: 5243 | J123: 4784 | L123: Comprimento das linhas de distribuição, em Km
B124: EBO | C124: Transformadores de distribuição (em unidades) | D124: 4804 | E124: 4722 | F124: 4591 | G124: 4433 | H124: 4332 | I124: 3671 | J124: 3501 | L124: Número absoluto de transformadores na área de concessão
B125: EBO | C125: Venda de energia por capacidade instalada (GWh/MVA*Nº Horas/Ano) | D125: 0.000336 | E125: 0.000341 | F125: 0.000345 | G125: 0.000339 | H125: 0.00037 | I125: 0.00044 | J125: 0.00048 | L125: Ver abaixo - Dividir a energia vendida total no ano (em GWh) pela capacidade instalada total (em MVA) vezes o número de horas no ano (8.760 horas); anos bissextos = 8.784 horas
B126: EBO | C126: Energia vendida por empregado (MWh) | D126: 2591 | E126: 2619 | F126: 2715 | G126: 2356 | H126: 2549.6 | I126: 2728.1 | J126: 2834 | L126: Energia vendida total, em MWh, dividida pelo número total de empregados próprios
B127: EBO | C127: Número de consumidores por empregado | D127: 1070 | E127: 1040 | F127: 1033 | G127: 901 | H127: 884 | I127: 846 | J127: 801 | L127: Dividir o número total de consumidores atendidos pelo número total de empregados próprios
B128: EBO | C128: Valor Adicionado/GWh vendido (R$ mil) 3 | D128: 416.87 | E128: 412.54 | F128: 393.16 | G128: 376.18 | H128: 301.36 | I128: 324.5 | J128: 139.94 | L128: Divisão do valor adicionado a distribuir (obtido da DVA) pelo total de energia vendida, em GWh
B129: EBO | C129: Duração Equivalente de Interrupção por Unidade Consumidora "DEC", geral da empresa – Valor apurado | D129: 3.68 | E129: 4.19 | F129: 4.56 | G129: 4.03 | H129: 4.94 | I129: 5.53 | J129: 8.23 | L129: Duração média da falta de energia - apurado pela empresa e limite Aneel
B130: EBO | C130: Duração Equivalente de Interrupção por Unidade Consumidora "DEC", geral da empresa – Limite | D130: 12,83 | E130: 13.16 | F130: 13.16 | G130: 13.13 | H130: 13.65 | I130: 14.05 | J130: 14.47
B131: EBO | C131: Frequência Equivalente de Interrupção por Unidade Consumidora "FEC", geral da empresa – Valor apurado | D131: 2,2 9 | E131: 3.15 | F131: 2.63 | G131: 2.46 | H131: 3.21 | I131: 3.86 | J131: 5.78 | L131: Frequência da falta de energia - apurado pela empresa e limite Aneel
B132: EBO | C132: Frequência Equivalente de Interrupção por Unidade Consumidora "FEC", geral da empresa – Limite | D132: 8.86 | E132: 8.96 | F132: 9.84 | G132: 9.91 | H132: 10.46 | I132: 11.33 | J132: 12.05
B133: EBO | C133: 1 Exclui terceirizados que são ativos em outras empresas do Grupo.
B134: EBO | C134: 2 Refere-se apenas ao mercado cativo e exclui consumo próprio.
B135: EBO | C135: 3 Revisado dado de 2019.
B136: EBO
B137: EBO | C137: VENDA DE ENERGIA POR CAPACIDADE INSTALADA
B138: EBO | D138: 2020 | E138: 2019 | F138: 2018 | G138: 2017 | H138: 2016 | I138: 2015 | J138: 2014
B139: EBO | C139: Energia vendida (GWh) | D139: 546.79 | E139: 552.54 | F139: 559.34 | G139: =+G112 -> 549.03 | H139: =H112 -> 601.7 | I139: =I112 -> 660.2 | J139: =J112 -> 694.3
B140: EBO | C140: Capacidade instalada (MVA) | D140: 185 | E140: 185 | F140: 185 | G140: =+G121 -> 185 | H140: =H121 -> 185 | I140: =I121 -> 172.5 | J140: =J121 -> 165
B141: EBO | C141: Venda de energia por capacidade instalada – GWh/(MVA X nº horas/ano) | D141: 0.0003364778713 | E141: 0.0003409477971 | F141: 0.0003451437739 | G141: =+G139/(G140*8760) -> 0.0003387819326 | H141: =+H139/(H140*8760) -> 0.0003712822411 | I141: =+I139/(I140*8760) -> 0.0004369002713 | J141: =+J139/(J140*8760) -> 0.0004803514598
B143: EMS | C143: Dados técnicos (insumos, capacidade de produção, vendas, perdas) | D143: 2020 | E143: 2019 | F143: 2018 | G143: 2017 | H143: 2016 | I143: 2015 | J143: 2014 | L143: PROTOCOLO ANEEL - Considerar dados de 31 de dezembro
B144: =$B$143 -> EMS | C144: Número de consumidores atendidos – Cativos | D144: 1065484 | E144: 1039233 | F144: 1018108 | G144: 1015526 | H144: 990556 | I144: 970635 | J144: 938105 | L144: Quantidade de consumidores cativos atendidos no ano
B145: =$B$143 -> EMS | C145: Número de consumidores atendidos – Livres | D145: 238 | E145: 193 | F145: 162 | G145: 139 | H145: 113 | I145: 73 | J145: 71 | L145: Quantidade de consumidores livres atendidos no ano
B146: EMS | C146: Número de localidades atendidas (municípios) | D146: 74 | E146: 74 | F146: 74 | G146: 74 | H146: 74 | I146: 74 | J146: 74 | L146: Quantidade de municípios na área de concessão
B147: EMS | C147: Número de empregados próprios | D147: 1295 | E147: 1315 | F147: 1334 | G147: 1.345 | H147: 1389 | I147: 1320 | J147: 1116 | L147: Quantidade de colaboradores próprios
B148: EMS | C148: Número de empregados terceirizados | D148: 941 | E148: 901 | F148: 1054 | G148: 823 | H148: 776 | I148: 912 | J148: 1555 | L148: Quantidade de contratados de terceiros (desconsiderar os empregados das prestadoras de serviços de construção de redes e usinas e desconsiderar os empregados da ESOL)
B149: EMS | C149: Número de escritórios comerciais | D149: 78 | E149: 78 | F149: 78 | G149: 79 | H149: 79 | I149: 79 | J149: 79 | L149: Número total de lojas/agências comerciais, considerando toda a área de concessão
B150: EMS | C150: Energia gerada (GWh) | D150: NA | E150: NA | F150: NA | G150: NA | H150: NA | I150: NA | J150: - | L150: Produção líquida de energia, em GWh
B151: EMS | C151: Energia comprada (GWh) | D151: 5577.44 | E151: 5644.98 | F151: 5643.1 | G151: 5350.6 | H151: 6021.7 | I151: 5357.8 | J151: 5490.5 | L151: Energia comprada, discriminada por origem
B152: EMS | C152: 1) Itaipu | D152: 933.18 | E152: 924.91 | F152: 881.2 | G152: 906.8 | H152: 862.1 | I152: 733.8 | J152: 825.3
B153: EMS | C153: 2) Leilão (inclusive leilão das geradoras federais – ano 2002) | D153: 4644.26 | E153: 4720.07 | F153: 4761.9 | G153: 4443.8 | H153: 5159.6 | I153: 4624 | J153: 4665.2
B154: EMS | C154: 3) Suprimento da Concessionária | D154: - | E154: - | F154: - | G154: - | H154: - | I154: - | J154: -
B155: EMS | C155: Perdas elétricas globais (GWh) 1 | D155: 891,2 | E155: 808 | F155: 780.5 | G155: 805 | H155: 780.5 | I155: 828.5 | J155: 848.84 | L155: Perdas de transmissão e distribuição como porcentagem do total de energia
B156: EMS | C156: Perdas elétricas – (%) total sobre o requisito de energia | D156: 0.1311 | E156: 0.1229 | F156: 0.1268 | G156: 0.1344 | H156: 0.1372 | I156: 0.1424 | J156: 0.146
B157: EMS | C157: Perdas técnicas – (%) sobre o requisito de energia | D157: 0.1034 | E157: 0.0941 | F157: 0.0911 | G157: 0.1 | H157: 0.0983 | I157: 0.0982 | J157: 0.0917
B158: EMS | C158: Perdas não técnicas – (%) sobre o requisito de energia | D158: 0.0277 | E158: 0.0288 | F158: 0.0357 | G158: 0.0344 | H158: 0.0389 | I158: 0.0442 | J158: 0.0543
B159: EMS | C159: Energia vendida (GWh) 2 | D159: 4512.13 | E159: 4555.16 | F159: 4354.57 | G159: 4313.36 | H159: 4310 | I159: 4477 | J159: 4445 | L159: Energia vendida, em GWh, discriminada por tipo de cliente atendido
B160: EMS | C160: Residencial | D160: 2084.55 | E160: 1995.35 | F160: 1845.08 | G160: 1792.57 | H160: 1693 | I160: 1686 | J160: 1643
B161: EMS | C161: Industrial | D161: 292.14 | E161: 299.17 | F161: 304.36 | G161: 324.23 | H161: 452 | I161: 584 | J161: 628
B162: EMS | C162: Comercial | D162: 946.62 | E162: 1052.92 | F162: 1031 | G162: 1041 | H162: 1038 | I162: 1094 | J162: 1073
B163: EMS | C163: Rural | D163: 601.57 | E163: 569.69 | F163: 548 | G163: 530 | H163: 487 | I163: 473 | J163: 472
B164: EMS | C164: Poder público | D164: 210.02 | E164: 259.82 | F164: 245 | G164: 247.98 | H164: 222 | I164: 246 | J164: 245
B165: EMS | C165: Iluminação pública | D165: 212.02 | E165: 221.26 | F165: 230.39 | G165: 231.98 | H165: 233 | I165: 226 | J165: 214
B166: EMS | C166: Serviço público | D166: 165.21 | E166: 156.95 | F166: 150.48 | G166: 145.71 | H166: 185 | I166: 169 | J166: 170
B167: EMS | C167: Subestações (em unidades) | D167: 103 | E167: 103 | F167: 101 | G167: 101 | H167: 100 | I167: 98 | J167: 98 | L167: Quantidade de subestações
B168: EMS | C168: Capacidade instalada (MVA) | D168: 2601 | E168: 2540 | F168: 2476 | G168: 2466 | H168: 2357 | I168: 2223 | J168: 2163 | L168: Capacidade instalada das subestações, em MVA
B169: EMS | C169: Linhas de transmissão (em km) | D169: 3889 | E169: 3889 | F169: 3880 | G169: 3869 | H169: 3803 | I169: 3796 | J169: 3789 | L169: Comprimento das linhas de transmissão, em Km
B170: EMS | C170: Linhas de distribuição (em km) 1 | D170: 99857 | E170: 99525 | F170: 98548 | G170: 83901 | H170: 87895 | I170: 86268 | J170: 85028 | L170: Comprimento das linhas de distribuição, em Km
B171: EMS | C171: Transformadores de distribuição (em unidades) | D171: 85836 | E171: 84893 | F171: 83599 | G171: 82533 | H171: 65308 | I171: 61276 | J171: 59513 | L171: Número absoluto de transformadores na área de concessão
B172: EMS | C172: Venda de energia por capacidade instalada (GWh/MVA*Nº Horas/Ano) | D172: 0.00019 | E172: 0.0002 | F172: 0.0002 | G172: 0.0002 | H172: 0.00021 | I172: 0.00023 | J172: 0.00023 | L172: Ver abaixo - Dividir a energia vendida total no ano (em GWh) pela capacidade instalada total (em MVA) vezes o número de horas no ano (8.760 horas); anos bissextos = 8.784 horas
B173: EMS | C173: Energia vendida por empregado (MWh) | D173: 3484 | E173: 3464 | F173: 3264 | G173: 3019 | H173: 2970 | I173: 3397 | J173: 3983 | L173: Energia vendida total, em MWh, dividida pelo número total de empregados próprios
B174: EMS | C174: Número de consumidores por empregado | D174: 823 | E174: 790 | F174: 763 | G174: 755 | H174: 683 | I174: 735 | J174: 841 | L174: Dividir o número total de consumidores atendidos pelo número total de empregados próprios
B175: EMS | C175: Valor Adicionado/GWh vendido (R$ mil) | D175: 451.38 | E175: 448.26 | F175: 387.77 | G175: 364.39 | H175: 364.92 | I175: 369.99 | J175: 206.97 | L175: Divisão do valor adicionado a distribuir (obtido da DVA) pelo total de energia vendida, em GWh
B176: EMS | C176: Duração Equivalente de Interrupção por Unidade Consumidora "DEC", geral da empresa – Valor apurado | D176: 10,00 | E176: 10.81 | F176: 10.92 | G176: 11.92 | H176: 11.81 | I176: 13.93 | J176: 12.87 | L176: Duração média da falta de energia - apurado pela empresa e limite Aneel
B177: EMS | C177: Duração Equivalente de Interrupção por Unidade Consumidora "DEC", geral da empresa – Limite | D177: 11.5 | E177: 11.79 | F177: 11.89 | G177: 12.26 | H177: 12.75 | I177: 13.28 | J177: 13.7
B178: EMS | C178: Frequência Equivalente de Interrupção por Unidade Consumidora "FEC", geral da empresa – Valor apurado | D178: 4.31 | E178: 4.55 | F178: 4.73 | G178: 5.72 | H178: 5.93 | I178: 7.16 | J178: 7.26 | L178: Frequência da falta de energia - apurado pela empresa e limite Aneel
B179: EMS | C179: Frequência Equivalente de Interrupção por Unidade Consumidora "FEC", geral da empresa – Limite | D179: 8.16 | E179: 8.59 | F179: 8.62 | G179: 9.22 | H179: 9.76 | I179: 10.47 | J179: 11.1
B180: EMS | C180: 1 Revisado dado de 2018.
B181: EMS | C181: 2 Refere-se apenas ao mercado cativo.
B182: =$B$143 -> EMS
B183: EMS | C183: VENDA DE ENERGIA POR CAPACIDADE INSTALADA
B184: EMS | D184: 2020 | E184: 2019 | F184: 2018 | G184: 2017 | H184: 2016 | I184: 2015 | J184: 2014
B185: EMS | C185: Energia vendida (GWh) | D185: 4512.13 | E185: 4555.16 | F185: 4354.57 | G185: =+G159 -> 4313.36 | H185: =H159 -> 4310 | I185: =+I159 -> 4477 | J185: =+J159 -> 4445
B186: EMS | C186: Capacidade instalada (MVA) | D186: 2601 | E186: 2540 | F186: 2476 | G186: =+G168 -> 2466 | H186: =+H168 -> 2357 | I186: 2223 | J186: =+J168 -> 2163
B187: EMS | C187: Venda de energia por capacidade instalada – GWh/(MVA X nº horas/ano) | D187: 0.0001974917346 | E187: 0.0002047226117 | F187: 0.000200766168 | G187: =+G185/(G186*8760) -> 0.0001996726253 | H187: =+H185/(H186*8760) -> 0.0002087437982 | I187: 0.0002299024109 | J187: =+J185/(J186*8760) -> 0.0002345908883 | L187: 2020: ano bissexto - 8.784 horas; 2019 e 2018: 8.760 horas
B189: EMT | C189: Dados técnicos (insumos, capacidade de produção, vendas, perdas) | D189: 2020 | E189: 2019 | F189: 2018 | G189: 2017 | H189: 2016 | I189: 2015 | J189: 2014 | L189: PROTOCOLO ANEEL - Considerar dados de 31 de dezembro
B190: =$B$189 -> EMT | C190: Número de consumidores atendidos – Cativos | D190: 1506604 | E190: 1458048 | F190: 1403355 | G190: 1365659 | H190: 1327938 | I190: 1296639 | J190: 1269494 | L190: Quantidade de consumidores cativos atendidos no ano
B191: =$B$189 -> EMT | C191: Número de consumidores atendidos – Livres | D191: 327 | E191: 236 | F191: 210 | G191: 200 | H191: 164 | I191: 95 | J191: 87 | L191: Quantidade de consumidores livres atendidos no ano
B192: EMT | C192: Número de localidades atendidas (municípios) | D192: 141 | E192: 141 | F192: 141 | G192: 141 | H192: 141 | I192: 141 | J192: 141 | L192: Quantidade de municípios na área de concessão
B193: EMT | C193: Número de empregados próprios | D193: 2366 | E193: 2.418 | F193: 2433 | G193: 2423 | H193: 2302 | I193: 2366 | J193: 1907 | L193: Quantidade de colaboradores próprios
B194: EMT | C194: Número de empregados terceirizados 1 | D194: 770 | E194: 1.010 | F194: 785 | G194: 1389 | H194: 827 | I194: 442 | J194: 1730 | L194: Quantidade de contratados de terceiros (desconsiderar os empregados das prestadoras de serviços de construção de redes e usinas e desconsiderar os empregados da ESOL)
B195: EMT | C195: Número de escritórios comerciais | D195: 143 | E195: 142 | F195: 142 | G195: 144 | H195: 144 | I195: 144 | J195: 145 | L195: Número total de lojas/agências comerciais, considerando toda a área de concessão
B196: EMT | C196: Energia gerada (GWh) | D196: NA | E196: NA | F196: NA | G196: NA | H196: NA | I196: NA | J196: NA | L196: Produção líquida de energia, em GWh
B197: EMT | C197: Energia comprada (GWh) | D197: 10377.44 | E197: 9.594,33 | F197: 9045.1 | G197: 8897.3 | H197: 8771.4 | I197: 8673.1 | J197: 7952.6 | L197: Energia comprada, discriminada por origem
B198: EMT | C198: 1) Itaipu | D198: 1404.71 | E198: 1.365,79 | F198: 1283.4 | G198: 1310.7 | H198: 1329.3 | I198: 1379.5 | J198: 1310.8
B199: EMT | C199: 2) Leilão (inclusive leilão das geradoras federais – ano 2002) | D199: 8972.73 | E199: 8.228,14 | F199: 7761.7 | G199: 7586.6 | H199: 7442.1 | I199: 7293.6 | J199: 6641.8
B200: EMT | C200: 3) Suprimento da Concessionária | D200: - | E200: 0,40 | F200: 0 | G200: ND | H200: ND | I200: ND | J200: ND
B201: EMT | C201: Perdas elétricas globais (GWh) | D201: 1666.85 | E201: 1487.8 | F201: 1437 | G201: 1448.4 | H201: 1446.2 | I201: 1380.7 | J201: 1263.492 | L201: Perdas de transmissão e distribuição como porcentagem do total de energia
B202: EMT | C202: Perdas elétricas – (%) total sobre o requisito de energia | D202: 0.1428 | E202: 0.1358 | F202: 0.1401 | G202: 0.1448 | H202: 0.1544 | I202: 0.1461 | J202: 0.1483
B203: EMT | C203: Perdas técnicas – (%) sobre o requisito de energia | D203: 0.0947 | E203: 0.0964 | F203: 0.0942 | G203: 0.0951 | H203: 0.0982 | I203: 0.0992 | J203: 0.1021
B204: EMT | C204: Perdas não técnicas – (%) sobre o requisito de energia | D204: 0.048 | E204: 0.0393 | F204: 0.0459 | G204: 0.0497 | H204: 0.0562 | I204: 0.0469 | J204: 0.0382
B205: EMT | C205: Energia vendida (GWh) 2 | D205: 7768.31 | E205: 7630.76 | F205: 7156.82 | G205: 7017.17 | H205: 6745 | I205: 6923 | J205: 6715 | L205: Energia vendida, em GWh, discriminada por tipo de cliente atendido
... 297 more rows

Sheet Governança
C1: Governança corporativa | Selecione a empresa
B3: EMG
B4: EMG | D4: 2020 | H4: 2019 | L4: 2018 | P4: 2017 | T4: 2016 | X4: 2015
B5: EMG | C5: Administradores | D5: CA | E5: DE | F5: CF 1 | G5: Total | H5: CA | I5: DE | J5: CF 1 | K5: Total | L5: CA | M5: DE | N5: CF 1 | O5: Total | P5: CA | Q5: DE | R5: CF 1 | S5: Total | T5: CA | U5: DE | V5: CF 1 | W5: Total | X5: CA | Y5: DE | Z5: CF 1 | AA5: Total
B6: =$B$5 -> EMG | C6: Nº de membros | D6: 6 | E6: 7 | F6: - | G6: 13 | H6: 6 | I6: 7 | J6: - | K6: 13 | L6: 6 | M6: 7 | N6: - | O6: 13 | P6: 6 | Q6: 6 | R6: - | S6: 12 | T6: 6 | U6: 6 | V6: - | W6: 12 | X6: 6 | Y6: 6 | Z6: - | AA6: 12
B7: =$B$5 -> EMG | C7: Remuneração fixa anual (R$ mil) | D7: 640 | E7: 2131 | F7: - | G7: 2771 | H7: 696 | I7: 1844 | J7: - | K7: 2539 | L7: 623 | M7: 1873 | N7: - | O7: 2496 | P7: 715 | Q7: 2574 | R7: - | S7: 3289 | T7: 727.37 | U7: 1533.43 | V7: - | W7: 2260.8 | X7: 649.08 | Y7: 1531.62 | Z7: - | AA7: 2180.7
B8: EMG | C8: Salário ou pró-labore | D8: 373 | E8: 1017 | F8: - | G8: 1390 | H8: 393 | I8: 1078 | J8: - | K8: 1470 | L8: 379 | M8: 991 | N8: - | O8: 1370 | P8: 449 | Q8: 900 | R8: - | S8: 1349 | T8: 519.5 | U8: 885.7 | V8: - | W8: 1405.2 | X8: 458.56 | Y8: 884.83 | Z8: - | AA8: 1343.39
B9: EMG | C9: Benefícios diretos ou indiretos | D9: 143 | E9: 469 | F9: - | G9: 612 | H9: 139 | I9: 242 | J9: - | K9: 381 | L9: 122 | M9: 427 | N9: - | O9: 550 | P9: 90 | Q9: 435 | R9: - | S9: 525 | T9: 79.31 | U9: 428.88 | V9: - | W9: 508.2 | X9: 79.85 | Y9: 437.96 | Z9: - | AA9: 517.81
B10: EMG | C10: Participações em comitês | D10: - | E10: - | F10: - | G10: - | H10: - | I10: - | J10: - | K10: - | L10: - | M10: - | N10: - | O10: - | P10: - | Q10: - | R10: - | S10: - | T10: - | U10: - | V10: - | W10: - | X10: - | Y10: - | Z10: - | AA10: -
B11: EMG | C11: Outros (encargos) | D11: 123 | E11: 645 | F11: - | G11: 769 | H11: 164 | I11: 523 | J11: - | K11: 688 | L11: 122 | M11: 455 | N11: - | O11: 577 | P11: 176 | Q11: 1239 | R11: - | S11: 1415 | T11: 128.57 | U11: 218.84 | V11: - | W11: 347.4 | X11: 110.67 | Y11: 208.83 | Z11: - | AA11: 319.5
B12: EMG | C12: Descrição de outras numerações fixas | D12: - | E12: - | F12: - | G12: - | H12: - | I12: - | J12: - | K12: - | L12: - | M12: - | N12: - | O12: - | P12: - | Q12: - | R12: - | S12: - | T12: - | U12: - | V12: - | W12: - | X12: - | Y12: - | Z12: - | AA12: -
B13: EMG | C13: Remuneração variável (R$ mil) | D13: - | E13: 919 | F13: - | G13: 919 | H13: - | I13: 964 | J13: - | K13: 964 | L13: 302 | M13: 1064 | N13: - | O13: 1366 | P13: 252 | Q13: 907 | R13: - | S13: 1159 | T13: 658.24 | U13: 991.68 | V13: - | W13: 1649.9 | X13: 383.93 | Y13: 487.93 | Z13: - | AA13: 871.86
B14: EMG | C14: Bônus | D14: - | E14: - | F14: - | G14: - | H14: - | I14: - | J14: - | K14: - | L14: - | M14: - | N14: - | O14: - | P14: - | Q14: - | R14: - | S14: - | T14: - | U14: - | V14: - | W14: - | X14: - | Z14: - | AA14: -
B15: EMG | C15: Participação de resultados | D15: - | E15: 919 | F15: - | G15: 919 | H15: - | I15: 964 | J15: - | K15: 964 | L15: 302 | M15: 1064 | N15: - | O15: 1366 | P15: 252 | Q15: 907 | R15: - | S15: 1159 | T15: 658.24 | U15: 991.68 | V15: - | W15: 1649.9 | X15: 383.93 | Y15: 487.93 | Z15: - | AA15: 871.86
B16: EMG | C16: Participação em reuniões | D16: - | E16: - | F16: - | G16: - | H16: - | I16: - | J16: - | K16: - | L16: - | M16: - | N16: - | O16: - | P16: - | Q16: - | R16: - | S16: - | T16: - | U16: - | V16: - | W16: - | X16: - | Y16: - | Z16: - | AA16: -
B17: EMG | C17: Comissões | D17: - | E17: - | F17: - | G17: - | H17: - | I17: - | J17: - | K17: - | L17: - | M17: - | N17: - | O17: - | P17: - | Q17: - | R17: - | S17: - | T17: - | U17: - | V17: - | W17: - | X17: - | Y17: - | Z17: - | AA17: -
B18: EMG | C18: Outros | D18: - | E18: - | F18: - | G18: - | H18: - | I18: - | J18: - | K18: - | L18: - | M18: - | N18: - | O18: - | P18: - | Q18: - | R18: - | S18: - | T18: - | U18: - | V18: - | W18: - | X18: - | Y18: - | Z18: - | AA18: -
B19: EMG | C19: Descrição de outras remunerações variáveis | D19: - | E19: - | F19: - | G19: - | H19: - | I19: - | J19: - | K19: - | L19: - | M19: - | N19: - | O19: - | P19: - | Q19: - | R19: - | S19: - | T19: - | U19: - | V19: - | W19: - | X19: - | Y19: - | Z19: - | AA19: -
B20: EMG | C20: CA - Conselho de Administração; DE - Diretoria Estatutária; CF - Conselho Fiscal
B21: EMG | C21: 1 Não há Conselho Fiscal instalado.
B23: EAC | D23: 2020 | H23: 2019 | L23: 2018 | P23: 2017 | T23: 2016
B24: EAC | C24: Administradores | D24: CA | E24: DE | F24: CF 1 | G24: Total | H24: CA | I24: DE | J24: CF 1 | K24: Total | L24: CA | M24: DE | N24: CF 1 | O24: Total | P24: CA | Q24: DE | R24: CF 1 | S24: Total | T24: CA | U24: DE | V24: CF 1 | W24: Total
B25: =$B$24 -> EAC | C25: Nº de membros | D25: 3 | E25: 7 | F25: - | G25: 10 | H25: 3 | I25: 8 | J25: - | K25: 11 | L25: - | M25: - | N25: - | O25: - | P25: - | Q25: - | R25: - | S25: - | T25: 6 | U25: 6 | V25: 3 | W25: 15
B26: =$B$24 -> EAC | C26: Remuneração fixa anual (R$ mil) | D26: 365 | E26: 1521 | F26: - | G26: 1886 | H26: 294 | I26: 2093 | J26: - | K26: 2387 | L26: - | M26: - | N26: - | O26: - | P26: - | Q26: - | R26: - | S26: - | T26: 14.88 | U26: 148.82 | V26: 7.44 | W26: 171.14
B27: EAC | C27: Salário ou pró-labore | D27: 376 | E27: 1326 | F27: - | G27: 1701 | H27: 239 | I27: 1342 | J27: - | K27: 1581 | L27: - | M27: - | N27: - | O27: - | P27: - | Q27: - | R27: - | S27: - | T27: - | U27: - | V27: - | W27: -
B28: EAC | C28: Benefícios diretos ou indiretos | D28: -11 | E28: 196 | F28: - | G28: 185 | H28: - | I28: 1 | J28: - | K28: 1 | L28: - | M28: - | N28: - | O28: - | P28: - | Q28: - | R28: - | S28: - | T28: - | U28: - | V28: - | W28: -
B29: EAC | C29: Participações em comitês | D29: - | E29: - | F29: - | G29: - | H29: - | I29: - | J29: - | K29: - | L29: - | M29: - | N29: - | O29: - | P29: - | Q29: - | R29: - | S29: - | T29: - | U29: - | V29: - | W29: -
B30: EAC | C30: Outros (encargos) | D30: - | E30: - | F30: - | G30: - | H30: 55 | I30: 750 | J30: - | K30: 804 | L30: - | M30: - | N30: - | O30: - | P30: - | Q30: - | R30: - | S30: - | T30: - | U30: - | V30: - | W30: -
B31: EAC | C31: Descrição de outras numerações fixas | D31: - | E31: - | F31: - | G31: - | H31: - | I31: - | J31: - | K31: - | L31: - | M31: - | N31: - | O31: - | P31: - | Q31: - | R31: - | S31: - | T31: - | U31: - | V31: - | W31: -
B32: EAC | C32: Remuneração variável (R$ mil) | D32: - | E32: 1506 | F32: - | G32: 1506 | H32: 0 | I32: 1478 | J32: - | K32: 1478 | L32: - | M32: - | N32: - | O32: - | P32: - | Q32: - | R32: - | S32: - | T32: - | U32: - | V32: - | W32: -
B33: EAC | C33: Bônus | D33: - | E33: - | F33: - | G33: - | H33: - | I33: - | J33: - | K33: - | L33: - | M33: - | N33: - | O33: - | P33: - | Q33: - | R33: - | S33: - | T33: - | U33: - | V33: - | W33: -
B34: EAC | C34: Participação de resultados | D34: - | E34: 1506 | F34: - | G34: 1506 | H34: 0 | I34: 1478 | J34: - | K34: 1478 | L34: - | M34: - | N34: - | O34: - | P34: - | Q34: - | R34: - | S34: - | T34: - | U34: - | V34: - | W34: -
B35: EAC | C35: Participação em reuniões | D35: - | E35: - | F35: - | G35: - | H35: - | I35: - | J35: - | K35: - | L35: - | M35: - | N35: - | O35: - | P35: - | Q35: - | R35: - | S35: - | T35: - | U35: - | V35: - | W35: -
B36: EAC | C36: Comissões | D36: - | E36: - | F36: - | G36: - | H36: - | I36: - | J36: - | K36: - | L36: - | M36: - | N36: - | O36: - | P36: - | Q36: - | R36: - | S36: - | T36: - | U36: - | V36: - | W36: -
B37: EAC | C37: Outros | D37: - | E37: - | F37: - | G37: - | H37: - | I37: - | J37: - | K37: - | L37: - | M37: - | N37: - | O37: - | P37: - | Q37: - | R37: - | S37: - | T37: - | U37: - | V37: - | W37: -
B38: EAC | C38: Descrição de outras remunerações variáveis | D38: - | E38: - | F38: - | G38: - | H38: - | I38: - | J38: - | K38: - | L38: - | M38: - | N38: - | O38: - | P38: - | Q38: - | R38: - | S38: - | T38: - | U38: - | V38: - | W38: -
B39: EAC | C39: CA - Conselho de Administração; DE - Diretoria Estatutária; CF - Conselho Fiscal
B40: EAC | C40: 1 Não há Conselho Fiscal instalado.
B42: EBO | D42: 2020 | H42: 2019 | L42: 2018 | P42: 2017 | T42: 2016 | X42: 2015
B43: =$B$42 -> EBO | C43: Administradores | D43: CA | E43: DE | F43: CF 1 | G43: Total | H43: CA | I43: DE | J43: CF 1 | K43: Total | L43: CA | M43: DE | N43: CF 1 | O43: Total | P43: CA | Q43: DE | R43: CF 1 | S43: Total | T43: CA | U43: DE | V43: CF 1 | W43: Total | X43: CA | Y43: DE | Z43: CF 1 | AA43: Total
B44: =$B$42 -> EBO | C44: Nº de membros | D44: 7 | E44: 7 | F44: - | G44: 14 | H44: 7 | I44: 7 | J44: - | K44: 14 | L44: 7 | M44: 7 | N44: - | O44: 14 | P44: 7 | Q44: 6 | R44: - | S44: 13 | T44: 7 | U44: 6 | V44: - | W44: 13 | X44: 8 | Y44: 6 | Z44: - | AA44: 14
B45: EBO | C45: Remuneração fixa anual (R$ mil) | D45: 561 | E45: 961 | F45: - | G45: 1522 | H45: 582 | I45: 847 | J45: - | K45: 1429 | L45: 571 | M45: 826 | N45: - | O45: 1397 | P45: 631 | Q45: 1761 | R45: - | S45: 2393 | T45: 535.75 | U45: 921.68 | V45: - | W45: 1457.4 | X45: 451.7 | Y45: 893.55 | Z45: - | AA45: 1345.25
B46: EBO | C46: Salário ou pró-labore | D46: 426 | E46: 564 | F46: - | G46: 991 | H46: 449 | I46: 537 | J46: - | K46: 985 | L46: 433 | M46: 602 | N46: - | O46: 1035 | P46: 437 | Q46: 719 | R46: - | S46: 1156 | T46: 413.24 | U46: 682.81 | V46: - | W46: 1096 | X46: 349.17 | Y46: 660.61 | Z46: - | AA46: 1009.78
B47: EBO | C47: Benefícios diretos ou indiretos | D47: 11 | E47: 111 | F47: - | G47: 122 | H47: 11 | I47: 65 | J47: - | K47: 76 | L47: 9 | M47: 52 | N47: - | O47: 61 | P47: 12 | Q47: 80 | R47: - | S47: 92 | T47: 17.65 | U47: 66.33 | V47: - | W47: 84 | X47: 14.42 | Y47: 66.24 | Z47: - | AA47: 80.66
B48: EBO | C48: Participações em comitês | D48: - | E48: - | F48: - | G48: - | H48: - | I48: - | J48: - | K48: - | L48: - | M48: - | N48: - | O48: - | P48: - | Q48: - | R48: - | S48: - | T48: - | U48: - | V48: - | W48: - | X48: - | Z48: - | AA48: -
B49: EBO | C49: Outros (encargos) | D49: 123 | E49: 286 | F49: - | G49: 409 | H49: 123 | I49: 245 | J49: - | K49: 368 | L49: 128 | M49: 172 | N49: - | O49: 300 | P49: 182 | Q49: 962 | R49: - | S49: 1144 | T49: 104.87 | U49: 172.54 | V49: - | W49: 277.4 | X49: 88.11 | Y49: 166.7 | Z49: - | AA49: 254.81
B50: EBO | C50: Descrição de outras numerações fixas | D50: - | E50: - | F50: - | G50: - | H50: - | I50: - | J50: - | K50: - | L50: - | M50: - | N50: - | O50: - | P50: - | Q50: - | R50: - | S50: - | T50: - | U50: - | V50: - | W50: - | X50: - | Z50: - | AA50: -
B51: EBO | C51: Remuneração variável (R$ mil) | D51: - | E51: 428 | F51: - | G51: 428 | H51: - | I51: 405 | J51: - | K51: 405 | L51: 302 | M51: 556 | N51: - | O51: 858 | P51: 515 | Q51: 639 | R51: - | S51: 1154 | T51: 390.81 | U51: 702.6 | V51: - | W51: 1093.4 | X51: 263.37 | Y51: 508.78 | Z51: - | AA51: 772.15
B52: EBO | C52: Bônus | D52: - | E52: - | F52: - | G52: - | H52: - | I52: - | J52: - | K52: - | L52: - | M52: - | N52: - | O52: - | P52: - | Q52: - | R52: - | S52: - | T52: - | U52: - | V52: - | W52: - | X52: - | Z52: - | AA52: -
B53: EBO | C53: Participação de resultados | D53: - | E53: 428 | F53: - | G53: 428 | H53: - | I53: 405 | J53: - | K53: 405 | L53: 302 | M53: 556 | N53: - | O53: 858 | P53: 515 | Q53: 639 | R53: - | S53: 1154 | T53: 390.81 | U53: 702.6 | V53: - | W53: 1093.4 | X53: 263.37 | Y53: 508.78 | Z53: - | AA53: 772.15
B54: EBO | C54: Participação em reuniões | D54: - | E54: - | F54: - | G54: - | H54: - | I54: - | J54: - | K54: - | L54: - | M54: - | N54: - | O54: - | P54: - | Q54: - | R54: - | S54: - | T54: - | U54: - | V54: - | W54: - | X54: - | Z54: - | AA54: -
B55: EBO | C55: Comissões | D55: - | E55: - | F55: - | G55: - | H55: - | I55: - | J55: - | K55: - | L55: - | M55: - | N55: - | O55: - | P55: - | Q55: - | R55: - | S55: - | T55: - | U55: - | V55: - | W55: - | X55: - | Z55: - | AA55: -
B56: EBO | C56: Outros | D56: - | E56: - | F56: - | G56: - | H56: - | I56: - | J56: - | K56: - | L56: - | M56: - | N56: - | O56: - | P56: - | Q56: - | R56: - | S56: - | T56: - | U56: - | V56: - | W56: - | X56: - | Z56: - | AA56: -
B57: EBO | C57: Descrição de outras remunerações variáveis | D57: - | E57: - | F57: - | G57: - | H57: - | I57: - | J57: - | K57: - | L57: - | M57: - | N57: - | O57: - | P57: - | Q57: - | R57: - | S57: - | T57: - | U57: - | V57: - | W57: - | X57: - | Z57: - | AA57: -
B58: EBO | C58: CA - Conselho de Administração; DE - Diretoria Estatutária; CF - Conselho Fiscal
B59: EBO | C59: 1 Não há Conselho Fiscal instalado.
B61: EMS | D61: 2020 | H61: 2019 | L61: 2018 | P61: 2017 | T61: 2016 | X61: 2015
B62: =$B$61 -> EMS | C62: Administradores | D62: CA | E62: DE | F62: CF 1 | G62: Total | H62: CA | I62: DE | J62: CF 1 | K62: Total | L62: CA | M62: DE | N62: CF 1 | O62: Total | P62: CA | Q62: DE | R62: CF 1 | S62: Total | T62: CA | U62: DE | V62: CF 1 | W62: Total | X62: CA | Y62: DE | Z62: CF 1 | AA62: Total
B63: =$B$61 -> EMS | C63: Nº de membros | D63: 5 | E63: 7 | F63: - | G63: 12 | H63: 5 | I63: 7 | J63: - | K63: 12 | L63: 5 | M63: 7 | N63: - | O63: 12 | P63: 5 | Q63: 7 | R63: - | S63: 12 | T63: 5 | U63: 7 | V63: - | W63: 12 | X63: 5 | Y63: 8 | Z63: - | AA63: 13
B64: EMS | C64: Remuneração fixa anual (R$ mil) | D64: 608 | E64: 3327 | F64: - | G64: 3935 | H64: 689 | I64: 3217 | J64: - | K64: 3906 | L64: 539 | M64: 2703 | N64: - | O64: 3242 | P64: 439 | Q64: 2853 | R64: - | S64: 3292 | T64: 279 | U64: 3217 | V64: - | W64: 3496 | X64: 164 | Y64: 2833 | Z64: - | AA64: 2997
B65: EMS | C65: Salário ou pró-labore | D65: 395 | E65: 1822 | F65: - | G65: 2217 | H65: 435 | I65: 1900 | J65: - | K65: 2335 | L65: 384 | M65: 1867 | N65: - | O65: 2251 | P65: 322 | Q65: 1920 | R65: - | S65: 2242 | T65: 253 | U65: 2079 | V65: - | W65: 2332 | X65: 139 | Y65: 2357 | Z65: - | AA65: 2496
B66: EMS | C66: Benefícios diretos ou indiretos | D66: 73 | E66: 398 | F66: - | G66: 470 | H66: 60 | I66: 363 | J66: - | K66: 423 | L66: 57 | M66: 290 | N66: - | O66: 347 | P66: 13 | Q66: 314 | R66: - | S66: 327 | T66: 0 | U66: 682 | V66: - | W66: 682 | X66: - | Y66: 0 | Z66: - | AA66: 0
B67: EMS | C67: Participações em comitês | D67: - | E67: - | F67: - | G67: - | H67: - | I67: - | J67: - | K67: - | L67: - | M67: - | N67: - | O67: - | P67: - | Q67: - | R67: - | S67: - | T67: - | U67: - | V67: - | W67: - | X67: - | Y67: - | Z67: - | AA67: -
B68: EMS | C68: Outros (encargos) | D68: 140 | E68: 1107 | F68: - | G68: 1247 | H68: 194 | I68: 954 | J68: - | K68: 1148 | L68: 98 | M68: 546 | N68: - | O68: 644 | P68: 104 | Q68: 619 | R68: - | S68: 723 | T68: 26 | U68: 455 | V68: - | W68: 481 | X68: 25 | Y68: 476 | Z68: - | AA68: 501
B69: EMS | C69: Descrição de outras numerações fixas | D69: - | E69: - | F69: - | G69: - | H69: - | I69: - | J69: - | K69: - | L69: - | M69: - | N69: - | O69: - | P69: - | Q69: - | R69: - | S69: - | T69: - | U69: - | V69: - | W69: - | X69: - | Y69: - | Z69: - | AA69: -
B70: EMS | C70: Remuneração variável (R$ mil) | D70: 0 | E70: 1817 | F70: - | G70: 1817 | H70: 0 | I70: 1648 | J70: - | K70: 1648 | L70: 503 | M70: 2893 | N70: - | O70: 3396 | P70: 221 | Q70: 879 | R70: - | S70: 1100 | T70: 191 | U70: 3659 | V70: - | W70: 3850 | X70: 49 | Y70: 1834 | Z70: - | AA70: 1884
B71: EMS | C71: Bônus | D71: - | E71: - | F71: - | G71: - | H71: - | I71: - | J71: - | K71: - | L71: - | M71: - | N71: - | O71: - | P71: - | Q71: - | R71: - | S71: - | T71: - | U71: - | V71: - | W71: - | X71: - | Y71: - | Z71: - | AA71: -
B72: EMS | C72: Participação de resultados | D72: - | E72: 1817 | F72: - | G72: 1817 | H72: - | I72: 1648 | J72: - | K72: 1648 | L72: 503 | M72: 2893 | N72: - | O72: 3396 | P72: 221 | Q72: 879 | R72: - | S72: 1100 | T72: 191 | U72: 3659 | V72: - | W72: 3850 | X72: 49 | Y72: 1834 | Z72: - | AA72: 1884
B73: EMS | C73: Participação em reuniões | D73: 5 | E73: 7 | F73: - | G73: 12 | H73: 5 | I73: 7 | J73: - | K73: 12 | L73: 5 | M73: 7 | N73: - | O73: 12 | P73: - | Q73: - | R73: - | S73: - | T73: - | U73: - | V73: - | W73: - | X73: - | Y73: - | Z73: - | AA73: -
B74: EMS | C74: Comissões | D74: 608 | E74: 3327 | F74: - | G74: 3935 | H74: 689 | I74: 3217 | J74: - | K74: 3906 | L74: 539 | M74: 2703 | N74: - | O74: 3242 | P74: - | Q74: - | R74: - | S74: - | T74: - | U74: - | V74: - | W74: - | X74: - | Y74: - | Z74: - | AA74: -
B75: EMS | C75: Outros | D75: 395 | E75: 1822 | F75: - | G75: 2217 | H75: 435 | I75: 1900 | J75: - | K75: 2335 | L75: 384 | M75: 1867 | N75: - | O75: 2251 | P75: - | Q75: - | R75: - | S75: - | T75: - | U75: - | V75: - | W75: - | X75: - | Y75: - | Z75: - | AA75: -
B76: EMS | C76: Descrição de outras remunerações variáveis | D76: 73 | E76: 398 | F76: - | G76: 470 | H76: 60 | I76: 363 | J76: - | K76: 423 | L76: 57 | M76: 290 | N76: - | O76: 347 | P76: - | Q76: - | R76: - | S76: - | T76: - | U76: - | V76: - | W76: - | X76: - | Y76: - | Z76: - | AA76: -
B77: EMS | C77: CA - Conselho de Administração; DE - Diretoria Estatutária; CF - Conselho Fiscal
B78: EMS | C78: 1 Não há Conselho Fiscal instalado.
B80: EMT | D80: 2020 | H80: 2019 | L80: 2018 | P80: 2017 | T80: 2016 | X80: 2015
B81: =$B$80 -> EMT | C81: Administradores | D81: CA | E81: DE | F81: CF | G81: Total | H81: CA | I81: DE | J81: CF | K81: Total | L81: CA | M81: DE | N81: CF | O81: Total | P81: CA | Q81: DE | R81: CF 1 | S81: Total | T81: CA | U81: DE | V81: CF | W81: Total | X81: CA | Y81: DE | Z81: CF 1 | AA81: Total
B82: =$B$80 -> EMT | C82: Nº de membros | D82: 5 | E82: 7 | F82: 6 | G82: 18 | H82: 5 | I82: 7 | J82: 6 | K82: 18 | L82: 5 | M82: 7 | N82: 6 | O82: 18 | P82: 6 | Q82: 7 | R82: - | S82: 13 | T82: 6 | U82: 9 | V82: 10 | W82: 15 | X82: 7 | Y82: 8 | Z82: 10 | AA82: 25
B83: EMT | C83: Remuneração fixa anual (R$ mil) | D83: 607 | E83: 6044 | F83: 188 | G83: 6838 | H83: 679 | I83: 5987 | J83: 205 | K83: 6871 | L83: 495 | M83: 4744 | N83: 95 | O83: 5333 | P83: 685 | Q83: 2548 | R83: - | S83: 3233 | T83: 269 | U83: 2801 | V83: 158 | W83: 3228 | X83: 208 | Y83: 2437 | Z83: 567 | AA83: 3212
B84: EMT | C84: Salário ou pró-labore | D84: 443 | E84: 3254 | F84: 137 | G84: 3834 | H84: 466 | I84: 3460 | J84: 140 | K84: 4066 | L84: 354 | M84: 3037 | N84: 66 | O84: 3457 | P84: 370 | Q84: 1297 | R84: - | S84: 1667 | T84: 198 | U84: 1817 | V84: 112 | W84: 2127 | X84: 154 | Y84: 1975 | Z84: 472 | AA84: 2602
B85: EMT | C85: Benefícios diretos ou indiretos | D85: 2 | E85: 666 | F85: - | G85: 668 | H85: - | I85: 701 | J85: - | K85: 701 | L85: - | M85: 293 | N85: - | O85: 293 | P85: - | Q85: 229 | R85: - | S85: 229 | T85: 0 | U85: 418 | V85: - | W85: 419 | X85: - | Y85: 111 | Z85: - | AA85: 111
B86: EMT | C86: Participações em comitês | D86: - | E86: - | F86: - | G86: - | H86: - | I86: - | J86: - | K86: - | L86: - | M86: - | N86: - | O86: - | P86: - | Q86: - | R86: - | S86: - | T86: - | U86: - | V86: - | W86: - | X86: - | Y86: - | Z86: - | AA86: -
B87: EMT | C87: Outros (encargos) | D87: 161 | E87: 2124 | F87: 50 | G87: 2336 | H87: 213 | I87: 1827 | J87: 65 | K87: 2104 | L87: 141 | M87: 1414 | N87: 29 | O87: 1583 | P87: 315 | Q87: 1022 | R87: - | S87: 1337 | T87: 71 | U87: 565 | V87: 46 | W87: 682 | X87: 54 | Y87: 351 | Z87: 94 | AA87: 499
B88: EMT | C88: Descrição de outras numerações fixas | D88: - | E88: - | F88: - | G88: - | H88: - | I88: - | J88: - | K88: - | L88: - | M88: - | N88: - | O88: - | P88: - | Q88: - | R88: - | S88: - | T88: - | U88: - | V88: - | W88: - | X88: - | Y88: - | Z88: - | AA88: -
B89: EMT | C89: Remuneração variável (R$ mil) | D89: 0 | E89: 3365 | F89: - | G89: 3365 | H89: - | I89: 2941 | J89: - | K89: 2941 | L89: 472 | M89: 4953 | N89: - | O89: 5425 | P89: 293 | Q89: 1107 | R89: - | S89: 1400 | T89: 116 | U89: 2652 | V89: 0 | W89: 2768 | X89: 49 | Y89: 1544 | Z89: 0 | AA89: 1593
B90: EMT | C90: Bônus | D90: - | E90: - | F90: - | G90: - | H90: - | I90: - | J90: - | K90: - | L90: - | M90: - | N90: - | O90: - | R90: - | T90: - | U90: - | V90: - | W90: - | X90: - | Y90: - | Z90: - | AA90: -
B91: EMT | C91: Participação de resultados | D91: - | E91: 3365 | F91: 0 | G91: 3365 | H91: - | I91: 2941 | J91: - | K91: 2941 | L91: 472 | M91: 4953 | N91: - | O91: 5425 | P91: 293 | Q91: 1107 | R91: - | S91: 1400 | T91: 116 | U91: 2652 | V91: - | W91: 2768 | X91: 49 | Y91: 1544 | Z91: - | AA91: 1593
B92: EMT | C92: Participação em reuniões | D92: - | E92: - | F92: - | G92: - | H92: - | I92: - | J92: - | K92: - | L92: - | M92: - | N92: - | O92: - | P92: - | Q92: - | R92: - | S92: - | T92: - | U92: - | V92: - | W92: - | X92: - | Y92: - | Z92: - | AA92: -
B93: EMT | C93: Comissões | D93: - | E93: - | F93: - | G93: - | H93: - | I93: - | J93: - | K93: - | L93: - | M93: - | N93: - | O93: - | P93: - | Q93: - | R93: - | S93: - | T93: - | U93: - | V93: - | W93: - | X93: - | Y93: - | Z93: - | AA93: -
B94: EMT | C94: Outros | D94: - | E94: - | F94: - | G94: - | H94: - | I94: - | J94: - | K94: - | L94: - | M94: - | N94: - | O94: - | P94: - | Q94: - | R94: - | S94: - | T94: - | U94: - | V94: - | W94: - | X94: - | Y94: - | Z94: - | AA94: -
B95: EMT | C95: Descrição de outras remunerações variáveis | D95: - | E95: - | F95: - | G95: - | H95: - | I95: - | J95: - | K95: - | L95: - | M95: - | N95: - | O95: - | P95: - | Q95: - | R95: - | S95: - | T95: - | U95: - | V95: - | W95: - | X95: - | Y95: - | Z95: - | AA95: -
B96: EMT | C96: CA - Conselho de Administração; DE - Diretoria Estatutária; CF - Conselho Fiscal
B97: EMT | C97: 1 Conselho Fiscal não foi instalado em 2017.
B99: ENF | D99: 2020 | H99: 2019 | L99: 2018 | P99: 2017 | T99: 2016 | U99: 2015 | X99: 2015
B100: =$B$99 -> ENF | C100: Administradores | D100: CA | E100: DE | F100: CF 1 | G100: Total | H100: CA | I100: DE | J100: CF 1 | K100: Total | L100: CA | M100: DE | N100: CF 1 | O100: Total | P100: CA | Q100: DE | R100: CF 1 | S100: Total | T100: CA1 | U100: DE | V100: CF 1 | W100: Total | X100: CA1 | Y100: DE | Z100: CF 1 | AA100: Total
B101: =$B$99 -> ENF | C101: Nº de membros | D101: - | E101: 7 | F101: - | G101: 7 | H101: - | I101: 7 | J101: - | K101: 7 | L101: - | M101: 7 | N101: - | O101: 7 | P101: - | Q101: 6 | R101: - | S101: 6 | T101: - | U101: 6 | V101: - | W101: 6 | X101: - | Y101: 6 | Z101: - | AA101: 6
B102: ENF | C102: Remuneração fixa anual (R$ mil) | D102: - | E102: 544 | F102: - | G102: 544 | H102: - | I102: 545 | J102: - | K102: 545 | L102: - | M102: 709 | N102: - | O102: 709 | P102: - | Q102: 1439 | R102: - | S102: 1439 | T102: - | U102: 875.98 | V102: - | W102: 876 | X102: - | Y102: 878.61 | Z102: - | AA102: 878.61
B103: ENF | C103: Salário ou pró-labore | D103: - | E103: 333 | F103: - | G103: 333 | H103: - | I103: 358 | J103: - | K103: 358 | L103: - | M103: 473 | N103: - | O103: 473 | P103: - | Q103: 708 | R103: - | S103: 708 | T103: - | U103: 665.97 | V103: - | W103: 666 | X103: - | Y103: 637.95 | Z103: - | AA103: 637.95
B104: ENF | C104: Benefícios diretos ou indiretos | D104: - | E104: 11 | F104: - | G104: 11 | H104: - | I104: 1 | J104: - | K104: 1 | L104: - | M104: 15 | N104: - | O104: 15 | P104: - | Q104: 38 | R104: - | S104: 38 | T104: - | U104: 25.78 | V104: - | W104: 25.8 | X104: - | Y104: 74.75 | Z104: - | AA104: 74.75
B105: ENF | C105: Participações em comitês | D105: - | E105: - | F105: - | G105: - | H105: - | I105: - | J105: - | K105: - | L105: - | M105: - | N105: - | O105: - | P105: - | Q105: - | R105: - | S105: - | T105: - | U105: - | V105: - | W105: - | X105: - | Y105: - | Z105: - | AA105: -
B106: ENF | C106: Outros (encargos) | D106: - | E106: 199 | F106: - | G106: 199 | H106: - | I106: 187 | J106: - | K106: 187 | L106: - | M106: 221 | N106: - | O106: 221 | P106: - | Q106: 693 | R106: - | S106: 693 | T106: - | U106: 184.23 | V106: - | W106: 184.2 | X106: - | Y106: 165.91 | Z106: - | AA106: 165.91
B107: ENF | C107: Descrição de outras numerações fixas | D107: - | E107: - | F107: - | G107: - | H107: - | I107: - | J107: - | K107: - | L107: - | M107: - | N107: - | O107: - | P107: - | Q107: - | R107: - | S107: - | T107: - | U107: - | V107: - | W107: - | X107: - | Y107: - | Z107: - | AA107: -
B108: ENF | C108: Remuneração variável (R$ mil) | D108: - | E108: 275 | F108: - | G108: 275 | H108: - | I108: 303 | J108: - | K108: 303 | L108: - | M108: 263 | N108: - | O108: 263 | P108: - | Q108: 659 | R108: - | S108: 659 | T108: - | U108: 564.23 | V108: - | W108: 564.2 | X108: - | Y108: 307.07 | Z108: - | AA108: 307.07
B109: ENF | C109: Bônus | D109: - | E109: - | F109: - | G109: - | H109: - | I109: - | J109: - | K109: - | L109: - | M109: - | N109: - | O109: - | P109: - | Q109: - | R109: - | S109: - | T109: - | U109: - | V109: - | W109: - | X109: - | Y109: - | Z109: - | AA109: -
B110: ENF | C110: Participação de resultados | D110: - | E110: 275 | F110: - | G110: 275 | H110: - | I110: 303 | J110: - | K110: 303 | L110: - | M110: 263 | N110: - | O110: 263 | P110: - | Q110: 659 | R110: - | S110: 659 | T110: - | U110: 564.23 | V110: - | W110: 564.2 | X110: - | Y110: 307.07 | Z110: - | AA110: 307.07
B111: ENF | C111: Participação em reuniões | D111: - | E111: - | F111: - | G111: - | H111: - | I111: - | J111: - | K111: - | L111: - | M111: - | N111: - | O111: - | P111: - | Q111: - | R111: - | S111: - | T111: - | U111: - | V111: - | W111: - | X111: - | Y111: - | Z111: - | AA111: -
B112: ENF | C112: Comissões | D112: - | E112: - | F112: - | G112: - | H112: - | I112: - | J112: - | K112: - | L112: - | M112: - | N112: - | O112: - | P112: - | Q112: - | R112: - | S112: - | T112: - | U112: - | V112: - | W112: - | X112: - | Y112: - | Z112: - | AA112: -
B113: ENF | C113: Outros | D113: - | E113: - | F113: - | G113: - | H113: - | I113: - | J113: - | K113: - | L113: - | M113: - | N113: - | O113: - | P113: - | Q113: - | R113: - | S113: - | T113: - | U113: - | V113: - | W113: - | X113: - | Y113: - | Z113: - | AA113: -
B114: ENF | C114: Descrição de outras remunerações variáveis | D114: - | E114: - | F114: - | G114: - | H114: - | I114: - | J114: - | K114: - | L114: - | M114: - | N114: - | O114: - | P114: - | Q114: - | R114: - | S114: - | T114: - | U114: - | V114: - | W114: - | X114: - | Y114: - | Z114: - | AA114: -
B115: ENF | C115: CA - Conselho de Administração; DE - Diretoria Estatutária; CF - Conselho Fiscal
B116: ENF | C116: 1 Não há Conselho Fiscal instalado.
B118: EPB | D118: 2020 | H118: 2019 | L118: 2018 | P118: 2017 | T118: 2016 | X118: 2015
B119: =$B$118 -> EPB | C119: Administradores | D119: CA | E119: DE | F119: CF 1 | G119: Total | H119: CA | I119: DE | J119: CF 1 | K119: Total | L119: CA | M119: DE | N119: CF 1 | O119: Total | P119: CA | Q119: DE | R119: CF 1 | S119: Total | T119: CA | U119: DE | V119: CF 1 | W119: Total | X119: CA | Y119: DE | Z119: CF 1 | AA119: Total
B120: =$B$118 -> EPB | C120: Administradores | D120: 7 | E120: 7 | F120: - | G120: 14 | H120: 7 | I120: 7 | J120: - | K120: 14 | L120: 7 | M120: 7 | N120: - | O120: 14 | P120: 7 | Q120: 6 | R120: - | S120: 13 | T120: 7 | U120: 6 | V120: - | W120: 13 | X120: 8 | Y120: 6 | Z120: - | AA120: 14
B121: EPB | C121: Remuneração fixa anual (R$ mil) | D121: 773 | E121: 3718 | F121: - | G121: 4491 | H121: 801 | I121: 3107 | J121: - | K121: 3908 | L121: 843 | M121: 2478 | N121: - | O121: 3321 | P121: 1388 | Q121: 6149 | R121: - | S121: 7537 | T121: 2142.89 | U121: 1817.54 | V121: - | W121: 3960.4 | X121: 1953.81 | Y121: 1874.41 | Z121: - | AA121: 3828.22
B122: EPB | C122: Salário ou pró-labore | D122: 569 | E122: 1780 | F122: - | G122: 2348 | H122: 598 | I122: 1675 | J122: - | K122: 2274 | L122: 578 | M122: 1327 | N122: - | O122: 1905 | P122: 959 | Q122: 1097 | R122: - | S122: 2056 | T122: 1679.13 | U122: 1130.63 | V122: - | W122: 2809.8 | X122: 1525.47 | Y122: 1096.96 | Z122: - | AA122: 2622.43
B123: EPB | C123: Benefícios diretos ou indiretos | D123: 18 | E123: 748 | F123: - | G123: 766 | H123: 18 | I123: 596 | J123: - | K123: 615 | L123: 16 | M123: 544 | N123: - | O123: 560 | P123: 39 | Q123: 426 | R123: - | S123: 465 | T123: 80.63 | U123: 429.69 | V123: - | W123: 510.3 | X123: 72.2 | Y123: 521.35 | Z123: - | AA123: 593.55
B124: EPB | C124: Participações em comitês | D124: - | E124: - | F124: - | G124: - | H124: - | I124: - | J124: - | K124: - | L124: - | M124: - | N124: - | O124: - | P124: - | Q124: - | R124: - | S124: - | T124: - | U124: - | V124: - | W124: - | X124: - | Z124: - | AA124: -
B125: EPB | C125: Outros (encargos) | D125: 186 | E125: 1190 | F125: - | G125: 1377 | H125: 184 | I125: 835 | J125: - | K125: 1019 | L125: 250 | M125: 607 | N125: - | O125: 856 | P125: 390 | Q125: 2567 | R125: - | S125: 2957 | T125: 383.12 | U125: 257.22 | V125: - | W125: 640.3 | X125: 356.14 | Y125: 256.1 | Z125: - | AA125: 612.24
B126: EPB | C126: Descrição de outras numerações fixas | D126: - | E126: - | F126: - | G126: - | H126: - | I126: - | J126: - | K126: - | L126: - | M126: - | N126: - | O126: - | P126: - | Q126: - | R126: - | S126: - | T126: - | U126: - | V126: - | W126: - | X126: - | Z126: - | AA126: -
B127: EPB | C127: Remuneração variável (R$ mil) | D127: - | E127: 1479 | F127: - | G127: 1479 | H127: - | I127: 1414 | J127: - | K127: 1414 | L127: 503 | M127: 1969 | N127: - | O127: 2472 | P127: 310 | Q127: 789 | R127: - | S127: 1099 | T127: 2038.81 | U127: 1356.86 | V127: - | W127: 3395.7 | X127: 1236.01 | Y127: 870.44 | Z127: - | AA127: 2106.45
B128: EPB | C128: Bônus | D128: - | E128: - | F128: - | G128: - | H128: - | I128: - | J128: - | K128: - | L128: - | M128: - | N128: - | O128: - | P128: - | Q128: - | R128: - | S128: - | T128: - | U128: - | V128: - | W128: - | X128: - | Z128: - | AA128: -
B129: EPB | C129: Participação de resultados | D129: - | E129: 1479 | F129: - | G129: 1479 | H129: - | I129: 1414 | J129: - | K129: 1414 | L129: 503 | M129: 1969 | N129: - | O129: 2472 | P129: 310 | Q129: 789 | R129: - | S129: 1099 | T129: 2038.81 | U129: 1356.86 | V129: - | W129: 3395.7 | X129: 1236.01 | Y129: 870.44 | Z129: - | AA129: 2106.45
B130: EPB | C130: Participação em reuniões | D130: - | E130: - | F130: - | G130: - | H130: - | I130: - | J130: - | K130: - | L130: - | M130: - | N130: - | O130: - | P130: - | Q130: - | R130: - | S130: - | T130: - | U130: - | V130: - | W130: - | X130: - | Z130: - | AA130: -
B131: EPB | C131: Comissões | D131: - | E131: - | F131: - | G131: - | H131: - | I131: - | J131: - | K131: - | L131: - | M131: - | N131: - | O131: - | P131: - | Q131: - | R131: - | S131: - | T131: - | U131: - | V131: - | W131: - | X131: - | Z131: - | AA131: -
B132: EPB | C132: Outros | D132: - | E132: - | F132: - | G132: - | H132: - | I132: - | J132: - | K132: - | L132: - | M132: - | N132: - | O132: - | P132: - | Q132: - | R132: - | S132: - | T132: - | U132: - | V132: - | W132: - | X132: - | Z132: - | AA132: -
B133: EPB | C133: Descrição de outras remunerações variáveis | D133: - | E133: - | F133: - | G133: - | H133: - | I133: - | J133: - | K133: - | L133: - | M133: - | N133: - | O133: - | P133: - | Q133: - | R133: - | S133: - | T133: - | U133: - | V133: - | W133: - | X133: - | Z133: - | AA133: -
B134: EPB | C134: CA - Conselho de Administração; DE - Diretoria Estatutária; CF - Conselho Fiscal
B135: EPB | C135: 1 Não há Conselho Fiscal instalado.
B137: ERO | D137: 2020 | H137: 2019 | L137: 2018 | P137: 2017 | T137: 2016
B138: =$B$137 -> ERO | C138: Administradores | D138: CA | E138: DE | F138: CF 2 | G138: Total | H138: CA | I138: DE | J138: CF 2 | K138: Total | L138: CA | M138: DE | N138: CF 1 | O138: Total | P138: CA | Q138: DE | R138: CF 1 | S138: Total | T138: CA | U138: DE | V138: CF | W138: Total
B139: =$B$137 -> ERO | C139: Nº de membros | D139: 3 | E139: 7 | F139: - | G139: 10 | H139: 3 | I139: 8 | J139: - | K139: 11 | L139: - | M139: - | N139: - | O139: - | P139: - | Q139: - | R139: - | S139: - | T139: 5 | U139: 2 | V139: 3 | W139: 10
B140: ERO | C140: Remuneração fixa anual (R$ mil) | D140: 365 | E140: 1521 | F140: - | G140: 1886 | H140: 362 | I140: 2473 | J140: - | K140: 2835 | L140: - | M140: - | N140: - | O140: - | P140: - | Q140: - | R140: - | S140: - | T140: 139 | U140: 367 | V140: 91 | W140: 596
B141: ERO | C141: Salário ou pró-labore | D141: 376 | E141: 1326 | F141: - | G141: 1701 | H141: 273 | I141: 1930 | J141: - | K141: 2203 | L141: - | M141: - | N141: - | O141: - | P141: - | Q141: - | R141: - | S141: - | T141: 139 | U141: 319 | V141: 91 | W141: 549
B142: ERO | C142: Benefícios diretos ou indiretos | D142: -11 | E142: 196 | F142: - | G142: 185 | H142: - | I142: 68 | J142: - | K142: 68 | L142: - | M142: - | N142: - | O142: - | P142: - | Q142: - | R142: - | S142: - | T142: - | U142: 47 | V142: - | W142: 47
B143: ERO | C143: Participações em comitês | D143: - | E143: - | F143: - | G143: - | H143: - | I143: - | J143: - | K143: - | L143: - | M143: - | N143: - | O143: - | P143: - | Q143: - | R143: - | S143: - | T143: - | U143: - | V143: - | W143: -
B144: ERO | C144: Outros (encargos) | D144: - | E144: - | F144: - | G144: - | H144: 89 | I144: 475 | J144: - | K144: 564 | L144: - | M144: - | N144: - | O144: - | P144: - | Q144: - | R144: - | S144: - | T144: - | U144: - | V144: - | W144: -
B145: ERO | C145: Descrição de outras numerações fixas | D145: - | E145: - | F145: - | G145: - | H145: - | I145: - | J145: - | K145: - | L145: - | M145: - | N145: - | O145: - | P145: - | Q145: - | R145: - | S145: - | T145: - | U145: - | V145: - | W145: -
B146: ERO | C146: Remuneração variável (R$ mil) | D146: - | E146: 1506 | F146: - | G146: 1506 | H146: - | I146: 1418 | J146: - | K146: 1418 | L146: - | M146: - | N146: - | O146: - | P146: - | Q146: - | R146: - | S146: - | T146: 13 | U146: - | V146: 7 | W146: 20
B147: ERO | C147: Bônus | D147: - | E147: - | F147: - | G147: - | H147: - | I147: - | J147: - | K147: - | L147: - | M147: - | N147: - | O147: - | P147: - | Q147: - | R147: - | S147: - | T147: - | U147: - | V147: - | W147: -
B148: ERO | C148: Participação de resultados | D148: - | E148: 1506 | F148: - | G148: 1506 | H148: 0 | I148: 1418 | J148: - | K148: - | L148: - | M148: - | N148: - | O148: - | P148: - | Q148: - | R148: - | S148: - | T148: - | U148: - | V148: - | W148: -
B149: ERO | C149: Participação em reuniões | D149: - | E149: - | F149: - | G149: - | H149: - | I149: - | J149: - | K149: - | L149: - | M149: - | N149: - | O149: - | P149: - | Q149: - | R149: - | S149: - | T149: - | U149: - | V149: - | W149: -
B150: ERO | C150: Comissões | D150: - | E150: - | F150: - | G150: - | H150: - | I150: - | J150: - | K150: - | L150: - | M150: - | N150: - | O150: - | P150: - | Q150: - | R150: - | S150: - | T150: - | U150: - | V150: - | W150: -
B151: ERO | C151: Outros | D151: - | E151: - | F151: - | G151: - | H151: - | I151: - | J151: - | K151: - | L151: - | M151: - | N151: - | O151: - | P151: - | Q151: - | R151: - | S151: - | T151: 13 | U151: - | V151: 7 | W151: 20
B152: ERO | C152: Descrição de outras remunerações variáveis | D152: - | E152: - | F152: - | G152: - | H152: - | I152: - | J152: - | K152: - | L152: - | M152: - | N152: - | O152: - | P152: - | Q152: - | R152: - | S152: - | T152: - | U152: - | V152: - | W152: -
B153: ERO | C153: CA - Conselho de Administração; DE - Diretoria Estatutária; CF - Conselho Fiscal
B154: ERO | C154: 1 Não há dados para 2018 e 2017. A Energisa assumiu o controle da empresa em agosto de 2018, após leilão de privatização.
B155: ERO | C155: 2 Não há Conselho Fiscal instalado.
B157: ESE | D157: 2020 | H157: 2019 | L157: 2018 | P157: 2017 | T157: 2016 | X157: 2015
B158: =$B$157 -> ESE | C158: Administradores | D158: CA | E158: DE | F158: CF 1 | G158: Total | H158: CA | I158: DE | J158: CF 1 | K158: Total | L158: CA | M158: DE | N158: CF 1 | O158: Total | P158: CA | Q158: DE | R158: CF 1 | S158: Total | T158: CA | U158: DE | V158: CF 1 | W158: Total | X158: CA | Y158: DE | Z158: CF 1 | AA158: Total
B159: =$B$157 -> ESE | C159: Nº de membros | D159: 7 | E159: 7 | F159: - | G159: 14 | H159: 7 | I159: 7 | J159: - | K159: 14 | L159: 7 | M159: 7 | N159: - | O159: 14 | P159: 7 | Q159: 6 | R159: - | S159: 13 | T159: 7 | U159: 6 | V159: - | W159: 13 | X159: 8 | Y159: 6 | Z159: - | AA159: 14
B160: ESE | C160: Remuneração fixa anual (R$ mil) | D160: 769 | E160: 2164 | F160: - | G160: 2933 | H160: 831 | I160: 2001 | J160: - | K160: 2832 | L160: 774 | M160: 2270 | N160: - | O160: 3044 | P160: 916 | Q160: 5016 | R160: - | S160: 5932 | T160: 982 | U160: 2107 | V160: - | W160: 3089 | X160: 880 | Y160: 2089 | Z160: - | AA160: 2969
B161: ESE | C161: Salário ou pró-labore | D161: 569 | E161: 1233 | F161: - | G161: 1802 | H161: 598 | I161: 1267 | J161: - | K161: 1865 | L161: 578 | M161: 1471 | N161: - | O161: 2048 | P161: 643 | Q161: 1676 | R161: - | S161: 2319 | T161: 754 | U161: 1465 | V161: - | W161: 2219 | X161: 677 | Y161: 1436 | Z161: - | AA161: 2113
B162: ESE | C162: Benefícios diretos ou indiretos | D162: 18 | E162: 294 | F162: - | G162: 312 | H162: 18 | I162: 228 | J162: - | K162: 246 | L162: 16 | M162: 355 | N162: - | O162: 370 | P162: 22 | Q162: 316 | R162: - | S162: 338 | T162: 34 | U162: 266 | V162: - | W162: 300 | X162: 30 | Y162: 288 | Z162: - | AA162: 318
B163: ESE | C163: Participações em comitês | D163: - | E163: - | F163: - | G163: - | H163: - | I163: - | J163: - | K163: - | L163: - | M163: - | N163: - | O163: - | P163: - | Q163: - | R163: - | S163: - | T163: - | U163: - | V163: - | W163: - | X163: - | Y163: - | Z163: - | AA163: -
B164: ESE | C164: Outros (encargos) | D164: 182 | E164: 637 | F164: - | G164: 820 | H164: 214 | I164: 506 | J164: - | K164: 721 | L164: 181 | M164: 444 | N164: - | O164: 625 | P164: 251 | Q164: 2108 | R164: - | S164: 2359 | T164: 194 | U164: 376 | V164: - | W164: 570 | X164: 172 | Y164: 365 | Z164: - | AA164: 538
B165: ESE | C165: Descrição de outras numerações fixas | D165: - | E165: - | F165: - | G165: - | H165: - | I165: - | J165: - | K165: - | L165: - | M165: - | N165: - | O165: - | P165: - | Q165: - | R165: - | S165: - | T165: - | U165: - | V165: - | W165: - | X165: - | Y165: - | Z165: - | AA165: -
B166: ESE | C166: Remuneração variável (R$ mil) | D166: 0 | E166: 1166 | F166: - | G166: 1166 | H166: 0 | I166: 976 | J166: - | K166: 976 | L166: 503 | M166: 949 | N166: - | O166: 1453 | P166: 363 | Q166: 940 | R166: - | S166: 1303 | T166: 918 | U166: 1515 | V166: - | W166: 2433 | X166: 526 | Y166: 1141 | Z166: - | AA166: 1667
B167: ESE | C167: Bônus | D167: - | E167: - | F167: - | G167: - | H167: - | I167: - | J167: - | K167: - | L167: - | M167: - | N167: - | O167: - | P167: - | Q167: - | R167: - | S167: - | T167: - | U167: - | V167: - | W167: - | X167: - | Y167: - | Z167: - | AA167: -
B168: ESE | C168: Participação de resultados | D168: - | E168: 1166 | F168: - | G168: 1166 | H168: - | I168: 976 | J168: - | K168: 976 | L168: 503 | M168: 949 | N168: - | O168: 1453 | P168: 363 | Q168: 940 | R168: - | S168: 1303 | T168: 918 | U168: 1515 | V168: - | W168: 2433 | X168: 526 | Y168: 1141 | Z168: - | AA168: 1667
B169: ESE | C169: Participação em reuniões | D169: - | E169: - | F169: - | G169: - | H169: - | I169: - | J169: - | K169: - | L169: - | M169: - | N169: - | O169: - | P169: - | Q169: - | R169: - | S169: - | T169: - | U169: - | V169: - | W169: - | X169: - | Y169: - | Z169: - | AA169: -
B170: ESE | C170: Comissões | D170: - | E170: - | F170: - | G170: - | H170: - | I170: - | J170: - | K170: - | L170: - | M170: - | N170: - | O170: - | P170: - | Q170: - | R170: - | S170: - | T170: - | U170: - | V170: - | W170: - | X170: - | Y170: - | Z170: - | AA170: -
B171: ESE | C171: Outros | D171: - | E171: - | F171: - | G171: - | H171: - | I171: - | J171: - | K171: - | L171: - | M171: - | N171: - | O171: - | P171: - | Q171: - | R171: - | S171: - | T171: - | U171: - | V171: - | W171: - | X171: - | Y171: - | Z171: - | AA171: -
B172: ESE | C172: Descrição de outras remunerações variáveis | D172: - | E172: - | F172: - | G172: - | H172: - | I172: - | J172: - | K172: - | L172: - | M172: - | N172: - | O172: - | P172: - | Q172: - | R172: - | S172: - | T172: - | U172: - | V172: - | W172: - | X172: - | Y172: - | Z172: - | AA172: -
B173: ESE | C173: CA - Conselho de Administração; DE - Diretoria Estatutária; CF - Conselho Fiscal
B174: ESE | C174: 1 Não há Conselho Fiscal instalado.
B176: ESS | D176: 2020 | H176: 2019 | L176: 2018 | P176: 2017 | T176: 2016 | X176: 2015
B177: =$B$176 -> ESS | C177: Administradores | D177: CA | E177: DE | F177: CF 1 | G177: Total | H177: CA | I177: DE | J177: CF 1 | K177: Total | L177: CA | M177: DE | N177: CF 1 | O177: Total | P177: CA | Q177: DE | R177: CF 1 | S177: Total | T177: CA | U177: DE | V177: CF 1 | W177: Total | X177: CA | Y177: DE | Z177: CF 1 | AA177: Total
B178: =$B$176 -> ESS | C178: Nº de membros | D178: 3 | E178: 7 | F178: - | G178: 10 | H178: 3 | I178: 7 | J178: 0 | K178: 10 | L178: - | M178: 6 | N178: - | O178: 6 | P178: - | Q178: 7 | R178: - | S178: 7 | T178: - | U178: 7 | V178: 7 | W178: - | X178: - | Y178: 8 | Z178: - | AA178: 8
B179: ESS | C179: Remuneração fixa anual (R$ mil) | D179: - | E179: 2564 | F179: - | G179: 2564 | H179: - | I179: 1988 | J179: 0 | K179: 1988 | L179: - | M179: 2859 | N179: - | O179: 2859 | P179: - | Q179: 2956 | R179: - | S179: 2956 | T179: - | U179: 2167 | V179: 2167 | W179: - | X179: - | Y179: 1247 | Z179: - | AA179: 1247
B180: ESS | C180: Salário ou pró-labore | D180: - | E180: 1356 | F180: - | G180: 1356 | H180: - | I180: 1036 | J180: - | K180: 1036 | L180: - | M180: 1784 | N180: - | O180: 1784 | P180: - | Q180: 1702 | R180: - | S180: 1702 | T180: - | U180: 1673 | V180: 1673 | W180: - | X180: - | Y180: 1004 | Z180: - | AA180: 1004
B181: ESS | C181: Benefícios diretos ou indiretos | D181: - | E181: 466 | F181: - | G181: 466 | H181: - | I181: 352 | J181: - | K181: 352 | L181: - | M181: 120 | N181: - | O181: 120 | P181: - | Q181: 65 | R181: - | S181: 65 | T181: - | U181: 109 | V181: 109 | W181: - | X181: - | Y181: 0 | Z181: - | AA181: 0
B182: ESS | C182: Participações em comitês | D182: - | E182: 0 | F182: - | G182: 0 | H182: - | I182: 0 | J182: - | K182: - | L182: - | M182: - | N182: - | O182: - | P182: - | Q182: - | R182: - | S182: - | T182: - | U182: - | V182: - | W182: - | X182: - | Y182: - | Z182: - | AA182: -
B183: ESS | C183: Outros (encargos) | D183: - | E183: 741 | F183: - | G183: 741 | H183: - | I183: 600 | J183: - | K183: 600 | L183: - | M183: 956 | N183: - | O183: 956 | P183: - | Q183: 1189 | R183: - | S183: 1189 | T183: - | U183: 385 | V183: 385 | W183: - | X183: - | Y183: 243 | Z183: - | AA183: 243
B184: ESS | C184: Descrição de outras numerações fixas | D184: - | E184: - | F184: - | G184: - | H184: - | I184: - | J184: - | K184: - | L184: - | M184: - | N184: - | O184: - | P184: - | Q184: - | R184: - | S184: - | T184: - | U184: - | V184: - | W184: - | X184: - | Y184: - | Z184: - | AA184: -
B185: ESS | C185: Remuneração variável (R$ mil) | D185: - | E185: 1240 | F185: - | G185: 1240 | H185: - | I185: 1204 | J185: - | K185: 1204 | L185: - | M185: 3042 | N185: - | O185: 3042 | P185: - | Q185: -94 | R185: - | S185: -94 | T185: - | U185: 2496 | V185: 2496 | W185: - | X185: - | Y185: 1221 | Z185: - | AA185: 1221
B186: ESS | C186: Bônus | D186: - | E186: - | F186: - | G186: - | H186: - | I186: - | J186: - | K186: - | L186: - | M186: - | N186: - | O186: - | P186: - | Q186: - | R186: - | S186: - | T186: - | U186: - | V186: - | W186: - | X186: - | Y186: - | Z186: - | AA186: -
B187: ESS | C187: Participação de resultados | D187: - | E187: 1240 | F187: - | G187: 1240 | H187: - | I187: 1204 | J187: - | K187: 1204 | L187: - | M187: 3042 | N187: - | O187: 3042 | P187: - | Q187: -94 | R187: - | S187: - | T187: - | U187: 2496 | V187: 2496 | W187: - | X187: - | Y187: 1221 | Z187: - | AA187: 1221
B188: ESS | C188: Participação em reuniões | D188: - | E188: - | F188: - | G188: - | H188: - | I188: - | J188: - | K188: - | L188: - | M188: - | N188: - | O188: - | P188: - | Q188: - | R188: - | S188: - | T188: - | U188: - | V188: - | W188: - | X188: - | Y188: - | Z188: - | AA188: -
B189: ESS | C189: Comissões | D189: - | E189: - | F189: - | G189: - | H189: - | I189: - | J189: - | K189: - | L189: - | M189: - | N189: - | O189: - | P189: - | Q189: - | R189: - | S189: - | T189: - | U189: - | V189: - | W189: - | X189: - | Y189: - | Z189: - | AA189: -
B190: ESS | C190: Outros | D190: - | E190: - | F190: - | G190: - | H190: - | I190: - | J190: - | K190: - | L190: - | M190: - | N190: - | O190: - | P190: - | Q190: - | R190: - | S190: - | T190: - | U190: - | V190: - | W190: - | X190: - | Y190: - | Z190: - | AA190: -
B191: ESS | C191: Descrição de outras remunerações variáveis | D191: - | E191: - | F191: - | G191: - | H191: - | I191: - | J191: - | K191: - | L191: - | M191: - | N191: - | O191: - | P191: - | Q191: - | R191: - | S191: - | T191: - | U191: - | V191: - | W191: - | X191: - | Y191: - | Z191: - | AA191: -
B192: ESS | C192: CA - Conselho de Administração; DE - Diretoria Estatutária; CF - Conselho Fiscal
B193: ESS | C193: 1 Não há Conselho Fiscal instalado.
B195: ETO | D195: 2020 | H195: 2019 | L195: 2018 | P195: 2017 | T195: 2016 | X195: 2015
B196: =$B$195 -> ETO | C196: Administradores | D196: CA | E196: DE | F196: CF 1 | G196: Total | H196: CA | I196: DE | J196: CF 1 | K196: Total | L196: CA | M196: DE | N196: CF 1 | O196: Total | P196: CA | Q196: DE | R196: CF 1 | S196: Total | T196: CA | U196: DE | V196: CF 1 | W196: Total | X196: CA | Y196: DE | Z196: CF 1 | AA196: Total
B197: =$B$195 -> ETO | C197: Nº de membros | D197: 5 | E197: 8 | F197: - | G197: 13 | H197: 5 | I197: 8 | J197: - | K197: 13 | L197: 5 | M197: 8 | N197: - | O197: 13 | P197: 5 | Q197: 8 | R197: - | S197: 13 | T197: 5 | U197: 8 | V197: - | W197: 13 | X197: 5 | Y197: 8 | Z197: -
B198: ETO | C198: Remuneração fixa anual (R$ mil) | D198: 385 | E198: 4630 | F198: - | G198: 5015 | H198: 419 | I198: 3812 | J198: - | K198: 4231 | L198: 277 | M198: 3328 | N198: - | O198: 3605 | P198: 290 | Q198: 2003 | R198: - | S198: 2293 | T198: 123.79 | U198: 1645.44 | V198: - | W198: 1769.2 | X198: 72.24 | Y198: 1729.2 | Z198: - | AA198: 1801.44
B199: ETO | C199: Salário ou pró-labore | D199: 271 | E199: 2563 | F199: - | G199: 2834 | H199: 286 | I199: 2176 | J199: - | K199: 2462 | L199: 199 | M199: 2023 | N199: - | O199: 2223 | P199: 189 | Q199: 1136 | R199: - | S199: 1325 | T199: 95.29 | U199: 1163.26 | V199: - | W199: 1258.5 | X199: 60.2 | Y199: 1425.33 | Z199: - | AA199: 1485.53
B200: ETO | C200: Benefícios diretos ou indiretos | D200: 1 | E200: 621 | F200: - | G200: 622 | H200: 0 | I200: 473 | J200: - | K200: 473 | L200: - | M200: 320 | N200: - | O200: 320 | P200: - | Q200: 244 | R200: - | S200: 244 | T200: 0 | U200: 129.77 | V200: - | W200: 129.8 | X200: - | Y200: 1.25 | Z200: - | AA200: 1.25
B201: ETO | C201: Participações em comitês | D201: 0 | E201: 0 | F201: - | G201: 0 | H201: 0 | I201: 0 | J201: - | K201: - | L201: - | M201: - | N201: - | O201: - | P201: - | Q201: - | R201: - | S201: - | T201: - | U201: - | V201: - | W201: - | X201: - | Z201: - | AA201: -
B202: ETO | C202: Outros (encargos) | D202: 113 | E202: 1446 | F202: - | G202: 1559 | H202: 133 | I202: 1163 | J202: - | K202: 1296 | L202: 77 | M202: 985 | N202: - | O202: 1063 | P202: 101 | Q202: 623 | R202: - | S202: 724 | T202: 28.51 | U202: 352.41 | V202: - | W202: 380.9 | X202: 12.04 | Y202: 302.62 | Z202: - | AA202: 314.66
B203: ETO | C203: Descrição de outras numerações fixas | D203: - | E203: - | F203: - | G203: - | H203: - | I203: - | J203: - | K203: - | L203: - | M203: - | N203: - | O203: - | P203: - | Q203: - | R203: - | S203: - | T203: - | U203: - | V203: - | W203: - | X203: - | Z203: - | AA203: -
B204: ETO | C204: Remuneração variável (R$ mil) | D204: - | E204: 2481 | F204: - | G204: 2481 | H204: 0 | I204: 2066 | J204: - | K204: 2066 | L204: 302 | M204: 3134 | N204: - | O204: 3436 | P204: 94 | Q204: 406 | R204: - | S204: 500 | T204: 116.62 | U204: 1774.26 | V204: - | W204: 1890.9 | X204: 49.49 | Y204: 733.12 | Z204: - | AA204: 782.61
B205: ETO | C205: Bônus | D205: - | E205: - | F205: - | G205: - | H205: - | I205: - | J205: - | K205: - | L205: - | M205: - | N205: - | O205: - | P205: - | Q205: - | R205: - | S205: - | T205: - | U205: - | V205: - | W205: - | X205: - | Z205: - | AA205: -
B206: ETO | C206: Participação de resultados | D206: - | E206: 2481 | F206: - | G206: 2481 | H206: 0 | I206: 2066 | J206: - | K206: 2066 | L206: 302 | M206: 3134 | N206: - | O206: 3436 | P206: 94 | Q206: 406 | R206: - | S206: 500 | T206: 116.62 | U206: 1774.26 | V206: - | W206: 1890.9 | X206: 49.49 | Y206: 733.12 | Z206: - | AA206: 782.61
B207: ETO | C207: Participação em reuniões | D207: - | E207: - | F207: - | G207: - | H207: - | I207: - | J207: - | K207: - | L207: - | M207: - | N207: - | O207: - | P207: - | Q207: - | R207: - | S207: - | T207: - | U207: - | V207: - | W207: - | X207: - | Z207: - | AA207: -
B208: ETO | C208: Comissões | D208: - | E208: - | F208: - | G208: - | H208: - | I208: - | J208: - | K208: - | L208: - | M208: - | N208: - | O208: - | P208: - | Q208: - | R208: - | S208: - | T208: - | U208: - | V208: - | W208: - | X208: - | Z208: - | AA208: -
B209: ETO | C209: Outros | D209: - | E209: - | F209: - | G209: - | H209: - | I209: - | J209: - | K209: - | L209: - | M209: - | N209: - | O209: - | P209: - | Q209: - | R209: - | S209: - | T209: - | U209: - | V209: - | W209: - | X209: - | Z209: - | AA209: -
B210: ETO | C210: Descrição de outras remunerações variáveis | D210: - | E210: - | F210: - | G210: - | H210: - | I210: - | J210: - | K210: - | L210: - | M210: - | N210: - | O210: - | P210: - | Q210: - | R210: - | S210: - | T210: - | U210: - | V210: - | W210: - | X210: - | Z210: - | AA210: -
B211: ETO | C211: CA - Conselho de Administração; DE - Diretoria Estatutária; CF - Conselho Fiscal
... 1 more rows

Sheet Econômico-financeiro
C1: Econômico-financeiros | Selecione a empresa
B4: EMG | C4: Demonstração de valor adicionado (Em milhares de reais) | D4: 2020 | E4: 2019 | F4: 2018 | G4: 2017 | H4: 2016 | I4: 2015 | J4: 2014
B5: EMG | C5: RECEITAS | D5: 1257491 | E5: 1183116 | F5: 2130596 | G5: 1824971 | H5: 1676405 | I5: 1549759 | J5: 1040299
B6: =$B$5 -> EMG | C6: Vendas de energia elétrica e serviços | D6: 1166765 | E6: 1122258 | F6: 1836336 | G6: 1630741 | H6: 1443561 | I6: 1289015 | J6: 1019066
B7: =$B$5 -> EMG | C7: Outras receitas | D7: 3676 | E7: 4491 | F7: 10892 | G7: 8553 | H7: 9727 | I7: 2555 | J7: 566
B8: EMG | C8: Receitas relativas à construção de ativos próprios | D8: 92691 | E8: 57988 | F8: 291092 | G8: 191565 | H8: 235381 | I8: 266573 | J8: 33329
B9: EMG | C9: Provisão para créditos de liquidação duvidosa | D9: -5641 | E9: -1621 | F9: -7724 | G9: -5888 | H9: -12264 | I9: -8384 | J9: -12662
B10: EMG | C10: (-) Insumos adquiridos de terceiros | D10: -673136 | E10: -594398 | F10: -1257336 | G10: -1028483 | H10: -999491 | I10: -863360 | J10: -562798
B11: EMG | C11: Custo da energia elétrica vendida | D11: -505347 | E11: -465113 | F11: -800826 | G11: -661063 | H11: -614520 | I11: -439457 | J11: -388877
B12: EMG | C12: Materiais e serviços de terceiros | D12: -66884 | E12: -62328 | F12: -140249 | G12: -123980 | H12: -102593 | I12: -127834 | J12: -114052
B13: EMG | C13: Outros custos operacionais | D13: -100905 | E13: -66957 | F13: -316261 | G13: -243440 | H13: -282378 | I13: -296069 | J13: -59869
B14: EMG | C14: VALOR ADICIONADO BRUTO | D14: 584355 | E14: 588718 | F14: 873260 | G14: 796488 | H14: 676914 | I14: 686399 | J14: 477501
B15: EMG | C15: Depreciação e amortização | D15: -38624 | E15: -37719 | F15: 64843 | G15: 52575 | H15: 43343 | I15: 41839 | J15: 43911
B16: EMG | C16: VALOR ADICIONADO LÍQUIDO | D16: 545731 | E16: 550999 | F16: 808417 | G16: 743913 | H16: 633571 | I16: 644560 | J16: 433590
B17: EMG | C17: Valor adicionado recebido em transferência | D17: 21.064 | E17: 23125 | F17: 57456 | G17: 77137 | H17: 72028 | I17: 64423 | J17: 116723
B18: EMG | C18: Receitas financeiras | D18: 21064 | E18: 23125 | F18: 57456 | G18: 77137 | H18: 72028 | I18: 64423 | J18: 116723
B19: EMG | C19: VALOR ADICIONADO TOTAL A DISTRIBUIR | D19: 566795 | E19: 574124 | F19: 865873 | G19: 821050 | H19: 705599 | I19: 708983 | J19: 550313
B20: EMG | C20: Distribuição do valor adicionado (Em milhares de reais) | D20: 2020 | E20: 2019 | F20: 2018 | G20: 2017 | H20: 2016 | I20: 2015 | J20: 2014
B21: EMG | C21: Pessoal | D21: 44517 | E21: 52296 | F21: 96969 | G21: 88205 | H21: 87283 | I21: 72310 | J21: 78241
B22: EMG | C22: Remuneração direta | D22: 31377 | E22: 39384 | F22: 64953 | G22: 59157 | H22: 62558 | I22: 50329 | J22: 58690
B23: EMG | C23: Benefícios | D23: 10651 | E23: 10133 | F23: 26014 | G23: 22958 | H23: 19218 | I23: 17309 | J23: 13759
B24: EMG | C24: FGTS | D24: 2489 | E24: 2779 | F24: 6002 | G24: 6090 | H24: 5507 | I24: 4672 | J24: 5792
B25: EMG | C25: Impostos, taxas e contribuições | D25: 435135 | E25: 438592 | F25: 565142 | G25: 526881 | H25: 448515 | I25: 461435 | J25: 289423
B26: EMG | C26: Federais | D26: 92249 | E26: 90288 | F26: 235305 | G26: 153495 | H26: 96102 | I26: 147046 | J26: 96447
B27: EMG | C27: Estaduais | D27: 256270 | E27: 253696 | F27: 328477 | G27: 307968 | H27: 265566 | I27: 245704 | J27: 191838
B28: EMG | C28: Municipais | D28: 492 | E28: 397 | F28: 1360 | G28: 1226 | H28: 286 | I28: 1304 | J28: 1138
B29: EMG | C29: Obrigações intrassetoriais | D29: 86124 | E29: 94211 | F29: - | G29: 64192 | H29: 86561 | I29: 67381 | J29: -
B30: EMG | C30: Remuneração de capital de terceiros | D30: 41418 | E30: 45259 | F30: 104885 | G30: 98091 | H30: 131353 | I30: 106827 | J30: 115820
B31: EMG | C31: Juros | D31: 41305 | E31: 44974 | F31: 102456 | G31: 95685 | H31: 128371 | I31: 102029 | J31: 110830
B32: EMG | C32: Aluguéis | D32: 113 | E32: 285 | F32: 2429 | G32: 2406 | H32: 2982 | I32: 4798 | J32: 4990
B33: EMG | C33: Remuneração de capitais próprios | D33: 45725 | E33: 37977 | F33: 98877 | G33: 107873 | H33: 34604 | I33: 68411 | J33: 66829
B34: EMG | C34: Reserva Legal | D34: 2286 | E34: 1899 | F34: - | G34: 5394 | H34: 1922 | I34: 3421 | J34: -
B35: EMG | C35: Dividendos adicionais propostos | D35: 32579 | E35: 7051 | F35: - | G35: 42967 | H35: - | I35: - | J35: -
B36: EMG | C36: Dividendos | D36: 10860 | E36: 29027 | F36: 82619 | G36: 50489 | H36: 8035 | I36: 15302 | J36: 17605
B37: EMG | C37: Dividendos prescritos | D37: - | E37: - | F37: - | G37: - | H37: - | I37: - | J37: -
B38: EMG | C38: Reserva de redução de imposto de renda | D38: - | E38: - | F38: - | G38: 15923 | H38: 10538 | I38: 10165 | J38: -
B39: EMG | C39: Reserva de Lucros | D39: - | E39: - | F39: - | G39: - | H39: - | I39: - | J39: -
B40: EMG | C40: Realização de reserva de reavaliação | D40: - | E40: - | F40: - | G40: - | H40: - | I40: - | J40: -
B41: EMG | C41: Realização da reavaliação liquida tributos | D41: - | E41: - | F41: - | G41: -6900 | H41: -6151 | I41: -6384 | J41: -
B42: EMG | C42: Lucros retidos/Prejuízo do exercício | D42: - | E42: - | F42: 16258 | G42: - | H42: 24104 | I42: 45907 | J42: 49224
B44: EMG | C44: Investimentos | D44: 2020 | F44: 2019 | G44: 2018
B45: EMG | D45: R$ milhões | E45: ∆% | F45: R$ milhões | G45: R$ milhões
B46: EMG | C46: Ativos elétricos | D46: 87.9 | E46: =((D46/F46)-1)*100 -> 71.01167315 | F46: 51.4 | G46: 284
B47: EMG | C47: Obrigações especiais | D47: 4.7 | E47: =((D47/F47)-1)*100 -> -45.97701149 | F47: 8.7 | G47: -1.5
B48: EMG | C48: Ativos não elétricos | D48: 8.1 | E48: -45.27027027 | F48: 14.8 | G48: 8.7
B49: EMG | C49: Total | D49: 100.7 | E49: 34.4459279 | F49: 74.9 | G49: 291.1
B50: EMG
B51: EMG | C51: Investimentos | D51: 2017 | E51: 2016 | F51: 2015 | G51: 2014
B52: EMG | D52: R$ mil | E52: R$ mil | F52: R$ mil | G52: R$ mil
B53: EMG | C53: Expansão da distribuição/ transmissão (expansão reforço) | D53: 50240 | E53: 109536 | F53: 237996.92 | G53: 42882.69
B54: EMG | C54: Renovação da distribuição/transmissão | D54: 195888 | E54: 60182 | F54: 82771.98 | G54: 49772.9
B55: EMG | C55: Demonstração de valor adicionado (Em milhares de reais) | D55: 0 | E55: 0 | F55: 0 | G55: 0
B56: EMG | C56: Total | D56: 246128 | E56: 169718 | F56: 320768.9 | G56: 92655.59
B58: EAC | C58: Demonstração de valor adicionado (Em milhares de reais) | D58: 2020 | E58: 2019 | F58: 2018 | G58: 2017
B59: =$B$58 -> EAC | C59: RECEITAS | D59: 1032425 | E59: 1.052.000 | F59: 916.914 | G59: 792419
B60: =$B$58 -> EAC | C60: Vendas de energia elétrica e serviços | D60: 891982 | E60: 822.063 | F60: 830.144 | G60: 749460
B61: EAC | C61: Outras receitas | D61: 43291 | E61: 16.084 | F61: 34.618 | G61: 28460
B62: EAC | C62: Receitas relativas à construção de ativos próprios | D62: 116014 | E62: 205.587 | F62: 42.529 | G62: 21736
B63: EAC | C63: Provisão para créditos de liquidação duvidosa | D63: -18862 | E63: 8.266 | F63: 9.623 | G63: 7237
B64: EAC | C64: (-) Insumos adquiridos de terceiros | D64: -568103 | E64: -650868 | F64: -488307 | G64: -509835
B65: EAC | C65: Custo da energia elétrica vendida | D65: -295108 | E65: -312088 | F65: -322329 | G65: -321342
B66: EAC | C66: Materiais e serviços de terceiros | D66: -90445 | E66: -96021 | F66: -69325 | G66: -67825
B67: EAC | C67: Outros custos operacionais | D67: -182550 | E67: -242759 | F67: -96653 | G67: -120668
B68: EAC | C68: VALOR ADICIONADO BRUTO | D68: 464322 | E68: 401.132 | F68: 428.607 | G68: 282584
B69: EAC | C69: Depreciação e amortização | D69: -46154 | E69: -25723 | F69: 39.857 | G69: 32292
B70: EAC | C70: VALOR ADICIONADO LÍQUIDO | D70: 418168 | E70: 375.409 | F70: 398.762 | G70: 250292
B71: EAC | C71: Valor adicionado recebido em transferência | D71: 50.878 | E71: 78.337 | F71: 62.532 | G71: 41263
B72: EAC | C72: Receitas financeiras | D72: 50878 | E72: 78.337 | F72: 62.532 | G72: 41263
B73: EAC | C73: VALOR ADICIONADO TOTAL A DISTRIBUIR | D73: 469046 | E73: 453.746 | F73: 461.294 | G73: 291555
B74: EAC | C74: Distribuição do valor adicionado (Em milhares de reais) | D74: 2020 | E74: 2019 | F74: 2018 | G74: 2017
B75: EAC | C75: Pessoal | D75: 57801 | E75: 70.479 | F75: 53.164 | G75: 44797
B76: EAC | C76: Remuneração direta | D76: 46822 | E76: 55.501 | F76: 38.186 | G76: 32720
B77: EAC | C77: Benefícios | D77: 7289 | E77: 12.622 | F77: 12.622 | G77: 10084
B78: EAC | C78: FGTS | D78: 3690 | E78: 2.356 | F78: 2.356 | G78: 1993
B79: EAC | C79: Impostos, taxas e contribuições | D79: 298271 | E79: 318.477 | F79: 198.553 | G79: 250276
B80: EAC | C80: Federais | D80: 73420 | E80: 77.388 | F80: 64.961 | G80: 118766
B81: EAC | C81: Estaduais | D81: 162916 | E81: 167.327 | F81: 133.592 | G81: 131510
B82: EAC | C82: Municipais | D82: 385 | E82: - | F82: - | G82: -
B83: EAC | C83: Obrigações intrassetoriais | D83: 61550 | E83: 73.762 | F83: - | G83: -
B84: EAC | C84: Remuneração de capital de terceiros | D84: 61948 | E84: 114.480 | F84: 74.571 | G84: 219056
B85: EAC | C85: Juros | D85: 60615 | E85: 113.477 | F85: 73.402 | G85: 217733
B86: EAC | C86: Aluguéis | D86: 1333 | E86: 1.003 | F86: 1.169 | G86: 1323
B87: EAC | C87: Remuneração de capitais próprios | D87: 51026 | E87: -49690 | F87: 55.226 | G87: 222574
B88: EAC | C88: Reserva Legal | D88: - | E88: - | F88: - | G88: -
B89: EAC | C89: Dividendos adicionais propostos | D89: - | E89: - | F89: - | G89: -
B90: EAC | C90: Dividendos | D90: - | E90: - | F90: - | G90: -
B91: EAC | C91: Dividendos prescritos | D91: - | E91: -
B92: EAC | C92: Reserva de redução de imposto de renda | D92: - | E92: -
B93: EAC | C93: Reserva de Lucros | D93: - | E93: -
B94: EAC | C94: Realização de reserva de reavaliação | D94: - | E94: -
B95: EAC | C95: Realização da reavaliação liquida tributos | D95: - | E95: -
B96: EAC | C96: Lucros retidos/Prejuízo do exercício | D96: 51026 | E96: -49690 | F96: 55226 | G96: 222574
B97: EAC
B98: EAC | C98: Investimentos | D98: 2020 | F98: 2019 | G98: 2018
B99: EAC | D99: R$ milhões | E99: ∆% | F99: R$ milhões | G99: R$ milhões
B100: EAC | C100: Ativos elétricos | D100: -67 | E100: - | F100: 216.6 | G100: 38.8
B101: EAC | C101: Obrigações especiais | D101: 204.3 | E101: - | F101: -0.2 | G101: 25.2
B102: EAC | C102: Ativos não elétricos | D102: 30.5 | E102: - | F102: -4.1 | G102: 3
B103: EAC | C103: Total | D103: 167.8 | E103: -21 | F103: 212.3 | G103: 67
B104: EAC | C104: Demonstração de valor adicionado (Em milhares de reais)
B105: EAC | C105: Investimentos | D105: 2017 | E105: 2016
B106: EAC | D106: R$ mil | E106: R$ mil
B107: EAC | C107: Expansão da distribuição/ transmissão (expansão reforço) | D107: 59657 | E107: 36066
B108: EAC | C108: Renovação da distribuição/transmissão | D108: 7406 | E108: 15170
B109: EAC | C109: Subtransmissão | D109: ND | E109: ND
B110: EAC | C110: Total | D110: 67063 | E110: 51236
B112: EBO | C112: Demonstração de valor adicionado (Em milhares de reais) | D112: 2020 | E112: 2019 | F112: 2018 | G112: 2017 | H112: 2016 | I112: 2015 | J112: 2014
B113: EBO | C113: RECEITAS | D113: 421707 | E113: 439303 | F113: 427914 | G113: =+G114+G115+G116+G117 -> 399582 | H113: 367.365 | I113: 406659 | J113: 266121
B114: EBO | C114: Vendas de energia elétrica e serviços | D114: 407558 | E114: 426784 | F114: 415688 | G114: 387419 | H114: 352.651 | I114: 387835 | J114: 245918
B115: EBO | C115: Outras receitas | D115: 928 | E115: 1548 | F115: 991 | G115: 461 | H115: 758 | I115: 392 | J115: 910
B116: EBO | C116: Receitas relativas à construção de ativos próprios | D116: 15590 | E116: 14179 | F116: 12431 | G116: 12606 | H116: 15.623 | I116: 19668 | J116: 19952
B117: EBO | C117: Provisão para créditos de liquidação duvidosa | D117: -2369 | E117: -3208 | F117: -1196 | G117: -904 | H117: -1.667 | I117: -1236 | J117: -659
B118: EBO | C118: (-) Insumos adquiridos de terceiros | D118: 231100 | E118: -226665 | F118: -215945 | G118: =+G119+G120+G121 -> -202082 | H118: 192.420 | I118: -198318 | J118: -168719
B119: EBO | C119: Custo da energia elétrica vendida | D119: 194580 | E119: -191694 | F119: -181119 | G119: -171249 | H119: 157.352 | I119: -159725 | J119: -126718
B120: EBO | C120: Materiais e serviços de terceiros | D120: 18761 | E120: -18604 | F120: -17981 | G120: -15971 | H120: 17.833 | I120: -16696 | J120: -15659
B121: EBO | C121: Outros custos operacionais | D121: 17759 | E121: -16367 | F121: -16845 | G121: -14862 | H121: 17.235 | I121: 21897 | J121: 26342
B122: EBO | C122: VALOR ADICIONADO BRUTO | D122: 190607 | E122: 212638 | F122: 211969 | G122: 197500 | H122: 174.945 | I122: 208341 | J122: 97402
B123: EBO | C123: Depreciação e amortização | D123: 8668 | E123: -7185 | F123: -7029 | G123: 4755 | H123: 7.193 | I123: 5922 | J123: 5818
B124: EBO | C124: VALOR ADICIONADO LÍQUIDO | D124: 181939 | E124: 205453 | F124: 204940 | G124: 192745 | H124: 167.752 | I124: 202419 | J124: 91584
B125: EBO | C125: Valor adicionado recebido em transferência | E125: 22490 | F125: 14972 | G125: 13788 | H125: 13.574 | I125: 11818 | J125: 5579
B126: EBO | C126: Receitas financeiras | D126: 10203 | E126: 22490 | F126: 14972 | G126: 13788 | H126: 13.574 | I126: 11818 | J126: 5579
B127: EBO | C127: VALOR ADICIONADO TOTAL A DISTRIBUIR | D127: 192142 | E127: 227943 | F127: 219912 | G127: 206533 | H127: 181.326 | I127: 214237 | J127: 97163
B128: EBO | C128: Distribuição do valor adicionado (Em milhares de reais) | D128: 2020 | E128: 2019 | F128: 2018 | G128: 2017 | H128: 2016 | I128: 2015 | J128: 2014
B129: EBO | C129: Pessoal | D129: 16080 | E129: 16304 | F129: 15502 | G129: 17591 | H129: 14.830 | I129: 14763 | J129: 14474
B130: EBO | C130: Remuneração direta | D130: 10405 | E130: 10860 | F130: 10178 | G130: 12088 | H130: 9.590 | I130: 9137 | J130: 9938
B131: EBO | C131: Benefícios | D131: 4689 | E131: 4494 | F131: 4232 | G131: 4348 | H131: 4.136 | I131: 3214 | J131: 3514
B132: EBO | C132: FGTS | D132: 986 | E132: 950 | F132: 1092 | G132: 1155 | H132: 1.104 | I132: 2412 | J132: 1022
B133: EBO | C133: Impostos, taxas e contribuições | D133: 132780 | E133: 153283 | F133: 158329 | G133: 144049 | H133: 134.188 | I133: 142803 | J133: 70158
B134: EBO | C134: Federais | D134: 27771 | E134: 33752 | F134: 64233 | G134: 65533 | H134: 53.193 | I134: 59026 | J134: 17289
B135: EBO | C135: Estaduais | D135: 90379 | E135: 95941 | F135: 93949 | G135: 78373 | H135: 80.870 | I135: 83690 | J135: 52766
B136: EBO | C136: Municipais | D136: 155 | E136: 209 | F136: 147 | G136: 143 | H136: 125 | I136: 87 | J136: 103
B137: EBO | C137: Obrigações intrassetoriais | D137: 14475 | E137: 23381 | F137: - | G137: - | H137: - | I137: - | J137: -
B138: EBO | C138: Remuneração de capital de terceiros | D138: 8913 | E138: 21681 | F138: 15123 | G138: 14154 | H138: 15.373 | I138: 12618 | J138: 9957
B139: EBO | C139: Juros | D139: 8916 | E139: 21647 | F139: 14961 | G139: 13882 | H139: 15.193 | I139: 11841 | J139: 9283
B140: EBO | C140: Aluguéis | D140: -3 | E140: 34 | F140: 162 | G140: 272 | H140: 180 | I140: 777 | J140: 674
B141: EBO | C141: Remuneração de capitais próprios | D141: 34369 | E141: 36675 | F141: 30958 | G141: 30739 | H141: 16.935 | I141: 44053 | J141: 2574
B142: EBO | C142: Reserva Legal | D142: - | E142: 7647 | F142: - | G142: - | H142: - | I142: - | J142: -
B143: EBO | C143: Dividendos adicionais propostos | D143: 20687 | E143: 4970 | F143: - | G143: - | H143: - | I143: - | J143: -
B144: EBO | C144: Dividendos | D144: 6894 | E144: 24058 | F144: 25117 | G144: 26366 | H144: 11.469 | I144: 33849 | J144: 5872
B145: EBO | C145: Dividendos prescritos | E145: -
B146: EBO | C146: Reserva de redução de imposto de renda | D146: 6788 | E146: -
B147: EBO | C147: Reserva de Lucros | D147: - | E147: -
B148: EBO | C148: Realização de reserva de reavaliação | D148: - | E148: -
B149: EBO | C149: Realização da reavaliação liquida tributos | D149: - | E149: -
B150: EBO | C150: Lucros retidos/Prejuízo do exercício | D150: - | E150: - | F150: 5841 | G150: 4373 | H150: 5.466 | I150: 10204 | J150: -3298
B151: EBO
B152: EBO | C152: Investimentos | D152: 2020 | F152: 2019 | G152: 2018
B153: EBO | C153: Demonstração de valor adicionado (Em milhares de reais) | D153: R$ milhões | E153: ∆% | F153: R$ milhões | G153: R$ milhões
B154: EBO | C154: Ativos elétricos | D154: 14.9 | E154: 4.4 | F154: 14.3 | G154: 9.3
B155: EBO | C155: Obrigações especiais | D155: 0.8 | E155: -53.9 | F155: 1.7 | G155: 5
B156: EBO | C156: Ativos não elétricos | D156: 1 | E156: -63.2 | F156: 2.8 | G156: 5.2
B157: EBO | C157: Total | D157: 16.8 | E157: -10.9 | F157: 18.8 | G157: 19.5
B158: EBO
B159: EBO | C159: Investimentos | E159: 2017 | F159: 2016 | G159: 2015 | H159: 2014
B160: EBO | E160: R$ mil | F160: R$ mil | G160: R$ mil | H160: R$ mil
B161: EBO | C161: Expansão da distribuição/ transmissão (expansão reforço) | E161: 5251 | F161: 14513 | G161: 19063 | H161: 17558
B162: EBO | C162: Renovação da distribuição/transmissão | E162: 9074 | F162: 0 | G162: - | H162: -
B163: EBO | C163: Subtransmissão | E163: 0 | F163: 0 | G163: - | H163: -
B164: EBO | C164: Total | E164: 14325 | F164: 14513 | G164: 19063 | H164: 17558
B166: EMS | C166: Demonstração de valor adicionado (Em milhares de reais) | D166: 2020 | E166: 2019 | F166: 2018 | G166: 2017 | H166: 2016 | I166: 2015 | J166: 2014
B167: EMS | C167: RECEITAS | D167: 4266797 | E167: 4161295 | F167: 3742276 | G167: 3324688 | H167: 3023022 | I167: 3187439 | J167: 2306932
B168: EMS | C168: Vendas de energia elétrica e serviços | D168: 4099879 | E168: 3972402 | F168: 3539514 | G168: 3055187 | H168: 2772621 | I168: 2983715 | J168: 2087504
B169: EMS | C169: Outras receitas | D169: 27531 | E169: 9112 | F169: 10346 | G169: 46426 | H169: 16731 | I169: 26851 | J169: 1388
B170: EMS | C170: Receitas relativas à construção de ativos próprios | D170: 194952 | E170: 206292 | F170: 216592 | G170: 223455 | H170: 230186 | I170: 191520 | J170: 180567
B171: EMS | C171: Provisão para créditos de liquidação duvidosa | D171: -55565 | E171: -26511 | F171: -24176 | G171: -380 | H171: 3484 | I171: -14647 | J171: 37473
B172: EMS | C172: (-) Insumos adquiridos de terceiros | D172: 2218938 | E172: -2101920 | F172: -2035950 | G172: -1743980 | H172: -1500604 | I172: -1583834 | J172: -1381140
B173: EMS | C173: Custo da energia elétrica vendida | D173: 1773738 | E173: -1687284 | F173: -1587984 | G173: -1265734 | H173: -1072465 | I173: -1185936 | J173: -906209
B174: EMS | C174: Materiais e serviços de terceiros | D174: 197800 | E174: -198830 | F174: -202197 | G174: -193754 | H174: -154525 | I174: -156229 | J174: -146993
B175: EMS | C175: Outros custos operacionais | D175: 247400 | E175: -215806 | F175: -245769 | G175: -284492 | H175: -273614 | I175: -241669 | J175: -327938
B176: EMS | C176: VALOR ADICIONADO BRUTO | D176: 2047859 | E176: 2059375 | F176: 1706326 | G176: 1580708 | H176: 1522418 | I176: 1603605 | J176: 925792
B177: EMS | C177: Depreciação e amortização | D177: 100998 | E177: -95527 | F177: 91586 | G177: 97552 | H177: 76561 | I177: 69206 | J177: 68085
B178: EMS | C178: VALOR ADICIONADO LÍQUIDO | D178: 1946861 | E178: 1963848 | F178: 1614740 | G178: 1483156 | H178: 1445857 | I178: 1534399 | J178: 857707
B179: EMS | C179: Valor adicionado recebido em transferência | D179: 89815 | E179: 78031 | F179: 73837 | G179: 101594 | H179: 126946 | I179: 122051 | J179: 62289
B180: EMS | C180: Receitas financeiras | D180: 89815 | E180: 78031 | F180: 73837 | G180: 101594 | H180: 126946 | I180: 122051 | J180: 62289
B181: EMS | C181: VALOR ADICIONADO TOTAL A DISTRIBUIR | D181: 2036676 | E181: 2041879 | F181: 1688577 | G181: 1584750 | H181: 1572803 | I181: 1656450 | J181: 919996
B182: EMS | C182: Distribuição do valor adicionado (Em milhares de reais) | D182: 2020 | E182: 2019 | F182: 2018 | G182: 2017 | H182: 2016 | I182: 2015 | J182: 2014
B183: EMS | C183: Pessoal | D183: 167686 | E183: 191219 | F183: 216005 | G183: 93755 | H183: 151670 | I183: 157564 | J183: 139818
B184: EMS | C184: Remuneração direta | D184: 114911 | E184: 138754 | F184: 170333 | G184: 70030 | H184: 92749 | I184: 90716 | J184: 88472
B185: EMS | C185: Benefícios | D185: 46073 | E185: 43096 | F185: 42589 | G185: 11913 | H185: 44901 | I185: 56004 | J185: 40015
B186: EMS | C186: FGTS | D186: 6702 | E186: 9369 | F186: 3083 | H186: 14020 | I186: 10844 | J186: 11331
B187: EMS | C187: Impostos, taxas e contribuições | D187: 1407789 | E187: 1391694 | F187: 1157924 | G187: 385625 | H187: 1120466 | I187: 1204593 | J187: 624229
B188: EMS | C188: Federais | D188: 409456 | E188: 395552 | F188: 599730 | G188: 515679 | H188: 627745 | I188: 712229 | J188: 222803
B189: EMS | C189: Estaduais | D189: 682171 | E189: 656031 | F189: 557038 | G189: 700 | H189: 491949 | I189: 491577 | J189: 350350
B190: EMS | C190: Municipais | D190: 1107 | E190: 1132 | F190: 1156 | G190: 262104 | H190: 772 | I190: 787 | J190: 671
B191: EMS | C191: Obrigações intrassetoriais | D191: 315055 | E191: 338979 | F191: - | G191: - | H191: - | I191: - | J191: 50405
B192: EMS | C192: Remuneração de capital de terceiros | D192: 118835 | E192: 125803 | F192: 144033 | G192: 112230 | H192: 193289 | I192: 184733 | J192: 122501
B193: EMS | C193: Juros | D193: 119625 | E193: 125168 | F193: 142210 | G193: 1881 | H193: 98351 | I193: 125244 | J193: 79828
B194: EMS | C194: Aluguéis | D194: -790 | E194: 635 | F194: 1823 | G194: 26703 | H194: 1948 | I194: 3974 | J194: 2296
B195: EMS | C195: Outros | F195: - | G195: - | H195: 92990 | I195: 55515 | J195: 40377
B196: EMS | C196: Remuneração de capitais próprios | D196: 342366 | E196: 333163 | F196: 170615 | G196: - | H196: 107378 | I196: 109560 | J196: 33448
B197: EMS | C197: Reserva Legal | D197: 10792 | E197: 16658 | F197: - | G197: 5207 | H197: - | I197: - | J197: -
B198: EMS | C198: Dividendos adicionais propostos | D198: 248680 | E198: 112386 | F198: - | G198: 46993 | H198: - | I198: - | J198: -
B199: EMS | C199: Dividendos | D199: 82894 | E199: 204119 | F199: 162084 | G199: 51930 | H199: 26354 | I199: 59611 | J199: 29445
B200: EMS | C200: Dividendos prescritos | D200: - | E200: -
B201: EMS | C201: Reserva de redução de imposto de renda | D201: - | E201: -
B202: EMS | C202: Reserva de Lucros | D202: - | E202: -
B203: EMS | C203: Realização de reserva de reavaliação | D203: - | E203: -
B204: EMS | C204: Realização da reavaliação liquida tributos | D204: - | E204: -
B205: EMS | C205: Lucros retidos/Prejuízo do exercício | D205: - | E205: - | F205: 8531 | G205: - | H205: 81024 | I205: 49949 | J205: 4003
B206: EMS
... 389 more rows

Sheet Sociais internos
C1: Sociais internos | Selecione a empresa Empregados/ Empregabilidade/ Administradores
B3: EMG
B4: EMG | C4: Informações gerais | D4: 2020 | E4: 2019 | F4: 2018 | G4: 2017 | H4: 2016 | I4: 2015 | J4: 2014 | L4: PROTOCOLO ANEEL - Considerar dados de 31 de dezembro
B5: =$B$4 -> EMG | C5: Número total de empregados | D5: 843 | E5: 850 | F5: 811 | G5: 806 | H5: 613 | I5: 593 | J5: 603
B6: =$B$4 -> EMG | C6: Número de terceirizados (terceirizados, subcontratados, autônomos) por tipo de emprego, contrato de trabalho e região | D6: 187 | E6: 110 | F6: 234 | G6: 134 | H6: 171 | I6: 155 | J6: 152
B7: EMG | C7: Empregados até 30 anos de idade (%) | D7: 0.2852 | E7: 0.3224 | F7: 0.275 | G7: 0.341 | H7: 0.349 | I7: 0.393 | J7: 0.411
B8: EMG | C8: Empregados com idade entre 31 e 40 anos (%) | D8: 0.4511 | E8: 0.4318 | F8: 0.4538 | G8: 0.417 | H8: 0.395 | I8: 0.361 | J8: 0.318
B9: EMG | C9: Empregados com idade entre 41 e 50 anos (%) | D9: 0.1981 | E9: 0.1776 | F9: 0.1837 | G9: 0.164 | H9: 0.175 | I9: 0.184 | J9: 0.204
B10: EMG | C10: Empregados com idade superior a 50 anos (%) | D10: 0.0656 | E10: 0.0682 | F10: 0.0875 | G10: 0.078 | H10: 0.082 | I10: 0.062 | J10: 0.067
B11: EMG | C11: Número de mulheres em relação ao total de empregados (%) | D11: 0.1909 | E11: 0.1953 | F11: 0.1998 | G11: 0.208 | H11: 0.184 | I11: 0.177 | J11: 0.177
B12: EMG | C12: Mulheres em cargos gerenciais em relação ao total de cargos gerenciais (%) | D12: 0.3111 | E12: 0.3636 | F12: 0.3556 | G12: 0.304 | H12: 0.322 | I12: 0.358 | J12: 0.339
B13: EMG | C13: Empregadas negras (pretas e pardas) em relação ao total de empregados (%) | D13: 0.0167 | E13: 0.0153 | F13: 0.0099 | G13: 0.012 | H13: 0.015 | I13: 0.013 | J13: 0.01
B14: EMG | C14: Empregados negros (pretos e pardos) em relação ao total de empregados (%) | D14: 0.1683 | E14: 0.1588 | F14: 0.1418 | G14: 0.134 | H14: 0.14 | I14: 0.138 | J14: 0.148
B15: EMG | C15: Empregados negros (pretos e pardos) em cargos gerenciais em relação ao total de cargos gerenciais (%) | D15: 0.1556 | E15: 0.1591 | F15: 0.1111 | G15: 0.13 | H15: 0.119 | I15: 0.113 | J15: 0.092
B16: EMG | C16: Estagiários em relação ao total de empregados (%) | D16: 0.0239 | E16: 0.0353 | F16: 0.0382 | G16: 0.029 | H16: 0.033 | I16: 0.025 | J16: 0.035
B17: EMG | C17: Empregados do programa de contratação de aprendizes (%) | D17: 0.0334 | E17: 0.0188 | F17: 0.0185 | G17: 0.019 | H17: 0.05 | I17: 0.05 | J17: 0.05
B18: EMG | C18: Empregados portadores de deficiência | D18: 24 | E18: 23 | F18: 16 | G18: 15 | H18: 9 | I18: 9 | J18: 10
B19: EMG | C19: Remuneração, benefícios e carreira (R$ mil) | D19: =$D$4 -> 2020 | E19: =$E$4 -> 2019 | F19: =$F$4 -> 2018 | G19: =$G$4 -> 2017 | H19: =$H$4 -> 2016 | I19: =$I$4 -> 2015 | J19: =$J$4 -> 2014
B20: EMG | C20: Folha de pagamento bruta | D20: 49.111 | E20: 52046 | F20: 49758 | G20: 47981 | H20: 37628 | I20: 36045 | J20: 32969
B21: EMG | C21: Encargos sociais compulsórios | D21: 10.819 | E21: 11.081 | F21: 12047 | G21: 11186 | H21: 8511 | I21: 9011 | J21: 7607
B22: EMG | C22: Educação | D22: 72 | E22: 92 | F22: 90 | G22: 69 | H22: 46 | I22: 41 | J22: 36
B23: EMG | C23: Alimentação | D23: 8.034 | E23: 8.111 | F23: 7692 | G23: 7368 | H23: 6039 | I23: 5401 | J23: 5192
B24: EMG | C24: Transporte | D24: - | E24: - | F24: - | G24: - | H24: 292 | I24: 238 | J24: 245
B25: EMG | C25: Saúde | D25: 1.726 | E25: 1.591 | F25: 1872 | G25: 1850 | H25: 1789 | I25: 1463 | J25: 1592
B26: EMG | C26: Fundação | D26: - | E26: - | F26: 798 | G26: 808 | H26: 611 | I26: 594 | J26: 514
B27: EMG | C27: Segurança e medicina do trabalho | D27: 989 | E27: 1.139 | F27: 1579 | G27: 259 | H27: 397 | I27: 327 | J27: 664
B28: EMG | C28: Cultura | D28: - | E28: - | F28: - | G28: - | H28: 0 | I28: 0 | J28: 0
B29: EMG | C29: Capacitação e desenvolvimento profissional | D29: 295 | E29: 480 | F29: 630 | G29: 403 | H29: 272 | I29: 313 | J29: 282
B30: EMG | C30: Creches ou auxílio-creches | D30: 326 | E30: 361 | F30: 359 | G30: 484 | H30: 220 | I30: 146 | J30: 137
B31: EMG | C31: Outros (auxílio funeral, excepcional, prêmio aposentadoria) | D31: 465 | E31: 623 | F31: 609 | G31: 1621 | H31: 1391 | I31: 652 | J31: 1081
B32: EMG | C32: Participação nos resultados | D32: =$D$4 -> 2020 | E32: =$E$4 -> 2019 | F32: =$F$4 -> 2018 | G32: =$G$4 -> 2017 | H32: =$H$4 -> 2016 | I32: =$I$4 -> 2015 | J32: =$J$4 -> 2014
B33: EMG | C33: Investimento total em programa de participação nos resultados da empresa (R$ mil) | D33: 6.338 | E33: 5.524 | F33: 5609 | G33: 4315 | H33: 3463 | I33: 3199 | J33: 3046
B34: EMG | C34: Valores distribuídos em relação à folha de pagamento bruta (%) | D34: 0.129 | E34: 0.347 | F34: 0.146 | G34: 0.0899 | H34: 0.092 | I34: 0.075 | J34: 0.092
B35: EMG | C35: Divisão da maior remuneração pela menor remuneração em espécie paga pela empresa | D35: 59,72 | E35: 61,70 | F35: 60.18 | G35: 59.88 | H35: 25.05 | I35: 24.26 | J35: 26.94 | L35: Remuneração = salário base + adicionais (periculosidade, adicional noturno, hora extra, sobreaviso, etc) + PLR. Considerar a maior remuneração e a menor independente do cargo (exclui a diretoria)
B36: EMG | C36: Divisão da menor remuneração da empresa pelo salário mínimo vigente | D36: 1,02 | E36: 1,03 | F36: 1.08 | G36: 1.06 | H36: 1.1 | I36: 1.1 | J36: 1.1
B37: EMG | C37: Perfil da remuneração por categoria – salário médio no ano corrente (R$) | D37: =$D$4 -> 2020 | E37: =$E$4 -> 2019 | F37: =$F$4 -> 2018 | G37: =$G$4 -> 2017 | H37: =$H$4 -> 2016 | I37: =$I$4 -> 2015 | J37: =$J$4 -> 2014 | L37: Salário médio = soma do salário-base do empregado dividido por 12.
B38: EMG | C38: Cargos de direção | D38: 34.832 | E38: 35.175 | F38: 33.185 | G38: 39825 | H38: 42050 | I38: 36825 | J38: -
B39: EMG | C39: Cargos gerenciais | D39: 12.572 | E39: 12.650 | F39: 12.973 | G39: 12689 | H39: 16149 | I39: 15126 | J39: 13227
B40: EMG | C40: Cargos administrativos | D40: 4.081 | E40: 4.110 | F40: 3.783 | G40: 3482 | H40: 3723 | I40: 3239 | J40: 2804
B41: EMG | C41: Cargos operacionais | D41: 1.593 | E41: 1.607 | F41: 1.547 | G41: 1439 | H41: 1580 | I41: 1498 | J41: 1583
B42: EMG | C42: Saúde e segurança no trabalho | D42: =$D$4 -> 2020 | E42: =$E$4 -> 2019 | F42: =$F$4 -> 2018 | G42: =$G$4 -> 2017 | H42: =$H$4 -> 2016 | I42: =$I$4 -> 2015 | J42: =$J$4 -> 2014
B43: EMG | C43: Média de horas extras por empregado/ano | D43: 44,81 | E43: 55,53 | F43: 52,58 | G43: 49.16 | H43: 57.6 | I43: 72.4 | J43: 66.3 | L43: Soma da quantidade de horas extras no ano dividida por 12
B44: EMG | C44: Índice TF (taxa de frequência) total da empresa no período, para empregados | D44: 1,22 | E44: - | F44: 2,49 | G44: 3.33 | H44: 8.99 | I44: 8.28 | J44: 13.33
B45: EMG | C45: Índice TG (taxa de gravidade) no período, para empregados | D45: 275,27 | E45: - | F45: 16,80 | G45: 6 | H45: 104 | I45: 106 | J45: 140
B46: EMG | C46: Índice TF (taxa de frequência) total da empresa no período, para terceirizados/contratados | D46: 0,85 | E46: 9,86 | F46: 4,48 | G46: 10.68 | H46: 14.91 | I46: 2.81 | J46: 8.82
B47: EMG | C47: Índice TG (taxa de gravidade) no período, para terceirizados e contratados | D47: 25,56 | E47: 1.980,29 | F47: 134,41 | G47: 320.51 | H47: 9173 | I47: 126.4 | J47: 7896.7
B48: EMG | C48: Índice TF (taxa de frequência) da empresa no período para a força de trabalho (próprios + terceiros) | D48: 2,13 | E48: 4,42 | F48: 3,30 | G48: 5.03 | H48: 11.22 | I48: 6.16 | J48: 18.3
B49: EMG | C49: Índice TG (taxa de gravidade) no período, para a força de trabalho (próprios + terceiros) | D49: 165,69 | E49: 998,12 | F49: 64,97 | G49: 51.35 | H49: 3516 | I49: 77 | J49: 3259
B50: EMG | C50: Óbitos – próprios | D50: - | E50: - | F50: - | G50: 0 | H50: 0 | I50: 0 | J50: 0
B51: EMG | C51: Óbitos – terceirizados | D51: - | E51: - | F51: - | G51: 0 | H51: 1 | I51: 0 | J51: 1
B52: EMG | C52: Desenvolvimento profissional | D52: =$D$4 -> 2020 | E52: =$E$4 -> 2019 | F52: =$F$4 -> 2018 | G52: =$G$4 -> 2017 | H52: =$H$4 -> 2016 | I52: =$I$4 -> 2015 | J52: =$J$4 -> 2014
B53: EMG | C53: Perfil da escolaridade – discriminar, em percentagem, em relação ao total dos empregados
B54: EMG | C54: Ensino Fundamental | D54: 0.006 | E54: 0.0071 | F54: 0.0296 | G54: 0.03 | H54: 0.046 | I54: 0.051 | J54: 0.058
B55: EMG | C55: Ensino Médio | D55: 0.568 | E55: 0.56 | F55: 0.5253 | G55: 0.512 | H55: 0.572 | I55: 0.585 | J55: 0.587
B56: EMG | C56: Ensino Técnico | D56: 0.105 | E56: 0.1 | F56: 0.148 | G56: 0.155 | H56: 0.131 | I56: 0.145 | J56: 0.143
B57: EMG | C57: Ensino Superior | D57: 0.2983 | E57: 0.3129 | F57: 0.2269 | G57: 0.225 | H57: 0.18 | I57: 0.164 | J57: 0.161
B58: EMG | C58: Pós-graduação (especialização, mestrado, doutorado) | D58: 0.0227 | E58: 0.02 | F58: 0.0703 | G58: 0.078 | H58: 0.071 | I58: 0.055 | J58: 0.051
B59: EMG | C59: Valor investido em desenvolvimento profissional e educação (R$ mil) | D59: 294.449 | E59: 379.697 | F59: 452.223 | G59: 482 | H59: 272 | I59: 313 | J59: 282
B60: EMG | C60: Média de horas de treinamento por ano, por funcionário, discriminadas por categoria funcional
B61: EMG | C61: Cargos de direção | D61: 6,00 | E61: 13,00 | F61: 14,40 | G61: 14.7 | H61: 31 | I61: 0 | J61: 12
B62: EMG | C62: Cargos gerenciais | D62: 27,24 | E62: 34,92 | F62: 7,63 | G62: 27.8 | H62: 78 | I62: 47 | J62: 77
B63: EMG | C63: Cargos administrativos | D63: 30,67 | E63: 32,34 | F63: 45,40 | G63: 40 | H63: 45 | I63: 52 | J63: 43
B64: EMG | C64: Cargos operacionais | D64: 61,07 | E64: 75,68 | F64: 43,20 | G64: 90 | H64: 109 | I64: 133 | J64: 98
B65: EMG | C65: Comportamento frente a demissões | D65: =$D$4 -> 2020 | E65: =$E$4 -> 2019 | F65: =$F$4 -> 2018 | G65: =$G$4 -> 2017 | H65: =$H$4 -> 2016 | I65: =$I$4 -> 2015 | J65: =$J$4 -> 2014
B66: EMG | C66: Taxa de rotatividade | D66: 0.0674 | E66: 0.0735 | F66: 0.0721 | G66: 0.0539 | H66: 0.0618 | I66: 0.0773 | J66: 0.0812
B67: EMG | C67: Reclamações trabalhistas (empregados próprios e terceiros) | D67: =$D$4 -> 2020 | E67: =$E$4 -> 2019 | F67: =$F$4 -> 2018 | G67: =$G$4 -> 2017 | H67: =$H$4 -> 2016 | I67: =$I$4 -> 2015 | J67: =$J$4 -> 2014
B68: EMG | C68: Valor provisionado no período (R$ mil) | D68: 97 | E68: 418 | F68: 1465 | G68: 2147 | H68: 2329 | I68: 4480 | J68: 2675 | L68: Valor provisionado no passivo, registrado no balanço, referente a reclamações trabalhistas
B69: EMG | C69: Número de processos trabalhistas movidos contra a empresa no período | D69: 48 | E69: 19 | F69: 22 | G69: 35 | H69: 96 | I69: 123 | J69: 143 | L69: Número de processos novos abertos no ano em questão,
B70: =$B$4 -> EMG | C70: Número de processos trabalhistas julgados procedentes no período | D70: 19 | E70: 25 | F70: 4 | G70: 59 | H70: 47 | I70: 44 | J70: 28 | L70: Número de processos julgados procedentes no ano em questão, independentemente do ano em que foram abertos.
B71: EMG | C71: Número de processos trabalhistas julgados improcedentes no período | D71: 3 | E71: 15 | F71: 9 | G71: 12 | H71: 8 | I71: 14 | J71: 5 | L71: Número de processos julgados improcedentes no ano em questão, independentemente do ano em que foram abertos.
B72: EMG | C72: Valor total de indenizações e multas pagas por determinação da Justiça no período (R$ mil) | D72: 221 | E72: 1108 | F72: 3737 | G72: 1696 | H72: 3737 | I72: 1894 | J72: 534 | L72: Indenizações e multas efetivamente pagas no ano em questão, independentemente do ano em que o processo foi aberto.
B73: EMG | C73: Preparação para a aposentadoria | D73: =$D$4 -> 2020 | E73: =$E$4 -> 2019 | F73: =$F$4 -> 2018 | G73: =$G$4 -> 2017 | H73: =$H$4 -> 2016 | I73: =$I$4 -> 2015 | J73: =$J$4 -> 2014
B74: EMG | C74: Investimentos em previdência complementar (R$ mil) | D74: 366 | E74: 900 | F74: 798 | G74: 808 | H74: 611 | I74: 594 | J74: 514
B75: EMG | C75: Número de beneficiados pelo programa de previdência complementar | D75: 20 | E75: 177 | F75: 144 | G75: 62 | H75: 56 | I75: 61 | J75: 43
B77: EAC | C77: Informações gerais | D77: 2020 | E77: 2019 | F77: 2018 | G77: =$G$4 -> 2017 | H77: =$H$4 -> 2016 | L77: PROTOCOLO ANEEL- Considerar dados de 31 de dezembro
B78: =$B$77 -> EAC | C78: Número total de empregados | D78: 422 | E78: 311 | F78: 339 | G78: 301 | H78: 258
B79: =$B$77 -> EAC | C79: Número de terceirizados (terceirizados, subcontratados, autônomos) por tipo de emprego, contrato de trabalho e região | D79: 512 | E79: 632 | F79: 1263 | G79: 1149 | H79: 402
B80: EAC | C80: Empregados até 30 anos de idade (%) | D80: 0.3649 | E80: 0.254 | F80: 0.106 | G80: 0.11 | H80: 0.0969
B81: EAC | C81: Empregados com idade entre 31 e 40 anos (%) | D81: 0.4668 | E81: 0.5048 | F81: 0.434 | G81: 0.412 | H81: 0.3798
B82: EAC | C82: Empregados com idade entre 41 e 50 anos (%) | D82: 0.1445 | E82: 0.1929 | F82: 0.198 | G82: 0.199 | H82: 0.2287
B83: EAC | C83: Empregados com idade superior a 50 anos (%) | D83: 0.0237 | E83: 0.0482 | F83: 0.263 | G83: 0.276 | H83: 0.2946
B84: EAC | C84: Número de mulheres em relação ao total de empregados (%) | D84: 0.1777 | E84: 0.2315 | F84: 0.171 | G84: 0.179 | H84: 0.1899
B85: EAC | C85: Mulheres em cargos gerenciais em relação ao total de cargos gerenciais (%) | D85: 0.125 | E85: 0.0968 | F85: 0.197 | G85: 0.182 | H85: 0.2078
B86: EAC | C86: Empregadas negras (pretas e pardas) em relação ao total de empregados (%) | D86: 0.1232 | E86: 0.074 | F86: 0.121 | G86: 0.126 | H86: 0.1318
B87: EAC | C87: Empregados negros (pretos e pardos) em relação ao total de empregados (%) | D87: 0.5972 | E87: 0.3923 | F87: 0.611 | G87: 0.611 | H87: 0.5969
B88: EAC | C88: Empregados negros (pretos e pardos) em cargos gerenciais em relação ao total de cargos gerenciais (%) | D88: 0.4375 | E88: 0.3871 | F88: 0.492 | G88: 0.53 | H88: 0.7922
B89: EAC | C89: Estagiários em relação ao total de empregados (%) | D89: 0.0284 | E89: 0 | F89: 0.086 | G89: 0.123 | H89: 0.1473
B90: EAC | C90: Empregados do programa de contratação de aprendizes (%) | D90: 0.0284 | E90: 0 | F90: 0.03 | G90: 0.066 | H90: 0.0775
B91: EAC | C91: Empregados portadores de deficiência | D91: 9 | E91: 7 | F91: 12 | G91: 12 | H91: 12
B92: EAC | C92: Remuneração, benefícios e carreira (R$ mil) | D92: 2020 | E92: 2019 | F92: 2018 | G92: =$G$4 -> 2017 | H92: =$H$4 -> 2016
B93: EAC | C93: Folha de pagamento bruta | D93: 65177 | E93: 70.479 | F93: 53163 | G93: 24315 | H93: 26307
B94: EAC | C94: Encargos sociais compulsórios | D94: 11619 | E94: 16.567 | F94: 11380 | G94: 10537 | H94: 8833
B95: EAC | C95: Educação | D95: 319 | E95: 27 | F95: 23 | G95: 369 | H95: 348
B96: EAC | C96: Alimentação | D96: 6731 | E96: 5.323 | F96: 4741 | G96: 4325 | H96: 4166
B97: EAC | C97: Transporte | D97: - | E97: - | F97: - | G97: 142 | H97: 112
B98: EAC | C98: Saúde | D98: 1797 | E98: 2.146 | F98: 1634 | G98: ND | H98: ND
B99: EAC | C99: Fundação | D99: - | E99: - | F99: - | G99: ND | H99: ND
B100: EAC | C100: Segurança e medicina do trabalho | D100: 2652 | E100: 311 | F100: 283 | G100: ND | H100: ND
B101: EAC | C101: Cultura | D101: - | E101: - | F101: - | G101: ND | H101: ND
B102: EAC | C102: Capacitação e desenvolvimento profissional | D102: 881 | E102: 723 | F102: 735 | G102: 229 | H102: 210
B103: EAC | C103: Creches ou auxílio-creches | D103: 194 | E103: 226 | F103: 295 | G103: 355 | H103: 155
B104: EAC | C104: Outros (auxílio funeral, excepcional, prêmio aposentadoria) | D104: 1793 | E104: 2.132 | F104: 2179 | G104: 296 | H104: 201
B105: EAC | C105: Participação nos resultados | D105: 2020 | E105: 2019 | F105: 2018 | G105: =$G$4 -> 2017 | H105: =$H$4 -> 2016
B106: EAC | C106: Investimento total em programa de participação nos resultados da empresa (R$ mil) | D106: 4019 | E106: 87 | F106: 1372 | G106: 370 | H106: 534
B107: EAC | C107: Valores distribuídos em relação à folha de pagamento bruta (%) | D107: 0.062 | E107: 0.001 | F107: 0.026 | G107: 0.2 | H107: 0.2
B108: EAC | C108: Divisão da maior remuneração pela menor remuneração em espécie paga pela empresa | D108: 40.73 | E108: 40.73 | F108: 29.2 | G108: 28.9 | H108: 25.8 | L108: Remuneração = salário base + adicionais (periculosidade, adicional noturno, hora extra, sobreaviso, etc) + PLR. Considerar a maior remuneração e a menor independente do cargo (exclui a diretoria)
B109: EAC | C109: Divisão da menor remuneração da empresa pelo salário mínimo vigente | D109: 1.4 | E109: 1.46 | F109: 2 | G109: 1 | H109: 1.6
B110: EAC | C110: Perfil da remuneração por categoria – salário médio no ano corrente (R$) | D110: 2020 | E110: 2019 | F110: 2018 | G110: =$G$4 -> 2017 | H110: =$H$4 -> 2016 | L110: Salário médio = a soma do salário-base do empregado dividido por 12.
B111: EAC | C111: Cargos de direção | D111: 44734 | E111: 34367 | F111: 24803 | G111: 24803 | H111: 24803
B112: EAC | C112: Cargos gerenciais | D112: 11169 | E112: 10723 | F112: 10232 | G112: 9943 | H112: 9285
B113: EAC | C113: Cargos administrativos | D113: 3328 | E113: 3790 | F113: 5761 | G113: 5985 | H113: 5780
B114: EAC | C114: Cargos operacionais | D114: 2165 | E114: 2701 | F114: 5014 | G114: 5321 | H114: 6395
B115: EAC | C115: Saúde e segurança no trabalho | D115: 2020 | E115: 2019 | F115: 2018 | G115: =$G$4 -> 2017 | H115: =$H$4 -> 2016
B116: EAC | C116: Média de horas extras por empregado/ano | D116: 57.34 | E116: 97.39 | F116: 91 | G116: 73 | H116: 57 | L116: Soma da quantidade de horas extras no ano dividida por 12
B117: EAC | C117: Índice TF (taxa de frequência) total da empresa no período, para empregados | D117: 1.37 | E117: 7.23 | F117: 13.88 | G117: 18.5 | H117: 17.71
B118: EAC | C118: Índice TG (taxa de gravidade) no período, para empregados | D118: 38.32 | E118: 205.32 | F118: 7035 | G118: 129.49 | H118: 155.46
B119: EAC | C119: Índice TF (taxa de frequência) total da empresa no período, para terceirizados/contratados | D119: 2.94 | E119: 3.51 | F119: 4.93 | G119: 16.72 | H119: 6.43
B120: EAC | C120: Índice TG (taxa de gravidade) no período, para terceirizados e contratados | D120: 2990.13 | E120: 600.84 | F120: 2794 | G120: 3263 | H120: 193
B121: EAC | C121: Índice TF (taxa de frequência) da empresa no período para a força de trabalho (próprios + terceiros) | D121: 0.82 | E121: 4.94 | F121: 6.81 | G121: 17.06 | H121: 8.45
B122: EAC | C122: Índice TG (taxa de gravidade) no período, para a força de trabalho (próprios + terceiros) | D122: 1999.19 | E122: 609.52 | F122: 2599 | G122: 2754 | H122: 419.01
B123: EAC | C123: Óbitos – próprios | D123: - | E123: - | F123: 0 | G123: 0 | H123: -
B124: EAC | C124: Óbitos – terceirizados | D124: 1 | E124: - | F124: 1 | G124: 1 | H124: -
B125: EAC | C125: Desenvolvimento profissional | D125: 2020 | E125: 2019 | F125: 2018 | G125: =$G$4 -> 2017 | H125: =$H$4 -> 2016
B126: EAC | C126: Perfil da escolaridade – discriminar, em percentagem, em relação ao total dos empregados
B127: EAC | C127: Ensino Fundamental | D127: 0.0142 | E127: 0.0257 | F127: 0.271 | G127: 0.262 | H127: 0.243
B128: EAC | C128: Ensino Médio | D128: 0.4645 | E128: 0.4244 | F128: 0.317 | G128: 0.309 | H128: 0.293
B129: EAC | C129: Ensino Técnico | D129: 0.1919 | E129: 0.1479 | F129: 0.247 | G129: 0.243 | H129: 0.205
B130: EAC | C130: Ensino Superior | D130: 0.2796 | E130: 0.3505 | F130: 0.165 | G130: 0.183 | H130: 0.255
B131: EAC | C131: Pós-graduação (especialização, mestrado, doutorado) | D131: 0.0498 | E131: 0.0514 | F131: - | G131: 0.003 | H131: 0.004
B132: EAC | C132: Valor investido em desenvolvimento profissional e educação (R$ mil) | D132: 393643 | E132: 273640 | F132: ND | G132: 100 | H132: 162173
B133: EAC | C133: Média de horas de treinamento por ano, por funcionário, discriminadas por categoria funcional
B134: EAC | C134: Cargos de direção | D134: 15 | E134: 96 | F134: ND | G134: ND | H134: ND
B135: EAC | C135: Cargos gerenciais | D135: 27.47 | E135: 31.71 | F135: ND | G135: 16.96 | H135: 50.21
B136: EAC | C136: Cargos administrativos | D136: 36.48 | E136: 43.66 | F136: ND | G136: 22 | H136: 26
B137: EAC | C137: Cargos operacionais | D137: 106.35 | E137: 69.66 | F137: ND | G137: 22 | H137: 26
B138: EAC | C138: Comportamento frente a demissões | D138: 2020 | E138: 2019 | F138: 2018 | G138: =$G$4 -> 2017 | H138: =$H$4 -> 2016
B139: EAC | C139: Taxa de rotatividade | D139: 0.3815 | E139: 0.4646 | F139: 0.0236 | G139: 0.0233 | H139: 1.94
B140: EAC | C140: Reclamações trabalhistas (empregados próprios e terceiros) | D140: 2020 | E140: 2019 | F140: 2018 | G140: =$G$4 -> 2017 | H140: =$H$4 -> 2016
B141: EAC | C141: Valor provisionado no período (R$ mil) | D141: 18618 | E141: 26920 | F141: 9301 | G141: 3782 | H141: ND | L141: Valor provisionado no passivo, registrado no balanço, referente a reclamações trabalhistas
B142: EAC | C142: Número de processos trabalhistas movidos contra a empresa no período | D142: 87 | E142: 53 | F142: 248 | G142: 55 | H142: 182 | L142: Número de processos novos abertos no ano em questão,
B143: =$B$77 -> EAC | C143: Número de processos trabalhistas julgados procedentes no período | D143: 40 | E143: 80 | F143: 160 | G143: 35 | H143: 57 | L143: Número de processos julgados procedentes no ano em questão, independentemente do ano em que foram abertos.
B144: EAC | C144: Número de processos trabalhistas julgados improcedentes no período | D144: 22 | E144: 43 | F144: 59 | G144: 3 | H144: 38 | L144: Número de processos julgados improcedentes no ano em questão, independentemente do ano em que foram abertos.
B145: EAC | C145: Valor total de indenizações e multas pagas por determinação da Justiça no período (R$ mil) | D145: 15702 | E145: 7677 | F145: 506 | G145: 122 | H145: 2417 | L145: Indenizações e multas efetivamente pagas no ano em questão, independentemente do ano em que o processo foi aberto.
B146: EAC | C146: Preparação para a aposentadoria | D146: 2020 | E146: 2019 | F146: 2018 | G146: =$G$4 -> 2017 | H146: =$H$4 -> 2016
B147: EAC | C147: Investimentos em previdência complementar (R$ mil) | D147: 493 | E147: 1785 | F147: 1304 | G147: 972 | H147: 907
B148: EAC | C148: Número de beneficiados pelo programa de previdência complementar | D148: - | E148: 8 | F148: 258 | G148: 237 | H148: 236
B150: EBO | C150: Informações gerais | D150: 2020 | E150: 2019 | F150: 2018 | G150: =$G$4 -> 2017 | H150: =$H$4 -> 2016 | I150: =$I$4 -> 2015 | J150: =$J$4 -> 2014 | L150: PROTOCOLO ANEEL - Considerar dados de 31 de dezembro
B151: =$B$150 -> EBO | C151: Número total de empregados | D151: 211 | E151: 211 | F151: 206 | G151: 207 | H151: 236 | I151: 242 | J151: 245
B152: =$B$150 -> EBO | C152: Número de terceirizados (terceirizados, subcontratados, autônomos) por tipo de emprego, contrato de trabalho e região | D152: 26 | E152: 52 | F152: 37 | G152: 26 | H152: 30 | I152: 31 | J152: 125
B153: EBO | C153: Empregados até 30 anos de idade (%) | D153: 0.1619 | E153: 0.1943 | F153: 0.165 | G153: 0.169 | H153: 0.17 | I153: 0.215 | J153: 0.208
B154: EBO | C154: Empregados com idade entre 31 e 40 anos (%) | D154: 0.4905 | E154: 0.4834 | F154: 0.4806 | G154: 0.488 | H154: 0.513 | I154: 0.455 | J154: 0.437
B155: EBO | C155: Empregados com idade entre 41 e 50 anos (%) | D155: 0.2476 | E155: 0.2227 | F155: 0.2379 | G155: 0.242 | H155: 0.203 | I155: 0.231 | J155: 0.233
B156: EBO | C156: Empregados com idade superior a 50 anos (%) | D156: 0.1 | E156: 0.0995 | F156: 0.1165 | G156: 0.101 | H156: 0.114 | I156: 0.099 | J156: 0.122
B157: EBO | C157: Número de mulheres em relação ao total de empregados (%) | D157: 0.1 | E157: 0.109 | F157: 0.1214 | G157: 0.116 | H157: 0.153 | I157: 0.149 | J157: 0.184
B158: EBO | C158: Mulheres em cargos gerenciais em relação ao total de cargos gerenciais (%) | D158: 0.25 | E158: 0.3333 | F158: 0.3333 | G158: 0.333 | H158: 0 | I158: 0 | J158: 0.25
B159: EBO | C159: Empregadas negras (pretas e pardas) em relação ao total de empregados (%) | D159: 0.0381 | E159: 0.0379 | F159: 0.0485 | G159: 0.034 | H159: 0.055 | I159: 0.062 | J159: 0.049
B160: EBO | C160: Empregados negros (pretos e pardos) em relação ao total de empregados (%) | D160: 0.4 | E160: 0.3886 | F160: 0.3641 | G160: 0.401 | H160: 0.373 | I160: 0.376 | J160: 0.359
B161: EBO | C161: Empregados negros (pretos e pardos) em cargos gerenciais em relação ao total de cargos gerenciais (%) | D161: 0.5 | E161: 0.3333 | F161: 0.3333 | G161: 0.667 | H161: 0 | I161: 0 | J161: 0.2
B162: EBO | C162: Estagiários em relação ao total de empregados (%) | D162: 0 | E162: 0.0095 | F162: 0.0291 | G162: 0.053 | H162: 0.038 | I162: 0.05 | J162: 0.016
B163: EBO | C163: Empregados do programa de contratação de aprendizes (%) | D163: 0.0286 | E163: 0.0427 | F163: 0.0388 | G163: 0.039 | H163: 0 | I163: 0.008 | J163: 0
B164: EBO | C164: Empregados portadores de deficiência | D164: 9 | E164: 8 | F164: 6 | G164: 9 | H164: 11 | I164: 7 | J164: 10
B165: EBO | C165: Remuneração, benefícios e carreira (R$ mil) | D165: 2020 | E165: 2019 | F165: 2018 | G165: =$G$4 -> 2017 | H165: =$H$4 -> 2016 | I165: =$I$4 -> 2015 | J165: =$J$4 -> 2014
B166: EBO | C166: Folha de pagamento bruta | D166: 14497 | E166: 14.755 | F166: 14646 | G166: 15205 | H166: 14918 | I166: 13745 | J166: 13938
B167: EBO | C167: Encargos sociais compulsórios | D167: 3285 | E167: 3.390 | F167: 3488 | G167: 4068 | H167: 3720 | I167: 3803 | J167: 3227
B168: EBO | C168: Educação | D168: 16 | E168: 15 | F168: 19 | G168: 10 | H168: 65 | I168: 40 | J168: 37
B169: EBO | C169: Alimentação | D169: 2385 | E169: 2.312 | F169: 2261 | G169: 2274 | H169: 2192 | I169: 1995 | J169: 1948
B170: EBO | C170: Transporte | D170: - | E170: - | F170: - | G170: - | H170: - | I170: 403 | J170: 325
B171: EBO | C171: Saúde | D171: 1339 | E171: 1.183 | F171: 1068 | G171: 1089 | H171: 1086 | I171: 907 | J171: 879
B172: EBO | C172: Fundação | D172: - | E172: - | F172: - | G172: - | H172: 153 | I172: 222 | J172: 170
B173: EBO | C173: Segurança e medicina do trabalho | D173: 479 | E173: 489 | F173: 628 | G173: 412 | H173: - | I173: - | J173: -
B174: EBO | C174: Cultura | D174: - | E174: - | F174: - | G174: - | H174: - | I174: - | J174: -
B175: EBO | C175: Capacitação e desenvolvimento profissional | D175: 58 | E175: 89 | F175: 76 | G175: 24 | H175: 9 | I175: 34 | J175: 28
B176: EBO | C176: Creches ou auxílio-creches | D176: 194 | E176: 418 | F176: 382 | G176: 403 | H176: 329 | I176: 267 | J176: 259
B177: EBO | C177: Outros (auxílio funeral, excepcional, prêmio aposentadoria) | D177: 1052 | E177: 602 | F177: 525 | G177: 87 | H177: 490 | I177: 35 | J177: 35
B178: EBO | C178: Participação nos resultados | D178: 2020 | E178: 2019 | F178: 2018 | G178: =$G$4 -> 2017 | H178: =$H$4 -> 2016 | I178: =$I$4 -> 2015 | J178: =$J$4 -> 2014
B179: EBO | C179: Investimento total em programa de participação nos resultados da empresa (R$ mil) | D179: 1819 | E179: 1.371 | F179: 1640 | G179: 1531 | H179: 1895 | I179: 1719 | J179: 1282
B180: EBO | C180: Valores distribuídos em relação à folha de pagamento bruta (%) | D180: 0.125 | E180: 0.396 | F180: 0.112 | G180: 0.101 | H180: 0.127 | I180: 0.125 | J180: 0.092
B181: EBO | C181: Divisão da maior remuneração pela menor remuneração em espécie paga pela empresa | D181: 61.95 | E181: 57.34 | F181: 59.65 | G181: 49.4 | H181: 9.85 | I181: 18.16 | J181: 15.14 | L181: Remuneração = salário base + adicionais (periculosidade, adicional noturno, hora extra, sobreaviso, etc) + PLR. Considerar a maior remuneração e a menor independente do cargo (exclui a diretoria)
B182: EBO | C182: Divisão da menor remuneração da empresa pelo salário mínimo vigente | D182: 1 | E182: 1.05 | F182: 1.03 | G182: 1.1 | H182: 1.03 | I182: 1.13 | J182: 1.23
B183: EBO | C183: Perfil da remuneração por categoria – salário médio no ano corrente (R$) | D183: 2020 | E183: 2019 | F183: 2018 | G183: =$G$4 -> 2017 | H183: =$H$4 -> 2016 | I183: =$I$4 -> 2015 | J183: =$J$4 -> 2014 | L183: Salário médio = soma do salário-base do empregado dividido por 12.
B184: EBO | C184: Cargos de direção | D184: 55572 | E184: 53153 | F184: 55572 | G184: 44282 | H184: 23190.97 | I184: 26956.93 | J184: 27416.89
B185: EBO | C185: Cargos gerenciais | D185: 11812 | E185: 9256 | F185: 11812 | G185: 12640 | H185: 12784 | I185: 14192 | J185: 6686.95
B186: EBO | C186: Cargos administrativos | D186: 2572 | E186: 2904 | F186: 2572 | G186: 2397 | H186: 3042 | I186: 2559 | J186: 2319.28
B187: EBO | C187: Cargos operacionais | D187: 1437 | E187: 1465 | F187: 1437 | G187: 1486 | H187: 1414 | I187: 1741 | J187: 1183.54
B188: EBO | C188: Saúde e segurança no trabalho | D188: 2020 | E188: 2019 | F188: 2018 | G188: =$G$4 -> 2017 | H188: =$H$4 -> 2016 | I188: =$I$4 -> 2015 | J188: =$J$4 -> 2014
B189: EBO | C189: Média de horas extras por empregado/ano | D189: 38.93 | E189: 44.15 | F189: 44.58 | G189: 45.7 | H189: 51.7 | I189: 52.6 | J189: 54.9 | L189: Soma da quantidade de horas extras no ano dividida por 12
B190: EBO | C190: Índice TF (taxa de frequência) total da empresa no período, para empregados | D190: - | E190: - | F190: 2.5 | G190: 4.65 | H190: 6.21 | I190: 1.88 | J190: 3.69
B191: EBO | C191: Índice TG (taxa de gravidade) no período, para empregados | D191: - | E191: - | F191: 12.49 | G191: 23.25 | H191: 20.7 | I191: 28.23 | J191: 14.76
B192: EBO | C192: Índice TF (taxa de frequência) total da empresa no período, para terceirizados/contratados | D192: 2.78 | E192: 3.33 | F192: - | G192: 5.26 | H192: 0 | I192: 4.67 | J192: 0
B193: EBO | C193: Índice TG (taxa de gravidade) no período, para terceirizados e contratados | D193: 83.33 | E193: 100 | F193: - | G193: 157.89 | H193: 0 | I193: 210.28 | J193: 0
B194: EBO | C194: Índice TF (taxa de frequência) da empresa no período para a força de trabalho (próprios + terceiros) | D194: 3.99 | E194: 1.58 | F194: 3.58 | G194: 4.84 | H194: 4.65 | I194: 5.55 | J194: 5.2
B195: EBO | C195: Índice TG (taxa de gravidade) no período, para a força de trabalho (próprios + terceiros) | D195: 13.3 | E195: 47.35 | F195: 62.65 | G195: 64.51 | H195: 15.5 | I195: 62.39 | J195: 10.39
B196: EBO | C196: Óbitos – próprios | D196: - | E196: - | F196: - | G196: 0 | H196: 0 | I196: 0 | J196: 0
B197: EBO | C197: Óbitos – terceirizados | D197: - | E197: - | F197: - | G197: 0 | H197: 0 | I197: 0 | J197: 0
B198: EBO | C198: Desenvolvimento profissional | D198: 2020 | E198: 2019 | F198: 2018 | G198: =$G$4 -> 2017 | H198: =$H$4 -> 2016 | I198: =$I$4 -> 2015 | J198: =$J$4 -> 2014
B199: EBO | C199: Perfil da escolaridade – discriminar, em percentagem, em relação ao total dos empregados
B200: EBO | C200: Ensino Fundamental | D200: 0.019 | E200: 0.0237 | F200: 0.0243 | G200: 0.039 | H200: 0.11 | I200: 0.112 | J200: 0.086
B201: EBO | C201: Ensino Médio | D201: 0.7286 | E201: 0.7346 | F201: 0.8155 | G201: 0.783 | H201: 0.699 | I201: 0.698 | J201: 0.771
B202: EBO | C202: Ensino Técnico | D202: 0.1429 | E202: 0.1232 | F202: 0.0388 | G202: 0.039 | H202: 0.042 | I202: 0.037 | J202: -
B203: EBO | C203: Ensino Superior | D203: 0.1095 | E203: 0.1185 | F203: 0.1165 | G203: 0.135 | H203: 0.14 | I203: 0.145 | J203: 0.13
... 596 more rows

Sheet Consumidores
C1: Sociais externos | Selecione a empresa Consumidores
B4: EMG | C4: Excelência no atendimento | D4: 2020 | E4: 2019 | F4: 2018 | G4: 2017 | H4: 2016 | I4: 2015 | J4: 2014 | L4: PROTOCOLO ANEEL - Considerar dados de 31 de dezembro
B5: =$B$4 -> EMG | C5: Perfil de consumidores e clientes
B6: =$B$4 -> EMG | C6: Venda de energia por classe tarifária (GWh): % Total | D6: 1 | E6: 1 | F6: 1 | G6: 1 | H6: 1 | I6: 1 | J6: 1
B7: EMG | C7: Residencial | D7: 0.362 | E7: 0.362 | F7: 0.355 | G7: 0.35 | H7: 0.3464 | I7: 0.3404 | J7: 0.2808
B8: EMG | C8: Residencial baixa renda | D8: 0.092 | E8: 0.075 | F8: 0.068 | G8: 0.069 | H8: 0.07 | I8: 0.0685 | J8: 0.1209
B9: EMG | C9: Comercial | D9: 0.164 | E9: 0.184 | F9: 0.184 | G9: 0.109 | H9: 0.2022 | I9: 0.2152 | J9: 0.208
B10: EMG | C10: Industrial | D10: 0.091 | E10: 0.096 | F10: 0.105 | G10: 0.189 | H10: 0.1132 | I10: 0.1154 | J10: 0.1425
B11: EMG | C11: Rural | D11: 0.167 | E11: 0.149 | F11: 0.156 | G11: 0.153 | H11: 0.1372 | I11: 0.1341 | J11: 0.1235
B12: EMG | C12: Iluminação pública | D12: 0.069 | E12: 0.071 | F12: 0.073 | G12: 0.028 | H12: 0.0694 | I12: 0.0653 | J12: 0.0647
B13: EMG | C13: Serviço público | D13: 0.034 | E13: 0.033 | F13: 0.032 | G13: 0.07 | H13: 0.0332 | I13: 0.0323 | J13: 0.0313
B14: EMG | C14: Poder público | D14: 0.022 | E14: 0.028 | F14: 0.027 | G14: 0.033 | H14: 0.0284 | I14: 0.0288 | J14: 0.0283
B15: EMG | C15: Satisfação do cliente | D15: 2020 | E15: 2019 | F15: 2018 | G15: 2017 | H15: 2016 | I15: 2015 | J15: 2014
B16: EMG | C16: Índices de satisfação obtidos pela Pesquisa Iasc – Aneel 1 | D16: ND | E16: 73.94 | F16: 70.52 | G16: 71.18 | H16: 58.86 | I16: 70.12 | J16: 75.02
B17: EMG | C17: Índices de satisfação obtidos por pesquisas de outras entidades e/ou pesquisas próprias – Pesquisa Abradee | D17: 84.6 | E17: 80.7 | F17: 86.7 | G17: 81.2 | H17: 84 | I17: 83.4 | J17: 89
B18: EMG | C18: Atendimento ao consumidor | D18: 2020 | E18: 2019 | F18: 2018 | G18: 2017 | H18: 2016 | I18: 2015 | J18: 2014
B19: EMG | C19: Call Center
B20: EMG | C20: Chamadas recebidas (unid.) | D20: 886839 | E20: 689636 | F20: 769908 | G20: 679282 | H20: 691315 | I20: 540965 | J20: 513322 | L20: Número total de chamadas recebidas no ano no call center
B21: EMG | C21: Número médio de atendentes (unid.) | D21: 72 | E21: 73 | F21: 52 | G21: 57 | H21: 65 | I21: 54 | J21: 30 | L21: Média do número de atendentes do Call Center no ano (soma dos atendentes em cada mês divdida por 12)
B22: EMG | C22: INS – Índice de Nível de Serviço (%) | D22: 0.8838 | E22: 0.8957 | F22: 0.9065 | G22: 0.9041 | H22: 0.9284 | I22: 0.9116 | J22: 0.8736 | L22: Art. 188 da Resolução Aneel nº 414, de 09/09/10
B23: EMG | C23: IAB – Índice de abandono (%) | D23: 0.0288 | E23: 0.0106 | F23: 0.0102 | G23: 0.0125 | H23: 0.0081 | I23: 0.0088 | J23: 0.0208 | L23: Art. 188 da Resolução Aneel nº 414, de 09/09/10
B24: EMG | C24: ICO – Índice de Chamadas Ocupadas (%) | D24: 0 | E24: 0 | F24: - | G24: - | H24: 0.002 | I24: 0.0184 | J24: 0.001 | L24: Art. 188 da Resolução Aneel nº 414, de 09/09/10
B25: EMG | C25: TMA – Tempo médio de atendimento (s) | D25: 201 | E25: 193 | F25: 187 | G25: 182 | H25: 174 | I25: 177 | J25: 171 | L25: Art. 188 da Resolução Aneel nº 414, de 09/09/10
B26: EMG | C26: Indenização por danos elétricos | D26: 2020 | E26: 2019 | F26: 2018 | G26: 2017 | H26: 2016 | I26: 2015 | J26: 2014
B27: EMG | C27: Volume de solicitações (unid.) 2 | D27: 1362 | E27: 1414 | F27: 1536 | G27: 1332 | H27: 1743 | I27: 1654 | J27: 1213 | L27: Capítulo XVI da Resolução Aneel nº 414, de 09/09/10
B28: EMG | C28: Procedentes (unid.) 2 | D28: 260 | E28: 264 | F28: 258 | G28: 265 | H28: 440 | I28: 442 | J28: 241 | L28: Capítulo XVI da Resolução Aneel nº 414, de 09/09/10
B29: EMG | C29: Indicadores de reclamações | D29: 2020 | E29: 2019 | F29: 2018 | G29: 2017 | H29: 2016 | I29: 2015 | J29: 2014 | L29:  Indicadores de Reclamações
B30: EMG | C30: Reclamações procedentes (unid.) 3 | D30: 117465 | E30: 109614 | F30: 124844 | G30: 98993 | H30: 109916 | I30: 1590 | J30: 1685 | L30: Art. 158 da Resolução Aneel nº 414, de 09/09/10
B31: EMG | C31: DER (horas) | D31: 119.43 | E31: 133.85 | F31: 101.06 | G31: 109.25 | H31: 156 | I31: 150.36 | J31: 151.29 | L31: Art. 158 da Resolução Aneel nº 414, de 09/09/10
B32: EMG | C32: FER (unid.) | D32: 5.55 | E32: 6.744 | F32: 4.945 | G32: 2.55 | H32: 2.96 | I32: 3.07 | J32: 3.2 | L32: Art. 158 da Resolução Aneel nº 414, de 09/09/10
B33: EMG | C33: Violação de prazos de serviços comerciais | D33: 2020 | E33: 2019 | F33: 2018 | G33: 2017 | H33: 2016 | I33: 2015 | J33: 2014
B34: EMG | C34: Atendimentos realizados (unid.) | D34: 171180 | E34: 198636 | F34: 167202 | G34: 161573 | H34: 155545 | I34: 139667 | J34: 130114 | L34: Art. 154 da Resolução Aneel nº 414, de 09/09/10
B35: EMG | C35: Atendimentos realizados fora do prazo (unid.) | D35: 5491 | E35: 5388 | F35: 6570 | G35: 4326 | H35: 3879 | I35: 3222 | J35: 2293 | L35: Art. 154 da Resolução Aneel nº 414, de 09/09/10
B36: EMG | C36: Eficiência de atendimento (%) | D36: 0.9679 | E36: 0.9729 | F36: 0.9607 | G36: 0.9732 | H36: 0.9751 | I36: 0.9769 | J36: 0.9824 | L36: (Nº total de atendimentos realizados menos atendimentos realizados fora do prazo) dividido por nº total de atendimentos
B37: EMG | C37: Número de reclamações de consumidores encaminhadas | D37: 2020 | E37: 2019 | F37: 2018 | G37: 2017 | H37: 2016 | I37: 2015 | J37: 2014
B38: EMG | C38: À empresa 3 | D38: 149482 | E38: 137800 | F38: 154485 | G38: 126387 | H38: 131486 | I38: 4964 | J38: 4296 | L38: Nº total de reclamações encaminhadas à empresa pelos canais de atendimento tradicionais (Call Center, agências, internet, etc)
B39: EMG | C39: À Aneel – agências estaduais/regionais | D39: 675 | E39: 532 | F39: 440 | G39: 437 | H39: 421 | I39: 429 | J39: 289 | L39: Nº total de reclamações encaminhadas diretamente à Aneel e recebidas pela Ouvidoria da outorgada
B40: EMG | C40: Ao Procon | D40: 140 | E40: 192 | F40: 121 | G40: 134 | H40: 181 | I40: 270 | J40: 90 | L40: Nº total de reclamações encaminhadas diretamente ao Procon e recebidas pela Ouvidoria da outorgada
B41: EMG | C41: À Justiça | D41: 380 | E41: 697 | F41: 509 | G41: 1018 | H41: 2583 | I41: 358 | J41: 304 | L41: Nº total de reclamações acompanhadas pelo Jurídico à Justiça ou que evoluíram para ações na Justiça a partir que na justiça a partir de reclamações no Procon
B42: EMG | C42: 1 A pesquisa Iasc Aneel 2020 não havia sido divulgada até a data de publicação deste relatório.
B43: EMG | C43: 2 Existem 127 solicitações de 2020 em aberto, ou seja, o quantitativo de procedentes pode ser alterado após a conclusão desses processos. Pelo mesmo motivo, os valores de 2019 foram alterados.
B44: EMG | C44: 3 Os dados de dezembro de 2020 são prévios, sendo possível alterá-los quando ocorrer o fechamento oficial.
B46: EAC | C46: Excelência no atendimento | D46: 2020 | E46: 2019 | F46: 2018 | G46: 2017 | H46: 2016 | L46: PROTOCOLO ANEEL- Considerar dados de 31 de dezembro
B47: =$B$46 -> EAC | C47: Perfil de consumidores e clientes 1
B48: =$B$46 -> EAC | C48: Venda de energia por classe tarifária (GWh): % Total | D48: 1 | E48: 1 | F48: 1 | G48: 1 | H48: 1
B49: EAC | C49: Residencial | D49: 0.39 | E49: 0.39 | F49: 0.41 | G49: 0.419 | H49: 0.3942
B50: EAC | C50: Residencial baixa renda | D50: 0.11 | E50: 0.08 | F50: 0.05 | G50: 0.05 | H50: 0.0714
B51: EAC | C51: Comercial | D51: 0.23 | E51: 0.21 | F51: 0.2 | G51: 0.039 | H51: 0.0411
B52: EAC | C52: Industrial | D52: 0.04 | E52: 0.04 | F52: 0.04 | G52: 0.203 | H52: 0.2153
B53: EAC | C53: Rural | D53: 0.05 | E53: 0.05 | F53: 0.05 | G53: 0.05 | H53: 0.0486
B54: EAC | C54: Iluminação pública | D54: 0.04 | E54: 0.05 | F54: 0.05 | G54: 0.131 | H54: 0.1291
B55: EAC | C55: Serviço público | D55: 0.04 | E55: 0.06 | F55: 0.06 | G55: 0.054 | H55: 0.0501
B56: EAC | C56: Poder público | D56: 0.09 | E56: 0.12 | F56: 0.13 | G56: 0.054 | H56: 0.0503
B57: EAC | C57: Satisfação do cliente | D57: 2020 | E57: 2019 | F57: 2018 | G57: 2017 | H57: 2016
B58: EAC | C58: Índices de satisfação obtidos pela Pesquisa Iasc – Aneel 2 | D58: ND | E58: 46.41 | F58: 55.3 | G58: 50.91 | H58: 56.49
B59: EAC | C59: Índices de satisfação obtidos por pesquisas de outras entidades e/ou pesquisas próprias – Pesquisa Abradee | D59: 63.2 | E59: 54.6 | F59: 51.7 | G59: 60.1 | H59: 59.3
B60: EAC | C60: Atendimento ao consumidor | D60: 2020 | E60: 2019 | F60: 2018 | G60: 2017 | H60: 2016
B61: EAC | C61: Call Center
B62: EAC | C62: Chamadas recebidas (unid.) | D62: 415664 | E62: 445336 | F62: 387470 | G62: 472520 | H62: 454113 | L62: Número total de chamadas recebidas no ano no call center
B63: EAC | C63: Número médio de atendentes (unid.) | D63: 19 | E63: 16 | F63: 9 | G63: 11 | H63: 10 | L63: Média do número de atendentes do call center no ano (soma dos atendentes em cada mês divdida por 12)
B64: EAC | C64: INS – Índice de Nível de Serviço (%) | D64: 0.914 | E64: 0.9174 | F64: 0.9611 | G64: 0.9303 | H64: 0.9409 | L64: Art. 188 da Resolução Aneel nº 414, de 09/09/10
B65: EAC | C65: IAB – Índice de abandono (%) | D65: 0.0194 | E65: 0.0133 | F65: 0.006 | G65: 0.017 | H65: 0.015 | L65: Art. 188 da Resolução Aneel nº 414, de 09/09/10
B66: EAC | C66: ICO – Índice de Chamadas Ocupadas (%) | D66: 0 | E66: 0 | F66: - | G66: - | H66: - | L66: Art. 188 da Resolução Aneel nº 414, de 09/09/10
B67: EAC | C67: TMA – Tempo médio de atendimento (s) | D67: 177 | E67: 174 | F67: 133 | G67: 136 | H67: 132 | L67: Art. 188 da Resolução Aneel nº 414, de 09/09/10
B68: EAC | C68: Indenização por danos elétricos | D68: 2020 | E68: 2019 | F68: 2018 | G68: 2017 | H68: 2016
B69: EAC | C69: Volume de solicitações (unid.) | D69: 645 | E69: 569 | F69: 500 | G69: 618 | H69: 652 | L69: Capítulo XVI da Resolução Aneel nº 414, de 09/09/10
B70: EAC | C70: Procedentes (unid.) | D70: 95 | E70: 91 | F70: 79 | G70: 87 | H70: 161 | L70: Capítulo XVI da Resolução Aneel nº 414, de 09/09/10
B71: EAC | C71: Indicadores de reclamações | D71: 2020 | E71: 2019 | F71: 2018 | G71: 2017 | H71: 2016 | L71:  Indicadores de Reclamações
B72: EAC | C72: Reclamações procedentes (unid.) | D72: 6826 | E72: 9433 | F72: 3060 | G72: 4887 | H72: 3858 | L72: Art. 158 da Resolução Aneel nº 414, de 09/09/10
B73: EAC | C73: DER (horas) | D73: 145.28 | E73: 139.26 | F73: 175.58 | G73: 86.58 | H73: 139.42 | L73: Art. 158 da Resolução Aneel nº 414, de 09/09/10
B74: EAC | C74: FER (unid.) | D74: 22.91 | E74: 34.68 | F74: 11.6 | G74: 18.8 | H74: 13.7 | L74: Art. 158 da Resolução Aneel nº 414, de 09/09/10
B75: EAC | C75: Violação de prazos de serviços comerciais | D75: 2020 | E75: 2019 | F75: 2018 | G75: 2017 | H75: 2016
B76: EAC | C76: Atendimentos realizados (unid.) | D76: 98414 | E76: 149135 | F76: 144840 | G76: 143568 | H76: 117240 | L76: Art. 154 da Resolução Aneel nº 414, de 09/09/10
B77: EAC | C77: Atendimentos realizados fora do prazo (unid.) | D77: 6426 | E77: 10079 | F77: 3812 | G77: 11865 | H77: 9089 | L77: Art. 154 da Resolução Aneel nº 414, de 09/09/10
B78: EAC | C78: Eficiência de atendimento (%) | D78: 0.9347 | E78: 0.9324 | F78: 0.9736 | G78: 0.9173 | H78: 0.9224 | L78: (Nº total de atendimentos realizados menos atendimentos realizados fora do prazo) dividido por nº total de atendimentos
B79: EAC | C79: Número de reclamações de consumidores encaminhadas | D79: 2020 | E79: 2019 | F79: 2018 | G79: 2017 | H79: 2016
B80: EAC | C80: À empresa | D80: 13999 | E80: 20410 | F80: 56187 | G80: 64785 | H80: 55978 | L80: Nº total de reclamações encaminhadas à empresa pelos canais de atendimento tradicionais (Call Center, agências, internet, etc)
B81: EAC | C81: À Aneel – agências estaduais/regionais | D81: 359 | E81: 517 | F81: 243 | G81: 329 | H81: 122 | L81: Nº total de reclamações encaminhadas diretamente à Aneel e recebidas pela Ouvidoria da outorgada
B82: EAC | C82: Ao Procon | D82: 509 | E82: 1597 | F82: 313 | G82: 327 | H82: 319 | L82: Nº total de reclamações encaminhadas diretamente ao Procon e recebidas pela Ouvidoria da outorgada
B83: EAC | C83: À Justiça | D83: 1188 | E83: 2923 | F83: 1680 | G83: 1880 | H83: 2087 | L83: Nº total de reclamações acompanhadas pelo Jurídico à Justiça ou que evoluíram para ações na Justiça a partir que na justiça a partir de reclamações no Procon
B84: EAC | C84: 1 Reclassificados dados de 2019 e 2018.
B85: EAC | C85: 2 A pesquisa Iasc Aneel 2020 não havia sido divulgada até a data de publicação deste relatório.
B87: EBO | C87: Excelência no atendimento | D87: 2020 | E87: 2019 | F87: 2018 | G87: 2017 | H87: 2016 | I87: 2015 | J87: 2014 | L87: PROTOCOLO ANEEL - Considerar dados de 31 de dezembro
B88: =$B$87 -> EBO | C88: Perfil de consumidores e clientes
B89: =$B$87 -> EBO | C89: Venda de energia por classe tarifária (GWh): % Total | D89: 100,0% | E89: 100,0% | F89: 100,0% | G89: 100,0% | H89: 100,0% | I89: 100,0% | J89: 100,0%
B90: EBO | C90: Residencial | D90: 0.394 | E90: 0.372 | F90: 0.361 | G90: 0.358 | H90: 0.313 | I90: 0.272 | J90: 0.223
B91: EBO | C91: Residencial baixa renda | D91: 0.112 | E91: 0.088 | F91: 0.076 | G91: 0.08 | H91: 0.079 | I91: 0.077 | J91: 0.11
B92: EBO | C92: Comercial | D92: 0.219 | E92: 0.244 | F92: 0.249 | G92: 0.118 | H92: 0.244 | I92: 0.235 | J92: 0.216
B93: EBO | C93: Industrial | D93: 0.093 | E93: 0.107 | F93: 0.124 | G93: 0.256 | H93: 0.203 | I93: 0.272 | J93: 0.312
B94: EBO | C94: Rural | D94: 0.046 | E94: 0.043 | F94: 0.043 | G94: 0.043 | H94: 0.04 | I94: 0.037 | J94: 0.035
B95: EBO | C95: Iluminação pública | D95: 0.063 | E95: 0.064 | F95: 0.067 | G95: 0.059 | H95: 0.056 | I95: 0.044 | J95: 0.04
B96: EBO | C96: Serviço público | D96: 0.023 | E96: 0.021 | F96: 0.02 | G96: 0.072 | H96: 0.011 | I96: 0.013 | J96: 0.016
B97: EBO | C97: Poder público | D97: 0.05 | E97: 0.061 | F97: 0.059 | G97: 0.015 | H97: 0.054 | I97: 0.05 | J97: 0.048
B98: EBO | C98: Satisfação do cliente | D98: 2020 | E98: 2019 | F98: 2018 | G98: 2017 | H98: 2016 | I98: 2015 | J98: 2014
B99: EBO | C99: Índices de satisfação obtidos pela Pesquisa Iasc – Aneel ¹ | D99: ND | E99: 70.36 | F99: 73.1 | G99: 65.9 | H99: 78.7 | I99: 63.87 | J99: 64.77
B100: EBO | C100: Índices de satisfação obtidos por pesquisas de outras entidades e/ou pesquisas próprias – Pesquisa Abradee | D100: 86.7 | E100: 78.2 | F100: 82 | G100: 83.31 | H100: 85.5 | I100: 86.63 | J100: 87.41
B101: EBO | C101: Atendimento ao consumidor | D101: 2020 | E101: 2019 | F101: 2018 | G101: 2017 | H101: 2016 | I101: 2015 | J101: 2014
B102: EBO | C102: Call Center
B103: EBO | C103: Chamadas recebidas (unid.) | D103: 236458 | E103: 237864 | F103: 292910 | G103: 283651 | H103: 263453 | I103: 211441 | J103: 159017 | L103: Número total de chamadas recebidas no ano no call center
B104: EBO | C104: Número médio de atendentes (unid.) | D104: 73 | E104: 73 | F104: 55 | G104: 39 | H104: 26 | I104: 103 | J104: 61 | L104: Média do número de atendentes do Call Center no ano (soma dos atendentes em cada mês divdida por 12)
B105: EBO | C105: INS – Índice de Nível de Serviço (%) | D105: 0.8916 | E105: 0.9048 | F105: 0.9148 | G105: 0.9269 | H105: 0.9467 | I105: 0.9181 | J105: 0.8852 | L105: Art. 188 da Resolução Aneel nº 414, de 09/09/10
B106: EBO | C106: IAB – Índice de abandono (%) | D106: 0.0257 | E106: 0.0062 | F106: 0.0071 | G106: 0.0073 | H106: 0.0052 | I106: 0.0076 | J106: 0.0185 | L106: Art. 188 da Resolução Aneel nº 414, de 09/09/10
B107: EBO | C107: ICO – Índice de Chamadas Ocupadas (%) | D107: 0 | E107: 0 | F107: - | G107: - | H107: 0.001 | I107: 0.0011 | J107: 0.0011 | L107: Art. 188 da Resolução Aneel nº 414, de 09/09/10
B108: EBO | C108: TMA – Tempo médio de atendimento (s) | D108: 201 | E108: 205 | F108: 189 | G108: 181 | H108: 176 | I108: 178 | J108: 176 | L108: Art. 188 da Resolução Aneel nº 414, de 09/09/10
B109: EBO | C109: Indenização por danos elétricos | D109: 2020 | E109: 2019 | F109: 2018 | G109: 2017
B110: EBO | C110: Volume de solicitações (unid.) | D110: 566 | E110: 521 | F110: 545 | G110: 507 | H110: 876 | I110: 494 | J110: 742 | L110: Capítulo XVI da Resolução Aneel nº 414, de 09/09/10
B111: EBO | C111: Procedentes (unid.) | D111: 111 | E111: 97 | F111: 124 | G111: 61 | H111: 122 | I111: 80 | J111: 174 | L111: Capítulo XVI da Resolução Aneel nº 414, de 09/09/10
B112: EBO | C112: Indicadores de reclamações | D112: 2020 | E112: 2019 | F112: 2018 | G112: 2017 | H112: 2016 | I112: 2015 | J112: 2014 | L112:  Indicadores de Reclamações
B113: EBO | C113: Reclamações procedentes (unid.) 2 | D113: 22399 | E113: 20436 | F113: 21713 | G113: 19368 | H113: 40414 | I113: 1782 | J113: 3172 | L113: Art. 158 da Resolução Aneel nº 414, de 09/09/10
B114: EBO | C114: DER (horas) | D114: 158.69 | E114: 258.85 | F114: 175.78 | G114: 279.57 | H114: 402.67 | I114: 287.64 | J114: 284.94 | L114: Art. 158 da Resolução Aneel nº 414, de 09/09/10
B115: EBO | C115: FER (unid.) | D115: 5.05 | E115: 9.57 | F115: 5.42 | G115: 5.75 | H115: 5.35 | I115: 8.3 | J115: 15.14 | L115: Art. 158 da Resolução Aneel nº 414, de 09/09/10
B116: EBO | C116: Violação de prazos de serviços comerciais | D116: 2020 | E116: 2019 | F116: 2018 | G116: 2017
B117: EBO | C117: Atendimentos realizados (unid.) | D117: 71286 | E117: 95604 | F117: 82376 | G117: 65053 | H117: 58288 | I117: 54748 | J117: 51833 | L117: Art. 154 da Resolução Aneel nº 414, de 09/09/10
B118: EBO | C118: Atendimentos realizados fora do prazo (unid.) | D118: 1527 | E118: 1610 | F118: 3964 | G118: 2700 | H118: 2171 | I118: 2430 | J118: 2202 | L118: Art. 154 da Resolução Aneel nº 414, de 09/09/10
B119: EBO | C119: Eficiência de atendimento (%) | D119: 0.9786 | E119: 0.9832 | F119: 0.9519 | G119: 0.9585 | H119: 0.9628 | I119: 0.9556 | J119: 0.9575 | L119: (Nº total de atendimentos realizados menos atendimentos realizados fora do prazo) dividido por nº total de atendimentos
B120: EBO | C120: Número de reclamações de consumidores encaminhadas | G120: 2017 | H120: 2016 | I120: 2015
B121: EBO | C121: À empresa | D121: 32867 | E121: 30729 | F121: 32706 | G121: 31637 | H121: 58783 | I121: 3033 | J121: 4578 | L121: Nº total de reclamações encaminhadas à empresa pelos canais de atendimento tradicionais (Call Center, agências, internet, etc)
B122: EBO | C122: À Aneel – agências estaduais/regionais | D122: 131 | E122: 130 | F122: 93 | G122: 149 | H122: 432 | I122: 189 | J122: 136 | L122: Nº total de reclamações encaminhadas diretamente à Aneel e recebidas pela Ouvidoria da outorgada
B123: EBO | C123: Ao Procon | D123: 63 | E123: 24 | F123: 58 | G123: 10 | H123: 9 | I123: 13 | J123: 7 | L123: Nº total de reclamações encaminhadas diretamente ao Procon e recebidas pela Ouvidoria da outorgada
B124: EBO | C124: Excelência no atendimento | D124: 350 | E124: 319 | F124: 450 | G124: 772 | H124: 386 | I124: 187 | J124: 178 | L124: Nº total de reclamações acompanhadas pelo Jurídico à Justiça ou que evoluíram para ações na Justiça a partir que na justiça a partir de reclamações no Procon
B125: EBO | C125: 1 A pesquisa Iasc Aneel 2020 não havia sido divulgada até a data de publicação deste relatório.
B126: EBO | C126: 2 São consideradas todas as reclamações do Anexo I, inclusive danos elétricos, nível de tensão e interrupção de fornecimento.
B128: EMS | C128: Excelência no atendimento | D128: 2020 | E128: 2019 | F128: 2018 | G128: 2017 | H128: 2016 | I128: 2015 | J128: 2014 | L128: PROTOCOLO ANEEL - Considerar dados de 31 de dezembro
B129: =$B$128 -> EMS | C129: Perfil de consumidores e clientes
B130: =$B$128 -> EMS | C130: Venda de energia por classe tarifária (GWh): % Total | D130: 100,0% | E130: 100,0% | F130: 100,0% | G130: 100,0% | H130: 100,0% | I130: 100,0% | J130: 100,0%
B131: EMS | C131: Residencial | D131: 0.396 | E131: 0.383 | F131: 0.376 | G131: 0.371 | H131: 0.351 | I131: 0.311 | J131: 0.3
B132: EMS | C132: Residencial baixa renda | D132: 0.066 | E132: 0.055 | F132: 0.048 | G132: 0.044 | H132: 0.042 | I132: 0.065 | J132: 0.07
B133: EMS | C133: Comercial | D133: 0.21 | E133: 0.231 | F133: 0.237 | G133: 0.075 | H133: 0.241 | I133: 0.244 | J133: 0.242
B134: EMS | C134: Industrial | D134: 0.065 | E134: 0.066 | F134: 0.07 | G134: 0.241 | H134: 0.105 | I134: 0.13 | J134: 0.141
B135: EMS | C135: Rural | D135: 0.133 | E135: 0.125 | F135: 0.126 | G135: 0.123 | H135: 0.113 | I135: 0.106 | J135: 0.106
B136: EMS | C136: Iluminação pública | D136: 0.047 | E136: 0.049 | F136: 0.053 | G136: 0.058 | H136: 0.051 | I136: 0.05 | J136: 0.048
B137: EMS | C137: Serviço público | D137: 0.037 | E137: 0.034 | F137: 0.035 | G137: 0.054 | H137: 0.054 | I137: 0.038 | J137: 0.038
B138: EMS | C138: Poder público | D138: 0.047 | E138: 0.057 | F138: 0.056 | G138: 0.034 | H138: 0.043 | I138: 0.056 | J138: 0.055
B139: EMS | C139: Satisfação do cliente | D139: 2020 | E139: 2019 | F139: 2018 | G139: 2017 | H139: 2016 | I139: 2015 | J139: 2014
B140: EMS | C140: Índices de satisfação obtidos pela Pesquisa Iasc – Aneel 1 | D140: ND | E140: 63.04 | F140: 66.83 | G140: 64.44 | H140: 66.85 | I140: 50.29 | J140: 68.5
B141: EMS | C141: Índices de satisfação obtidos por pesquisas de outras entidades e/ou pesquisas próprias – Pesquisa Abradee | D141: 75.9 | E141: 67.2 | F141: 78.5 | G141: 82.6 | H141: 72.1 | I141: 77.9 | J141: 87.2
B142: EMS | C142: Atendimento ao consumidor | E142: 2019 | F142: 2018 | G142: 2017 | H142: 2016 | I142: 2015 | J142: 2014
B143: EMS | C143: Call Center
B144: EMS | C144: Chamadas recebidas (unid.) | D144: 2312695 | E144: 1956538 | F144: 1868493 | G144: 1673738 | H144: 1.584.790 | I144: 1.125.666 | J144: 1157047 | L144: Número total de chamadas recebidas no ano no call center
B145: EMS | C145: Número médio de atendentes (unid.) | D145: 556 | E145: 30 | F145: 35 | G145: 20 | H145: 55 | I145: 42 | J145: 23 | L145: Média do número de atendentes do Call Center no ano (soma dos atendentes em cada mês divdida por 12)
B146: EMS | C146: INS – Índice de Nível de Serviço (%) | D146: 0.8539 | E146: 0.8866 | F146: 0.898 | G146: 0.903 | H146: 0.948 | I146: 0.8882 | J146: 94.17 | L146: Art. 188 da Resolução Aneel nº 414, de 09/09/10
B147: EMS | C147: IAB – Índice de abandono (%) | D147: 0.0343 | E147: 0.0186 | F147: 0.0082 | G147: 0.0085 | H147: 0.0059 | I147: 0.0136 | J147: 0.63 | L147: Art. 188 da Resolução Aneel nº 414, de 09/09/10
B148: EMS | C148: ICO – Índice de Chamadas Ocupadas (%) | D148: 0 | E148: 0 | F148: 0 | G148: 0 | H148: 0.0025 | I148: 0.0085 | J148: 0.92 | L148: Art. 188 da Resolução Aneel nº 414, de 09/09/10
B149: EMS | C149: TMA – Tempo médio de atendimento (s) | D149: 214 | E149: 195 | F149: 178 | G149: 167 | H149: 177 | I149: 192 | J149: 180 | L149: Art. 188 da Resolução Aneel nº 414, de 09/09/10
B150: EMS | C150: Indenização por danos elétricos | D150: 2020 | G150: 2017
B151: EMS | C151: Volume de solicitações (unid.) | D151: 3074 | E151: 3443 | F151: 2925 | G151: 3638 | H151: 4498 | I151: 3851 | J151: 3197 | L151: Capítulo XVI da Resolução Aneel nº 414, de 09/09/10
B152: EMS | C152: Procedentes (unid.) | D152: 518 | E152: 566 | F152: 406 | G152: 593 | H152: 874 | I152: 2100 | J152: 1928 | L152: Capítulo XVI da Resolução Aneel nº 414, de 09/09/10
B153: EMS | C153: Indicadores de reclamações | D153: 2020 | E153: 2019 | F153: 2018 | G153: 2017 | H153: 2016 | I153: 2015 | J153: 2014 | L153:  Indicadores de Reclamações
B154: EMS | C154: Reclamações procedentes (unid.) | D154: 13860 | E154: 18211 | F154: 14036 | G154: 8690 | H154: 412929 | I154: 403292 | J154: 370758 | L154: Art. 158 da Resolução Aneel nº 414, de 09/09/10
B155: EMS | C155: DER (horas) | D155: 221.57 | E155: 164.11 | F155: 130.03 | G155: 105.72 | H155: 124.84 | I155: 285.36 | J155: 141.73 | L155: Art. 158 da Resolução Aneel nº 414, de 09/09/10
B156: EMS | C156: FER (unid.) | D156: 12.097 | E156: 16.48 | F156: 13.17 | G156: 8.69 | H156: 15.17 | I156: 26.66 | J156: 17.35 | L156: Art. 158 da Resolução Aneel nº 414, de 09/09/10
B157: EMS | C157: Violação de prazos de serviços comerciais | D157: 2020 | G157: 2017
B158: EMS | C158: Atendimentos realizados (unid.) | D158: 422111 | E158: 572476 | F158: 514857 | G158: 469325 | H158: 475733 | I158: 454722 | J158: ND | L158: Art. 154 da Resolução Aneel nº 414, de 09/09/10
B159: EMS | C159: Atendimentos realizados fora do prazo (unid.) | D159: 15126 | E159: 28937 | F159: 41145 | G159: 12540 | H159: 33159 | I159: 55021 | J159: ND | L159: Art. 154 da Resolução Aneel nº 414, de 09/09/10
B160: EMS | C160: Eficiência de atendimento (%) | D160: 0.9642 | E160: 0.9495 | F160: 0.9201 | G160: 0.9733 | H160: 0.9303 | I160: 0.879 | J160: ND | L160: (Nº total de atendimentos realizados menos atendimentos realizados fora do prazo) dividido por nº total de atendimentos
B161: EMS | C161: Número de reclamações de consumidores encaminhadas | D161: 2020 | E161: 2019 | F161: 2018 | G161: 2017
B162: EMS | C162: À empresa | D162: 39974 | E162: 42015 | F162: 27591 | G162: 19910 | H162: 507527 | I162: 488473 | J162: 442005 | L162: Nº total de reclamações encaminhadas à empresa pelos canais de atendimento tradicionais (Call Center, agências, internet, etc)
B163: EMS | C163: À Aneel – agências estaduais/regionais | D163: 1151 | E163: 2133 | F163: 1639 | G163: 700 | H163: 609 | I163: 1065 | J163: 1667 | L163: Nº total de reclamações encaminhadas diretamente à Aneel e recebidas pela Ouvidoria da outorgada
B164: EMS | C164: Ao Procon | D164: 2424 | E164: 2141 | F164: 4707 | G164: 1898 | H164: 1648 | I164: 2948 | J164: 1346 | L164: Nº total de reclamações encaminhadas diretamente ao Procon e recebidas pela Ouvidoria da outorgada
B165: EMS | C165: À Justiça | D165: 2343 | E165: 3443 | F165: 3008 | G165: 2483 | H165: 2294 | I165: 2568 | J165: 1732 | L165: Nº total de reclamações acompanhadas pelo Jurídico à Justiça ou que evoluíram para ações na Justiça a partir que na justiça a partir de reclamações no Procon
B166: EMS | C166: 1 A pesquisa Iasc Aneel 2020 não havia sido divulgada até a data de publicação deste relatório.
B168: EMT | C168: Excelência no atendimento | D168: 2020 | E168: 2019 | F168: 2018 | G168: 2017 | H168: 2016 | I168: 2015 | J168: 2014 | L168: PROTOCOLO ANEEL - Considerar dados de 31 de dezembro
B169: =$B$168 -> EMT | C169: Perfil de consumidores e clientes
B170: =$B$168 -> EMT | C170: Venda de energia por classe tarifária (GWh): % Total | D170: 100,0% | E170: 100,0% | F170: 100,0% | G170: 100,0% | H170: 100,0% | I170: 100,0% | J170: 100,0%
B171: EMT | C171: Residencial | D171: 0.386 | E171: 0.368 | F171: 0.36 | G171: 0.356 | H171: 0.348 | I171: 0.338 | J171: 0.361
B172: EMT | C172: Residencial baixa renda | D172: 0.047 | E172: 0.038 | F172: 0.036 | G172: 0.039 | H172: 0.037 | I172: 0.033 | J172: 0.048
B173: EMT | C173: Comercial | D173: 0.191 | E173: 0.212 | F173: 0.216 | G173: 0.094 | H173: 0.223 | I173: 0.232 | J173: 0.229
B174: EMT | C174: Industrial | D174: 0.083 | E174: 0.087 | F174: 0.09 | G174: 0.217 | H174: 0.109 | I174: 0.129 | J174: 0.143
B175: EMT | C175: Rural | D175: 0.182 | E175: 0.166 | F175: 0.167 | G175: 0.161 | H175: 0.153 | I175: 0.142 | J175: 0.141
B176: EMT | C176: Iluminação pública | D176: 0.043 | E176: 0.027 | F176: 0.053 | G176: 0.054 | H176: 0.048 | I176: 0.047 | J176: 0.045
B177: EMT | C177: Serviço público | D177: 0.048 | E177: 0.053 | F177: 0.028 | G177: 0.052 | H177: 0.028 | I177: 0.026 | J177: 0.027
B178: EMT | C178: Poder público | D178: 0.022 | E178: 0.049 | F178: 0.051 | G178: 0.027 | H178: 0.054 | I178: 0.053 | J178: 0.052
B179: EMT | C179: Satisfação do cliente | D179: 2020 | E179: 2019 | F179: 2018 | G179: 2017 | H179: 2016 | I179: 2015 | J179: 2014
B180: EMT | C180: Índices de satisfação obtidos pela Pesquisa Iasc – Aneel 1 | D180: ND | E180: 61.42 | F180: 63.9 | G180: 55.67 | H180: 52.87 | I180: 44.8 | J180: 68.29
B181: EMT | C181: Índices de satisfação obtidos por pesquisas de outras entidades e/ou pesquisas próprias – Pesquisa Abradee | D181: 71.5 | E181: 71.3 | F181: 75.6 | G181: 77.66 | H181: 78.9 | I181: 81.4 | J181: 84.9
B182: EMT | C182: Atendimento ao consumidor | D182: 2020 | E182: 2019 | F182: 2018 | G182: 2017 | H182: 2016 | I182: 2015 | J182: 2014
B183: EMT | C183: Call Center
B184: EMT | C184: Chamadas recebidas (unid.) | D184: 2881212 | E184: 2684429 | F184: 2772757 | G184: 3011475 | H184: 2589328 | I184: 2687689 | J184: 2882971 | L184: Número total de chamadas recebidas no ano no call center
B185: EMT | C185: Número médio de atendentes (unid.) | D185: 83 | E185: 75 | F185: 69 | G185: 73 | H185: 37 | I185: 50 | J185: 46 | L185: Média do número de atendentes do Call Center no ano (soma dos atendentes em cada mês divdida por 12)
B186: EMT | C186: INS – Índice de Nível de Serviço (%) | D186: 0.8533 | E186: 0.8915 | F186: 0.8977 | G186: 0.8645 | H186: 0.9297 | I186: 0.8296 | J186: 0.9161 | L186: Art. 188 da Resolução Aneel nº 414, de 09/09/10
B187: EMT | C187: IAB – Índice de abandono (%) | D187: 0.0351 | E187: 0.0158 | F187: 0.0135 | G187: 0.0182 | H187: 0.0139 | I187: 0.0456 | J187: 1.8 | L187: Art. 188 da Resolução Aneel nº 414, de 09/09/10
B188: EMT | C188: ICO – Índice de Chamadas Ocupadas (%) | D188: 0 | E188: 0 | F188: 0 | G188: 0 | H188: 0.0016 | I188: 0.2174 | J188: 3.78 | L188: Art. 188 da Resolução Aneel nº 414, de 09/09/10
B189: EMT | C189: TMA – Tempo Médio de Atendimento (s) | D189: 218 | E189: 199 | F189: 189 | G189: 186 | H189: 199 | I189: 231 | J189: 268 | L189: Art. 188 da Resolução Aneel nº 414, de 09/09/10
B190: EMT | C190: Indenização por danos elétricos | D190: 2020 | E190: 2019 | F190: 2018 | G190: 2017 | H190: 2016 | I190: 2015 | J190: 2014
B191: EMT | C191: Volume de solicitações (unid.) | D191: 5906 | E191: 7477 | F191: 7897 | G191: 8814 | H191: 7953 | I191: 8011 | J191: 6036 | L191: Capítulo XVI da Resolução Aneel nº 414, de 09/09/10
B192: EMT | C192: Procedentes (unid.) | D192: 1137 | E192: 2273 | F192: 1974 | G192: 1742 | H192: 1396 | I192: 1427 | J192: 1415 | L192: Capítulo XVI da Resolução Aneel nº 414, de 09/09/10
B193: EMT | C193: Indicadores de reclamações | D193: 2020 | E193: 2019 | F193: 2018 | G193: 2017 | H193: 2016 | I193: 2015 | J193: 2014 | L193:  Indicadores de Reclamações
B194: EMT | C194: Reclamações procedentes (unid.) | D194: 425124 | E194: 511288 | F194: 443505 | G194: 374528 | H194: 415323 | I194: 453731 | J194: 12468 | L194: Art. 158 da Resolução Aneel nº 414, de 09/09/10
B195: EMT | C195: DER (horas) | D195: 319.6 | E195: 188.82 | F195: 161.25 | G195: 199.32 | H195: 157.52 | I195: 249.37 | J195: 208.07 | L195: Art. 158 da Resolução Aneel nº 414, de 09/09/10
B196: EMT | C196: FER (unid.) | D196: 11.366 | E196: 13.094 | F196: 9.97 | G196: 8.67 | H196: 7.79 | I196: 9.58 | J196: 9.82 | L196: Art. 158 da Resolução Aneel nº 414, de 09/09/10
B197: EMT | C197: Violação de prazos de serviços comerciais | D197: 2020 | E197: 2019 | F197: 2018 | G197: 2017 | H197: 2016 | I197: 2015 | J197: 2014
B198: EMT | C198: Atendimentos realizados (unid.) | D198: 594476 | E198: 748820 | F198: 762291 | G198: 710420 | H198: 582618 | I198: 726494 | J198: 767828 | L198: Art. 154 da Resolução Aneel nº 414, de 09/09/10
B199: EMT | C199: Atendimentos realizados fora do prazo (unid.) | D199: 37092 | E199: 31210 | F199: 32086 | G199: 36329 | H199: 31474 | I199: 20655 | J199: 8458 | L199: Art. 154 da Resolução Aneel nº 414, de 09/09/10
B200: EMT | C200: Eficiência de atendimento (%) | D200: 0.9376 | E200: 0.9583 | F200: 0.9579 | G200: 0.9489 | H200: 0.946 | I200: 0.972 | J200: 0.989 | L200: (Nº total de atendimentos realizados menos atendimentos realizados fora do prazo) dividido por nº total de atendimentos
B201: EMT | C201: Número de reclamações de consumidores encaminhadas | D201: 2020 | E201: 2019 | F201: 2018 | G201: 2017 | H201: 2016 | I201: 2015 | J201: 2014
B202: EMT | C202: À empresa | D202: 582856 | E202: 678222 | F202: 665376 | G202: 648038 | H202: 679371 | I202: 763281 | J202: 684800 | L202: Nº total de reclamações encaminhadas à empresa pelos canais de atendimento tradicionais (Call Center, agências, internet, etc)
B203: EMT | C203: À Aneel – agências estaduais/regionais | D203: 3361 | E203: 2430 | F203: 2210 | G203: 2887 | H203: 2356 | I203: 2788 | J203: 931 | L203: Nº total de reclamações encaminhadas diretamente à Aneel e recebidas pela Ouvidoria da outorgada
B204: EMT | C204: Ao Procon | D204: 9972 | E204: 14173 | F204: 8815 | G204: 7462 | H204: 5708 | I204: 8754 | J204: 4109 | L204: Nº total de reclamações encaminhadas diretamente ao Procon e recebidas pela Ouvidoria da outorgada
B205: EMT | C205: À Justiça | D205: 9061 | E205: 11281 | F205: 12894 | G205: 11354 | H205: 13795 | I205: 3759 | J205: 4258 | L205: Nº total de reclamações acompanhadas pelo Jurídico à Justiça ou que evoluíram para ações na Justiça a partir que na justiça a partir de reclamações no Procon
B206: EMT | C206: 1 A pesquisa Iasc Aneel 2020 não havia sido divulgada até a data de publicação deste relatório.
... 249 more rows

Sheet Comunidades
C1: Sociais externos | Selecione a empresa Comunidades
B4: EMG | C4: Excelência no atendimento | D4: 2020 | E4: 2019 | F4: 2018 | G4: 2017 | H4: 2016 | I4: 2015 | J4: 2014
B5: =$B$4 -> EMG | C5: Número total de acidentes sem óbito com a população | D5: 3 | E5: 4 | F5: 7 | G5: 4 | H5: 6 | I5: 7 | J5: 2
B6: =$B$4 -> EMG | C6: Número total de acidentes com óbito com a população | D6: 1 | E6: 1 | F6: 3 | G6: 2 | H6: 2 | I6: 1 | J6: 0
B7: EMG | C7: Demandas judiciais decorrentes de acidentes com a população – Base Contencioso Geral | D7: 1 | E7: 4 | F7: 5 | G7: 3 | H7: 4 | I7: 7 | J7: 2
B8: EMG | C8: Tarifa de baixa renda | D8: 2020 | E8: 2019 | F8: 2018 | G8: 2017 | H8: 2016 | I8: 2015 | J8: 2014
B9: EMG | C9: Número de domicílios atendidos como “baixa renda” | D9: 77129 | E9: 65694 | F9: 56805 | G9: 56287 | H9: 55979 | I9: 55894 | J9: 96018
B10: EMG | C10: Total de domicílios “baixa renda” do total de domicílios atendidos (clientes/consumidores residenciais) (%) | D10: 0.218 | E10: 0.19 | F10: 0.17 | G10: 0.17 | H10: 0.172 | I10: 0.174 | J10: 0.304
B11: EMG | C11: Receita de faturamento na subclasse residencial “baixa renda” (R$ mil) | D11: 62615 | E11: 60284 | F11: 53227 | G11: 47909 | H11: 41270 | I11: 42445 | J11: 52620.73
B12: EMG | C12: Total da receita de faturamento na subclasse residencial “baixa renda” em relação ao total da receita de faturamento da classe residencial (%) | D12: 0.116 | E12: 0.115 | F12: 0.13 | G12: 0.12 | H12: 0.11 | I12: 0.123 | J12: 0.223
B13: EMG | C13: Subsídio recebido relativo aos consumidores “baixa renda” (R$ mil) | D13: 29309 | E13: 17656 | F13: 16837 | G13: 17125 | H13: 13357 | I13: 13753 | J13: 21024
B14: EMG | C14: Envolvimento da empresa com ação social | D14: 2020 | E14: 2019 | F14: 2018 | G14: 2017 | H14: 2016 | I14: 2015 | J14: 2014
B15: EMG | C15: Recursos aplicados em educação (R$ mil) | D15: 178 | E15: 440 | F15: 570 | G15: 494 | H15: 478 | I15: 574 | J15: 408
B16: EMG | C16: Recursos aplicados em saúde e saneamento (R$ mil) | D16: - | E16: - | F16: - | G16: - | H16: 0 | I16: 0 | J16: 0
B17: EMG | C17: Recursos aplicados em cultura (R$ mil) | D17: 1.343 | E17: 1.332 | F17: 1102 | G17: 1158 | H17: 1111 | I17: 1237 | J17: 1336
B18: EMG | C18: Recursos aplicados em esportes (R$ mil) | D18: 22 | E18: 35 | F18: 22 | G18: 29 | H18: 31 | I18: 0 | J18: 47
B19: EMG | C19: Outros recursos aplicados em ações sociais (R$ mil) | D19: 818 | E19: 214 | F19: 252 | G19: 156 | H19: 359 | I19: 307 | J19: 191
B20: EMG | C20: Empregados que realizam trabalhos voluntários na comunidade externa à empresa/total de empregados (%) | D20: 0.007 | E20: 0.0003 | F20: 0.021 | G20: 0.006 | H20: 0.003 | I20: 0.005 | J20: 0.01
B21: EMG | C21: Quantidade de horas mensais doadas (liberadas do horário normal de trabalho) pela empresa para trabalho voluntário de funcionários 1 | D21: 0 | E21: 1.33 | F21: 0.67 | G21: 3.17 | H21: 0 | I21: 0 | J21: 55
B22: EMG | C22: Envolvimento da empresa em projetos culturais, esportivos, sociais (Lei Rouanet, Lei de Incentivo ao Esporte, Pronon, Pronas, Fundo da Infância e Adolescência, Fundo do Idoso) | D22: 2020 | E22: 2019 | F22: 2018 | G22: 2017 | H22: 2016 | I22: 2015 | J22: 2014
B23: EMG | C23: Montante de recursos destinados aos projetos (R$ mil) | D23: 3012 | E23: 8.543 | F23: 6114 | G23: 2014 | H23: 3791 | I23: 119 | J23: 3465
B24: EMG | C24: Montante de recursos destinados ao maior projeto (R$ mil) | D24: 610 | E24: 750 | F24: 700 | G24: 500 | H24: 700 | I24: 90 | J24: 600
B25: EMG | C25: Nome do projeto | D25: Fábrica do Futuro Estúdio Escola | E25: Derrapada | F25: Fábrica do Futuro – Estúdio Escola | G25: Filme Maria do Caritó | H25: Projeto Estúdio Escola | I25: Banda Musical Princesa Leopoldina | J25: Projeto Estúdio Escola
B26: EMG | C26: Proponente | D26: Instituto Fábrica do Futuro | E26: Camisa Listrada BH Produções Audiovisuais Ltda. | F26: Instituto Fábrica do Futuro | G26: Versão Final Produção e Comunicação Ltda. | H26: Instituto Fábrica do Futuro | I26: Banda Musical Princesa Leopoldina | J26: Instituto Fábrica do Futuro
B27: EMG | C27: ¹ Correção anos 2018 e 2017, considerando horas mensais. Valor anterior estava como horas doadas/ano.
B29: EAC | C29: Impactos causados na saúde e segurança | D29: 2020 | E29: 2019 | F29: 2018 | G29: 2017 | H29: 2016
B30: =$B$29 -> EAC | C30: Número total de acidentes sem óbito com a população | D30: 4 | E30: 2 | F30: 4 | G30: 11 | H30: 6
B31: =$B$29 -> EAC | C31: Número total de acidentes com óbito com a população | D31: 6 | E31: 2 | F31: 2 | G31: 1 | H31: 1
B32: EAC | C32: Demandas judiciais decorrentes de acidentes com a população – Base Contencioso Geral | D32: 3 | E32: 5 | F32: 2 | G32: 10 | H32: 8
B33: EAC | C33: Tarifa de baixa renda | D33: 2020 | E33: 2019 | F33: 2018 | G33: 2017 | H33: 2016
B34: EAC | C34: Número de domicílios atendidos como “baixa renda” | D34: 63891 | E34: 54885 | F34: 31655 | G34: 30079 | H34: 39914
B35: EAC | C35: Total de domicílios “baixa renda” do total de domicílios atendidos (clientes/consumidores residenciais) (%) | D35: 0.229 | E35: 0.36 | F35: 0.151 | G35: 0.128 | H35: 0.1668
B36: EAC | C36: Receita de faturamento na subclasse residencial “baixa renda” (R$ mil) | D36: 54197 | E36: 30823 | F36: 17137 | G36: 15765 | H36: 21020
B37: EAC | C37: Total da receita de faturamento na subclasse residencial “baixa renda” em relação ao total da receita de faturamento da classe residencial (%) | D37: 0.064 | E37: 0.133 | F37: 0.074 | G37: 0.071 | H37: 0.1062
B38: EAC | C38: Subsídio recebido relativo aos consumidores “baixa renda” (R$ mil) | D38: 25444 | E38: 14596 | F38: 11375 | G38: 9118 | H38: 9374.33
B39: EAC | C39: Envolvimento da empresa com ação social | D39: 2020 | E39: 2019 | F39: 2018 | G39: 2017 | H39: 2016
B40: EAC | C40: Recursos aplicados em educação (R$ mil) | D40: - | E40: - | F40: - | G40: - | H40: -
B41: EAC | C41: Recursos aplicados em saúde e saneamento (R$ mil) | D41: - | E41: - | F41: - | G41: - | H41: -
B42: EAC | C42: Recursos aplicados em cultura (R$ mil) | D42: - | E42: - | F42: - | G42: - | H42: -
B43: EAC | C43: Recursos aplicados em esportes (R$ mil) | D43: - | E43: - | F43: - | G43: - | H43: -
B44: EAC | C44: Outros recursos aplicados em ações sociais (R$ mil) | D44: - | E44: - | F44: - | G44: - | H44: -
B45: EAC | C45: Empregados que realizam trabalhos voluntários na comunidade externa à empresa/total de empregados (%) | D45: - | E45: - | F45: - | G45: - | H45: -
B46: EAC | C46: Quantidade de horas mensais doadas (liberadas do horário normal de trabalho) pela empresa para trabalho voluntário de funcionários | D46: - | E46: - | F46: - | G46: - | H46: -
B47: EAC | C47: Envolvimento da empresa em projetos culturais, esportivos, sociais (Lei Rouanet, Lei de Incentivo ao Esporte, Pronon, Pronas, Fundo da Infância e Adolescência, Fundo do Idoso) | D47: 2020 | E47: 2019 | F47: 2018 | G47: 2017 | H47: 2016
B48: EAC | C48: Montante de recursos destinados aos projetos (R$ mil) | D48: - | E48: - | F48: - | G48: - | H48: -
B49: EAC | C49: Montante de recursos destinados ao maior projeto (R$ mil) | D49: - | E49: - | F49: - | G49: - | H49: -
B50: EAC | C50: Nome do projeto | D50: - | E50: - | F50: - | G50: - | H50: -
B51: EAC | C51: Proponente | D51: - | E51: - | F51: - | G51: - | H51: -
B53: EBO | C53: Impactos causados na saúde e segurança | D53: 2020 | E53: 2019 | F53: 2018 | G53: 2017 | H53: 2016 | I53: 2015 | J53: 2014
B54: =$B$53 -> EBO | C54: Número total de acidentes sem óbito com a população | D54: 5 | E54: 3 | F54: 0 | G54: 1 | H54: 0 | I54: 1 | J54: 1
B55: =$B$53 -> EBO | C55: Número total de acidentes com óbito com a população | D55: 0 | E55: 0 | F55: 1 | G55: 3 | H55: 0 | I55: 2 | J55: 0
B56: EBO | C56: Demandas judiciais decorrentes de acidentes com a população – Base Contencioso Geral | D56: 2 | E56: 0 | F56: 0 | G56: 1 | H56: 0 | I56: 1 | J56: 0
B57: EBO | C57: Tarifa de baixa renda | D57: 2020 | E57: 2019 | F57: 2018 | G57: 2017 | H57: 2016 | I57: 2015 | J57: 2014
B58: EBO | C58: Número de domicílios atendidos como “baixa renda” | D58: 54239 | E58: 47158 | F58: 39018 | G58: 39637 | H58: 42466 | I58: 40430 | J58: 61749
B59: EBO | C59: Total de domicílios “baixa renda” do total de domicílios atendidos (clientes/consumidores residenciais) (%) | D59: 0.283 | E59: 0.252 | F59: 0.216 | G59: 0.223 | H59: 0.241 | I59: 0.234 | J59: 0.375
B60: EBO | C60: Receita de faturamento na subclasse residencial “baixa renda” (R$ mil) | D60: 27624 | E60: 26506 | F60: 26614 | G60: 22936 | H60: 20881 | I60: 21823 | J60: 21364
B61: EBO | C61: Total da receita de faturamento na subclasse residencial “baixa renda” em relação ao total da receita de faturamento da classe residencial (%) | D61: 0.1324 | E61: 0.129 | F61: 0.159 | G61: 0.1625 | H61: 0.149 | I61: 0.158 | J61: 0.251
B62: EBO | C62: Subsídio recebido relativo aos consumidores “baixa renda” (R$ mil) | D62: 15690 | E62: 9835 | F62: 9269 | G62: 8325 | H62: 8848 | I62: 8310 | J62: 9012
B63: EBO | C63: Envolvimento da empresa com ação social | D63: 2020 | E63: 2019 | F63: 2018 | G63: 2017 | H63: 2016 | I63: 2015 | J63: 2014
B64: EBO | C64: Recursos aplicados em educação (R$ mil) | D64: 45 | E64: 183 | F64: 154 | G64: 119 | H64: 0 | I64: 0 | J64: 0
B65: EBO | C65: Recursos aplicados em saúde e saneamento (R$ mil) | D65: - | E65: - | F65: - | G65: - | H65: 30 | I65: 46 | J65: 38
B66: EBO | C66: Recursos aplicados em cultura (R$ mil) | D66: 294 | E66: 254 | F66: 337 | G66: 269 | H66: 96 | I66: 172 | J66: 179
B67: EBO | C67: Recursos aplicados em esportes (R$ mil) | D67: 10 | E67: 36 | F67: 10 | G67: 20 | H67: 15 | I67: 23 | J67: 19
B68: EBO | C68: Outros recursos aplicados em ações sociais (R$ mil) | D68: 1 | E68: 158 | F68: 48 | G68: 6 | H68: 75 | I68: 8 | J68: 20
B69: EBO | C69: Empregados que realizam trabalhos voluntários na comunidade externa à empresa/total de empregados (%) | D69: - | E69: - | F69: - | G69: - | H69: - | I69: - | J69: -
B70: EBO | C70: Quantidade de horas mensais doadas (liberadas do horário normal de trabalho) pela empresa para trabalho voluntário de funcionários | D70: - | E70: - | F70: - | G70: - | H70: - | I70: - | J70: -
B71: EBO | C71: Envolvimento da empresa em projetos culturais, esportivos, sociais (Lei Rouanet, Lei de Incentivo ao Esporte, Pronon, Pronas, Fundo da Infância e Adolescência, Fundo do Idoso) | D71: 2020 | E71: 2019 | F71: 2018 | G71: 2017 | H71: 2016 | I71: 2015 | J71: 2014
B72: EBO | C72: Montante de recursos destinados aos projetos (R$ mil) | D72: 72 | E72: 179 | F72: 92 | G72: 121 | H72: 170 | I72: 170 | J72: 154
B73: EBO | C73: Montante de recursos destinados ao maior projeto (R$ mil) | D73: 42 | E73: 118 | F73: 42 | G73: 33 | H73: 50 | I73: 70 | J73: 48
B74: EBO | C74: Nome do projeto | D74: Oficinas de Canto | E74: Orquestra Jovem | F74: Ocupação Usina de Artes Visuais | G74: Orquestra Jovem | H74: Usina Cultural Energisa – Ocupação de Artes Visuais | I74: Orquestra Jovem | J74: Cineclube
B75: EBO | C75: Proponente | D75: Fundação Ueze Elias Zahran | E75: Instituto Banese | F75: Dyogenes Chaves Gomes | G75: Instituto Banese | H75: Dyogenes Chaves Atelier Ltda. | I75: Instituto Banese | J75: Instituto Fábrica do Futuro
B77: EMS | C77: Impactos causados na saúde e segurança | D77: 2020 | E77: 2019 | F77: 2018 | G77: 2017 | H77: 2016 | I77: 2015 | J77: 2014
B78: =$B$77 -> EMS | C78: Número total de acidentes sem óbito com a população | D78: 9 | E78: 9 | F78: 5 | G78: 4 | H78: 3 | I78: 3 | J78: 7
B79: =$B$77 -> EMS | C79: Número total de acidentes com óbito com a população | D79: 3 | E79: 8 | F79: 5 | G79: 4 | H79: 4 | I79: 4 | J79: 10
B80: EMS | C80: Demandas judiciais decorrentes de acidentes com a população – Base Contencioso Geral | D80: 16 | E80: 26 | F80: 48 | G80: 39 | H80: 37 | I80: 45 | J80: 53
B81: EMS | C81: Tarifa de baixa renda | D81: 2020 | E81: 2019 | F81: 2018 | G81: 2017 | H81: 2016 | I81: 2015 | J81: 2014
B82: EMS | C82: Número de domicílios atendidos como “baixa renda” | D82: 165905 | E82: 121068 | F82: 115974 | G82: 115974 | H82: 104173 | I82: 133467 | J82: 176806
B83: EMS | C83: Total de domicílios “baixa renda” do total de domicílios atendidos (clientes/consumidores residenciais) (%) | D83: 0.1557 | E83: 0.15 | F83: 0.11 | G83: 0.11 | H83: 0.13 | I83: 0.17 | J83: 0.234
B84: EMS | C84: Receita de faturamento na subclasse residencial “baixa renda” (R$ mil) | D84: 141125 | E84: 128797 | F84: 101501 | G84: 101501 | H84: 58725 | I84: 63202 | J84: 71659
B85: EMS | C85: Total da receita de faturamento na subclasse residencial “baixa renda” em relação ao total da receita de faturamento da classe residencial (%) | D85: 0.0633 | E85: 0.094 | F85: 0.032 | G85: 0.032 | H85: 0.072 | I85: 0.081 | J85: 0.135
B86: EMS | C86: Subsídio recebido relativo aos consumidores “baixa renda” (R$ mil) | D86: 72252 | E86: 36340 | F86: 31609 | G86: 31609 | H86: 30211 | I86: 30518 | J86: 35453
B87: EMS | C87: Envolvimento da empresa com ação social | D87: 2020 | E87: 2019 | F87: 2018 | G87: 2017 | H87: 2016 | I87: 2015 | J87: 2014
B88: EMS | C88: Recursos aplicados em educação (R$ mil) | D88: 329 | E88: 1.152 | F88: 409 | G88: 406 | H88: 0 | I88: 0 | J88: ND
B89: EMS | C89: Recursos aplicados em saúde e saneamento (R$ mil) | D89: - | E89: - | F89: - | G89: 31 | H89: 35 | I89: 64 | J89: ND
B90: EMS | C90: Recursos aplicados em cultura (R$ mil) | D90: 1126 | E90: 887 | F90: 539 | G90: 337 | H90: 285 | I90: 258 | J90: 76
B91: EMS | C91: Recursos aplicados em esportes (R$ mil) | D91: 116 | E91: 320 | F91: 139 | G91: 84 | H91: 76 | I91: 64 | J91: ND
B92: EMS | C92: Outros recursos aplicados em ações sociais (R$ mil) | D92: - | E92: 42 | F92: 539 | G92: 18 | H92: 70 | I92: 192 | J92: 1781
B93: EMS | C93: Empregados que realizam trabalhos voluntários na comunidade externa à empresa/total de empregados (%) | D93: ND | E93: 7,6% | F93: ND | G93: ND | H93: ND | I93: ND | J93: ND
B94: EMS | C94: Quantidade de horas mensais doadas (liberadas do horário normal de trabalho) pela empresa para trabalho voluntário de funcionários | D94: ND | E94: 58 | F94: ND | G94: ND | H94: ND | I94: ND | J94: ND
B95: EMS | C95: Envolvimento da empresa em projetos culturais, esportivos, sociais (Lei Rouanet, Lei de Incentivo ao Esporte, Pronon, Pronas, Fundo da Infância e Adolescência, Fundo do Idoso) | D95: 2020 | E95: 2019 | F95: 2018 | G95: 2017 | H95: 2016 | I95: 2015 | J95: 2014
B96: EMS | C96: Montante de recursos destinados aos projetos (R$ mil) | D96: 491 | E96: 990 | F96: 950 | G96: 673 | H96: 425 | I96: 578 | J96: 95
B97: EMS | C97: Montante de recursos destinados ao maior projeto (R$ mil) | D97: 99 | E97: 350 | F97: 160 | G97: 300 | H97: 278 | I97: 230 | J97: 76
B98: EMS | C98: Nome do projeto | D98: Oficinas de Canto | E98: Festival América do Sul Pantanal | F98: 19º Festival de Inverno de Bonito | G98: Mitos Indígenas em Travessia | H98: Lampz | I98: Curva do Rio Sujo | J98: Estive em Lisboa
B99: EMS | C99: Proponente | D99: Fundação Ueze Elias Zahran | E99: Fundação | F99: Fundação | G99: Zureta Serviços e Produções Artísticas Ltda. – ME | H99: Tem Dende Produções Ltda. – ME | I99: DM Filmes e Prod. Art. | J99: Refinaria Produções
B101: EMT | C101: Impactos causados na saúde e segurança | D101: 2020 | E101: 2019 | F101: 2018 | G101: 2017 | H101: 2016 | I101: 2015 | J101: 2014
B102: =$B$101 -> EMT | C102: Número total de acidentes sem óbito com a população | D102: 7 | E102: 0 | F102: 4 | G102: 4 | H102: 8 | I102: 9 | J102: 16
B103: =$B$101 -> EMT | C103: Número total de acidentes com óbito com a população | D103: 10 | E103: 11 | F103: 9 | G103: 13 | H103: 7 | I103: 10 | J103: 12
B104: EMT | C104: Demandas judiciais decorrentes de acidentes com a população – Base Contencioso Geral | D104: 47 | E104: 39 | F104: 38 | G104: 23 | H104: 24 | I104: 16 | J104: 6
B105: EMT | C105: Tarifa de baixa renda | D105: 2020 | E105: 2019 | F105: 2018 | G105: 2017 | H105: 2016 | I105: 2015 | J105: 2014
B106: EMT | C106: Número de domicílios atendidos como “baixa renda” | D106: 168926 | E106: 147089 | F106: 129563 | G106: 141445 | H106: 128508 | I106: 129377 | J106: 163095
B107: EMT | C107: Total de domicílios “baixa renda” do total de domicílios atendidos (clientes/consumidores residenciais) (%) | D107: 0.1435 | E107: 0.129 | F107: 0.119 | G107: 0.133 | H107: 0.124 | I107: 0.129 | J107: 0.167
B108: EMT | C108: Receita de faturamento na subclasse residencial “baixa renda” (R$ mil) | D108: 221207 | E108: 190009 | F108: 151500 | G108: 130860 | H108: 132929 | I108: 7989 | J108: 37855
B109: EMT | C109: Total da receita de faturamento na subclasse residencial “baixa renda” em relação ao total da receita de faturamento da classe residencial (%) | D109: 0.076 | E109: 0.068 | F109: 0.065 | G109: 0.067 | H109: 0.075 | I109: 0.068 | J109: 0.0326
B110: EMT | C110: Subsídio recebido relativo aos consumidores “baixa renda” (R$ mil) | D110: 80982 | E110: 45981 | F110: 43306 | G110: 38361 | H110: 41956 | I110: 3100 | J110: 3198.4
B111: EMT | C111: Envolvimento da empresa com ação social | D111: 2020 | E111: 2019 | F111: 2018 | G111: 2017 | H111: 2016 | I111: 2015 | J111: 2014
B112: EMT | C112: Recursos aplicados em educação (R$ mil) | D112: 467 | E112: 2.109 | F112: - | G112: 220 | H112: 0 | I112: 128.419 | J112: 0
B113: EMT | C113: Recursos aplicados em saúde e saneamento (R$ mil) | D113: - | E113: - | F113: - | G113: - | H113: 78 | I113: 0 | J113: 0
B114: EMT | C114: Recursos aplicados em cultura (R$ mil) | D114: 1781 | E114: 1.614 | F114: 545 | G114: 205 | H114: 313 | I114: 0 | J114: 0
B115: EMT | C115: Recursos aplicados em esportes (R$ mil) | D115: 204 | E115: 364 | F115: 69 | G115: 18 | H115: 82 | I115: 0 | J115: 0
B116: EMT | C116: Outros recursos aplicados em ações sociais (R$ mil) | D116: 1105 | E116: 1.992 | F116: 14 | G116: 104 | H116: 43 | I116: 0 | J116: 163
B117: EMT | C117: Empregados que realizam trabalhos voluntários na comunidade externa à empresa/total de empregados (%) | D117: ND | E117: ND | F117: ND | G117: ND | H117: ND | I117: ND | J117: ND
B118: EMT | C118: Quantidade de horas mensais doadas (liberadas do horário normal de trabalho) pela empresa para trabalho voluntário de funcionários | D118: ND | E118: ND | F118: ND | G118: ND | H118: ND | I118: ND | J118: ND
B119: EMT | C119: Envolvimento da empresa em projetos culturais, esportivos, sociais (Lei Rouanet, Lei de Incentivo ao Esporte, Pronon, Pronas, Fundo da Infância e Adolescência, Fundo do Idoso) | D119: 2020 | E119: 2019 | F119: 2018 | G119: 2017 | H119: 2016 | I119: 2015 | J119: 2014
B120: EMT | C120: Montante de recursos destinados aos projetos (R$ mil) | D120: 1427 | E120: 2.109 | F120: 2198 | G120: 20 | H120: 0 | I120: 0 | J120: 913
B121: EMT | C121: Montante de recursos destinados ao maior projeto (R$ mil) | D121: 364 | E121: 364 | F121: 400 | G121: 20 | H121: 0 | I121: 0 | J121: 913
B122: EMT | C122: Nome do projeto | D122: Mato Grosso Dançando o Brasil | E122: Minas em busca do pódio - Ano IV | F122: Cuiabá 300 Anos | G122: Vela Jovem II | H122: - | I122: - | J122: Vai na Bola, Glanderson
B123: EMT | C123: Proponente | D123: Associação Cultural Flor Ribeirinha | E123: Instituto Sergio Sette Camara | F123: Associação Cultural Cena Onze | G123: Confederação Brasileira de Vela | H123: - | I123: - | J123: Raccord Produções Artísticas e Cinemat. Ltda.
B125: ENF | C125: Impactos causados na saúde e segurança | D125: 2020 | E125: 2019 | F125: 2018 | G125: 2017 | H125: 2016 | I125: 2015 | J125: 2014
B126: =$B$125 -> ENF | C126: Número total de acidentes sem óbito com a população | D126: 0 | E126: 0 | F126: 1 | G126: 1 | H126: 0 | I126: 0 | J126: 0
B127: =$B$125 -> ENF | C127: Número total de acidentes com óbito com a população | D127: 0 | E127: 1 | F127: - | G127: - | H127: 0 | I127: 1 | J127: 0
B128: ENF | C128: Demandas judiciais decorrentes de acidentes com a população – Base Contencioso Geral | D128: 0 | E128: - | F128: - | G128: - | H128: 1 | I128: 0 | J128: 0
B129: ENF | C129: Tarifa de baixa renda | D129: 2020 | E129: 2019 | F129: 2018 | G129: 2017 | H129: 2016 | I129: 2015 | J129: 2014
B130: ENF | C130: Número de domicílios atendidos como “baixa renda” | D130: 7878 | E130: 6330 | F130: 6043 | G130: 5124 | H130: 5062 | I130: 5148 | J130: 8210
B131: ENF | C131: Total de domicílios “baixa renda” do total de domicílios atendidos (clientes/consumidores residenciais) (%) | D131: 0.08 | E131: 0.065 | F131: 0.063 | G131: 0.055 | H131: 0.055 | I131: 0.057 | J131: 0.092
B132: ENF | C132: Receita de faturamento na subclasse residencial “baixa renda” (R$ mil) | D132: 7665 | E132: 7340 | F132: 6048 | G132: 5451 | H132: 4976 | I132: 4987 | J132: 5399.83
B133: ENF | C133: Total da receita de faturamento na subclasse residencial “baixa renda” em relação ao total da receita de faturamento da classe residencial (%) | D133: 0.046 | E133: 0.047 | F133: 0.045 | G133: 0.0428 | H133: 0.043 | I133: 0.046 | J133: 0.072
B134: ENF | C134: Subsídio recebido relativo aos consumidores “baixa renda” (R$ mil) | D134: 3349 | E134: 1951 | F134: 1678 | G134: 1721 | H134: 1374 | I134: 1465 | J134: 1761
B135: ENF | C135: Envolvimento da empresa com ação social | D135: 2020 | E135: 2019 | F135: 2018 | G135: 2017 | H135: 2016 | I135: 2015 | J135: 2014
B136: ENF | C136: Recursos aplicados em educação (R$ mil) | D136: 29 | E136: 95 | F136: 153 | G136: 123 | H136: 68 | I136: 206 | J136: 121
B137: ENF | C137: Recursos aplicados em saúde e saneamento (R$ mil) | D137: - | E137: - | F137: - | G137: - | H137: 0 | I137: 0 | J137: 0
B138: ENF | C138: Recursos aplicados em cultura (R$ mil) | D138: 231 | E138: 213 | F138: 142 | G138: 185 | H138: 158 | I138: 218 | J138: 319
B139: ENF | C139: Recursos aplicados em esportes (R$ mil) | D139: 5 | E139: 9 | F139: - | G139: - | H139: 0 | I139: 0 | J139: 0
B140: ENF | C140: Outros recursos aplicados em ações sociais (R$ mil) | D140: 143 | E140: 102 | F140: 92 | G140: 117 | H140: 57 | I140: 8 | J140: 97
B141: ENF | C141: Empregados que realizam trabalhos voluntários na comunidade externa à empresa/total de empregados (%) | D141: - | E141: - | F141: - | G141: - | H141: - | I141: - | J141: -
B142: ENF | C142: Quantidade de horas mensais doadas (liberadas do horário normal de trabalho) pela empresa para trabalho voluntário de funcionários 1 | D142: - | E142: - | F142: - | G142: - | H142: - | I142: - | J142: -
B143: ENF | C143: Envolvimento da empresa em projetos culturais, esportivos, sociais (Lei Rouanet, Lei de Incentivo ao Esporte, Pronon, Pronas, Fundo da Infância e Adolescência, Fundo do Idoso) | D143: 2020 | E143: 2019 | F143: 2018 | G143: 2017 | H143: 2016 | I143: 2015 | J143: 2014
B144: ENF | C144: Montante de recursos destinados aos projetos (R$ mil) | D144: 35 | E144: 581 | F144: - | G144: - | H144: 0 | I144: 225 | J144: -
B145: ENF | C145: Montante de recursos destinados ao maior projeto (R$ mil) | D145: 20 | E145: 345 | F145: - | G145: - | H145: 0 | I145: 150 | J145: -
B146: ENF | C146: Nome do projeto | D146: Laboratório Audiovisual Cocriativo | E146: Tokyo 2020 Equipe Siemsen Swan | F146: - | G146: - | H146: - | I146: Polo Audiovisual de Nova Friburgo | J146: -
B147: ENF | C147: Proponente | D147: Cocriativa Conteúdos Audiovisuais Ltda. | E147: Isabel Swan Marketing Ltda. | F147: - | G147: - | H147: - | I147: Instituto Serrano de Economia Criativa | J147: -
B148: ENF | C148: ¹ Correção anos 2018 e 2017, considerando horas mensais. Valor anterior estava como horas doadas/ano.
B150: EPB | C150: Impactos causados na saúde e segurança | D150: 2020 | E150: 2019 | F150: 2018 | G150: 2017 | H150: 2016 | I150: 2015 | J150: 2014
B151: =$B$150 -> EPB | C151: Número total de acidentes sem óbito com a população | D151: 15 | E151: 5 | F151: 2 | G151: 7 | H151: 13 | I151: 3 | J151: 7
B152: =$B$150 -> EPB | C152: Número total de acidentes com óbito com a população | D152: 9 | E152: 5 | F152: 6 | G152: 6 | H152: 9 | I152: 14 | J152: 7
B153: EPB | C153: Demandas judiciais decorrentes de acidentes com a população – Base Contencioso Geral | D153: 13 | E153: 5 | F153: 14 | G153: 12 | H153: 1 | I153: 4 | J153: 7
B154: EPB | C154: Tarifa de baixa renda | D154: 2020 | E154: 2019 | F154: 2018 | G154: 2017 | H154: 2016 | I154: 2015 | J154: 2014
B155: EPB | C155: Número de domicílios atendidos como “baixa renda” | D155: 418212 | E155: 382433 | F155: 346446 | G155: 353633 | H155: 345052 | I155: 335769 | J155: 523199
B156: EPB | C156: Total de domicílios “baixa renda” do total de domicílios atendidos (clientes/consumidores residenciais) (%) | D156: 0.341 | E156: 0.323 | F156: 0.295 | G156: 0.306 | H156: 0.304 | I156: 0.302 | J156: 0.486
B157: EPB | C157: Receita de faturamento na subclasse residencial “baixa renda” (R$ mil) | D157: 279932 | E157: 276037 | F157: 264071 | G157: 222426 | H157: 180167 | I157: 185146 | J157: 203691
B158: EPB | C158: Total da receita de faturamento na subclasse residencial “baixa renda” em relação ao total da receita de faturamento da classe residencial (%) | D158: 0.1848 | E158: 0.225 | F158: 0.243 | G158: 0.2387 | H158: 0.191 | I158: 0.2 | J158: 0.328
B159: EPB | C159: Subsídio recebido relativo aos consumidores “baixa renda” (R$ mil) | D159: 144479 | E159: 96172 | F159: 88655 | G159: 77631 | H159: 70920 | I159: 67959 | J159: 84453
B160: EPB | C160: Envolvimento da empresa com ação social | D160: 2020 | E160: 2019 | F160: 2018 | G160: 2017 | H160: 2016 | I160: 2015 | J160: 2014
B161: EPB | C161: Recursos aplicados em educação (R$ mil) | D161: 755 | E161: 1.267 | F161: 1066 | G161: 805 | H161: 469 | I161: 453 | J161: 199
B162: EPB | C162: Recursos aplicados em saúde e saneamento (R$ mil) | D162: - | E162: - | F162: - | G162: - | H162: 0 | I162: 541 | J162: 256
B163: EPB | C163: Recursos aplicados em cultura (R$ mil) | D163: 1186 | E163: 1.154 | F163: 1088 | G163: 1344 | H163: 528 | I163: 1311 | J163: 1527
B164: EPB | C164: Recursos aplicados em esportes (R$ mil) | D164: 77 | E164: 315 | F164: 189 | G164: 125 | H164: 66 | I164: 177 | J164: 157
B165: EPB | C165: Outros recursos aplicados em ações sociais (R$ mil) | D165: 450 | E165: 128 | F165: 306 | G165: 531 | H165: 1954 | I165: 1265 | J165: 1288
B166: EPB | C166: Empregados que realizam trabalhos voluntários na comunidade externa à empresa/total de empregados (%) | D166: - | E166: - | F166: - | G166: 0.01 | H166: 0 | I166: 0 | J166: 0.031
B167: EPB | C167: Quantidade de horas mensais doadas (liberadas do horário normal de trabalho) pela empresa para trabalho voluntário de funcionários | D167: - | E167: - | F167: - | G167: 124 | H167: 0 | I167: 0 | J167: 44.67
B168: EPB | C168: Envolvimento da empresa em projetos culturais, esportivos, sociais (Lei Rouanet, Lei de Incentivo ao Esporte, Pronon, Pronas, Fundo da Infância e Adolescência, Fundo do Idoso) | D168: 2020 | E168: 2019 | F168: 2018 | G168: 2017 | H168: 2016 | I168: 2015 | J168: 2014
B169: EPB | C169: Montante de recursos destinados aos projetos (R$ mil) | D169: 661 | E169: 2.042 | F169: 1297 | G169: 812 | H169: 435 | I169: 1654 | J169: 1117
B170: EPB | C170: Montante de recursos destinados ao maior projeto (R$ mil) | D170: 350 | E170: 370 | F170: 227 | G170: 402 | H170: 66 | I170: 341 | J170: 500
B171: EPB | C171: Nome do projeto | D171: Natal na Usina | E171: Natal na Usina | F171: 13º Fest. Aruanda do Audiovisual Brasileiro | G171: Iluminarte Teatral | H171: Projeto Vela Jovem | I171: Usina Criativa de Cinema | J171: Cineport
B172: EPB | C172: Proponente | D172: Dina Lúcia Filipe Faria Azeiteiro | E172: Dina Lucia Filipe Faria Azeiteiro | F172: Andrea Gonçalves Pereira Villar | G172: Carolina Paiva Neves Frade da Cruz | H172: Confederação Brasileira de Vela | I172: Instituto Fábrica do Futuro | J172: Fundação Ormeo Junqueira Botelho
B174: ERO | C174: Impactos causados na saúde e segurança | D174: 2020 | E174: 2019 | F174: 2018 | G174: 2017 | H174: 2016
B175: =$B$174 -> ERO | C175: Número total de acidentes sem óbito com a população | D175: 6 | E175: 1 | F175: 5 | G175: 3 | H175: 4
B176: =$B$174 -> ERO | C176: Número total de acidentes com óbito com a população | D176: 2 | E176: 1 | F176: 5 | G176: 1 | H176: 4
B177: ERO | C177: Demandas judiciais decorrentes de acidentes com a população – Base Contencioso Geral | D177: 17 | E177: 1 | F177: 14 | G177: 161 | H177: 141
B178: ERO | C178: Tarifa de baixa renda | D178: 2020 | E178: 2019 | F178: 2018 | G178: 2017 | H178: 2016
B179: ERO | C179: Número de domicílios atendidos como "baixa renda" 1 | D179: 77745 | E179: 64076 | F179: 41476 | G179: 46228 | H179: 48390
B180: ERO | C180: Total de domicílios "baixa renda" do total de domicílios atendidos (clientes/consumidores residenciais) (%) | D180: 0.158 | E180: 0.137 | F180: 0.09 | G180: 0.1 | H180: 0.11
B181: ERO | C181: Receita de faturamento na subclasse residencial "baixa renda" (R$ mil) 2 | D181: 74007 | E181: 79965 | F181: 30870 | G181: 27855 | H181: 36427
B182: ERO | C182: Total da receita de faturamento na subclasse residencial "baixa renda" em relação ao total da receita de faturamento da classe residencial (%) | D182: 0.034 | E182: 0.071 | F182: 0.052 | G182: 0.052 | H182: 0.069
B183: ERO | C183: Subsídio recebido (Eletrobras), relativo aos consumidores "baixa renda" (R$ mil ) | D183: 31452 | E183: 18149 | F183: 14367 | G183: 14143 | H183: 15767
B184: ERO | C184: Envolvimento da empresa com ação social | D184: 2020 | E184: 2019 | F184: 2018 | G184: 2017 | H184: 2016
B185: ERO | C185: Recursos aplicados em educação (R$ mil) | D185: 503 | E185: 134 | F185: - | G185: - | H185: 15.78
B186: ERO | C186: Recursos aplicados em saúde e saneamento (R$ mil) | D186: - | E186: 215 | F186: - | G186: - | H186: -
B187: ERO | C187: Recursos aplicados em cultura (R$ mil) | D187: 659 | E187: 380 | F187: - | G187: - | H187: -
B188: ERO | C188: Recursos aplicados em esportes (R$ mil) | D188: - | E188: 86 | F188: - | G188: - | H188: -
B189: ERO | C189: Outros recursos aplicados em ações sociais (R$ mil) | D189: 420 | E189: - | F189: 14.1 | G189: 283.8 | H189: 37.9
B190: ERO | C190: Empregados que realizam trabalhos voluntários na comunidade externa à empresa/total de empregados (%) | D190: 0.022 | E190: 0.442 | F190: 0.32 | G190: - | H190: -
B191: ERO | C191: Quantidade de horas mensais doadas (liberadas do horário normal de trabalho) pela empresa para trabalho voluntário de funcionários | D191: 32 | E191: 73 | F191: ND | G191: ND | H191: -
B192: ERO | C192: Envolvimento da empresa em projetos culturais, esportivos, sociais (Lei Rouanet, Lei de Incentivo ao Esporte, Pronon, Pronas, Fundo da Infância e Adolescência, Fundo do Idoso) | D192: 2020 | E192: 2019 | F192: 2018 | G192: 2017 | H192: 2016
B193: ERO | C193: Montante de recursos destinados aos projetos (R$ mil) | D193: - | E193: - | F193: - | G193: ND | H193: ND
B194: ERO | C194: Montante de recursos destinados ao maior projeto (R$ mil) | D194: - | E194: - | F194: - | G194: ND | H194: ND
B195: ERO | C195: Nome do projeto | D195: - | E195: - | F195: - | G195: ND | H195: ND
B196: ERO | C196: Proponente | D196: - | E196: - | F196: - | G196: ND | H196: ND
B197: ERO | C197: 1 Ajustados dados de 2019
B198: ERO | C198: 2 A menor receita de 2020 é reflexo da pandemia da Covid-19. Nos meses de 1º de abril a 30 de junho de 2020, os clientes baixa renda com consumo de até 220 KWh tiveram seus valores líquidos zerados (Medida Provisória nº 950/2020).
B200: ESE | C200: Impactos causados na saúde e segurança | D200: 2020 | E200: 2019 | F200: 2018 | G200: 2017 | H200: 2016 | I200: 2015 | J200: 2014
B201: =$B$200 -> ESE | C201: Número total de acidentes sem óbito com a população | D201: 3 | E201: 9 | F201: 6 | G201: 2 | H201: 5 | I201: 2 | J201: 1
B202: =$B$200 -> ESE | C202: Número total de acidentes com óbito com a população | D202: 3 | E202: 0 | F202: 3 | G202: 2 | H202: 3 | I202: 4 | J202: 3
B203: ESE | C203: Demandas judiciais decorrentes de acidentes com a população – Base Contencioso Geral | D203: 11 | E203: 13 | F203: 10 | G203: 13 | H203: 2 | I203: 3 | J203: 1
B204: ESE | C204: Tarifa de baixa renda | D204: 2020 | E204: 2019 | F204: 2018 | G204: 2017 | H204: 2016 | I204: 2015 | J204: 2014
B205: ESE | C205: Número de domicílios atendidos como “baixa renda” | D205: 225960 | E205: 211913 | F205: 202599 | G205: 204098 | H205: 173923 | I205: 167866 | J205: 259146
B206: ESE | C206: Total de domicílios “baixa renda” do total de domicílios atendidos (clientes/consumidores residenciais) (%) | D206: 0.309 | E206: 0.298 | F206: 0.289 | G206: 0.422 | H206: 0.335 | I206: 0.261 | J206: 0.434
B207: ESE | C207: Receita de faturamento na subclasse residencial “baixa renda” (R$ mil) | D207: 134772 | E207: 138014 | F207: 129645 | G207: 87900 | H207: 76789 | I207: 77696 | J207: 91739.41
B208: ESE | C208: Total da receita de faturamento na subclasse residencial “baixa renda” em relação ao total da receita de faturamento da classe residencial (%) | D208: 0.18 | E208: 0.191 | F208: 0.198 | G208: 0.165 | H208: 0.151 | I208: 0.153 | J208: 0.296
B209: ESE | C209: Subsídio recebido relativo aos consumidores “baixa renda” (R$ mil) | D209: 72617 | E209: 48978 | F209: 47563 | G209: 40917 | H209: 35704 | I209: 32675 | J209: 42755
B210: ESE | C210: Envolvimento da empresa com ação social | D210: 2020 | E210: 2019 | F210: 2018 | G210: 2017 | H210: 2016 | I210: 2015 | J210: 2014
... 58 more rows

Sheet Universalização
C1: Setor elétrico | Selecione a empresa Universalização
B4: EMG | D4: 2020 | E4: 2019 | F4: 2018 | G4: 2017 | H4: 2016 | I4: 2015 | J4: 2014
B5: =$B$4 -> EMG | C5: Metas de atendimento | D5: - | E5: - | F5: - | G5: - | H5: - | I5: - | J5: -
B6: =$B$4 -> EMG | C6: Atendimentos efetuados (nº) | D6: - | E6: - | F6: - | G6: - | H6: - | I6: - | J6: -
B7: EMG | C7: Cumprimento de metas (%) | D7: - | E7: - | F7: - | G7: - | H7: - | I7: - | J7: -
B8: EMG | C8: Total de municípios universalizados | D8: 62 | E8: 62 | F8: 62 | G8: 62 | H8: 62 | I8: 62 | J8: 62
B9: EMG | C9: Municípios universalizados (%) | D9: 1 | E9: 1 | F9: 1 | G9: 1 | H9: 1 | I9: 1 | J9: 1
B10: EMG | C10: Universalização concluída em 2010, conforme Despacho Aneel nº 2.344, de 17/07/2012.
B12: EAC | D12: 2020 | E12: 2019 | F12: 2018 | G12: 2017 | H12: 2016
B13: =$B$12 -> EAC | C13: Metas de atendimento | D13: 753 | E13: 3890 | F13: 1880 | G13: 2630 | H13: 2700
B14: =$B$12 -> EAC | C14: Atendimentos efetuados (nº) | D14: 763 | E14: 2513 | F14: 1796 | G14: 1348 | H14: 2320
B15: EAC | C15: Cumprimento de metas (%) | D15: 1.0133 | E15: 0.65 | F15: 0.96 | G15: 0.51 | H15: 0.859
B16: EAC | C16: Total de municípios universalizados | D16: 5 | E16: 5 | F16: - | G16: - | H16: -
B17: EAC | C17: Municípios universalizados (%) | D17: 0.23 | E17: 0.23 | F17: - | G17: - | H17: -
B19: EBO | D19: 2020 | E19: 2019 | F19: 2018 | G19: 2017 | H19: 2016 | I19: 2015 | J19: 2014
B20: =$B$19 -> EBO | C20: Metas de atendimento | D20: - | E20: - | F20: - | G20: - | H20: - | I20: - | J20: -
B21: =$B$19 -> EBO | C21: Atendimentos efetuados (nº) | D21: - | E21: - | F21: - | G21: - | H21: - | I21: - | J21: -
B22: EBO | C22: Cumprimento de metas (%) | D22: - | E22: - | F22: - | G22: - | H22: - | I22: - | J22: -
B23: EBO | C23: Total de municípios universalizados | D23: 6 | E23: 6 | F23: 6 | G23: 6 | H23: 6 | I23: 6 | J23: 6
B24: EBO | C24: Municípios universalizados (%) | D24: 1 | E24: 1 | F24: 1 | G24: 1 | H24: 1 | I24: 1 | J24: 1
B25: EBO | C25: Universalização concluída em 2010, conforme Despacho Aneel nº 2.344, de 17 de julho de 2012.
B27: EMS | D27: 2020 | E27: 2019 | F27: 2018 | G27: 2017 | H27: 2016 | I27: 2015 | J27: 2014
B28: =$B$27 -> EMS | C28: Metas de atendimento | D28: - | E28: - | F28: - | G28: - | H28: 3051 | I28: 846 | J28: 486
B29: =$B$27 -> EMS | C29: Atendimentos efetuados (nº) | D29: - | E29: - | F29: - | G29: - | H29: 1253 | I29: 329 | J29: 305
B30: EMS | C30: Cumprimento de metas (%) | D30: - | E30: - | F30: - | G30: - | H30: 0.41 | I30: 0.39 | J30: 0.628
B31: EMS | C31: Total de municípios universalizados | D31: 74 | E31: 74 | F31: 74 | G31: 74 | H31: 74 | I31: 52 | J31: 30
B32: EMS | C32: Municípios universalizados (%) | D32: 1 | E32: 1 | F32: 1 | G32: 1 | H32: 1 | I32: 0.7 | J32: 0.405
B34: EMT | D34: 2020 | E34: 2019 | F34: 2018 | G34: 2017 | H34: 2016 | I34: 2015 | J34: 2014
B35: =$B$34 -> EMT | C35: Metas de atendimento | D35: 4568 | E35: 8718 | F35: 8874 | G35: 11626 | H35: 8457 | I35: 4445 | J35: 693
B36: =$B$34 -> EMT | C36: Atendimentos efetuados (nº) | D36: 3530 | E36: 8457 | F36: 10602 | G36: 4453 | H36: 3006 | I36: 2592 | J36: 1191
B37: EMT | C37: Cumprimento de metas (%) | D37: 0.77 | E37: 0.97 | F37: 1.19 | G37: 0.38 | H37: 0.36 | I37: 0.5831 | J37: 1.7186
B38: EMT | C38: Total de municípios universalizados | D38: 140 | E38: 122 | F38: 108 | G38: 80 | H38: 53 | I38: 23 | J38: 0
B39: EMT | C39: Municípios universalizados (%) | D39: 0.993 | E39: 0.865 | F39: 0.766 | G39: 0.567 | H39: 0.376 | I39: 0.1631 | J39: 0
B41: ENF | D41: 2020 | E41: 2019 | F41: 2018 | G41: 2017 | H41: 2016 | I41: 2015 | J41: 2014
B42: =$B$41 -> ENF | C42: Metas de atendimento | D42: - | E42: - | F42: - | G42: - | H42: - | I42: - | J42: -
B43: =$B$41 -> ENF | C43: Atendimentos efetuados (nº) | D43: - | E43: - | F43: - | G43: - | H43: - | I43: - | J43: -
B44: ENF | C44: Cumprimento de metas (%) | D44: - | E44: - | F44: - | G44: - | H44: - | I44: - | J44: -
B45: ENF | C45: Total de municípios universalizados | D45: 1 | E45: 1 | F45: 1 | G45: 1 | H45: 1 | I45: 1 | J45: 1
B46: ENF | C46: Municípios universalizados (%) | D46: 1 | E46: 1 | F46: 1 | G46: 1 | H46: 1 | I46: 1 | J46: 1
B47: ENF | C47: Universalização concluída em 2010, conforme Despacho Aneel nº 2.344, de 17 de julho de 2012.
B49: EPB | D49: 2020 | E49: 2019 | F49: 2018 | G49: 2017 | H49: 206 | I49: 2015 | J49: 2014
B50: =B49 -> EPB | C50: Metas de atendimento | D50: - | E50: - | F50: - | G50: - | H50: - | I50: - | J50: -
B51: =B50 -> EPB | C51: Atendimentos efetuados (nº) | D51: - | E51: - | F51: - | G51: - | H51: - | I51: - | J51: -
B52: EPB | C52: Cumprimento de metas (%) | D52: - | E52: - | F52: - | G52: - | H52: - | I52: - | J52: -
B53: EPB | C53: Total de municípios universalizados | D53: 216 | E53: 216 | F53: 216 | G53: 216 | H53: 216 | I53: 216 | J53: 216
B54: EPB | C54: Municípios universalizados (%) | D54: 1 | E54: 1 | F54: 1 | G54: 1 | H54: 1 | I54: 1 | J54: 1
B55: EPB | C55: Universalização concluída em 2010, conforme Despacho Aneel nº 2.344, de 17 de julho de 2012.
B57: ERO | D57: 2020 | E57: 2019 | F57: 2018 1 | G57: 2017 1 | H57: 2016
B58: =$B$57 -> ERO | C58: Metas de atendimento | D58: 6164 | E58: 5.000 | F58: 9442 | G58: 3324 | H58: 6033
B59: =$B$57 -> ERO | C59: Atendimentos efetuados (nº) | D59: 2470 | E59: 2.454 | F59: 513 | G59: 2945 | H59: 2709
B60: ERO | C60: Cumprimento de metas (%) | D60: 0.401 | E60: 49,1% | F60: 0.054 | G60: 0.886 | H60: 0.449
B61: ERO | C61: Total de municípios universalizados | D61: 7 | E61: 7 | F61: 2 | G61: 2 | H61: 2
B62: ERO | C62: Municípios universalizados (%) | D62: 13,5 % | E62: 13,5% | F62: 0.04 | G62: 0.038 | H62: 0.038
B63: ERO | C63: 1 Ajustados dados de 2017 e 2018.
B65: ESE | D65: 2020 | E65: 2019 | F65: 2018 | G65: 2017 | H65: 2016 | I65: 2015 | J65: 2014
B66: =$B$65 -> ESE | C66: Metas de atendimento | D66: - | E66: - | F66: - | G66: - | H66: - | I66: - | J66: -
B67: =$B$65 -> ESE | C67: Atendimentos efetuados (nº) | D67: - | E67: - | F67: - | G67: - | H67: - | I67: - | J67: -
B68: ESE | C68: Cumprimento de metas (%) | D68: - | E68: - | F68: - | G68: - | H68: - | I68: - | J68: -
B69: ESE | C69: Total de municípios universalizados | D69: 63 | E69: 63 | F69: 63 | G69: 63 | H69: 63 | I69: 63 | J69: 63
B70: ESE | C70: Municípios universalizados (%) | D70: 1 | E70: 1 | F70: 1 | G70: 1 | H70: 1 | I70: 1 | J70: 1
B71: ESE | C71: Universalização concluída em 2010, conforme Despacho Aneel nº 2.344, de 17 de julho de 2012.
B73: ESS | D73: 2020 | E73: 2019 | F73: 2018 | G73: 2017 | H73: 2016 | I73: 2015
B74: =$B$73 -> ESS | C74: Metas de atendimento | D74: - | E74: - | F74: - | G74: NA | H74: NA | I74: NA
B75: =$B$73 -> ESS | C75: Atendimentos efetuados (nº) | D75: - | E75: - | F75: - | G75: - | H75: 18627 | I75: 26465
B76: ESS | C76: Cumprimento de metas (%) | D76: - | E76: - | F76: - | G76: - | H76: 1 | I76: 1
B77: ESS | C77: Total de municípios universalizados | D77: 82 | E77: 82 | F77: 82 | G77: 82 | H77: 82 | I77: 82
B78: ESS | C78: Municípios universalizados (%) | D78: 1 | E78: 1 | F78: 1 | G78: 1 | H78: 1 | I78: 1
B80: ETO | D80: 2020 | E80: 2019 | F80: 2018 | G80: 2017 | H80: 2016 | I80: 2015 | J80: 2014
B81: =$B$80 -> ETO | C81: Metas de atendimento | D81: - | E81: - | F81: 6416 | G81: 3795 | H81: 5277 | I81: 6304 | J81: 633
B82: =$B$80 -> ETO | C82: Atendimentos efetuados (nº) | D82: - | E82: - | F82: 2676 | G82: 1378 | H82: 5954 | I82: 6689 | J82: 633
B83: ETO | C83: Cumprimento de metas (%) | D83: - | E83: - | F83: 0.42 | G83: 0.36 | H83: 1.128 | I83: 1.061 | J83: 1
B84: ETO | C84: Total de municípios universalizados | D84: 139 | E84: 139 | F84: 105 | G84: 66 | H84: 30 | I84: 34 | J84: 2
B85: ETO | C85: Municípios universalizados (%) | D85: 1 | E85: 1 | F85: 0.76 | G85: 0.47 | H85: 0.216 | I85: 0.245 | J85: 0.014
B86: ETO | C86: O estado do Tocantins foi universalizado em 2018.

Sheet PEE
C1: Programa de Eficiência Energética (PEE) | Selecione a empresa
B4: EMG | D4: 2020 | I4: 2019 | N4: 2018 | S4: 2017 | X4: 2016 | AC4: 2015 | AH4: 2014
B5: EMG | C5: Tipologia do Projeto | D5: Investimentos (R$ mil) 1 | F5: Fontes de recursos (R$ mil) | I5: Investimentos (R$ mil) 1 | K5: Fontes de recursos (R$ mil) | N5: Investimentos (R$ mil) 1 | P5: Fontes de recursos (R$ mil) | S5: Investimentos (R$ mil) 1 | U5: Fontes de recursos (R$ mil) | X5: Investimentos (R$ mil) 1 | Z5: Fontes de recursos (R$ mil) | AC5: Investimentos (R$ mil) 1 | AE5: Fontes de recursos (R$ mil) | AH5: Investimentos (R$ mil) 1 | AJ5: Fontes de recursos (R$ mil)
B6: EMG | D6: Total | E6: (%) | F6: Próprio | G6: Terceiros | H6: Cliente | I6: Total | J6: (%) | K6: Próprio | L6: Terceiros | M6: Cliente | N6: Total | O6: (%) | P6: Próprio | Q6: Terceiros | R6: Cliente | S6: Total | T6: (%) | U6: Próprio | V6: Terceiros | W6: Cliente | X6: Total | Y6: (%) | Z6: Próprio | AA6: Terceiros | AB6: Cliente | AC6: Total | AD6: (%) | AE6: Próprio | AF6: Terceiros | AG6: Cliente | AH6: Total | AI6: (%) | AJ6: Próprio | AK6: Terceiros | AL6: Cliente
B7: =$B$6 -> EMG | C7: Industrial | D7: 0 | E7: 0 | F7: 0 | G7: 0 | H7: 0 | I7: 0 | J7: - | K7: 0 | L7: 0 | M7: 0 | N7: 0 | O7: - | P7: 0 | Q7: 0 | R7: 0 | S7: 0 | T7: - | U7: 0 | V7: 0 | W7: 0 | X7: 0 | Y7: - | Z7: 0 | AA7: 0 | AB7: 0 | AC7: 0 | AD7: - | AE7: 0 | AF7: 0 | AG7: 0 | AH7: 0 | AI7: - | AJ7: 0 | AK7: 0 | AL7: 0
B8: =$B$6 -> EMG | C8: Comércio e Serviço | D8: 254 | E8: 0.14 | F8: 254 | G8: 0 | H8: 0 | I8: 292 | J8: 0.1 | K8: 292 | L8: 0 | M8: 0 | N8: 109 | O8: 0.058 | P8: 109 | Q8: 0 | R8: 0 | S8: 509 | T8: 0.238 | U8: 509 | V8: 0 | W8: 0 | X8: 0 | Y8: - | Z8: 0 | AA8: 0 | AB8: 0 | AC8: 0 | AD8: - | AE8: 0 | AF8: 0 | AG8: 0 | AH8: 0 | AI8: - | AJ8: 0 | AK8: 0 | AL8: 0
B9: EMG | C9: Poder Público | D9: 4 | E9: 0 | F9: 4 | G9: 0 | H9: 0 | I9: 42 | J9: 0.014 | K9: 42 | L9: 0 | M9: 0 | N9: 730 | O9: 0.391 | P9: 730 | Q9: 0 | R9: 0 | S9: 0 | T9: - | U9: 0 | V9: 0 | W9: 0 | X9: 0 | Y9: - | Z9: 0 | AA9: 0 | AB9: 0 | AC9: 160 | AD9: 0.068 | AE9: 160 | AF9: 0 | AG9: 0 | AH9: 11 | AI9: 0.005 | AJ9: 11 | AK9: 0 | AL9: 0
B10: EMG | C10: Serviço Público | D10: 0 | E10: 0 | F10: 0 | G10: 0 | H10: 0 | I10: 0 | J10: - | K10: 0 | L10: 0 | M10: 0 | N10: 0 | O10: - | P10: 0 | Q10: 0 | R10: 0 | S10: 0 | T10: - | U10: 0 | V10: 0 | W10: 0 | X10: 0 | Y10: - | Z10: 0 | AA10: 0 | AB10: 0 | AC10: 0 | AD10: - | AE10: 0 | AF10: 0 | AG10: 0 | AH10: 0 | AI10: - | AJ10: 0 | AK10: 0 | AL10: 0
B11: EMG | C11: Rural | D11: 0 | E11: 0 | F11: 0 | G11: 0 | H11: 0 | I11: 0 | J11: - | K11: 0 | L11: 0 | M11: 0 | N11: 0 | O11: - | P11: 0 | Q11: 0 | R11: 0 | S11: 0 | T11: - | U11: 0 | V11: 0 | W11: 0 | X11: 0 | Y11: - | Z11: 0 | AA11: 0 | AB11: 0 | AC11: 0 | AD11: - | AE11: 0 | AF11: 0 | AG11: 0 | AH11: 0 | AI11: - | AJ11: 0 | AK11: 0 | AL11: 0
B12: EMG | C12: Residencial | D12: 0 | E12: 0 | F12: 0 | G12: 0 | H12: 0 | I12: 0 | J12: - | K12: 0 | L12: 0 | M12: 0 | N12: 0 | O12: - | P12: 0 | Q12: 0 | R12: 0 | S12: 514 | T12: 0.24 | U12: 514 | V12: 0 | W12: 0 | X12: 929 | Y12: 0.48 | Z12: 929 | AA12: 0 | AB12: 0 | AC12: 856 | AD12: 0.365 | AE12: 121 | AF12: 735 | AG12: 0 | AH12: 1071 | AI12: 0.466 | AJ12: 1071 | AK12: 0 | AL12: 0
B13: EMG | C13: Residencial Baixa Renda | D13: 851 | E13: 0.47 | F13: 851 | G13: 0 | H13: 0 | I13: 1245 | J13: 0.425 | K13: 1245 | L13: 0 | M13: 0 | N13: 1027 | O13: 0.551 | P13: 1027 | Q13: 0 | R13: 0 | S13: 1119 | T13: 0.522 | U13: 1119 | V13: 0 | W13: 0 | X13: 1006 | Y13: 0.52 | Z13: 1006 | AA13: 0 | AB13: 0 | AC13: 1327 | AD13: 0.567 | AE13: 1327 | AF13: 0 | AG13: 0 | AH13: 1216 | AI13: 0.529 | AJ13: 1216 | AK13: 0 | AL13: 0
B14: EMG | C14: Iluminação Pública | D14: 694 | E14: 0.38 | F14: 694 | G14: 0 | H14: 150 | I14: 1349 | J14: 0.461 | K14: 1349 | L14: 0 | M14: 0 | N14: 0 | O14: - | P14: 0 | Q14: 0 | R14: 0 | S14: 0 | T14: - | U14: 0 | V14: 0 | W14: 0 | X14: 0 | Y14: - | Z14: 0 | AA14: 0 | AB14: 0 | AC14: 0 | AD14: - | AE14: - | AF14: 0 | AG14: 0 | AH14: 0 | AI14: - | AJ14: 0 | AK14: 0 | AL14: 0
B15: EMG | C15: Gestão Energética Municipal | D15: 0 | E15: 0 | F15: 0 | G15: 0 | H15: 0 | I15: 0 | J15: - | K15: 0 | L15: 0 | M15: 0 | N15: 0 | O15: - | P15: 0 | Q15: 0 | R15: 0 | S15: 0 | T15: - | U15: 0 | V15: 0 | W15: 0 | X15: 0 | Y15: - | Z15: 0 | AA15: 0 | AB15: 0 | AC15: 0 | AD15: - | AE15: - | AF15: 0 | AG15: 0 | AH15: 0 | AI15: - | AJ15: 0 | AK15: 0 | AL15: 0
B16: EMG | C16: Educacional | D16: 0 | E16: 0 | F16: 0 | G16: 0 | H16: 0 | I16: 0 | J16: - | K16: 0 | L16: 0 | M16: 0 | N16: 0 | O16: - | P16: 0 | Q16: 0 | R16: 0 | S16: 0 | T16: - | U16: 0 | V16: 0 | W16: 0 | X16: 0 | Y16: - | Z16: 0 | AA16: 0 | AB16: 0 | AC16: 0 | AD16: - | AE16: - | AF16: 0 | AG16: 0 | AH16: 0 | AI16: - | AJ16: 0 | AK16: 0 | AL16: 0
B17: EMG | C17: Total | D17: 1803 | E17: 1 | F17: 1803 | G17: 0 | H17: 150 | I17: 2929 | J17: 1 | K17: 2929 | L17: 0 | M17: 0 | N17: 1865 | O17: 1 | P17: 1865 | Q17: 0 | R17: 0 | S17: 2142 | T17: 1 | U17: 2142 | V17: 0 | W17: 0 | X17: 1935 | Y17: 1 | Z17: 1935 | AA17: 0 | AB17: 0 | AC17: 2342 | AD17: 1 | AE17: 1607 | AF17: 735 | AG17: 0 | AH17: 2298 | AI17: 1 | AJ17: 2298 | AK17: 0 | AL17: 0
B18: EMG | C18: 1 Exclui recursos usados na gestão dos projetos
B19: EMG
B20: EMG | D20: 2020 | G20: 2019 | J20: 2018 | M20: 2017 | P20: 2016 | S20: 2015 | V20: 2014 | W20: 2014
B21: EMG | C21: Tipologia do Projeto | D21: Unidades atendidas | E21: Energia economizada (MWh/ano) | F21: Redução de demanda na ponta (kW) | G21: Unidades atendidas | H21: Energia economizada (MWh/ano) | I21: Redução de demanda na ponta (kW) | J21: Unidades atendidas | K21: Energia economizada (MWh/ano) | L21: Redução de demanda na ponta (kW) | M21: Unidades atendidas | N21: Energia economizada (MWh/ano) | O21: Redução de demanda na ponta (kW) | P21: Unidades atendidas | Q21: Energia economizada (MWh/ano) | R21: Redução de demanda na ponta (kW) | S21: Unidades atendidas | T21: Energia economizada (MWh/ano) | U21: Redução de demanda na ponta (kW) | V21: Unidades atendidas | W21: Energia economizada (MWh/ano) | X21: Redução de demanda na ponta (kW)
B22: EMG | C22: Industrial | D22: 0 | E22: 0 | F22: 0 | G22: 0 | H22: 0 | I22: 0 | J22: 0 | K22: 0 | L22: 0 | M22: 0 | N22: 0 | O22: 0 | P22: 0 | Q22: 0 | R22: 0 | S22: 0 | T22: 0 | U22: 0 | V22: 0 | W22: 0 | X22: 0
B23: EMG | C23: Comércio e Serviço | D23: 4 | E23: 223 | F23: 29 | G23: 3 | H23: 160 | I23: 19 | J23: 2 | K23: 33 | L23: 19 | M23: 3 | N23: 357 | O23: 47 | P23: 0 | Q23: 0 | R23: 0 | S23: 0 | T23: 0 | U23: 0 | V23: 0 | W23: 0 | X23: 0
B24: EMG | C24: Poder Público | D24: 0 | E24: 0 | F24: 0 | G24: 2 | H24: 238 | I24: 22 | J24: 1 | K24: 89 | L24: 20 | M24: 0 | N24: 0 | O24: 0 | P24: 0 | Q24: 0 | R24: 0 | S24: 1 | T24: 76.4 | U24: 19.4 | V24: 1 | W24: 16.4 | X24: 4.8
B25: EMG | C25: Serviço Público | D25: 0 | E25: 0 | F25: 0 | G25: 0 | H25: 0 | I25: 0 | J25: 0 | K25: 0 | L25: 0 | M25: 0 | N25: 0 | O25: 0 | P25: 0 | Q25: 0 | R25: 0 | S25: 0 | T25: 0 | U25: 0 | V25: 0 | W25: 0 | X25: 0
B26: EMG | C26: Rural | D26: 0 | E26: 0 | F26: 0 | G26: 0 | H26: 0 | I26: 0 | J26: 0 | K26: 0 | L26: 0 | M26: 0 | N26: 0 | O26: 0 | P26: 0 | Q26: 0 | R26: 0 | S26: 0 | T26: 0 | U26: 0 | V26: 0 | W26: 0 | X26: 0
B27: EMG | C27: Residencial | D27: 0 | E27: 0 | F27: 0 | G27: 0 | H27: 0 | I27: 0 | J27: 0 | K27: 0 | L27: 0 | M27: 3626 | N27: 997 | O27: 8 | P27: 0 | Q27: 0 | R27: 0 | S27: 4734 | T27: 4058 | U27: 0 | V27: 4561 | W27: 8736.7 | X27: 2.3
B28: EMG | C28: Residencial Baixa Renda | D28: 2057 | E28: 145 | F28: 93 | G28: 4766 | H28: 470 | I28: 254 | J28: 39978 | K28: 1246 | L28: 378 | M28: 7476 | N28: 2775 | O28: 707 | P28: 3574 | Q28: 3125 | R28: 0 | S28: 2087 | T28: 0 | U28: 0 | V28: 3848 | W28: 1910.4 | X28: 1198.5
B29: EMG | C29: Iluminação Pública | D29: 4 | E29: 430 | F29: 93 | G29: 4 | H29: 684 | I29: 153 | J29: 0 | K29: 0 | L29: 0 | M29: 0 | N29: 0 | O29: 0 | P29: 12510 | Q29: 0 | R29: 0 | S29: 0 | T29: 0 | U29: 0 | V29: 0 | W29: 0 | X29: 0
B30: EMG | C30: Gestão Energética Municipal | D30: 0 | E30: 0 | F30: 0 | G30: 0 | H30: 0 | I30: 0 | J30: 0 | K30: 0 | L30: 0 | M30: 0 | N30: 0 | O30: 0 | P30: 0 | Q30: 0 | R30: 0 | S30: 0 | T30: 0 | U30: 0 | V30: 0 | W30: 0 | X30: 0
B31: EMG | C31: Educacional | D31: 0 | E31: 0 | F31: 0 | G31: 0 | H31: 0 | I31: 0 | J31: 0 | K31: 0 | L31: 0 | M31: 0 | N31: 0 | O31: 0 | P31: 0 | Q31: 0 | R31: 0 | S31: 0 | T31: 0 | U31: 0 | V31: 0 | W31: 0 | X31: 0
B32: EMG | C32: TOTAL | D32: 2065 | E32: 797 | F32: 214 | G32: 4775 | H32: 1552 | I32: 448 | J32: 39981 | K32: 1368 | L32: 417 | M32: 11105 | N32: 4128 | O32: 762 | P32: 16084 | Q32: 3125 | R32: - | S32: 6822 | T32: 4134.4 | U32: 19.4 | V32: 8410 | W32: 10663.46 | X32: 1205.6
B34: EAC | D34: 2020 | I34: 2019 | N34: 2018 | S34: 2017 | X34: 2016
B35: =$B$34 -> EAC | C35: Tipologia do Projeto | D35: Investimentos (R$ mil) 1 | F35: Fontes de recursos (R$ mil) | I35: Investimentos (R$ mil) 1 | K35: Fontes de recursos (R$ mil) | N35: Investimentos (R$ mil) 1 | P35: Fontes de recursos (R$ mil) | S35: Investimentos (R$ mil) 1 | U35: Fontes de recursos (R$ mil) | X35: Investimentos (R$ mil) 1 | Z35: Fontes de recursos (R$ mil)
B36: =$B$34 -> EAC | D36: Total | E36: (%) | F36: Próprio | G36: Terceiros | H36: Cliente | I36: Total | J36: (%) | K36: Próprio | L36: Terceiros | M36: Cliente | N36: Total | O36: (%) | P36: Próprio | Q36: Terceiros | R36: Cliente | S36: Total | T36: (%) | U36: Próprio | V36: Terceiros | W36: Cliente | X36: Total | Y36: (%) | Z36: Próprio | AA36: Terceiros | AB36: Cliente
B37: EAC | C37: Industrial | D37: 0 | E37: - | F37: 0 | G37: 0 | H37: 0 | I37: 0 | J37: - | K37: 0 | L37: 0 | M37: 0 | N37: 0 | O37: - | P37: 0 | Q37: 0 | R37: 0 | S37: 0 | T37: - | U37: 0 | V37: 0 | W37: 0 | X37: 0 | Y37: - | Z37: 0 | AA37: 0 | AB37: 0
B38: EAC | C38: Comércio e Serviço | D38: 322 | E38: 0.073 | F38: 309 | G38: 14 | H38: 0 | I38: 232 | J38: 0.026 | K38: 232 | L38: 0 | M38: 0 | N38: 0 | O38: - | P38: 0 | Q38: 0 | R38: 0 | S38: 0 | T38: - | U38: 0 | V38: 0 | W38: 0 | X38: 0 | Y38: - | Z38: 0 | AA38: 0 | AB38: 0
B39: EAC | C39: Poder Público | D39: 149 | E39: 0.034 | F39: 149 | G39: 0 | H39: 0 | I39: 1448 | J39: 0.164 | K39: 1448 | L39: 0 | M39: 0 | N39: 0 | O39: - | P39: 0 | Q39: 0 | R39: 0 | S39: 0 | T39: - | U39: 0 | V39: 0 | W39: 0 | X39: 0 | Y39: - | Z39: 0 | AA39: 0 | AB39: 0
B40: EAC | C40: Serviço Público | D40: 68 | E40: 0.016 | F40: 68 | G40: 0 | H40: 0 | I40: 0 | J40: - | K40: 0 | L40: 0 | M40: 0 | N40: 0 | O40: - | P40: 0 | Q40: 0 | R40: 0 | S40: 0 | T40: - | U40: 0 | V40: 0 | W40: 0 | X40: 0 | Y40: - | Z40: 0 | AA40: 0 | AB40: 0
B41: EAC | C41: Rural | D41: 0 | E41: - | F41: 0 | G41: 0 | H41: 0 | I41: 0 | J41: - | K41: 0 | L41: 0 | M41: 0 | N41: 0 | O41: - | P41: 0 | Q41: 0 | R41: 0 | S41: 0 | T41: - | U41: 0 | V41: 0 | W41: 0 | X41: 0 | Y41: - | Z41: 0 | AA41: 0 | AB41: 0
B42: EAC | C42: Residencial | D42: 0 | E42: - | F42: 0 | G42: 0 | H42: 0 | I42: 0 | J42: - | K42: 0 | L42: 0 | M42: 0 | N42: 0 | O42: - | P42: 0 | Q42: 0 | R42: 0 | S42: 0 | T42: - | U42: 0 | V42: 0 | W42: 0 | X42: 0 | Y42: - | Z42: 0 | AA42: 0 | AB42: 0
B43: EAC | C43: Residencial Baixa Renda | D43: 2424 | E43: 0.552 | F43: 2424 | G43: 0 | H43: 0 | I43: 2949 | J43: 0.334 | K43: 2949 | L43: 0 | M43: 0 | N43: 0 | O43: - | P43: 0 | Q43: 0 | R43: 0 | S43: 0 | T43: - | U43: 0 | V43: 0 | W43: 0 | X43: 0 | Y43: - | Z43: 0 | AA43: 0 | AB43: 0
B44: EAC | C44: Iluminação Pública | D44: 1429 | E44: 0.325 | F44: 1401 | G44: 28 | H44: 0 | I44: 4203 | J44: 0.476 | K44: 4203 | L44: 0 | M44: 0 | N44: 0 | O44: - | P44: 0 | Q44: 0 | R44: 0 | S44: 0 | T44: - | U44: 0 | V44: 0 | W44: 0 | X44: 0 | Y44: - | Z44: 0 | AA44: 0 | AB44: 0
B45: EAC | C45: Gestão Energética Municipal | D45: 0 | E45: - | F45: 0 | G45: 0 | H45: 0 | I45: 0 | J45: - | K45: 0 | L45: 0 | M45: 0 | N45: 0 | O45: - | P45: 0 | Q45: 0 | R45: 0 | S45: 0 | T45: - | U45: 0 | V45: 0 | W45: 0 | X45: 0 | Y45: - | Z45: 0 | AA45: 0 | AB45: 0
B46: EAC | C46: Educacional | D46: 0 | E46: - | F46: 0 | G46: 0 | H46: 0 | I46: 0 | J46: - | K46: 0 | L46: 0 | M46: 0 | N46: 0 | O46: - | P46: 0 | Q46: 0 | R46: 0 | S46: 0 | T46: - | U46: 0 | V46: 0 | W46: 0 | X46: 0 | Y46: - | Z46: 0 | AA46: 0 | AB46: 0
B47: EAC | C47: Total | D47: 4393 | E47: 1 | F47: 4352 | G47: 42 | H47: 0 | I47: 8832 | J47: 1 | K47: 8832 | L47: 0 | M47: 0 | N47: 0 | O47: - | P47: 0 | Q47: 0 | R47: 0 | S47: 0 | T47: - | U47: 0 | V47: 0 | W47: 0 | X47: 0 | Y47: - | Z47: 0 | AA47: 0 | AB47: 0
B48: EAC | C48: 1 Exclui recursos usados na gestão dos projetos
B49: EAC
B50: EAC | D50: 2020 | G50: 2019 | J50: 2018 | M50: 2017 | P50: 2016
B51: EAC | C51: Tipologia do Projeto | D51: Unidades atendidas | E51: Energia economizada (MWh/ano) | F51: Redução de demanda na ponta (kW) | G51: Unidades atendidas | H51: Energia economizada (MWh/ano) | I51: Redução de demanda na ponta (kW) | J51: Unidades atendidas | K51: Energia economizada (MWh/ano) | L51: Redução de demanda na ponta (kW) | M51: Unidades atendidas | N51: Energia economizada (MWh/ano) | O51: Redução de demanda na ponta (kW) | P51: Unidades atendidas | Q51: Energia economizada (MWh/ano) | R51: Redução de demanda na ponta (kW)
B52: EAC | C52: Industrial | D52: 0 | E52: 0 | F52: 0 | G52: 0 | H52: 0 | I52: 0 | J52: 0 | K52: 0 | L52: 0 | M52: 0 | N52: 0 | O52: 0 | P52: 0 | Q52: 0 | R52: 0
B53: EAC | C53: Comércio e Serviço | D53: 5 | E53: 224 | F53: 55 | G53: 1 | H53: 175 | I53: 47 | J53: 0 | K53: 0 | L53: 0 | M53: 0 | N53: 0 | O53: 0 | P53: 0 | Q53: 0 | R53: 0
B54: EAC | C54: Poder Público | D54: 1 | E54: 575 | F54: 124 | G54: 3 | H54: 238 | I54: 58 | J54: 0 | K54: 0 | L54: 0 | M54: 0 | N54: 0 | O54: 0 | P54: 0 | Q54: 0 | R54: 0
B55: EAC | C55: Serviço Público | D55: 2 | E55: 421 | F55: 67 | G55: 0 | H55: 0 | I55: 0 | J55: 0 | K55: 0 | L55: 0 | M55: 0 | N55: 0 | O55: 0 | P55: 0 | Q55: 0 | R55: 0
B56: EAC | C56: Rural | D56: 0 | E56: 0 | F56: 0 | G56: 0 | H56: 0 | I56: 0 | J56: 0 | K56: 0 | L56: 0 | M56: 0 | N56: 0 | O56: 0 | P56: 0 | Q56: 0 | R56: 0
B57: EAC | C57: Residencial | D57: 0 | E57: 0 | F57: 0 | G57: 0 | H57: 0 | I57: 0 | J57: 0 | K57: 0 | L57: 0 | M57: 0 | N57: 0 | O57: 0 | P57: 0 | Q57: 0 | R57: 0
B58: EAC | C58: Residencial Baixa Renda | D58: 2706 | E58: 4709 | F58: 3549 | G58: 877 | H58: 1297 | I58: 305 | J58: 0 | K58: 0 | L58: 0 | M58: 0 | N58: 0 | O58: 0 | P58: 0 | Q58: 0 | R58: 0
B59: EAC | C59: Iluminação Pública | D59: 6 | E59: 5316 | F59: 1214 | G59: 2 | H59: 903 | I59: 206 | J59: 0 | K59: 0 | L59: 0 | M59: 0 | N59: 0 | O59: 0 | P59: 0 | Q59: 0 | R59: 0
B60: EAC | C60: Gestão Energética Municipal | D60: 0 | E60: 0 | F60: 0 | G60: 0 | H60: 0 | I60: 0 | J60: 0 | K60: 0 | L60: 0 | M60: 0 | N60: 0 | O60: 0 | P60: 0 | Q60: 0 | R60: 0
B61: EAC | C61: Educacional | D61: 0 | E61: 0 | F61: 0 | G61: 0 | H61: 0 | I61: 0 | J61: 0 | K61: 0 | L61: 0 | M61: 0 | N61: 0 | O61: 0 | P61: 0 | Q61: 0 | R61: 0
B62: EAC | C62: Total | D62: 2720 | E62: 11245 | F62: 5009 | G62: 883 | H62: 2163 | I62: 616 | J62: 0 | K62: 0 | L62: 0 | M62: 0 | N62: 0 | O62: 0 | P62: 0 | Q62: 0 | R62: 0
B64: EBO | D64: 2020 | I64: 2019 | N64: 2018 | S64: 2017 | X64: 2016 | AC64: 2015 | AH64: 2014
B65: =$B$64 -> EBO | C65: Tipologia do Projeto | D65: Investimentos (R$ mil) 1 | F65: Fontes de recursos (R$ mil) | I65: Investimentos (R$ mil) 1 | K65: Fontes de recursos (R$ mil) | N65: Investimentos (R$ mil) 1 | P65: Fontes de recursos (R$ mil) | S65: Investimentos (R$ mil) 1 | U65: Fontes de recursos (R$ mil) | X65: Investimentos (R$ mil) 1 | Z65: Fontes de recursos (R$ mil) | AC65: Investimentos (R$ mil) 1 | AE65: Fontes de recursos (R$ mil) | AH65: Investimentos (R$ mil) 1 | AJ65: Fontes de recursos (R$ mil)
B66: =$B$64 -> EBO | D66: Total | E66: (%) | F66: Próprio | G66: Terceiros | H66: Cliente | I66: Total | J66: (%) | K66: Próprio | L66: Terceiros | M66: Cliente | N66: Total | O66: (%) | P66: Próprio | Q66: Terceiros | R66: Cliente | S66: Total | T66: (%) | U66: Próprio | V66: Terceiros | W66: Cliente | X66: Total | Y66: (%) | Z66: Próprio | AA66: Terceiros | AB66: Cliente | AC66: Total | AD66: (%) | AE66: Próprio | AF66: Terceiros | AG66: Cliente | AH66: Total | AI66: (%) | AJ66: Próprio | AK66: Terceiros | AL66: Cliente
B67: EBO | C67: Industrial | D67: 0 | E67: - | F67: 0 | G67: 0 | H67: 0 | I67: 0 | J67: - | K67: 0 | L67: 0 | M67: 0 | N67: 0 | O67: - | P67: 0 | Q67: 0 | R67: 0 | S67: 0 | T67: - | U67: 0 | V67: 0 | W67: 0 | X67: 0 | Y67: - | Z67: 0 | AA67: 0 | AB67: 0 | AC67: 0 | AD67: - | AE67: 0 | AF67: 0 | AG67: 0 | AH67: 0 | AI67: - | AJ67: 0 | AK67: 0 | AL67: 0
B68: EBO | C68: Comércio e Serviço | D68: 0 | E68: - | F68: 0 | G68: 0 | H68: 0 | I68: 369 | J68: 0.265 | K68: 369 | L68: 0 | M68: 0 | N68: 0 | O68: - | P68: 0 | Q68: 0 | R68: 0 | S68: 0 | T68: - | U68: 0 | V68: 0 | W68: 369 | X68: 0 | Y68: - | Z68: 0 | AA68: 0 | AB68: 0 | AC68: 0 | AD68: - | AE68: 0 | AF68: 0 | AG68: 0 | AH68: 0 | AI68: - | AJ68: 0 | AK68: 0 | AL68: 0
B69: EBO | C69: Poder Público | D69: 0 | E69: - | F69: 0 | G69: 0 | H69: 0 | I69: 0 | J69: - | K69: 0 | L69: 0 | M69: 0 | N69: 0 | O69: - | P69: 0 | Q69: 0 | R69: 0 | S69: 0 | T69: - | U69: 0 | V69: 0 | W69: 0 | X69: 0 | Y69: - | Z69: 0 | AA69: 0 | AB69: 0 | AC69: 271 | AD69: 0.215 | AE69: 271 | AF69: 0 | AG69: 0 | AH69: 255 | AI69: 0.217 | AJ69: 255 | AK69: 0 | AL69: 0
B70: EBO | C70: Serviço Público | D70: 0 | E70: - | F70: 0 | G70: 0 | H70: 0 | I70: 0 | J70: - | K70: 0 | L70: 0 | M70: 0 | N70: 0 | O70: - | P70: 0 | Q70: 0 | R70: 0 | S70: 0 | T70: - | U70: 0 | V70: 0 | W70: 0 | X70: 0 | Y70: - | Z70: 0 | AA70: 0 | AB70: 0 | AC70: 0 | AD70: - | AE70: 0 | AF70: 0 | AG70: 0 | AH70: 0 | AI70: - | AJ70: 0 | AK70: 0 | AL70: 0
B71: EBO | C71: Rural | D71: 0 | E71: - | F71: 0 | G71: 0 | H71: 0 | I71: 0 | J71: - | K71: 0 | L71: 0 | M71: 0 | N71: 0 | O71: - | P71: 0 | Q71: 0 | R71: 0 | S71: 0 | T71: - | U71: 0 | V71: 0 | W71: 0 | X71: 0 | Y71: - | Z71: 0 | AA71: 0 | AB71: 0 | AC71: 0 | AD71: - | AE71: 0 | AF71: 0 | AG71: 0 | AH71: 0 | AI71: - | AJ71: 0 | AK71: 0 | AL71: 0
B72: EBO | C72: Residencial | D72: 0 | E72: - | F72: 0 | G72: 0 | H72: 0 | I72: 0 | J72: - | K72: 0 | L72: 0 | M72: 0 | N72: 0 | O72: - | P72: 0 | Q72: 0 | R72: 0 | S72: 154 | T72: 0.24 | U72: 154 | V72: 0 | W72: 0 | X72: 315 | Y72: 0.451 | Z72: 315 | AA72: 0 | AB72: 0 | AC72: 425 | AD72: 0.337 | AE72: 425 | AF72: 0 | AG72: 0 | AH72: 498 | AI72: 0.424 | AJ72: 498 | AK72: 0 | AL72: 0
B73: EBO | C73: Residencial Baixa Renda | D73: 386 | E73: 0.63 | F73: 386 | G73: 0 | H73: 0 | I73: 875 | J73: 0.629 | K73: 875 | L73: 0 | M73: 0 | N73: 1083 | O73: 1 | P73: 1083 | Q73: 0 | R73: 0 | S73: 489 | T73: 0.76 | U73: 489 | V73: 0 | W73: 875 | X73: 383 | Y73: 0.549 | Z73: 383 | AA73: 0 | AB73: 0 | AC73: 567 | AD73: 0.449 | AE73: 567 | AF73: 0 | AG73: 0 | AH73: 422 | AI73: 0.359 | AJ73: 422 | AK73: 0 | AL73: 0
B74: EBO | C74: Iluminação Pública | D74: 229 | E74: 0.37 | F74: 229 | G74: 0 | H74: 0 | I74: 147 | J74: 0.106 | K74: 147 | L74: 0 | M74: 0 | N74: 0 | O74: - | P74: 0 | Q74: 0 | R74: 0 | S74: 0 | T74: - | U74: 0 | V74: 0 | W74: 147 | X74: 0 | Y74: - | Z74: 0 | AA74: 0 | AB74: 0 | AC74: 0 | AD74: - | AE74: 0 | AF74: 0 | AG74: 0 | AH74: 0 | AI74: - | AJ74: 0 | AK74: 0 | AL74: 0
B75: EBO | C75: Gestão Energética Municipal | D75: 0 | E75: - | F75: 0 | G75: 0 | H75: 0 | I75: 0 | J75: - | K75: 0 | L75: 0 | M75: 0 | N75: 0 | O75: - | P75: 0 | Q75: 0 | R75: 0 | S75: 0 | T75: - | U75: 0 | V75: 0 | W75: 0 | X75: 0 | Y75: - | Z75: 0 | AA75: 0 | AB75: 0 | AC75: 0 | AD75: - | AE75: 0 | AF75: 0 | AG75: 0 | AH75: 0 | AI75: - | AJ75: 0 | AK75: 0 | AL75: 0
B76: EBO | C76: Educacional | D76: 0 | E76: - | F76: 0 | G76: 0 | H76: 0 | I76: 0 | J76: - | K76: 0 | L76: 0 | M76: 0 | N76: 0 | O76: - | P76: 0 | Q76: 0 | R76: 0 | S76: 0 | T76: - | U76: 0 | V76: 0 | W76: 0 | X76: 0 | Y76: - | Z76: 0 | AA76: 0 | AB76: 0 | AC76: 0 | AD76: - | AE76: 0 | AF76: 0 | AG76: 0 | AH76: 0 | AI76: - | AJ76: 0 | AK76: 0 | AL76: 0
B77: EBO | C77: Total | D77: 615 | E77: 1 | F77: 615 | G77: 0 | H77: 0 | I77: 1390 | J77: 1 | K77: 1390 | L77: 0 | M77: 0 | N77: 1083 | O77: 1 | P77: 1083 | Q77: 0 | R77: 0 | S77: 643 | T77: 1 | U77: 643 | V77: 0 | W77: 1390 | X77: 698 | Y77: 1 | Z77: 698 | AA77: 0 | AB77: 0 | AC77: 1263 | AD77: 1 | AE77: 1263 | AF77: 0 | AG77: 0 | AH77: 1175 | AI77: 1 | AJ77: 1175 | AK77: 0 | AL77: 0
B78: EBO | C78: 1 Exclui recursos usados na gestão dos projetos
B79: EBO
B80: EBO | D80: 2020 | G80: 2019 | J80: 2018 | M80: 2017 | P80: 2016 | S80: 2015 | V80: 2014
B81: EBO | C81: Tipologia do Projeto | D81: Unidades atendidas | E81: Energia economizada (MWh/ano) | F81: Redução de demanda na ponta (kW) | G81: Unidades atendidas | H81: Energia economizada (MWh/ano) | I81: Redução de demanda na ponta (kW) | J81: Unidades atendidas | K81: Energia economizada (MWh/ano) | L81: Redução de demanda na ponta (kW) | M81: Unidades atendidas | N81: Energia economizada (MWh/ano) | O81: Redução de demanda na ponta (kW) | P81: Unidades atendidas | Q81: Energia economizada (MWh/ano) | R81: Redução de demanda na ponta (kW) | S81: Unidades atendidas | T81: Energia economizada (MWh/ano) | U81: Redução de demanda na ponta (kW) | V81: Unidades atendidas | W81: Energia economizada (MWh/ano) | X81: Redução de demanda na ponta (kW)
B82: EBO | C82: Industrial | D82: 0 | E82: 0 | F82: 0 | G82: 0 | H82: 0 | I82: 0 | J82: 0 | K82: 0 | L82: 0 | M82: 0 | N82: 0 | O82: 0 | P82: 0 | Q82: 0 | R82: 0 | S82: 0 | T82: 0 | U82: 0 | V82: 0 | W82: 0 | X82: 0
B83: EBO | C83: Comércio e Serviço | D83: 0 | E83: 0 | F83: 0 | G83: 1 | H83: 3 | I83: 0 | J83: 0 | K83: 0 | L83: 0 | M83: 0 | N83: 0 | O83: 0 | P83: 0 | Q83: 0 | R83: 0 | S83: 0 | T83: 0 | U83: 0 | V83: 0 | W83: 0 | X83: 0
B84: EBO | C84: Poder Público | D84: 0 | E84: 0 | F84: 0 | G84: 0 | H84: 0 | I84: 0 | J84: 0 | K84: 0 | L84: 0 | M84: 0 | N84: 0 | O84: 0 | P84: 0 | Q84: 0 | R84: 0 | S84: 1 | T84: 82 | U84: 41 | V84: 0 | W84: 0 | X84: 0
B85: EBO | C85: Serviço Público | D85: 0 | E85: 0 | F85: 0 | G85: 0 | H85: 0 | I85: 0 | J85: 0 | K85: 0 | L85: 0 | M85: 0 | N85: 0 | O85: 0 | P85: 0 | Q85: 0 | R85: 0 | S85: 0 | T85: 0 | U85: 0 | V85: 0 | W85: 0 | X85: 0
B86: EBO | C86: Rural | D86: 0 | E86: 0 | F86: 0 | G86: 0 | H86: 0 | I86: 0 | J86: 0 | K86: 0 | L86: 0 | M86: 0 | N86: 0 | O86: 0 | P86: 0 | Q86: 0 | R86: 0 | S86: 0 | T86: 0 | U86: 0 | V86: 0 | W86: 0 | X86: 0
B87: EBO | C87: Residencial | D87: 0 | E87: 0 | F87: 0 | G87: 0 | H87: 0 | I87: 0 | J87: 0 | K87: 0 | L87: 0 | M87: 1418 | N87: 738 | O87: 103 | P87: 3700 | Q87: 2040 | R87: 538.3 | S87: 2122 | T87: 1831 | U87: 208 | V87: 2567 | W87: 1187 | X87: 237
B88: EBO | C88: Residencial Baixa Renda | D88: 969 | E88: 205 | F88: 80 | G88: 1267 | H88: 1014 | I88: 579 | J88: 10200 | K88: 609 | L88: 255 | M88: 257 | N88: 159 | O88: 82 | P88: 525 | Q88: 605 | R88: 351.1 | S88: 1520 | T88: 256 | U88: 144 | V88: 1109 | W88: 318 | X88: 163
B89: EBO | C89: Iluminação Pública | D89: 1 | E89: 95 | F89: 21 | G89: 1 | H89: 65 | I89: 17 | J89: 0 | K89: 0 | L89: 0 | M89: 0 | N89: 0 | O89: 0 | P89: 0 | Q89: 0 | R89: 0 | S89: 0 | T89: 0 | U89: 0 | V89: 0 | W89: 0 | X89: 0
B90: EBO | C90: Gestão Energética Municipal | D90: 0 | E90: 0 | F90: 0 | G90: 0 | H90: 0 | I90: 0 | J90: 0 | K90: 0 | L90: 0 | M90: 0 | N90: 0 | O90: 0 | P90: 0 | Q90: 0 | R90: 0 | S90: 0 | T90: 0 | U90: 0 | V90: 0 | W90: 0 | X90: 0
B91: EBO | C91: Educacional | D91: 0 | E91: 0 | F91: 0 | G91: 0 | H91: 0 | I91: 0 | J91: 0 | K91: 0 | L91: 0 | M91: 0 | N91: 0 | O91: 0 | P91: 0 | Q91: 0 | R91: 0 | S91: 0 | T91: 0 | U91: 0 | V91: 0 | W91: 0 | X91: 0
B92: EBO | C92: TOTAL | D92: 970 | E92: 300 | F92: 102 | G92: 1269 | H92: 1082 | I92: 596 | J92: 10200 | K92: 609 | L92: 255 | M92: 1675 | N92: 897 | O92: 186 | P92: 4225 | Q92: 2645 | R92: 889.4 | S92: 3643 | T92: 2169 | U92: 393 | V92: 3676 | W92: 1505 | X92: 400
B94: EMS | D94: 2020 | I94: 2019 | N94: 2018 | S94: 2017 | X94: 2016 | AC94: 2915 | AH94: 2014
B95: =$B$94 -> EMS | C95: Tipologia do Projeto | D95: Investimentos (R$ mil) 1 | F95: Fontes de recursos (R$ mil) | I95: Investimentos (R$ mil) 1 | K95: Fontes de recursos (R$ mil) | N95: Investimentos (R$ mil) 1 | P95: Fontes de recursos (R$ mil) | S95: Investimentos (R$ mil) 1 | U95: Fontes de recursos (R$ mil) | X95: Investimentos (R$ mil) 1 | Z95: Fontes de recursos (R$ mil) | AC95: Investimentos (R$ mil) 1 | AE95: Fontes de recursos (R$ mil) | AH95: Investimentos (R$ mil) 1 | AJ95: Fontes de recursos (R$ mil)
B96: =$B$94 -> EMS | D96: Total | E96: (%) | F96: Próprio | G96: Terceiros | H96: Cliente | I96: Total | J96: (%) | K96: Próprio | L96: Terceiros | M96: Cliente | N96: Total | O96: (%) | P96: Próprio | Q96: Terceiros | R96: Cliente | S96: Total | T96: (%) | U96: Próprio | V96: Terceiros | W96: Cliente | X96: Total | Y96: (%) | Z96: Próprio | AA96: Terceiros | AB96: Cliente | AC96: Total | AD96: (%) | AE96: Próprio | AF96: Terceiros | AG96: Cliente | AH96: Total | AI96: (%) | AJ96: Próprio | AK96: Terceiros | AL96: Cliente
B97: EMS | C97: Industrial | D97: 0 | E97: - | F97: 0 | G97: 0 | H97: 0 | I97: 0 | J97: - | K97: 0 | L97: 0 | M97: 0 | N97: 0 | O97: - | P97: 0 | Q97: 0 | R97: 0 | S97: 0 | T97: - | U97: 0 | V97: 0 | W97: 0 | X97: 0 | Y97: - | Z97: 0 | AA97: 0 | AB97: 0 | AC97: 0 | AD97: - | AE97: 0 | AF97: 0 | AG97: 0 | AH97: 0 | AI97: - | AJ97: 0 | AK97: 0 | AL97: 0
B98: EMS | C98: Comércio e Serviço | D98: 786 | E98: 0.122 | F98: 781 | G98: 5 | H98: - | I98: 646 | J98: 0.045 | K98: 646.13 | L98: 0 | M98: 0 | N98: 732 | O98: 0.098 | P98: 732 | Q98: 0 | R98: 0 | S98: 1177 | T98: 0.114 | U98: 1177 | V98: 0 | W98: 0 | X98: 1277 | Y98: 0.097 | Z98: 1277 | AA98: 0 | AB98: 0 | AC98: 431 | AD98: 0.038 | AE98: 431 | AF98: 0 | AG98: 0 | AH98: 810 | AI98: 0.101 | AJ98: 810 | AK98: 0 | AL98: 0
B99: EMS | C99: Poder Público | D99: 2633 | E99: 0.407 | F99: 2606 | G99: 27 | H99: - | I99: 5295 | J99: 0.368 | K99: 5295 | L99: 0 | M99: 0 | N99: 2569 | O99: 0.344 | P99: 2569 | Q99: 0 | R99: 0 | S99: 1011 | T99: 0.098 | U99: 1011 | V99: 0 | W99: 0 | X99: 816 | Y99: 0.06 | Z99: 816 | AA99: 0 | AB99: 0 | AC99: 1719 | AD99: 0.15 | AE99: 1719 | AF99: 0 | AG99: 0 | AH99: 2067 | AI99: 0.256 | AJ99: 2067 | AK99: 0 | AL99: 0
B100: EMS | C100: Serviço Público | D100: 0 | E100: - | F100: 0 | G100: 0 | H100: 0 | I100: 0 | J100: - | K100: 0 | L100: 0 | M100: 0 | N100: 0 | O100: - | P100: 0 | Q100: 0 | R100: 0 | S100: 0 | T100: - | U100: - | V100: 0 | W100: 0 | X100: 0 | Y100: - | Z100: 0 | AA100: 0 | AB100: 0 | AC100: 0 | AD100: - | AE100: 0 | AF100: 0 | AG100: 0 | AH100: 0 | AI100: - | AJ100: 0 | AK100: 0 | AL100: 0
B101: EMS | C101: Rural | D101: 0 | E101: - | F101: 0 | G101: 0 | H101: 0 | I101: 0 | J101: - | K101: 0 | L101: 0 | M101: 0 | N101: 19 | O101: 0.003 | P101: 19 | Q101: 0 | R101: 0 | S101: 164 | T101: 0.016 | U101: 164 | V101: 0 | W101: 0 | X101: 0 | Y101: - | Z101: 0 | AA101: 0 | AB101: 0 | AC101: 0 | AD101: - | AE101: 0 | AF101: 0 | AG101: 0 | AH101: 0 | AI101: - | AJ101: 0 | AK101: 0 | AL101: 0
B102: EMS | C102: Residencial | D102: 0 | E102: - | F102: 0 | G102: 0 | H102: 0 | I102: 0 | J102: - | K102: 0 | L102: 0 | M102: 0 | N102: 0 | O102: - | P102: 0 | Q102: 0 | R102: 0 | S102: 1317 | T102: 0.127 | U102: 1317 | V102: 0 | W102: 0 | X102: 2503 | Y102: 0.189 | Z102: 2503 | AA102: 0 | AB102: 0 | AC102: 862 | AD102: 0.075 | AE102: 862 | AF102: 0 | AG102: 0 | AH102: 0 | AI102: - | AJ102: 0 | AK102: 0 | AL102: 0
B103: EMS | C103: Residencial Baixa Renda | D103: 1749 | E103: 0.27 | F103: 1749 | G103: 0 | H103: 0 | I103: 4400 | J103: 0.306 | K103: 4400 | L103: 0 | M103: 0 | N103: 3365 | O103: 0.451 | P103: 3365 | Q103: 0 | R103: 0 | S103: 5480 | T103: 0.529 | U103: 5480 | V103: 0 | W103: 0 | X103: 7193 | Y103: 0.544 | Z103: 7193 | AA103: 0 | AB103: 0 | AC103: 7219 | AD103: 0.632 | AE103: 7219 | AF103: 0 | AG103: 0 | AH103: 4705 | AI103: 0.583 | AJ103: 4705 | AK103: 0 | AL103: 0
B104: EMS | C104: Iluminação Pública | D104: 783 | E104: 0.121 | F104: 781 | G104: 1 | H104: - | I104: 2307 | J104: 0.161 | K104: 2307 | L104: 0 | M104: 0 | N104: 0 | O104: - | P104: 0 | Q104: 0 | R104: 0 | S104: 0 | T104: - | U104: 0 | V104: 0 | W104: 0 | X104: 0 | Y104: - | Z104: 0 | AA104: 0 | AB104: 0 | AC104: 0 | AD104: - | AE104: 0 | AF104: 0 | AG104: 0 | AH104: 0 | AI104: - | AJ104: 0 | AK104: 0 | AL104: 0
B105: EMS | C105: Gestão Energética Municipal | D105: 0 | E105: - | F105: 0 | G105: 0 | H105: 0 | I105: 0 | J105: - | K105: 0 | L105: 0 | M105: 0 | N105: 0 | O105: - | P105: 0 | Q105: 0 | R105: 0 | S105: 0 | T105: - | U105: 0 | V105: 0 | W105: 0 | X105: 0 | Y105: - | Z105: 0 | AA105: 0 | AB105: 0 | AC105: 0 | AD105: - | AE105: 0 | AF105: 0 | AG105: 0 | AH105: 0 | AI105: - | AJ105: 0 | AK105: 0 | AL105: 0
B106: EMS | C106: Educacional | D106: 516 | E106: 0.08 | F106: 516 | G106: 0 | H106: 0 | I106: 1725 | J106: 0.12 | K106: 1725 | L106: 0 | M106: 0 | N106: 776 | O106: 0.104 | P106: 776 | Q106: 0 | R106: 0 | S106: 1215 | T106: 0.117 | U106: 1215 | V106: 0 | W106: 0 | X106: 1061 | Y106: 0.08 | Z106: 1061 | AA106: 0 | AB106: 0 | AC106: 1075 | AD106: 0.094 | AE106: 1075 | AF106: 0 | AG106: 0 | AH106: 345 | AI106: 0.043 | AJ106: 345 | AK106: 0 | AL106: 0
B107: EMS | C107: Total | D107: 6466 | E107: 1 | F107: 6434 | G107: 33 | H107: 0 | I107: 14373 | J107: 1 | K107: 14373 | L107: 0 | M107: 0 | N107: 7462 | O107: 1 | P107: 7462 | Q107: 0 | R107: 0 | S107: 10364 | T107: 1 | U107: 10364 | V107: 0 | W107: 0 | X107: 12851 | Y107: 1 | Z107: 12851 | AA107: 0 | AB107: 0 | AC107: 11306 | AD107: 1 | AE107: 11306 | AF107: 0 | AG107: 0 | AH107: 7927 | AI107: 1 | AJ107: 7927 | AK107: 0 | AL107: 0
B108: EMS | C108: 1 Exclui recursos usados na gestão dos projetos
B109: EMS
B110: EMS | D110: 2020 | G110: 2019 | J110: 2018 | M110: 2017 | P110: 2016 | S110: 2015 | V110: 2014
B111: EMS | C111: Tipologia do Projeto | D111: Unidades atendidas | E111: Energia economizada (MWh/ano) | F111: Redução de demanda na ponta (kW) | G111: Unidades atendidas | H111: Energia economizada (MWh/ano) | I111: Redução de demanda na ponta (kW) | J111: Unidades atendidas | K111: Energia economizada (MWh/ano) | L111: Redução de demanda na ponta (kW) | M111: Unidades atendidas | N111: Energia economizada (MWh/ano) | O111: Redução de demanda na ponta (kW) | P111: Unidades atendidas | Q111: Energia economizada (MWh/ano) | R111: Redução de demanda na ponta (kW) | S111: Unidades atendidas | T111: Energia economizada (MWh/ano) | U111: Redução de demanda na ponta (kW) | V111: Unidades atendidas | W111: Energia economizada (MWh/ano) | X111: Redução de demanda na ponta (kW)
B112: EMS | C112: Industrial | D112: 0 | E112: 0 | F112: - | G112: 0 | H112: 0 | I112: 0 | J112: 0 | K112: 0 | L112: 0 | M112: 0 | N112: 0 | O112: 0 | P112: 0 | Q112: 0 | R112: 0 | S112: 0 | T112: 0 | U112: 0 | V112: 0 | W112: 0 | X112: 0
B113: EMS | C113: Comércio e Serviço | D113: 4 | E113: 354 | F113: 86 | G113: 8 | H113: 353 | I113: 118 | J113: 4 | K113: 336 | L113: 146 | M113: 7 | N113: 640 | O113: 217 | P113: 2 | Q113: 451.9 | R113: 140.9 | S113: 1 | T113: 32.6 | U113: 35.5 | V113: 4 | W113: 247.6 | X113: 0.2
B114: EMS | C114: Poder Público | D114: 9 | E114: 2638 | F114: 543 | G114: 28 | H114: 3424 | I114: 1058 | J114: 3 | K114: 242 | L114: 96 | M114: 7 | N114: 647 | O114: 264 | P114: 5 | Q114: 865.5 | R114: 289.2 | S114: 7 | T114: 692.4 | U114: 325.9 | V114: 9 | W114: 1335.7 | X114: 0.5
B115: EMS | C115: Serviço Público | D115: 0 | E115: 0 | F115: 0 | G115: 0 | H115: 0 | I115: 0 | J115: 0 | K115: 0 | L115: 0 | M115: 0 | N115: 0 | O115: 0 | P115: 0 | Q115: 0 | R115: 0 | S115: 0 | T115: 0 | U115: 0 | V115: 0 | W115: 0 | X115: 0
B116: EMS | C116: Rural | D116: 0 | E116: 0 | F116: 0 | G116: 0 | H116: 0 | I116: 0 | J116: 1 | K116: 107 | L116: 26 | M116: 1 | N116: 107 | O116: 26 | P116: 0 | Q116: 0 | R116: 0 | S116: 0 | T116: 0 | U116: 0 | V116: 0 | W116: 0 | X116: 0
B117: EMS | C117: Residencial | D117: 0 | E117: 0 | F117: 0 | G117: 0 | H117: 0 | I117: 0 | J117: 0 | K117: 0 | L117: 0 | M117: 2739 | N117: 10757 | O117: 2875 | P117: 5776 | Q117: 11415.3 | R117: 3209.7 | S117: 370 | T117: 658 | U117: 334.8 | V117: 0 | W117: 0 | X117: 0
B118: EMS | C118: Residencial Baixa Renda | D118: 11169 | E118: 3199 | F118: 1663 | G118: 8591 | H118: 3199 | I118: 1663 | J118: 25524 | K118: 2464 | L118: 1575 | M118: 21840 | N118: 2464 | O118: 1575 | P118: 38872 | Q118: 6823.5 | R118: 1810.2 | S118: 26875 | T118: 2414.3 | U118: 778.1 | V118: 3199 | W118: 7786.2 | X118: 2158
B119: EMS | C119: Iluminação Pública | D119: 9 | E119: 520 | F119: 117 | G119: 20 | H119: 1015 | I119: 230 | J119: 0 | K119: 0 | L119: 0 | M119: 0 | N119: 0 | O119: 0 | P119: 0 | Q119: 0 | R119: 0 | S119: 0 | T119: 0 | U119: 0 | V119: 0 | W119: 0 | X119: 0
B120: EMS | C120: Gestão Energética Municipal | D120: 0 | E120: 0 | F120: 0 | G120: 0 | H120: 0 | I120: 0 | J120: 0 | K120: 0 | L120: 0 | M120: 0 | N120: 0 | O120: 0 | P120: 0 | Q120: 0 | R120: 0 | S120: 7713 | T120: 0 | U120: 0 | V120: 0 | W120: 0 | X120: 0
B121: EMS | C121: Educacional | D121: 0 | E121: 0 | F121: 0 | G121: 1 | H121: 0 | I121: 0 | J121: 4064 | K121: 0 | L121: 0 | M121: 8660 | N121: 0 | O121: 0 | P121: 0 | Q121: 0 | R121: 0 | S121: - | T121: 0 | U121: 0 | V121: 0 | W121: 0 | X121: 0
B122: EMS | C122: TOTAL | D122: 11192 | E122: 6711 | F122: 2408 | G122: 8648 | H122: 7991 | I122: 3069 | J122: 29596 | K122: 3148 | L122: 1842 | M122: 33254 | N122: 14616 | O122: 4956 | P122: 56443 | Q122: 19556.2 | R122: 5450 | S122: 34966 | T122: 3797.3 | U122: 1474.4 | V122: 3212 | W122: 9369.6 | X122: 2158.7
B124: EMT | D124: 2020 | I124: 2019 | N124: 2018 | S124: 2017 | X124: 2016 | AC124: 2015 | AH124: 2014
B125: =$B$124 -> EMT | C125: Tipologia do Projeto | D125: Investimentos (R$ mil) 1 | F125: Fontes de recursos (R$ mil) | I125: Investimentos (R$ mil) 1 | K125: Fontes de recursos (R$ mil) | N125: Investimentos (R$ mil) 1 | P125: Fontes de recursos (R$ mil) | S125: Investimentos (R$ mil) 1 | U125: Fontes de recursos (R$ mil) | X125: Investimentos (R$ mil) 1 | Z125: Fontes de recursos (R$ mil) | AC125: Investimentos (R$ mil) 1 | AE125: Fontes de recursos (R$ mil) | AH125: Investimentos (R$ mil) 1 | AJ125: Fontes de recursos (R$ mil)
B126: =$B$124 -> EMT | D126: Total | E126: (%) | F126: Próprio | G126: Terceiros | H126: Cliente | I126: Total | J126: (%) | K126: Próprio | L126: Terceiros | M126: Cliente | N126: Total | O126: (%) | P126: Próprio | Q126: Terceiros | R126: Cliente | S126: Total | T126: (%) | U126: Próprio | V126: Terceiros | W126: Cliente | X126: Total | Y126: (%) | Z126: Próprio | AA126: Terceiros | AB126: Cliente | AC126: Total | AD126: (%) | AE126: Próprio | AF126: Terceiros | AG126: Cliente | AH126: Total | AI126: (%) | AJ126: Próprio | AK126: Terceiros | AL126: Cliente
B127: EMT | C127: Industrial | D127: 0 | E127: - | F127: 0 | G127: 0 | H127: 0 | I127: 38 | J127: 0.001 | K127: 38 | L127: 0 | M127: 0 | N127: 874 | O127: 0.066 | P127: 874 | Q127: 0 | R127: 0 | S127: 900 | T127: 0.036 | U127: 900 | V127: 0 | W127: 0 | X127: 0 | Y127: - | Z127: 0 | AA127: 0 | AB127: 0 | AC127: 0 | AD127: - | AE127: - | AF127: 0 | AG127: 0 | AH127: 0 | AI127: - | AJ127: 0 | AK127: 0 | AL127: 0
B128: EMT | C128: Comércio e Serviço | D128: 0 | E128: - | F128: 0 | G128: 0 | H128: 0 | I128: 459 | J128: 0.016 | K128: 459 | L128: 0 | M128: 0 | N128: 465 | O128: 0.035 | P128: 465 | Q128: 0 | R128: 0 | S128: 4017 | T128: 0.17 | U128: 4017 | V128: 0 | W128: 0 | X128: 0 | Y128: - | Z128: 0 | AA128: 0 | AB128: 0 | AC128: 0 | AD128: - | AE128: - | AF128: 0 | AG128: 0 | AH128: 0 | AI128: - | AJ128: 0 | AK128: 0 | AL128: 0
B129: EMT | C129: Poder Público | D129: 4976 | E129: 0.27 | F129: 4976 | G129: 0 | H129: 0 | I129: 11784 | J129: 0.41 | K129: 11784 | L129: 0 | M129: 0 | N129: 3860 | O129: 0.292 | P129: 3860 | Q129: 0 | R129: 0 | S129: 6018 | T129: 0.24 | U129: 6018 | V129: 0 | W129: 0 | X129: 0 | Y129: - | Z129: 0 | AA129: 0 | AB129: 0 | AC129: 1331 | AD129: 0.048 | AE129: 1331 | AF129: 0 | AG129: 0 | AH129: 240.76 | AI129: 0.16 | AJ129: 240.76 | AK129: 0 | AL129: 0
B130: EMT | C130: Serviço Público | D130: 0 | E130: - | F130: 0 | G130: 0 | H130: 0 | I130: 59 | J130: 0.002 | K130: 59 | L130: 0 | M130: 0 | N130: 2565 | O130: 0.194 | P130: 2565 | Q130: 0 | R130: 0 | S130: 3685 | T130: 0.147 | U130: 3685 | V130: 0 | W130: 0 | X130: 2850 | Y130: 0.067 | Z130: 2850 | AA130: 0 | AB130: 0 | AC130: 0 | AD130: - | AE130: - | AF130: 0 | AG130: 0 | AH130: 0 | AI130: - | AJ130: 0 | AK130: 0 | AL130: 0
B131: EMT | C131: Rural | D131: 0 | E131: - | F131: 0 | G131: 0 | H131: 0 | I131: 294 | J131: 0.01 | K131: 294 | L131: 0 | M131: 0 | N131: 377 | O131: 0.028 | P131: 377 | Q131: 0 | R131: 0 | S131: 2432 | T131: 0.097 | U131: 2432 | V131: 0 | W131: 0 | X131: 0 | Y131: - | Z131: 0 | AA131: 0 | AB131: 0 | AC131: 2541 | AD131: 0.091 | AE131: 2541 | AF131: 0 | AG131: 0 | AH131: 0 | AI131: - | AJ131: 0 | AK131: 0 | AL131: 0
B132: EMT | C132: Residencial | D132: 0 | E132: - | F132: 0 | G132: 0 | H132: 0 | I132: 0 | J132: 0 | K132: 0 | L132: 0 | M132: 0 | N132: 0 | O132: - | P132: 0 | Q132: 0 | R132: 0 | S132: 820 | T132: 0.033 | U132: 820 | V132: 0 | W132: 0 | X132: 27594 | Y132: 0.653 | Z132: 16350 | AA132: 0 | AB132: 11245 | AC132: 13186 | AD132: 0.471 | AE132: 9492 | AF132: 0 | AG132: 3695 | AH132: 606.52 | AI132: 0.39 | AJ132: 606.52 | AK132: 0 | AL132: 0
B133: EMT | C133: Residencial Baixa Renda | D133: 3609 | E133: 0.196 | F133: 3609 | G133: 0 | H133: 0 | I133: 6093 | J133: 0.212 | K133: 6093 | L133: 0 | M133: 0 | N133: 5093 | O133: 0.385 | P133: 5093 | Q133: 0 | R133: 0 | S133: 5608 | T133: 0.224 | U133: 5608 | V133: 0 | W133: 0 | X133: 8389 | Y133: 0.198 | Z133: 8389 | AA133: 0 | AB133: 0 | AC133: 7282 | AD133: 0.26 | AE133: 7282 | AF133: 0 | AG133: 0 | AH133: 699.6 | AI133: 0.45 | AJ133: 699.6 | AK133: 0 | AL133: 0
B134: EMT | C134: Iluminação Pública | D134: 8311 | E134: 0.451 | F134: 8311 | G134: 0 | H134: 0 | I134: 9567 | J134: 0.333 | K134: 9567 | L134: 0 | M134: 0 | N134: 0 | O134: - | P134: 0 | Q134: 0 | R134: 0 | S134: 0 | T134: - | U134: 0 | V134: 0 | W134: 0 | X134: 0 | Y134: - | Z134: 0 | AA134: 0 | AB134: 0 | AC134: 0 | AD134: - | AE134: - | AF134: 0 | AG134: 0 | AH134: 0 | AI134: - | AJ134: 0 | AK134: 0 | AL134: 0
B135: EMT | C135: Gestão Energética Municipal | D135: 0 | E135: - | G135: 0 | H135: 0 | I135: 0 | J135: - | K135: 0 | L135: 0 | M135: 0 | N135: 0 | O135: - | P135: 0 | Q135: 0 | R135: 0 | S135: 0 | T135: - | U135: 0 | V135: 0 | W135: 0 | X135: 0 | Y135: - | Z135: - | AA135: 0 | AB135: 0 | AC135: 0 | AD135: - | AE135: - | AF135: 0 | AG135: 0 | AH135: 0 | AI135: - | AJ135: 0 | AK135: 0 | AL135: 0
B136: EMT | C136: Educacional | D136: 1546 | E136: 0.084 | F136: 1546 | G136: 0 | H136: 0 | I136: 420 | J136: 0.015 | K136: 420 | L136: 0 | M136: 0 | N136: 0 | O136: - | P136: 0 | Q136: 0 | R136: 0 | S136: 862 | T136: 0.034 | U136: 862 | V136: 0 | W136: 0 | X136: 3454 | Y136: 0.082 | Z136: 3454 | AA136: 0 | AB136: 0 | AC136: 3636 | AD136: 0.13 | AE136: 3636 | AF136: 0 | AG136: 0 | AH136: 0 | AI136: - | AJ136: 0 | AK136: 0 | AL136: 0
B137: EMT | C137: Total | D137: 18443 | E137: 1 | F137: 18443 | G137: 0 | H137: 0 | I137: 28714 | J137: 1 | K137: 28714 | L137: 0 | M137: 0 | N137: 13234 | O137: 1 | P137: 13234 | Q137: 0 | R137: 0 | S137: 25084 | T137: 1 | U137: 24341 | V137: 0 | W137: 0 | X137: 42288 | Y137: 1 | Z137: 31043 | AA137: 0 | AB137: 11245 | AC137: 27976 | AD137: 1 | AE137: 24281 | AF137: 0 | AG137: 3695 | AH137: 1546.88 | AI137: 1 | AJ137: 1546.88 | AK137: 0 | AL137: 0
B138: EMT | C138: 1 Exclui recursos usados na gestão dos projetos
B139: =$B$124 -> EMT
B140: EMT | D140: 2020 | G140: 2019 | J140: 2018 | M140: 2017 | P140: 2016 | S140: 2015 | V140: 2014
B141: EMT | C141: Tipologia do Projeto | D141: Unidades atendidas | E141: Energia economizada (MWh/ano) | F141: Redução de demanda na ponta (kW) | G141: Unidades atendidas | H141: Energia economizada (MWh/ano) | I141: Redução de demanda na ponta (kW) | J141: Unidades atendidas | K141: Energia economizada (MWh/ano) | L141: Redução de demanda na ponta (kW) | M141: Unidades atendidas | N141: Energia economizada (MWh/ano) | O141: Redução de demanda na ponta (kW) | P141: Unidades atendidas | Q141: Energia economizada (MWh/ano) | R141: Redução de demanda na ponta (kW) | S141: Unidades atendidas | T141: Energia economizada (MWh/ano) | U141: Redução de demanda na ponta (kW) | V141: Unidades atendidas | W141: Energia economizada (MWh/ano) | X141: Redução de demanda na ponta (kW)
B142: EMT | C142: Industrial | D142: 0 | E142: 0 | F142: 0 | G142: 1 | H142: 1763 | I142: 335.5 | J142: 1 | K142: 1269 | L142: 241 | M142: 1 | N142: 1269 | O142: 242 | P142: - | Q142: - | R142: - | S142: - | T142: - | U142: - | V142: - | W142: - | X142: -
B143: EMT | C143: Comércio e Serviço | D143: 0 | E143: 0 | F143: 0 | G143: 2 | H143: 237.5 | I143: 49.3 | J143: 6 | K143: 1350 | L143: 285 | M143: 8 | N143: 1988 | O143: 352 | P143: - | Q143: - | R143: - | S143: - | T143: - | U143: - | V143: - | W143: - | X143: -
B144: EMT | C144: Poder Público | D144: 6 | E144: 1371 | F144: 206 | G144: 15 | H144: 4971 | I144: 936 | J144: 14 | K144: 5275 | L144: 1017 | M144: 13 | N144: 4680 | O144: 1045 | P144: - | Q144: - | R144: - | S144: 1 | T144: 711 | U144: 496.7 | V144: 18 | W144: 401.6 | X144: 0.06
B145: EMT | C145: Serviço Público | D145: 0 | E145: 0 | F145: 0 | G145: 1 | H145: 0 | I145: 0 | J145: 4 | K145: 3569 | L145: 330 | M145: 4 | N145: 3569 | O145: 330 | P145: 2 | Q145: 1390.6 | R145: 343.3 | S145: - | T145: - | U145: - | V145: - | W145: - | X145: -
B146: EMT | C146: Rural | D146: 1 | E146: 0 | F146: 0 | G146: 4 | H146: 2034 | I146: 216 | J146: 4 | K146: 2068 | L146: 727 | M146: 4 | N146: 2068 | O146: 727 | P146: - | Q146: - | R146: - | S146: 2 | T146: 860.6 | U146: 278 | V146: 0 | W146: 0 | X146: 0
B147: EMT | C147: Residencial | D147: 0 | E147: 0 | F147: 0 | G147: 0 | H147: 0 | I147: 0 | J147: 0 | K147: 0 | L147: 0 | M147: 0 | N147: 0 | O147: 0 | P147: 17172 | Q147: 9356 | R147: 1856.7 | S147: 7695 | T147: 5348.8 | U147: 2223.3 | V147: 2568 | W147: 2528.95 | X147: 0.77
B148: EMT | C148: Residencial Baixa Renda | D148: 4058 | E148: 399 | F148: 161 | G148: 8373 | H148: 622 | I148: 398 | J148: 61140 | K148: 8095 | L148: 5175 | M148: 3138 | N148: 8095 | O148: 5175 | P148: 21000 | Q148: 2386.9 | R148: 697 | S148: 5500 | T148: 1188 | U148: - | V148: 2434 | W148: 1338.41 | X148: 0.86
B149: EMT | C149: Iluminação Pública | D149: 12 | E149: 2808 | F149: 610 | G149: 9 | H149: 2773 | I149: 588 | J149: 0 | K149: 0 | L149: 0 | M149: 0 | N149: 0 | O149: 0 | P149: - | Q149: - | R149: - | S149: - | T149: - | U149: - | V149: - | W149: - | X149: -
B150: EMT | C150: Gestão Energética Municipal | D150: 0 | E150: 0 | F150: 0 | G150: 0 | H150: 0 | I150: 0 | J150: 0 | K150: 0 | L150: 0 | M150: 0 | N150: 0 | O150: 0 | P150: - | Q150: - | R150: - | S150: - | T150: - | U150: - | V150: - | W150: - | X150: -
B151: EMT | C151: Educacional | D151: 0 | E151: 0 | F151: 0 | G151: 0 | H151: 0 | I151: 0 | J151: 0 | K151: 0 | L151: 0 | M151: 0 | N151: 0 | O151: 0 | P151: - | Q151: - | R151: - | S151: - | T151: - | U151: - | V151: - | W151: - | X151: -
B152: EMT | C152: TOTAL | D152: 4077 | E152: 4577 | F152: 977 | G152: 8405 | H152: 12400 | I152: 2522 | J152: 61169 | K152: 21627 | L152: 7777 | M152: 3168 | N152: 21669 | O152: 7871 | P152: 38174 | Q152: 13133.5 | R152: 2897 | S152: 13198 | T152: 8108.3 | U152: 3273 | V152: 5020 | W152: 4268.96 | X152: 1.69
B154: ENF | D154: 2020 | I154: 2019 | N154: 2018 | S154: 2017 | X154: 2016 | AC154: 2015 | AH154: 2014
B155: =$B$154 -> ENF | C155: Tipologia do Projeto | D155: Investimentos (R$ mil) 1 | F155: Fontes de recursos (R$ mil) | I155: Investimentos (R$ mil) 1 | K155: Fontes de recursos (R$ mil) | N155: Investimentos (R$ mil) 1 | P155: Fontes de recursos (R$ mil) | S155: Investimentos (R$ mil) 1 | U155: Fontes de recursos (R$ mil) | X155: Investimentos (R$ mil) 1 | Z155: Fontes de recursos (R$ mil) | AC155: Investimentos (R$ mil) 1 | AE155: Fontes de recursos (R$ mil) | AH155: Investimentos (R$ mil) 1 | AJ155: Fontes de recursos (R$ mil)
B156: =$B$154 -> ENF | D156: Total | E156: (%) | F156: Próprio | G156: Terceiros | H156: Cliente | I156: Total | J156: (%) | K156: Próprio | L156: Terceiros | M156: Cliente | N156: Total | O156: (%) | P156: Próprio | Q156: Terceiros | R156: Cliente | S156: Total | T156: (%) | U156: Próprio | V156: Terceiros | W156: Cliente | X156: Total | Y156: (%) | Z156: Próprio | AA156: Terceiros | AB156: Cliente | AC156: Total | AD156: (%) | AE156: Próprio | AF156: Terceiros | AG156: Cliente | AH156: Total | AI156: (%) | AJ156: Próprio | AK156: Terceiros | AL156: Cliente
B157: ENF | C157: Industrial | D157: 0 | E157: - | F157: 0 | G157: 0 | H157: 0 | I157: 0 | J157: - | K157: 0 | L157: 0 | M157: 0 | N157: 0 | O157: - | P157: 0 | Q157: 0 | R157: 0 | S157: 0 | T157: - | U157: 0 | V157: 0 | W157: 0 | X157: 0 | Y157: - | Z157: 0 | AA157: 0 | AB157: 0 | AC157: 0 | AD157: - | AE157: 0 | AF157: 0 | AG157: 0 | AH157: 0 | AI157: - | AJ157: 0 | AK157: 0 | AL157: 0
B158: ENF | C158: Comércio e Serviço | D158: 2 | E158: 0.01 | F158: 2 | G158: 0 | H158: 0 | I158: 328 | J158: 0.538 | K158: 328 | L158: 0 | M158: 0 | N158: 0 | O158: - | P158: 0 | Q158: 0 | R158: 0 | S158: 0 | T158: - | U158: 0 | V158: 0 | W158: 0 | X158: 0 | Y158: - | Z158: 0 | AA158: 0 | AB158: 0 | AC158: 0 | AD158: - | AE158: 0 | AF158: 0 | AG158: 0 | AH158: 0 | AI158: - | AJ158: 0 | AK158: 0 | AL158: 0
B159: ENF | C159: Poder Público | D159: 0 | E159: - | F159: 0 | G159: 0 | H159: 0 | I159: 0 | J159: - | K159: 0 | L159: 0 | M159: 0 | N159: 0 | O159: - | P159: 0 | Q159: 0 | R159: 0 | S159: 143 | T159: 0.282 | U159: 143 | V159: 0 | W159: 0 | X159: 0 | Y159: - | Z159: 0 | AA159: 0 | AB159: 0 | AC159: 0 | AD159: - | AE159: 0 | AF159: 0 | AG159: 0 | AH159: 0 | AI159: - | AJ159: 0 | AK159: 0 | AL159: 0
B160: ENF | C160: Serviço Público | D160: 0 | E160: - | F160: 0 | G160: 0 | H160: 0 | I160: 0 | J160: - | K160: 0 | L160: 0 | M160: 0 | N160: 0 | O160: - | P160: 0 | Q160: 0 | R160: 0 | S160: 0 | T160: - | U160: 0 | V160: 0 | W160: 0 | X160: 0 | Y160: - | Z160: 0 | AA160: 0 | AB160: 0 | AC160: 0 | AD160: - | AE160: 0 | AF160: 0 | AG160: 0 | AH160: 0 | AI160: - | AJ160: 0 | AK160: 0 | AL160: 0
B161: ENF | C161: Rural | D161: 0 | E161: - | F161: 0 | G161: 0 | H161: 0 | I161: 0 | J161: - | K161: 0 | L161: 0 | M161: 0 | N161: 0 | O161: - | P161: 0 | Q161: 0 | R161: 0 | S161: 0 | T161: - | U161: 0 | V161: 0 | W161: 0 | X161: 0 | Y161: - | Z161: 0 | AA161: 0 | AB161: 0 | AC161: 0 | AD161: - | AE161: 0 | AF161: 0 | AG161: 0 | AH161: 0 | AI161: - | AJ161: 0 | AK161: 0 | AL161: 0
B162: ENF | C162: Residencial | D162: 0 | E162: - | F162: 0 | G162: 0 | H162: 0 | I162: 0 | J162: - | K162: 0 | L162: 0 | M162: 0 | N162: 0 | O162: - | P162: 0 | Q162: 0 | R162: 0 | S162: 148 | T162: 0.292 | U162: 148 | V162: 0 | W162: 0 | X162: 292 | Y162: 0.547 | Z162: 292 | AA162: 0 | AB162: 0 | AC162: 252 | AD162: 0.44 | AE162: 252 | AF162: 0 | AG162: 0 | AH162: 279 | AI162: 0.5 | AJ162: 279 | AK162: 0 | AL162: 0
B163: ENF | C163: Residencial Baixa Renda | D163: 303 | E163: 0.99 | F163: 303 | G163: 0 | H163: 0 | I163: 282 | J163: 0.462 | K163: 282 | L163: 0 | M163: 0 | N163: 357 | O163: 1 | P163: 357 | Q163: 0 | R163: 0 | S163: 216 | T163: 0.426 | U163: 216 | V163: 0 | W163: 0 | X163: 242 | Y163: 0.453 | Z163: 242 | AA163: 0 | AB163: 0 | AC163: 321 | AD163: 0.56 | AE163: 321 | AF163: 0 | AG163: 0 | AH163: 280 | AI163: 0.5 | AJ163: 270 | AK163: 0 | AL163: 0
B164: ENF | C164: Iluminação Pública | D164: 0 | E164: - | F164: 0 | G164: 0 | H164: 0 | I164: 0 | J164: - | K164: 0 | L164: 0 | M164: 0 | N164: 0 | O164: - | P164: 0 | Q164: 0 | R164: 0 | S164: 0 | T164: - | U164: 0 | V164: 0 | W164: 0 | X164: 0 | Y164: - | Z164: 0 | AA164: 0 | AB164: 0 | AC164: 0 | AD164: - | AE164: 0 | AF164: 0 | AG164: 0 | AH164: 0 | AI164: - | AJ164: 0 | AK164: 0 | AL164: 0
B165: ENF | C165: Gestão Energética Municipal | D165: 0 | E165: - | F165: 0 | G165: 0 | H165: 0 | I165: 0 | J165: - | K165: 0 | L165: 0 | M165: 0 | N165: 0 | O165: - | P165: 0 | Q165: 0 | R165: 0 | S165: 0 | T165: - | U165: 0 | V165: 0 | W165: 0 | X165: 0 | Y165: - | Z165: 0 | AA165: 0 | AB165: 0 | AC165: 0 | AD165: - | AE165: 0 | AF165: 0 | AG165: 0 | AH165: 0 | AI165: - | AJ165: 0 | AK165: 0 | AL165: 0
B166: ENF | C166: Educacional | D166: 0 | E166: - | F166: 0 | G166: 0 | H166: 0 | I166: 0 | J166: - | K166: 0 | L166: 0 | M166: 0 | N166: 0 | O166: - | P166: 0 | Q166: 0 | R166: 0 | S166: 0 | T166: - | U166: 0 | V166: 0 | W166: 0 | X166: 0 | Y166: - | Z166: 0 | AA166: 0 | AB166: 0 | AC166: 0 | AD166: - | AE166: 0 | AF166: 0 | AG166: 0 | AH166: 0 | AI166: - | AJ166: 0 | AK166: 0 | AL166: 0
B167: ENF | C167: Total | D167: 306 | E167: 1 | F167: 306 | G167: 0 | H167: 0 | I167: 610 | J167: 1 | K167: 610 | L167: 0 | M167: 0 | N167: 357 | O167: 1 | P167: 357 | Q167: 0 | R167: 0 | S167: 507 | T167: 1 | U167: 507 | V167: 0 | W167: 0 | X167: 534 | Y167: 1 | Z167: 534 | AA167: 0 | AB167: 0 | AC167: 573 | AD167: 1 | AE167: 573 | AF167: 0 | AG167: 0 | AH167: 559 | AI167: 1 | AJ167: 559 | AK167: 0 | AL167: 0
B168: ENF | C168: 1 Exclui recursos usados na gestão dos projetos
B169: =$B$154 -> ENF
B170: ENF | D170: 2020 | G170: 2019 | J170: 2018 | M170: 2017 | P170: 2016 | S170: 2015 | V170: 2014
B171: ENF | C171: Tipologia do Projeto | D171: Unidades atendidas | E171: Energia economizada (MWh/ano) | F171: Redução de demanda na ponta (kW) | G171: Unidades atendidas | H171: Energia economizada (MWh/ano) | I171: Redução de demanda na ponta (kW) | J171: Unidades atendidas | K171: Energia economizada (MWh/ano) | L171: Redução de demanda na ponta (kW) | M171: Unidades atendidas | N171: Energia economizada (MWh/ano) | O171: Redução de demanda na ponta (kW) | P171: Unidades atendidas | Q171: Energia economizada (MWh/ano) | R171: Redução de demanda na ponta (kW) | S171: Unidades atendidas | T171: Energia economizada (MWh/ano) | U171: Redução de demanda na ponta (kW) | V171: Unidades atendidas | W171: Energia economizada (MWh/ano) | X171: Redução de demanda na ponta (kW)
B172: ENF | C172: Industrial | D172: 0 | E172: 0 | F172: 0 | G172: 0 | H172: 0 | I172: 0 | J172: 0 | K172: 0 | L172: 0 | M172: 0 | N172: 0 | O172: 0 | P172: 0 | Q172: 0 | R172: 0 | S172: 0 | T172: 0 | U172: 0 | V172: 0 | W172: 0 | X172: 0
B173: ENF | C173: Comércio e Serviço | D173: 0 | E173: 0 | F173: 0 | G173: 3 | H173: 134 | I173: 34 | J173: 0 | K173: 0 | L173: 0 | M173: 0 | N173: 0 | O173: 0 | P173: 0 | Q173: 0 | R173: 0 | S173: 0 | T173: 0 | U173: 0 | V173: 0 | W173: 0 | X173: 0
B174: ENF | C174: Poder Público | D174: 0 | E174: 0 | F174: 0 | G174: 0 | H174: 0 | I174: 0 | J174: 0 | K174: 0 | L174: 0 | M174: 1 | N174: 132 | O174: 20 | P174: 0 | Q174: 0 | R174: 0 | S174: 0 | T174: 0 | U174: 0 | V174: 0 | W174: 0 | X174: 0
B175: ENF | C175: Serviço Público | D175: 0 | E175: 0 | F175: 0 | G175: 0 | H175: 0 | I175: 0 | J175: 0 | K175: 0 | L175: 0 | M175: 0 | N175: 0 | O175: 0 | P175: 0 | Q175: 0 | R175: 0 | S175: 0 | T175: 0 | U175: 0 | V175: 0 | W175: 0 | X175: 0
B176: ENF | C176: Rural | D176: 0 | E176: 0 | F176: 0 | G176: 0 | H176: 0 | I176: 0 | J176: 0 | K176: 0 | L176: 0 | M176: 0 | N176: 0 | O176: 0 | P176: 0 | Q176: 0 | R176: 0 | S176: 0 | T176: 0 | U176: 0 | V176: 0 | W176: 0 | X176: 0
B177: ENF | C177: Residencial | D177: 0 | E177: 0 | F177: 0 | G177: 0 | H177: 0 | I177: 0 | J177: 0 | K177: 0 | L177: 0 | M177: 1693 | N177: 624 | O177: 0 | P177: 1288 | Q177: 1736 | R177: 0 | S177: 1412 | T177: 1900 | U177: 0 | V177: 2217 | W177: 3065.1 | X177: 0.6
B178: ENF | C178: Residencial Baixa Renda | D178: 300 | E178: 17 | F178: 11 | G178: 977 | H178: 61 | I178: 39 | J178: 8558 | K178: 350 | L178: 106 | M178: 617 | N178: 289 | O178: 74 | P178: 2488 | Q178: 0 | R178: 0 | S178: 340 | T178: 0 | U178: 0 | V178: 689 | W178: 1910.4 | X178: 1198.5
B179: ENF | C179: Iluminação Pública | D179: 0 | E179: 0 | F179: 0 | G179: 0 | H179: 0 | I179: 0 | J179: 0 | K179: 0 | L179: 0 | M179: 0 | N179: 0 | O179: 0 | P179: 0 | Q179: 0 | R179: 0 | S179: 0 | T179: 0 | U179: 0 | V179: 0 | W179: 0 | X179: 0
B180: ENF | C180: Gestão Energética Municipal | D180: 0 | E180: 0 | F180: 0 | G180: 0 | H180: 0 | I180: 0 | J180: 0 | K180: 0 | L180: 0 | M180: 0 | N180: 0 | O180: 0 | P180: 0 | Q180: 0 | R180: 0 | S180: 0 | T180: 0 | U180: 0 | V180: 0 | W180: 0 | X180: 0
B181: ENF | C181: Educacional | D181: 0 | E181: 0 | F181: 0 | G181: 0 | H181: 0 | I181: 0 | J181: 0 | K181: 0 | L181: 0 | M181: 0 | N181: 0 | O181: 0 | P181: 0 | Q181: 0 | R181: 0 | S181: 0 | T181: 0 | U181: 0 | V181: 0 | W181: 0 | X181: 0
B182: ENF | C182: Total | D182: 300 | E182: 17 | F182: 11 | G182: 980 | H182: 195 | I182: 73 | J182: 8558 | K182: 350 | L182: 106 | M182: 2311 | N182: 1045 | O182: 94 | P182: 3776 | Q182: 1736 | R182: 0 | S182: 1752 | T182: 1900 | U182: 0 | V182: 2906 | W182: 4976.5 | X182: 1199.1
B184: EPB | D184: 2020 | I184: 2019 | N184: 2018 | S184: 2017 | X184: 2016 | AC184: 2015 | AH184: 2014
B185: =$B$184 -> EPB | C185: Tipologia do Projeto | D185: Investimentos (R$ mil) 1 | F185: Fontes de recursos (R$ mil) | I185: Investimentos (R$ mil) 1 | K185: Fontes de recursos (R$ mil) | N185: Investimentos (R$ mil) 1 | P185: Fontes de recursos (R$ mil) | S185: Investimentos (R$ mil) 1 | U185: Fontes de recursos (R$ mil) | X185: Investimentos (R$ mil) 1 | Z185: Fontes de recursos (R$ mil) | AC185: Investimentos (R$ mil) 1 | AE185: Fontes de recursos (R$ mil) | AH185: Investimentos (R$ mil) 1 | AJ185: Fontes de recursos (R$ mil)
B186: =$B$184 -> EPB | D186: Total | E186: (%) | F186: Próprio | G186: Terceiros | H186: Cliente | I186: Total | J186: (%) | K186: Próprio | L186: Terceiros | M186: Cliente | N186: Total | O186: (%) | P186: Próprio | Q186: Terceiros | R186: Cliente | S186: Total | T186: (%) | U186: Próprio | V186: Terceiros | W186: Cliente | X186: Total | Y186: (%) | Z186: Próprio | AA186: Terceiros | AB186: Cliente | AC186: Total | AD186: (%) | AE186: Próprio | AF186: Terceiros | AG186: Cliente | AH186: Total | AI186: (%) | AJ186: Próprio | AK186: Terceiros | AL186: Cliente
B187: EPB | C187: Industrial | D187: 0 | E187: - | F187: 0 | G187: 0 | H187: 0 | I187: 0 | J187: - | K187: 0 | L187: 0 | M187: 0 | N187: 0 | O187: - | P187: 0 | Q187: 0 | R187: 0 | S187: 0 | T187: - | U187: 0 | V187: 0 | W187: 0 | X187: 0 | Y187: - | Z187: 0 | AA187: 0 | AB187: 0 | AC187: 0 | AD187: 0 | AE187: 0 | AF187: 0 | AG187: 0 | AH187: 0 | AI187: - | AJ187: 0 | AK187: 0 | AL187: 0
B188: EPB | C188: Comércio e Serviço | D188: 0 | E188: - | F188: 0 | G188: 0 | H188: 0 | I188: 0 | J188: - | K188: 0 | L188: 0 | M188: 0 | N188: 27 | O188: - | P188: 27 | Q188: 0 | R188: 0 | S188: 402 | T188: 0.073 | U188: 402 | V188: 0 | W188: 0 | X188: 0 | Y188: - | Z188: 0 | AA188: 0 | AB188: 0 | AC188: 0 | AD188: 0 | AE188: 0 | AF188: 0 | AG188: 0 | AH188: 0 | AI188: - | AJ188: 0 | AK188: 0 | AL188: 0
B189: EPB | C189: Poder Público | D189: 0 | E189: - | F189: 0 | G189: 0 | H189: 0 | I189: 0 | J189: - | K189: 0 | L189: 0 | M189: 0 | N189: 1 | O189: - | P189: 1 | Q189: 0 | R189: 0 | S189: 329 | T189: 0.06 | U189: 329 | V189: 0 | W189: 0 | X189: 0 | Y189: - | Z189: 0 | AA189: 0 | AB189: 0 | AC189: 0 | AD189: 0 | AE189: 0 | AF189: 0 | AG189: 0 | AH189: 321 | AI189: 0.05 | AJ189: 321 | AK189: 0 | AL189: 0
B190: EPB | C190: Serviço Público | D190: 0 | E190: - | F190: 0 | G190: 0 | H190: 0 | I190: 0 | J190: - | K190: 0 | L190: 0 | M190: 0 | N190: 0 | O190: - | P190: 0 | Q190: 0 | R190: 0 | S190: 0 | T190: - | U190: 0 | V190: 0 | W190: 0 | X190: 0 | Y190: - | Z190: 0 | AA190: 0 | AB190: 0 | AC190: 0 | AD190: 0 | AE190: 0 | AF190: 0 | AG190: 0 | AH190: 0 | AI190: - | AJ190: 0 | AK190: 0 | AL190: 0
B191: EPB | C191: Rural | D191: 0 | E191: - | F191: 0 | G191: 0 | H191: 0 | I191: 0 | J191: - | K191: 0 | L191: 0 | M191: 0 | N191: 0 | O191: - | P191: 0 | Q191: 0 | R191: 0 | S191: 0 | T191: - | U191: 0 | V191: 0 | W191: 0 | X191: 0 | Y191: - | Z191: 0 | AA191: 0 | AB191: 0 | AC191: 0 | AD191: 0 | AE191: 0 | AF191: 0 | AG191: 0 | AH191: 0 | AI191: - | AJ191: 0 | AK191: 0 | AL191: 0
B192: EPB | C192: Residencial | D192: 0 | E192: - | F192: 0 | G192: 0 | H192: 0 | I192: 0 | J192: - | K192: 0 | L192: 0 | M192: 0 | N192: 6 | O192: - | P192: 6 | Q192: 0 | R192: 0 | S192: 893 | T192: 0.163 | U192: 893 | V192: 0 | W192: 0 | X192: 1877 | Y192: 0.284 | Z192: 1379 | AA192: 0 | AB192: 498 | AC192: 3516 | AD192: 0.432 | AE192: 2961 | AF192: 0 | AG192: 555 | AH192: 1165 | AI192: 0.184 | AJ192: 1165 | AK192: 0 | AL192: 0
B193: EPB | C193: Residencial Baixa Renda | D193: 2477 | E193: 0.455 | F193: 2477 | G193: 0 | H193: 0 | I193: 4129 | J193: 0.449 | K193: 4129 | L193: 0 | M193: 0 | N193: 3338 | O193: 0.512 | P193: 3338 | Q193: 0 | R193: 0 | S193: 2621 | T193: 0.479 | U193: 2621 | V193: 0 | W193: 0 | X193: 2910 | Y193: 0.439 | Z193: 2910 | AA193: 0 | AB193: 0 | AC193: 3333 | AD193: 0.409 | AE193: 3333 | AF193: 0 | AG193: 0 | AH193: 3750 | AI193: 0.591 | AJ193: 3750 | AK193: 0 | AL193: 0
B194: EPB | C194: Iluminação Pública | D194: 2617 | E194: 0.481 | F194: 2589 | G194: 17 | H194: 10 | I194: 4088 | J194: 0.445 | K194: 4088 | L194: 32 | M194: 0 | N194: 2045 | O194: 0.314 | P194: 2045 | Q194: 0 | R194: 0 | S194: 0 | T194: - | U194: 0 | V194: 0 | W194: 0 | X194: 0 | Y194: - | Z194: 0 | AA194: 0 | AB194: 0 | AC194: 1299 | AD194: 0.159 | AE194: 1299 | AF194: 0 | AG194: 0 | AH194: 1112 | AI194: 0.175 | AJ194: 1112 | AK194: 0 | AL194: 0
B195: EPB | C195: Gestão Energética Municipal | D195: 0 | E195: - | F195: 0 | G195: 0 | H195: 0 | I195: 0 | J195: - | K195: 0 | L195: 0 | M195: 0 | N195: 0 | O195: - | P195: - | Q195: 0 | R195: 0 | S195: 0 | T195: - | U195: 0 | V195: 0 | W195: 0 | X195: 0 | Y195: - | Z195: 0 | AA195: 0 | AB195: 0 | AC195: 0 | AD195: 0 | AE195: 0 | AF195: 0 | AG195: 0 | AH195: 0 | AI195: - | AJ195: 0 | AK195: 0 | AL195: 0
B196: EPB | C196: Educacional | D196: 349 | E196: 0.064 | F196: 349 | G196: 0 | H196: 0 | I196: 978 | J196: 0.106 | K196: 978 | L196: 0 | M196: 0 | N196: 1097 | O196: 0.168 | P196: 863 | Q196: 234 | R196: 0 | S196: 1226 | T196: 0.224 | U196: 1226 | V196: 0 | W196: 0 | X196: 1832 | Y196: 0.277 | Z196: 1832 | AA196: 0 | AB196: 0 | AC196: 0 | AD196: 0 | AE196: 0 | AF196: 0 | AG196: 0 | AH196: 0 | AI196: - | AJ196: 0 | AK196: 0 | AL196: 0
B197: EPB | C197: TOTAL | D197: 5443 | E197: 1 | F197: 5415 | G197: 17 | H197: 10 | I197: 9195 | J197: 1 | K197: 9195 | L197: 32 | M197: 0 | N197: 6514 | O197: 1 | P197: 6280 | Q197: 234 | R197: 0 | S197: 5471 | T197: 1 | U197: 5471 | V197: 0 | W197: 0 | X197: 6619 | Y197: 1 | Z197: 6121 | AA197: 0 | AB197: 498 | AC197: 8148 | AD197: 1 | AE197: 7593 | AF197: 0 | AG197: 555 | AH197: 6348 | AI197: 1 | AJ197: 6348 | AK197: 0 | AL197: 0
B198: EPB | C198: 1 Exclui recursos usados na gestão dos projetos
B199: =$B$184 -> EPB
B200: EPB | D200: 2020 | G200: 2019 | J200: 2018 | M200: 2017 | P200: 2016 | S200: 2015 | V200: 2014
B201: EPB | C201: Tipologia do Projeto | D201: Unidades atendidas | E201: Energia economizada (MWh/ano) | F201: Redução de demanda na ponta (kW) | G201: Unidades atendidas | H201: Energia economizada (MWh/ano) | I201: Redução de demanda na ponta (kW) | J201: Unidades atendidas | K201: Energia economizada (MWh/ano) | L201: Redução de demanda na ponta (kW) | M201: Unidades atendidas | N201: Energia economizada (MWh/ano) | O201: Redução de demanda na ponta (kW) | P201: Unidades atendidas | Q201: Energia economizada (MWh/ano) | R201: Redução de demanda na ponta (kW) | S201: Unidades atendidas | T201: Energia economizada (MWh/ano) | U201: Redução de demanda na ponta (kW) | V201: Unidades atendidas | W201: Energia economizada (MWh/ano) | X201: Redução de demanda na ponta (kW)
B202: EPB | C202: Industrial | D202: 0 | E202: 0 | F202: 0 | G202: 0 | H202: 0 | I202: 0 | J202: 0 | K202: 0 | L202: 0 | M202: 0 | N202: 0 | O202: 0 | P202: 0 | Q202: 0 | R202: 0 | S202: 0 | T202: 0 | U202: 0 | V202: 0 | W202: 0 | X202: 0
B203: EPB | C203: Comércio e Serviço | D203: 0 | E203: 0 | F203: 0 | G203: 0 | H203: 0 | I203: 0 | J203: 17001 | K203: 14460 | L203: 54 | M203: 17001 | N203: 14460 | O203: 54 | P203: 0 | Q203: 0 | R203: 0 | S203: 0 | T203: 0 | U203: 0 | V203: 0 | W203: 0 | X203: 0
B204: EPB | C204: Poder Público | D204: 0 | E204: 0 | F204: 0 | G204: 0 | H204: 0 | I204: 0 | J204: 1 | K204: 167 | L204: 175 | M204: 1 | N204: 167 | O204: 175 | P204: 0 | Q204: 0 | R204: 0 | S204: 0 | T204: 0 | U204: 0 | V204: 20 | W204: 264.9 | X204: 85.1
B205: EPB | C205: Serviço Público | D205: 0 | E205: 0 | F205: 0 | G205: 0 | H205: 0 | I205: 0 | J205: 0 | K205: 0 | L205: 0 | M205: 0 | N205: 0 | O205: 0 | P205: 0 | Q205: 0 | R205: 0 | S205: 0 | T205: 0 | U205: 0 | V205: 0 | W205: 0 | X205: 0
B206: EPB | C206: Rural | D206: 0 | E206: 0 | F206: 0 | G206: 0 | H206: 0 | I206: 0 | J206: 0 | K206: 0 | L206: 0 | M206: 0 | N206: 0 | O206: 0 | P206: 0 | Q206: 0 | R206: 0 | S206: 0 | T206: 0 | U206: 0 | V206: 0 | W206: 0 | X206: 0
B207: EPB | C207: Residencial | D207: 0 | E207: 0 | F207: 0 | G207: 0 | H207: 0 | I207: 0 | J207: 1 | K207: 34 | L207: 8 | M207: 2559 | N207: 2860 | O207: 353 | P207: 22615 | Q207: 6208.9 | R207: 1716.8 | S207: 10363 | T207: 6187 | U207: 758 | V207: 3263 | W207: 10038 | X207: 638
B208: EPB | C208: Residencial Baixa Renda | D208: 10631 | E208: 614.82 | F208: 241.12 | G208: 26548 | H208: 2367 | I208: 1353 | J208: 30000 | K208: 2030 | L208: 849 | M208: 2092 | N208: 812 | O208: 421 | P208: 6456 | Q208: 1815.6 | R208: 1053.4 | S208: 4287 | T208: 1827 | U208: 1047 | V208: 6193 | W208: 3443 | X208: 1761
... 120 more rows

Sheet P&D
C1: Indicadores do setor elétrico | Selecione a empresa Recursos aplicados em pesquisa e desenvolvimento tecnológico e científico (R$ mil) 1 Por temas de pesquisa (Manual de Pesquisa e Desenvolvimento – Aneel)
B4: EMG | D4: 2020 | F4: 2019 | H4: 2018 | J4: 2017 | L4: 2016 | M4: 2015 | N4: 2015 | P4: 2014
B5: =$B$4 -> EMG | D5: Valor | E5: (%) | F5: Valor | G5: (%) | H5: Valor | I5: (%) | J5: Valor | K5: (%) | L5: Valor | M5: (%) | N5: Valor | O5: (%) | P5: Valor | Q5: (%)
B6: =$B$4 -> EMG | C6: FA – Fontes Alternativas de Geração de Energia Elétrica | D6: - | E6: 0 | F6: 0 | G6: - | H6: 0 | I6: - | J6: 0 | K6: - | L6: 0 | M6: - | N6: 0 | O6: - | P6: 32.9 | Q6: 0.074
B7: EMG | C7: GT – Geração Termelétrica | D7: - | E7: 0 | F7: 0 | G7: - | H7: 0 | I7: - | J7: 0 | K7: - | L7: 0 | M7: - | N7: 0 | O7: - | P7: 0 | Q7: -
B8: EMG | C8: GB – Gestão de Bacias e Reservatórios | D8: - | E8: 0 | F8: 0 | G8: - | H8: 0 | I8: - | J8: 0 | K8: - | L8: 0 | M8: - | N8: 0 | O8: - | P8: 0 | Q8: -
B9: EMG | C9: MA – Meio Ambiente | D9: - | E9: 0 | F9: 37 | G9: 0.012 | H9: 1 | I9: 0.002 | J9: 0 | K9: - | L9: 0 | M9: - | N9: 0 | O9: - | P9: 0 | Q9: -
B10: EMG | C10: SE – Segurança | D10: 0,00 | E10: 0 | F10: 0 | G10: - | H10: 0 | I10: - | J10: 0 | K10: - | L10: 0 | M10: - | N10: 0 | O10: - | P10: 0 | Q10: -
B11: EMG | C11: EF – Eficiência Energética | D11: - | E11: 0 | F11: 0 | G11: - | H11: 0 | I11: - | J11: 0 | K11: - | L11: 0 | M11: - | N11: 0 | O11: - | P11: 0 | Q11: -
B12: EMG | C12: PL – Planejamento de Sistemas de Energia Elétrica | D12: - | E12: 0 | F12: 0 | G12: - | H12: 3 | I12: 0.006 | J12: 0 | K12: - | L12: 40.3 | M12: 0.156 | N12: 137.7 | O12: 0.095 | P12: 40.4 | Q12: 0.091
B13: EMG | C13: OP – Operação de Sistemas de Energia Elétrica | D13: 75,93 | E13: 0.25 | F13: 1044 | G13: 0.331 | H13: 227 | I13: 0.401 | J13: 48 | K13: 0.613 | L13: 68.5 | M13: 0.266 | N13: 146.2 | O13: 0.102 | P13: 35 | Q13: 0.078
B14: EMG | C14: SC – Supervisão, Controle e Proteção de Sistemas de Energia Elétrica | D14: 139,28 | E14: 0.458 | F14: 779 | G14: 0.247 | H14: 1 | I14: 0.001 | J14: 6 | K14: 0.081 | L14: 0.8 | M14: 0.003 | N14: 119.7 | O14: 0.083 | P14: 49.1 | Q14: 0.11
B15: EMG | C15: QC – Qualidade e Confiabilidade dos Serviços de Energia Elétrica | D15: - | E15: 0 | F15: 1 | G15: - | H15: 326 | I15: 0.576 | J15: 19 | K15: 0.239 | L15: 134.3 | M15: 0.52 | N15: 590.2 | O15: 0.41 | P15: 120.7 | Q15: 0.271
B16: EMG | C16: MF – Medição, Faturamento e Combate a Perdas Comerciais | D16: 88,97 | E16: 0.292 | F16: 1287 | G16: 0.409 | H16: 0 | I16: - | J16: 0 | K16: - | L16: 0 | M16: - | N16: 0 | O16: - | P16: 53 | Q16: 0.119
B17: EMG | C17: OU – Outro | D17: - | E17: 0 | F17: 0 | G17: - | H17: 8 | I17: 0.014 | J17: 5 | K17: 0.068 | L17: 14.1 | M17: 0.055 | N17: 446.3 | O17: 0.31 | P17: 114.5 | Q17: 0.257
B18: EMG | C18: Total | D18: 304,18 | E18: 1 | F18: 3149 | G18: 1 | H18: 566 | I18: 1 | J18: 78 | K18: 1 | L18: 258 | M18: 1 | N18: 1440.1 | O18: 1 | P18: 445.4 | Q18: 1
B19: EMG | C19: 1 Exclui recursos usados na gestão dos projetos
B21: EAC | D21: 2020 | F21: 2019 | H21: 2018 | J21: 2017 | L21: 2016
B22: =$B$21 -> EAC | D22: Valor | E22: (%) | F22: Valor | G22: (%) | H22: Valor | I22: (%) | J22: Valor | K22: (%) | L22: Valor | M22: (%)
B23: =$B$21 -> EAC | C23: FA – Fontes Alternativas de Geração de Energia Elétrica | D23: 0 | E23: - | F23: 0 | G23: - | H23: 0 | I23: - | J23: 0 | K23: - | L23: 0 | M23: -
B24: EAC | C24: GT – Geração Termelétrica | D24: 0 | E24: - | F24: 0 | G24: - | H24: 0 | I24: - | J24: 0 | K24: - | L24: 0 | M24: -
B25: EAC | C25: GB – Gestão de Bacias e Reservatórios | D25: 0 | E25: - | F25: 0 | G25: - | H25: 0 | I25: - | J25: 0 | K25: - | L25: 0 | M25: -
B26: EAC | C26: MA – Meio Ambiente | D26: 0 | E26: - | F26: 0 | G26: - | H26: 0 | I26: - | J26: 0 | K26: - | L26: 0 | M26: -
B27: EAC | C27: SE – Segurança | D27: 0 | E27: - | F27: 0 | G27: - | H27: 0 | I27: - | J27: 0 | K27: - | L27: 0 | M27: -
B28: EAC | C28: EF – Eficiência Energética | D28: 0 | E28: - | F28: 942 | G28: 1 | H28: 0 | I28: - | J28: 0 | K28: - | L28: 0 | M28: -
B29: EAC | C29: PL – Planejamento de Sistemas de Energia Elétrica | D29: 0 | E29: - | F29: 0 | G29: - | H29: 0 | I29: - | J29: 0 | K29: - | L29: 0 | M29: -
B30: EAC | C30: OP – Operação de Sistemas de Energia Elétrica | D30: 0 | E30: - | F30: 0 | G30: - | H30: 0 | I30: - | J30: 0 | K30: - | L30: 0 | M30: -
B31: EAC | C31: SC – Supervisão, Controle e Proteção de Sistemas de Energia Elétrica | D31: 0 | E31: - | F31: 0 | G31: - | H31: 0 | I31: - | J31: 0 | K31: - | L31: 0 | M31: -
B32: EAC | C32: QC – Qualidade e Confiabilidade dos Serviços de Energia Elétrica | D32: 0 | E32: - | F32: 0 | G32: - | H32: 1066 | I32: 1 | J32: 1110 | K32: 1 | L32: 219 | M32: 1
B33: EAC | C33: MF – Medição, Faturamento e Combate a Perdas Comerciais | D33: 0 | E33: - | F33: 0 | G33: - | H33: 0 | I33: - | J33: 0 | K33: - | L33: 0 | M33: -
B34: EAC | C34: OU – Outro | D34: 389.83 | E34: 1 | F34: 0 | G34: - | H34: 0 | I34: - | J34: 0 | K34: - | L34: 0 | M34: -
B35: EAC | C35: Total | D35: 389.83 | E35: 1 | F35: 942 | G35: 1 | H35: 1066 | I35: 1 | J35: 1110 | K35: 1 | L35: 219 | M35: 1
B36: EAC | C36: 1 Exclui recursos usados na gestão dos projetos
B38: EBO | D38: 2020 | F38: 2019 | H38: 2018 | J38: 2017 | L38: 2016 | N38: 2015 | P38: 2014
B39: =$B$38 -> EBO | D39: Valor | E39: (%) | F39: Valor | G39: (%) | H39: Valor | I39: (%) | J39: Valor | K39: (%) | L39: Valor | M39: (%) | N39: Valor | O39: (%) | P39: Valor | Q39: (%)
B40: =$B$38 -> EBO | C40: FA – Fontes Alternativas de Geração de Energia Elétrica | D40: 0 | E40: - | F40: 0 | G40: - | H40: 0 | I40: - | J40: 0 | K40: - | L40: 0 | M40: - | N40: 0 | O40: - | P40: 31.1224 | Q40: 0.08
B41: EBO | C41: GT – Geração Termelétrica | D41: 0 | E41: - | F41: 0 | G41: - | H41: 0 | I41: - | J41: 0 | K41: - | L41: 0 | M41: - | N41: 0 | O41: - | P41: 0 | Q41: -
B42: EBO | C42: GB – Gestão de Bacias e Reservatórios | D42: 0 | E42: - | F42: 0 | G42: - | H42: 0 | I42: - | J42: 0 | K42: - | L42: 0 | M42: - | N42: 0 | O42: - | P42: 0 | Q42: -
B43: EBO | C43: MA – Meio Ambiente | D43: 0 | E43: - | F43: 0 | G43: - | H43: 0 | I43: - | J43: 0 | K43: - | L43: 0 | M43: - | N43: 0 | O43: - | P43: 0 | Q43: -
B44: EBO | C44: SE – Segurança | D44: 0 | E44: - | F44: 0 | G44: - | H44: 0 | I44: - | J44: 0 | K44: - | L44: 0 | M44: - | N44: 0 | O44: - | P44: 0 | Q44: -
B45: EBO | C45: EF – Eficiência Energética | D45: 0 | E45: - | F45: 0 | G45: - | H45: 0 | I45: - | J45: 0 | K45: - | L45: 0 | M45: - | N45: 0 | O45: - | P45: 0 | Q45: -
B46: EBO | C46: PL – Planejamento de Sistemas de Energia Elétrica | D46: 0 | E46: - | F46: 370 | G46: 0.619 | H46: 0 | I46: - | J46: 0 | K46: - | L46: 46.2 | M46: 0.635 | N46: 46.8 | O46: 0.158 | P46: 25.5 | Q46: 0.065
B47: EBO | C47: OP – Operação de Sistemas de Energia Elétrica | D47: 0 | E47: - | F47: 0 | G47: - | H47: 0 | I47: - | J47: 0 | K47: - | L47: 0 | M47: - | N47: 49.2 | O47: 0.166 | P47: 50.1 | Q47: 0.128
B48: EBO | C48: SC – Supervisão, Controle e Proteção de Sistemas de Energia Elétrica | D48: 0 | E48: - | F48: 0 | G48: - | H48: 0 | I48: - | J48: 4 | K48: 0.057 | L48: 0 | M48: - | N48: 86.9 | O48: 0.294 | P48: 6.3 | Q48: 0.016
B49: EBO | C49: QC – Qualidade e Confiabilidade dos Serviços de Energia Elétrica | D49: 0 | E49: - | F49: 0 | G49: - | H49: 0 | I49: - | J49: 67 | K49: 0.943 | L49: 26.5 | M49: 0.365 | N49: 45.2 | O49: 0.153 | P49: 90.8 | Q49: 0.233
B50: EBO | C50: MF – Medição, Faturamento e Combate a Perdas Comerciais | D50: 80.32 | E50: 1 | F50: 227 | G50: 0.381 | H50: 0 | I50: - | J50: 0 | K50: - | L50: 0 | M50: - | N50: 0 | O50: - | P50: 8.1 | Q50: 0.021
B51: EBO | C51: OU – Outro | D51: 0 | E51: - | F51: 0 | G51: - | H51: 0 | I51: - | J51: 0 | K51: - | L51: 0 | M51: - | N51: 67.9 | O51: 0.229 | P51: 177.7 | Q51: 0.456
B52: EBO | C52: Total | D52: 80.32 | E52: 1 | F52: 597 | G52: 1 | H52: 0 | I52: - | J52: 71 | K52: 1 | L52: 72.7 | M52: 1 | N52: 296 | O52: 1 | P52: 389.6 | Q52: 1
B53: EBO | C53: 1 Exclui recursos usados na gestão dos projetos
B55: EMS | D55: 2020 | F55: 2019 | H55: 2018 | J55: 2017 | L55: 2016 | N55: 2015 | P55: 2014
B56: =$B$55 -> EMS | D56: Valor | E56: (%) | F56: Valor | G56: (%) | H56: Valor | I56: (%) | J56: Valor | K56: (%) | L56: Valor | M56: (%) | N56: Valor | O56: (%) | P56: Valor | Q56: (%)
B57: =$B$55 -> EMS | C57: FA – Fontes Alternativas de Geração de Energia Elétrica | D57: 81.39 | E57: 0.0276 | F57: 0 | G57: - | H57: 0 | I57: - | J57: 464 | K57: 0.117 | L57: 5724.5 | M57: 0.787 | N57: 0 | O57: - | P57: 0 | Q57: -
B58: EMS | C58: GT – Geração Termelétrica | D58: - | E58: 0 | F58: 0 | G58: - | H58: 0 | I58: - | J58: 0 | K58: - | L58: 0 | M58: - | N58: 0 | O58: - | P58: 0 | Q58: -
B59: EMS | C59: GB – Gestão de Bacias e Reservatórios | D59: - | E59: 0 | F59: 0 | G59: - | H59: 0 | I59: - | J59: 0 | K59: - | L59: 0 | M59: - | N59: 0 | O59: - | P59: 0 | Q59: -
B60: EMS | C60: MA – Meio Ambiente | D60: 0.32 | E60: 0.0001 | F60: 2 | G60: 0 | H60: 0 | I60: - | J60: 0 | K60: - | L60: 0 | M60: - | N60: 0 | O60: - | P60: 0 | Q60: -
B61: EMS | C61: SE – Segurança | D61: - | E61: 0 | F61: 0 | G61: - | H61: 0 | I61: - | J61: 0 | K61: - | L61: 0 | M61: - | N61: 0 | O61: - | P61: 0 | Q61: -
B62: EMS | C62: EF – Eficiência Energética | D62: - | E62: 0 | F62: 0 | G62: - | H62: 0 | I62: - | J62: 0 | K62: - | L62: 0 | M62: - | N62: 0 | O62: - | P62: 0 | Q62: -
B63: EMS | C63: PL – Planejamento de Sistemas de Energia Elétrica | D63: 82.1 | E63: 0.0278 | F63: 1785 | G63: 0.194 | H63: 52 | I63: 0.007 | J63: 451 | K63: 0.113 | L63: 0 | M63: - | N63: 0 | O63: - | P63: 99.3 | Q63: 1
B64: EMS | C64: OP – Operação de Sistemas de Energia Elétrica | D64: 4 | E64: 0.0014 | F64: 343 | G64: 0.037 | H64: 6 | I64: 0.001 | J64: 0 | K64: - | L64: 19.1 | M64: 0.003 | N64: 48.7 | O64: 0.043 | P64: 0 | Q64: -
B65: EMS | C65: SC – Supervisão, Controle e Proteção de Sistemas de Energia Elétrica | D65: 254.5 | E65: 0.0862 | F65: 40 | G65: 0.004 | H65: 0 | I65: - | J65: 6 | K65: 0.002 | L65: 0 | M65: - | N65: 0 | O65: - | P65: 0 | Q65: -
B66: EMS | C66: QC – Qualidade e Confiabilidade dos Serviços de Energia Elétrica | D66: 470.01 | E66: 0.1593 | F66: 417 | G66: 0.045 | H66: 0 | I66: - | J66: 0 | K66: - | L66: 0 | M66: - | N66: 0 | O66: - | P66: 0 | Q66: -
B67: EMS | C67: MF – Medição, Faturamento e Combate a Perdas Comerciais | D67: 1127.29 | E67: 0.382 | F67: 3236 | G67: 0.353 | H67: 2838 | I67: 0.381 | J67: 977 | K67: 0.245 | L67: 411.5 | M67: 0.057 | N67: 966.7 | O67: 0.85 | P67: 0 | Q67: -
B68: EMS | C68: OU – Outro | D68: 931.12 | E68: 0.3156 | F68: 3355 | G68: 0.001 | H68: 4554 | I68: 0.611 | J68: 2083 | K68: 0.523 | L68: 1119.3 | M68: 0.154 | N68: 122.2 | O68: 0.107 | P68: 0 | Q68: -
B69: EMS | C69: Total | D69: 2950.73 | E69: 1 | F69: 9178 | G69: 1 | H69: 7450 | I69: 1 | J69: 3981 | K69: 1 | L69: 7274.4 | M69: 1 | N69: 1137.6 | O69: 1 | P69: 99.3 | Q69: 1
B70: EMS | C70: 1 Exclui recursos usados na gestão dos projetos
B72: EMT | D72: 2020 | F72: 2019 | H72: 2018 | J72: 2017 | L72: 2016 | N72: 2015 | P72: 2014
B73: =$B$72 -> EMT | D73: Valor | E73: (%) | F73: Valor | G73: (%) | H73: Valor | I73: (%) | J73: Valor | K73: (%) | L73: Valor | M73: (%) | N73: Valor | O73: (%) | P73: Valor | Q73: (%)
B74: =$B$72 -> EMT | C74: FA – Fontes Alternativas de Geração de Energia Elétrica | D74: 88.98 | E74: 0.0167 | F74: 74 | G74: 0.003 | H74: 455 | I74: 0.058 | J74: 573 | K74: 0.065 | L74: 33.5 | M74: 0.004 | N74: 148.2 | O74: 0.02 | P74: 0 | Q74: 0
B75: EMT | C75: GT – Geração Termelétrica | D75: 0 | E75: 0 | F75: 0 | G75: - | H75: 0 | I75: - | J75: 0 | K75: - | L75: 0 | M75: - | N75: 0 | O75: - | P75: 0 | Q75: -
B76: EMT | C76: GB – Gestão de Bacias e Reservatórios | D76: 0 | E76: 0 | F76: 0 | G76: - | H76: 0 | I76: - | J76: 0 | K76: - | L76: 0 | M76: - | N76: 0 | O76: - | P76: 0 | Q76: -
B77: EMT | C77: MA – Meio Ambiente | D77: 4.65 | E77: 0.0009 | F77: 0 | G77: - | H77: 0 | I77: - | J77: 0 | K77: - | L77: 0 | M77: - | N77: 0 | O77: - | P77: 657.9 | Q77: 0.37
B78: EMT | C78: SE – Segurança | D78: 0 | E78: 0 | F78: 0 | G78: - | H78: 0 | I78: - | J78: 0 | K78: - | L78: 0 | M78: - | N78: 0 | O78: - | P78: 0 | Q78: -
B79: EMT | C79: EF – Eficiência Energética | D79: 0 | E79: 0 | F79: 0 | G79: - | H79: 403 | I79: 0.052 | J79: 20 | K79: 0.002 | L79: 0 | M79: - | N79: 0 | O79: - | P79: 0 | Q79: 0
B80: EMT | C80: PL – Planejamento de Sistemas de Energia Elétrica | D80: 537.28 | E80: 0.1007 | F80: 14507 | G80: 0.646 | H80: 1843 | I80: 0.237 | J80: 911 | K80: 0.104 | L80: 383 | M80: 0.045 | N80: 65.6 | O80: 0.009 | P80: 490.4 | Q80: 0.27
B81: EMT | C81: OP – Operação de Sistemas de Energia Elétrica | D81: 723.86 | E81: 0.1356 | F81: 126 | G81: 0.006 | H81: 28 | I81: 0.004 | J81: 1703 | K81: 0.194 | L81: 3069.2 | M81: 0.363 | N81: 0 | O81: - | P81: 0 | Q81: -
B82: EMT | C82: SC – Supervisão, Controle e Proteção de Sistemas de Energia Elétrica | D82: 3621.3 | E82: 0.6786 | F82: 7047 | G82: 0.314 | H82: 3086 | I82: 0.397 | J82: 2825 | K82: 0.322 | L82: 3823.1 | M82: 0.451 | N82: 0 | O82: - | P82: 0 | Q82: -
B83: EMT | C83: QC – Qualidade e Confiabilidade dos Serviços de Energia Elétrica | D83: 3.14 | E83: 0.0006 | F83: 0 | G83: - | H83: 428 | I83: 0.055 | J83: 560 | K83: 0.064 | L83: 576.5 | M83: 0.068 | N83: 6823.8 | O83: 0.949 | P83: 636 | Q83: 0.36
B84: EMT | C84: MF – Medição, Faturamento e Combate a Perdas Comerciais | D84: 311.16 | E84: 0.0583 | F84: 555 | G84: 0.025 | H84: 332 | I84: 0.043 | J84: 0 | K84: - | L84: 0 | M84: - | N84: 155.8 | O84: 0.022 | P84: 0 | Q84: -
B85: EMT | C85: OU – Outro | D85: 46 | E85: 0.0086 | F85: 136 | G85: 0.006 | H85: 1204 | I85: 0.155 | J85: 2194 | K85: 0.25 | L85: 586 | M85: 0.069 | N85: 0 | O85: - | P85: 0 | Q85: -
B86: EMT | C86: Total | D86: 5336.37 | E86: 1 | F86: 22445 | G86: 1 | H86: 7779 | I86: 1 | J86: 8786 | K86: 1 | L86: 8471.3 | M86: 1 | N86: 7193.4 | O86: 1 | P86: 1784.3 | Q86: 1
B87: EMT | C87: 1 Exclui recursos usados na gestão dos projetos
B89: ENF | D89: 2020 | F89: 2019 | H89: 2018 | J89: 2017 | L89: 2016 | N89: 2015 | P89: 2014
B90: =$B$89 -> ENF | D90: Valor | E90: (%) | F90: Valor | G90: (%) | H90: Valor | I90: (%) | J90: Valor | K90: (%) | L90: Valor | M90: (%) | N90: Valor | O90: (%) | P90: Valor | Q90: (%)
B91: =$B$89 -> ENF | C91: FA – Fontes Alternativas de Geração de Energia Elétrica | D91: 0 | E91: - | F91: 0 | G91: - | H91: 0 | I91: - | J91: 0 | K91: - | L91: 0 | M91: - | N91: 0 | O91: - | P91: 7.4 | Q91: 0.076
B92: ENF | C92: GT – Geração Termelétrica | D92: 0 | E92: - | F92: 0 | G92: - | H92: 0 | I92: - | J92: 0 | K92: - | L92: 0 | M92: - | N92: 0 | O92: - | P92: 0 | Q92: -
B93: ENF | C93: GB – Gestão de Bacias e Reservatórios | D93: 0 | E93: - | F93: 0 | G93: - | H93: 0 | I93: - | J93: 0 | K93: - | L93: 0 | M93: - | N93: 0 | O93: - | P93: 0 | Q93: -
B94: ENF | C94: MA – Meio Ambiente | D94: 0 | E94: - | F94: 0 | G94: - | H94: 0 | I94: - | J94: 0 | K94: - | L94: 0 | M94: - | N94: 0 | O94: - | P94: 0 | Q94: -
B95: ENF | C95: SE – Segurança | D95: 0 | E95: - | F95: 0 | G95: - | H95: 0 | I95: - | J95: 0 | K95: - | L95: 0 | M95: - | N95: 0 | O95: - | P95: 0 | Q95: -
B96: ENF | C96: EF – Eficiência Energética | D96: 0 | E96: - | F96: 0 | G96: - | H96: 0 | I96: - | J96: 0 | K96: - | L96: 0 | M96: - | N96: 0 | O96: - | P96: 0 | Q96: -
B97: ENF | C97: PL – Planejamento de Sistemas de Energia Elétrica | D97: 74.46 | E97: 0.8772 | F97: 226 | G97: 0.504 | H97: 0 | I97: - | J97: 0 | K97: - | L97: 6.4 | M97: 0.241 | N97: 16.9 | O97: 0.172 | P97: 6.8 | Q97: 0.07
B98: ENF | C98: OP – Operação de Sistemas de Energia Elétrica | D98: 0 | E98: - | F98: 222 | G98: 0.496 | H98: 0 | I98: - | J98: 3.9 | K98: 0.563 | L98: 11.6 | M98: 0.432 | N98: 14.4 | O98: 0.147 | P98: 16.9 | Q98: 0.174
B99: ENF | C99: SC – Supervisão, Controle e Proteção de Sistemas de Energia Elétrica | D99: 10.42 | E99: 0.1228 | F99: 0 | G99: - | H99: 0 | I99: - | J99: 0 | K99: - | L99: 0 | M99: - | N99: 30.8 | O99: 0.314 | P99: 10.8 | Q99: 0.112
B100: ENF | C100: QC – Qualidade e Confiabilidade dos Serviços de Energia Elétrica | D100: 0 | E100: - | F100: 0 | G100: - | H100: 0 | I100: - | J100: 3 | K100: 0.437 | L100: 8.8 | M100: 0.327 | N100: 17.9 | O100: 0.182 | P100: 6 | Q100: 0.062
B101: ENF | C101: MF – Medição, Faturamento e Combate a Perdas Comerciais | D101: 0 | E101: - | F101: 0 | G101: - | H101: 0 | I101: - | J101: 0 | K101: - | L101: 0 | M101: - | N101: 0 | O101: - | P101: 1.8 | Q101: 0.018
B102: ENF | C102: OU – Outro | D102: 0 | E102: - | F102: 0 | G102: - | H102: 0 | I102: - | J102: 0 | K102: - | L102: 0 | M102: - | N102: 18.1 | O102: 0.185 | P102: 47.4 | Q102: 0.488
B103: ENF | C103: Total | D103: 84.88 | E103: 1 | F103: 448 | G103: 1 | H103: 0 | I103: - | J103: 6.9 | K103: 1 | L103: 26.8 | M103: 1 | N103: 98.1 | O103: 1 | P103: 97.1 | Q103: 1
B104: ENF | C104: 1 Exclui recursos usados na gestão dos projetos
B106: EPB | D106: 2020 | F106: 2019 | H106: 2018 | J106: 2017 | L106: 2016 | N106: 2015 | P106: 2014
B107: =$B$106 -> EPB | D107: Valor | E107: (%) | F107: Valor | G107: (%) | H107: Valor | I107: (%) | J107: Valor | K107: (%) | L107: Valor | M107: (%) | N107: Valor | O107: (%) | P107: Valor | Q107: (%)
B108: =$B$106 -> EPB | C108: FA – Fontes Alternativas de Geração de Energia Elétrica | D108: 0 | E108: - | F108: 1600 | G108: 0.305 | H108: 0 | I108: - | J108: 0 | K108: - | L108: 0 | M108: - | N108: 105.9 | O108: 0.024 | P108: 259.1 | Q108: 0.095
B109: EPB | C109: GT – Geração Termelétrica | D109: 0 | E109: - | F109: 0 | G109: - | H109: 0 | I109: - | J109: 0 | K109: - | L109: 0 | M109: - | N109: 0 | O109: - | P109: 0 | Q109: -
B110: EPB | C110: GB – Gestão de Bacias e Reservatórios | D110: 0 | E110: - | F110: 0 | G110: - | H110: 0 | I110: - | J110: 0 | K110: - | L110: 0 | M110: - | N110: 0 | O110: - | P110: 0 | Q110: -
B111: EPB | C111: MA – Meio Ambiente | D111: 1.59 | E111: 0.0011 | F111: 0 | G111: - | H111: 0 | I111: - | J111: 0 | K111: - | L111: 0 | M111: - | N111: 0 | O111: - | P111: 0 | Q111: -
B112: EPB | C112: SE – Segurança | D112: 643.26 | E112: 0.4262 | F112: 196 | G112: 0.037 | H112: 0 | I112: - | J112: 0 | K112: - | L112: 0 | M112: - | N112: 0 | O112: - | P112: 0 | Q112: -
B113: EPB | C113: EF – Eficiência Energética | D113: 0 | E113: - | F113: 0 | G113: 0 | H113: 0 | I113: - | J113: 0 | K113: - | L113: 0 | M113: - | N113: 0 | O113: - | P113: 0 | Q113: -
B114: EPB | C114: PL – Planejamento de Sistemas de Energia Elétrica | D114: 0 | E114: - | F114: 1785 | G114: 0.34 | H114: 45 | I114: 0.026 | J114: 4 | K114: 0.002 | L114: 662.4 | M114: 0.238 | N114: 617.6 | O114: 0.146 | P114: 201.3 | Q114: 0.073
B115: EPB | C115: OP – Operação de Sistemas de Energia Elétrica | D115: 0 | E115: - | F115: 1 | G115: - | H115: 5 | I115: 0.003 | J115: 340 | K115: 0.18 | L115: 557.3 | M115: 0.2 | N115: 460.8 | O115: 0.109 | P115: 410.1 | Q115: 0.15
B116: EPB | C116: SC – Supervisão, Controle e Proteção de Sistemas de Energia Elétrica | D116: 802.03 | E116: 0.5314 | F116: 1615 | G116: 0.308 | H116: 0 | I116: - | J116: 266 | K116: 0.141 | L116: 259.6 | M116: 0.093 | N116: 2132.6 | O116: 0.503 | P116: 178.4 | Q116: 0.065
B117: EPB | C117: QC – Qualidade e Confiabilidade dos Serviços de Energia Elétrica | D117: 0 | E117: - | F117: 0 | G117: - | H117: 2 | I117: 0.001 | J117: 153 | K117: 0.081 | L117: 500.6 | M117: 0.18 | N117: 186.7 | O117: 0.044 | P117: 538 | Q117: 0.197
B118: EPB | C118: MF – Medição, Faturamento e Combate a Perdas Comerciais | D118: 62.28 | E118: 0.0413 | F118: 43 | G118: - | H118: 0 | I118: - | J118: 0 | K118: - | L118: 0.7 | M118: - | N118: 241 | O118: 0.057 | P118: 54.5 | Q118: 0.02
B119: EPB | C119: OU – Outro | D119: 0 | E119: - | F119: 3 | G119: - | H119: 1672 | I119: 0.97 | J119: 1119 | K119: 0.595 | L119: 807 | M119: 0.289 | N119: 495.3 | O119: 0.117 | P119: 1093.8 | Q119: 0.4
B120: EPB | C120: Total | D120: 1509.16 | E120: 1 | F120: 5244 | G120: 1 | H120: 1724 | I120: 1 | J120: 1881 | K120: 1 | L120: 2787.7 | M120: 1 | N120: 4239.9 | O120: 1 | P120: 2735.2 | Q120: 1
B121: EPB | C121: 1 Exclui recursos usados na gestão dos projetos
B123: ERO | D123: 2020 | F123: 2019 | H123: 2018 | J123: 2017 | L123: 2016
B124: =$B$123 -> ERO | D124: Valor | E124: (%) | F124: Valor | G124: (%) | H124: Valor | I124: (%) | J124: Valor | K124: (%) | L124: Valor | M124: (%)
B125: =$B$123 -> ERO | C125: FA – Fontes Alternativas de Geração de Energia Elétrica | D125: 0 | E125: 0 | F125: 0 | G125: - | H125: 244 | I125: 0.2515 | J125: 1229 | K125: 0.3944 | L125: 535.61 | M125: 0.189
B126: ERO | C126: GT – Geração Termelétrica | D126: 0 | E126: 0 | F126: 0 | G126: - | H126: 0 | I126: - | J126: 0 | K126: - | L126: 0 | M126: -
B127: ERO | C127: GB – Gestão de Bacias e Reservatórios | D127: 0 | E127: 0 | F127: 0 | G127: - | H127: 0 | I127: - | J127: 0 | K127: - | L127: 0 | M127: -
B128: ERO | C128: MA – Meio Ambiente | D128: 0 | E128: 0 | F128: 0 | G128: - | H128: 0 | I128: - | J128: 0 | K128: - | L128: 0 | M128: -
B129: ERO | C129: SE – Segurança | D129: 0 | E129: 0 | F129: 0 | G129: - | H129: 0 | I129: - | J129: 720 | K129: 0.2311 | L129: 762.68 | M129: 0.2691
B130: ERO | C130: EF – Eficiência Energética | D130: 0 | E130: 0 | F130: 0 | G130: - | H130: 0 | I130: - | J130: 0 | K130: - | L130: 0 | M130: -
B131: ERO | C131: PL – Planejamento de Sistemas de Energia Elétrica | D131: 0 | E131: 0 | F131: 0 | G131: - | H131: 0 | I131: - | J131: 61 | K131: 0.0196 | L131: 653.39 | M131: 0.2306
B132: ERO | C132: OP – Operação de Sistemas de Energia Elétrica | D132: 0 | E132: 0 | F132: 385 | G132: 1 | H132: 471 | I132: 0.486 | J132: 851 | K132: 0.273 | L132: 822.35 | M132: 0.2902
B133: ERO | C133: SC – Supervisão, Controle e Proteção de Sistemas de Energia Elétrica | D133: 0 | E133: 0 | F133: 0 | G133: - | H133: 0 | I133: - | J133: 0 | K133: - | L133: 0 | M133: -
B134: ERO | C134: QC – Qualidade e Confiabilidade dos Serviços de Energia Elétrica | D134: 0 | E134: 0 | F134: 0 | G134: - | H134: 137 | I134: 0.141 | J134: 137 | K134: 0.044 | L134: 0 | M134: -
B135: ERO | C135: MF – Medição, Faturamento e Combate a Perdas Comerciais | D135: 0 | E135: 0 | F135: 0 | G135: - | H135: 0 | I135: - | J135: 0 | K135: - | L135: 0 | M135: -
B136: ERO | C136: OU – Outro | D136: 0 | E136: 0 | F136: 0 | G136: - | H136: 118 | I136: 0.121 | J136: 118 | K136: 0.038 | L136: 59.73 | M136: 0.0211
B137: ERO | C137: Total | D137: 0 | E137: 0 | F137: 385 | G137: 1 | H137: 969 | I137: 1 | J137: 3115 | K137: 1 | L137: 2833.76 | M137: 1
B138: ERO | C138: 1 Exclui recursos usados na gestão dos projetos
B140: ESE | D140: 2020 | F140: 2019 | H140: 2018 | J140: 2017 | L140: 2016 | M140: 2015 | N140: 2015 | P140: 2014
B141: =$B$140 -> ESE | D141: Valor | E141: (%) | F141: Valor | G141: (%) | H141: Valor | I141: (%) | J141: Valor | K141: (%) | L141: Valor | M141: (%) | N141: Valor | O141: (%) | P141: Valor | Q141: (%)
B142: =$B$140 -> ESE | C142: FA – Fontes Alternativas de Geração de Energia Elétrica | D142: 0 | E142: - | F142: 0 | G142: - | H142: 0 | I142: - | J142: 0 | K142: - | L142: 0 | M142: - | N142: 0 | O142: - | P142: 75.1 | Q142: 0.069
B143: ESE | C143: GT – Geração Termelétrica | D143: 0 | E143: - | F143: 0 | G143: - | H143: 0 | I143: - | J143: 0 | K143: - | L143: 0 | M143: - | N143: 0 | O143: - | P143: 0 | Q143: 0
B144: ESE | C144: GB – Gestão de Bacias e Reservatórios | D144: 0 | E144: - | F144: 0 | G144: - | H144: 0 | I144: - | J144: 0 | K144: - | L144: 0 | M144: - | N144: 0 | O144: - | P144: 0 | Q144: 0
B145: ESE | C145: MA – Meio Ambiente | D145: 318.5 | E145: 0.1244 | F145: 749 | G145: 0.173 | H145: 303 | I145: 0.369 | J145: 0 | K145: - | L145: 0 | M145: - | N145: 0 | O145: - | P145: 0 | Q145: 0
B146: ESE | C146: SE – Segurança | D146: 0 | E146: - | F146: 0 | G146: - | H146: 0 | I146: - | J146: 0 | K146: - | L146: 0 | M146: - | N146: 0 | O146: - | P146: 0 | Q146: 0
B147: ESE | C147: EF – Eficiência Energética | D147: 0 | E147: - | F147: 0 | G147: - | H147: 0 | I147: - | J147: 0 | K147: - | L147: 0 | M147: - | N147: 0 | O147: - | P147: 0 | Q147: 0
B148: ESE | C148: PL – Planejamento de Sistemas de Energia Elétrica | D148: 238.79 | E148: 0.0933 | F148: 3498 | G148: 0.806 | H148: 0 | I148: - | J148: 0 | K148: - | L148: 140.2 | M148: 0.217 | N148: 239.9 | O148: 0.158 | P148: 98.7 | Q148: 0.09
